Workbook

Sheet HMAT Front
F4: Highways Maintenance Appraisal Tool

Sheet Help
F2: Help
E6: The Highways Maintenance Appraisal Tool is an economic appraisal tool which has built additional functionality around the Highways Maintenance Efficiency Programme (HMEP) Lifecycle Planning Toolkit. The existing elements of the HMEP Toolkit remain unchanged and additional tabs have been added for enhanced functionality.
E8: General Information
E9: Macros must be enabled for the Highways Maintenance Appraisal Tool to operate correctly.
F10: Forward Arrow: Move to the next step of the toolkit.
F11: Backward Arrow: Move to the previous step of the toolkit.
F12: Purple Button: Used to perform a specific calculation or function.
F13: Red Button: Used to perform an advanced calculation or function (recommended for advanced users only).
F14: Help: Used to provide the user with page specific help and guidance.
F15: Overview: allows the user to navigate to the relevant overview page (either Highways Maintenance Appraisal Tool of HMEP Tool).
E17: Tabs
E19: The colour coding of the tabs in the Highway Maintenance Appraisal Tool builds on that used in the HMEP tool and is as follows:
F21: Purple Tabs: Modules requiring user inputs into Highways Maintenance Appraisal Tool.
F22: Dark Red Tabs: HMEP input sheets .
F23: Dark Blue Tabs: HMEP output sheets.
F24: Green Tabs: Input sheets for use when not using HMEP for network projection data
F25: Orange Tabs: Output of Highways Maintenance Appraisal Tool modules.
F26: Red Tabs: Contain default data that can be overwritten (recommended for advanced users only).
F27: Grey Tabs: HMEP homesheet and HMEP model structure.
E29: Cells (for non HMEP sheets, see 0a - Homesheet for cell colour coding for HMEP sheets)
F31: Cream Cells: Require user inputs.
F32: Lilac Cells: Inputs that are currently set as default values.
F33: Red Cells: Optional inputs.
F34: White Cells: Output cells containing read-only values.
F35: Grey Cells: Header text.
E37: Lookup Data
G39: Use the button to the left to unhide the lookup data sheets
G41: Use the button to the left to hide the lookup data sheets
E43: Version Releases
E45: Version | F45: Release Date | G45: Details
E46: 1 | F46: 2014-07-09 | G46: First release of the Highways Maintenance Appraisal Tool
E47: 1.01 | F47: 2014-08-11 | G47: Amendments based on client discussions
E48: 1.02 | F48: 2014-08-18 | G48: Amendments based on client discussions
E49: 1.03 | F49: 2014-08-27 | G49: Amended single run process and status messages
E50: 1.04 | F50: 2015-11-18 | G50: Functionality to unhide default data lookups
E51: 2 | F51: 2019-08-27 | G51: Added option to disable HMEP and code optimisation
E52: 2.1 | F52: 2019-10-25 | G52: Updated TAG data tables to May 2019 v1.12
E53: 2.2 | F53: 2019-11-06 | G53: Updated HMEP toolkit to version 2 (dated 18th October 2019)
E54: 3.2 | F54: 2019-11-07 | G54: Updated HMEP toolkit to version 2 (dated 18th October 2019)
E55: 2.21 | F55: 2019-11-21 | G55: Minor bug fixes
E56: 2.22 | F56: 2020-05-28 | G56: Minor bug fixes

Sheet Overview
J2: Overview

Sheet Run Analysis
G2: Run Analysis
C6: This page allows a user to run all calculations in the Highways Maintenance Appraisal Tool as either individual steps or as one process.
C7: Whichever option is required, the same initial steps are required up to and including step 4
C15: Step 1 | D15: Calculate the budget splits based on the activity allocation, road type and treatment proportions from the total maintenance budget specified on the 'Activity Budgets' tab.
C19: Step 2 | D19: =AdditionalSettings!B9 -> n/a
C21: Step 3 | D21: =AdditionalSettings!B11 -> n/a
C23: Step 4 | D23: =AdditionalSettings!B13 -> n/a
D27: Run all process as one | K27: Run processes individually
C29: Step 5 | D29: Run the HMAT tool | J29: Step 5 | K29: =AdditionalSettings!B18 -> Not applicable
J33: Step 6 | K33: Run the traffic calculations
J37: Step 7 | K37: Run the treatment impacts module
J41: Step 8 | K41: Calculate IRI distribution from HMEP projections
J45: Step 9 | K45: Calculate Vehicle Operating Costs
J49: Step 10 | K49: Calculate Accident Forecasts

Sheet Standard Inputs
P1: M-way Urban
F2: Standard Inputs | P2: M-way Rural
P3: A-Road Urban Dual
P4: A-Road Rural Dual
P5: A-Road Urban Single
P6: A-Road Rural Single
D7: Analysis Period | I7: Analysis Name: | J7: No Backlog - R1 | P7: B-Road Urban
P8: B-Road Rural
D9: Start Year | E9: 2020 | P9: C-Road Urban
P10: C-Road Rural
D11: Analysis Period | E11: 30 | F11: (years) | P11: U-Road Urban
P12: U-Road Rural
D13: Road Types | I13: Condition Bands | M13: Treatment Types
D14: Number of Road Types | I14: Number of Condition Bands | M14: Number of Treatment Types
E15: 6 | J15: 3 | N15: 2
D17: No. | E17: Name | F17: Road Type Lookup | G17: Average Scheme Length (km) | I17: No. | J17: Name | K17: Code | M17: No. | N17: Name | O17: Code | P17: kg CO2e/m²
D18: =ROW()-17 -> 1 | E18: MR | F18: M-way Rural | G18: 2.6 | I18: =ROW()-17 -> 1 | J18: Green | K18: G | M18: =ROW()-17 -> 1 | N18: Treatment 1 | O18: T1 | P18: 3.6
D19: 2 | E19: MU | F19: M-way Urban | G19: 1.7 | I19: 2 | J19: Amber | K19: A | M19: =ROW()-17 -> 2 | N19: Treatment 2 | O19: T2 | P19: 6.3
D20: 3 | E20: DR | F20: A-Road Rural Dual | G20: 1.1 | I20: 3 | J20: Red | K20: R
D21: 4 | E21: DU | F21: A-Road Urban Dual | G21: 0.7
D22: 5 | E22: SR | F22: A-Road Rural Single | G22: 0.4
D23: 6 | E23: SU | F23: A-Road Urban Single | G23: 0.3

Sheet Activity Allocation (hidden)
F2: Activity Allocation
D5: Activity Types
D6: Number of Activity Types
E7: 12
H8: Budget Envelopes
D10: No. | E10: Name | F10: Condition Analysis | H10: Name | I10: Budgets (£k)
B11: Carriageway | D11: =ROW()-10 -> 1 | E11: Reconstruction (capital) | F11: Carriageway | H11: Lower | I11: 20000
B12: Lighting | D12: 2 | E12: Structural (capital) | F12: Carriageway | H12: Mid | I12: 25000
B13: Skid | D13: 3 | E13: Bridge (capital) | F13: None | H13: Upper | I13: 38500
B14: None | D14: 4 | E14: Road Safety (capital) | F14: None
D15: 5 | E15: Lighting (capital) | F15: Lighting
D16: 6 | E16: Planning, policy & strategy (revenue) | F16: None
D17: 7 | E17: Structural - roads (revenue) | F17: Carriageway
D18: 8 | E18: Structural -skid (revenue) | F18: Skid
D19: 9 | E19: Structural - bridges (revenue) | F19: None
D20: 10 | E20: Environment (revenue) | F20: None
D21: 11 | E21: Lighting (revenue) | F21: Lighting
D22: 12 | E22: TM & Road safety (revenue) | F22: None
D62: Budget Percentages and Drivers for Allocation Ranges
D64: No. | E64: Name | F64: Lower Envelope | M64: Mid Envelope | T64: Upper Envelope
F65: Total Budget Percentage | G65: Maintenance Drivers | M65: Total Budget Percentage | N65: Maintenance Drivers | T65: Total Budget Percentage | U65: Maintenance Drivers
G66: Safety | H66: Accessibility | I66: Condition | J66: Reliability | K66: Customer Service | L66: Environment | N66: Safety | O66: Accessibility | P66: Condition | Q66: Reliability | R66: Customer Service | S66: Environment | U66: Safety | V66: Accessibility | W66: Condition | X66: Reliability | Y66: Customer Service | Z66: Environment
D67: =ROW()-66 -> 1 | E67: =E11 -> Reconstruction (capital) | F67: 10 | G67: 0 | H67: 0 | I67: 100 | J67: 0 | K67: 0 | L67: 0 | M67: 10 | N67: 0 | O67: 0 | P67: 100 | Q67: 0 | R67: 0 | S67: 0 | T67: 10 | U67: 0 | V67: 0 | W67: 100 | X67: 0 | Y67: 0 | Z67: 0
D68: 2 | E68: =E12 -> Structural (capital) | F68: 45 | G68: 0 | H68: 0 | I68: 100 | J68: 0 | K68: 0 | L68: 0 | M68: 45 | N68: 0 | O68: 0 | P68: 100 | Q68: 0 | R68: 0 | S68: 0 | T68: 45 | U68: 0 | V68: 0 | W68: 100 | X68: 0 | Y68: 0 | Z68: 0
D69: 3 | E69: Bridge (capital) | F69: 0 | G69: 0 | H69: 0 | I69: 100 | J69: 0 | K69: 0 | L69: 0 | M69: 0 | N69: 0 | O69: 0 | P69: 100 | Q69: 0 | R69: 0 | S69: 0 | T69: 0 | U69: 0 | V69: 0 | W69: 100 | X69: 0 | Y69: 0 | Z69: 0
D70: 4 | E70: Road Safety (capital) | F70: 0 | G70: 0 | H70: 0 | I70: 100 | J70: 0 | K70: 0 | L70: 0 | M70: 0 | N70: 0 | O70: 0 | P70: 100 | Q70: 0 | R70: 0 | S70: 0 | T70: 0 | U70: 0 | V70: 0 | W70: 100 | X70: 0 | Y70: 0 | Z70: 0
D71: 5 | E71: Lighting (capital) | F71: 0 | G71: 0 | H71: 0 | I71: 100 | J71: 0 | K71: 0 | L71: 0 | M71: 0 | N71: 0 | O71: 0 | P71: 100 | Q71: 0 | R71: 0 | S71: 0 | T71: 0 | U71: 0 | V71: 0 | W71: 100 | X71: 0 | Y71: 0 | Z71: 0
D72: 6 | E72: Planning, policy & strategy (revenue) | F72: 0 | G72: 0 | H72: 0 | I72: 100 | J72: 0 | K72: 0 | L72: 0 | M72: 0 | N72: 0 | O72: 0 | P72: 100 | Q72: 0 | R72: 0 | S72: 0 | T72: 0 | U72: 0 | V72: 0 | W72: 100 | X72: 0 | Y72: 0 | Z72: 0
D73: 7 | E73: Structural - roads (revenue) | F73: 45 | G73: 0 | H73: 0 | I73: 100 | J73: 0 | K73: 0 | L73: 0 | M73: 45 | N73: 0 | O73: 0 | P73: 100 | Q73: 0 | R73: 0 | S73: 0 | T73: 45 | U73: 0 | V73: 0 | W73: 100 | X73: 0 | Y73: 0 | Z73: 0
D74: 8 | E74: Structural -skid (revenue) | F74: 0 | G74: 0 | H74: 0 | I74: 100 | J74: 0 | K74: 0 | L74: 0 | M74: 0 | N74: 0 | O74: 0 | P74: 100 | Q74: 0 | R74: 0 | S74: 0 | T74: 0 | U74: 0 | V74: 0 | W74: 100 | X74: 0 | Y74: 0 | Z74: 0
D75: 9 | E75: Structural - bridges (revenue) | F75: 0 | G75: 0 | H75: 0 | I75: 100 | J75: 0 | K75: 0 | L75: 0 | M75: 0 | N75: 0 | O75: 0 | P75: 100 | Q75: 0 | R75: 0 | S75: 0 | T75: 0 | U75: 0 | V75: 0 | W75: 100 | X75: 0 | Y75: 0 | Z75: 0
D76: 10 | E76: Environment (revenue) | F76: 0 | G76: 0 | H76: 0 | I76: 100 | J76: 0 | K76: 0 | L76: 0 | M76: 0 | N76: 0 | O76: 0 | P76: 100 | Q76: 0 | R76: 0 | S76: 0 | T76: 0 | U76: 0 | V76: 0 | W76: 100 | X76: 0 | Y76: 0 | Z76: 0
D77: 11 | E77: =E21 -> Lighting (revenue) | F77: 0 | G77: 0 | H77: 0 | I77: 100 | J77: 0 | K77: 0 | L77: 0 | M77: 0 | N77: 0 | O77: 0 | P77: 100 | Q77: 0 | R77: 0 | S77: 0 | T77: 0 | U77: 0 | V77: 0 | W77: 100 | X77: 0 | Y77: 0 | Z77: 0
D78: 12 | E78: =E22 -> TM & Road safety (revenue) | F78: 0 | G78: 0 | H78: 0 | I78: 100 | J78: 0 | K78: 0 | L78: 0 | M78: 0 | N78: 0 | O78: 0 | P78: 100 | Q78: 0 | R78: 0 | S78: 0 | T78: 0 | U78: 0 | V78: 0 | W78: 100 | X78: 0 | Y78: 0 | Z78: 0
D118: Budget Percentages for Road Types and Treatments
D120: No Road Types | E120: 6 | J120: No of Treatment Types | K120: 2
D121: Road Types | J121: Treatment Types
D122: No. | E122: Name | F122: Total Budget Percentage | J122: No | K122: Name | L122: Total Budget Percentage
F123: Lower Envelope | G123: Mid Envelope | H123: Upper Envelope | L123: Lower Envelope | M123: Mid Envelope | N123: Upper Envelope
D124: =ROW()-123 -> 1 | E124: MR | F124: 55 | G124: 55 | H124: 55 | J124: =ROW()-123 -> 1 | K124: Treatment 1 | L124: 15 | M124: 15 | N124: 15
D125: =ROW()-123 -> 2 | E125: MU | F125: 5 | G125: 5 | H125: 5 | J125: =ROW()-123 -> 2 | K125: Treatment 2 | L125: 25 | M125: 25 | N125: 25
D126: 3 | E126: DR | F126: 18 | G126: 18 | H126: 18
D127: 4 | E127: DU | F127: 5 | G127: 5 | H127: 5
D128: 5 | E128: SR | F128: 17 | G128: 17 | H128: 17
D129: =ROW()-123 -> 6 | E129: SU | F129: 0 | G129: 0 | H129: 0

Sheet Activity Budgets (hidden)
F2: Activity Budgets
D6: No Analysis Yrs | E6: 30
D7: Start Year | E7: 2020
F13: =TEXT(start_year+(COLUMN()-6),"0") -> 2020 | G13: 2021 | H13: 2022 | I13: 2023 | J13: 2024 | K13: 2025 | L13: 2026 | M13: 2027 | N13: 2028 | O13: 2029 | P13: 2030 | Q13: 2031 | R13: 2032 | S13: 2033 | T13: 2034 | U13: 2035 | V13: 2036 | W13: 2037 | X13: 2038 | Y13: 2039 | Z13: 2040 | AA13: 2041 | AB13: 2042 | AC13: 2043 | AD13: 2044 | AE13: 2045 | AF13: 2046 | AG13: 2047 | AH13: 2048 | AI13: 2049
D14: Overall Maintenance Budget (£k) | F14: 38500 | G14: 38500 | H14: 38500 | I14: 38500 | J14: 38500 | K14: 38500 | L14: 38500 | M14: 38500 | N14: 38500 | O14: 38500 | P14: 38500 | Q14: 38500 | R14: 38500 | S14: 38500 | T14: 38500 | U14: 38500 | V14: 38500 | W14: 38500 | X14: 38500 | Y14: 38500 | Z14: 38500 | AA14: 38500 | AB14: 38500 | AC14: 38500 | AD14: 38500 | AE14: 38500 | AF14: 38500 | AG14: 38500 | AH14: 38500 | AI14: 38500
D16: Budget split by Activity Type (£k)
D18: No. | E18: Activity | F18: =TEXT(start_year+(COLUMN()-6),"0") -> 2020 | G18: 2021 | H18: 2022 | I18: 2023 | J18: 2024 | K18: 2025 | L18: 2026 | M18: 2027 | N18: 2028 | O18: 2029 | P18: 2030 | Q18: 2031 | R18: 2032 | S18: 2033 | T18: 2034 | U18: 2035 | V18: 2036 | W18: 2037 | X18: 2038 | Y18: 2039 | Z18: 2040 | AA18: 2041 | AB18: 2042 | AC18: 2043 | AD18: 2044 | AE18: 2045 | AF18: 2046 | AG18: 2047 | AH18: 2048 | AI18: 2049
D19: =ROW()-18 -> 1 | E19: Reconstruction (capital) | F19: 3850 | G19: 3850 | H19: 3850 | I19: 3850 | J19: 3850 | K19: 3850 | L19: 3850 | M19: 3850 | N19: 3850 | O19: 3850 | P19: 3850 | Q19: 3850 | R19: 3850 | S19: 3850 | T19: 3850 | U19: 3850 | V19: 3850 | W19: 3850 | X19: 3850 | Y19: 3850 | Z19: 3850 | AA19: 3850 | AB19: 3850 | AC19: 3850 | AD19: 3850 | AE19: 3850 | AF19: 3850 | AG19: 3850 | AH19: 3850 | AI19: 3850
D20: =ROW()-18 -> 2 | E20: Structural (capital) | F20: 17325 | G20: 17325 | H20: 17325 | I20: 17325 | J20: 17325 | K20: 17325 | L20: 17325 | M20: 17325 | N20: 17325 | O20: 17325 | P20: 17325 | Q20: 17325 | R20: 17325 | S20: 17325 | T20: 17325 | U20: 17325 | V20: 17325 | W20: 17325 | X20: 17325 | Y20: 17325 | Z20: 17325 | AA20: 17325 | AB20: 17325 | AC20: 17325 | AD20: 17325 | AE20: 17325 | AF20: 17325 | AG20: 17325 | AH20: 17325 | AI20: 17325
D21: 3 | E21: Bridge (capital) | F21: 0 | G21: 0 | H21: 0 | I21: 0 | J21: 0 | K21: 0 | L21: 0 | M21: 0 | N21: 0 | O21: 0 | P21: 0 | Q21: 0 | R21: 0 | S21: 0 | T21: 0 | U21: 0 | V21: 0 | W21: 0 | X21: 0 | Y21: 0 | Z21: 0 | AA21: 0 | AB21: 0 | AC21: 0 | AD21: 0 | AE21: 0 | AF21: 0 | AG21: 0 | AH21: 0 | AI21: 0
D22: 4 | E22: Road Safety (capital) | F22: 0 | G22: 0 | H22: 0 | I22: 0 | J22: 0 | K22: 0 | L22: 0 | M22: 0 | N22: 0 | O22: 0 | P22: 0 | Q22: 0 | R22: 0 | S22: 0 | T22: 0 | U22: 0 | V22: 0 | W22: 0 | X22: 0 | Y22: 0 | Z22: 0 | AA22: 0 | AB22: 0 | AC22: 0 | AD22: 0 | AE22: 0 | AF22: 0 | AG22: 0 | AH22: 0 | AI22: 0
D23: 5 | E23: Lighting (capital) | F23: 0 | G23: 0 | H23: 0 | I23: 0 | J23: 0 | K23: 0 | L23: 0 | M23: 0 | N23: 0 | O23: 0 | P23: 0 | Q23: 0 | R23: 0 | S23: 0 | T23: 0 | U23: 0 | V23: 0 | W23: 0 | X23: 0 | Y23: 0 | Z23: 0 | AA23: 0 | AB23: 0 | AC23: 0 | AD23: 0 | AE23: 0 | AF23: 0 | AG23: 0 | AH23: 0 | AI23: 0
D24: 6 | E24: Planning, policy & strategy (revenue) | F24: 0 | G24: 0 | H24: 0 | I24: 0 | J24: 0 | K24: 0 | L24: 0 | M24: 0 | N24: 0 | O24: 0 | P24: 0 | Q24: 0 | R24: 0 | S24: 0 | T24: 0 | U24: 0 | V24: 0 | W24: 0 | X24: 0 | Y24: 0 | Z24: 0 | AA24: 0 | AB24: 0 | AC24: 0 | AD24: 0 | AE24: 0 | AF24: 0 | AG24: 0 | AH24: 0 | AI24: 0
D25: 7 | E25: Structural - roads (revenue) | F25: 17325 | G25: 17325 | H25: 17325 | I25: 17325 | J25: 17325 | K25: 17325 | L25: 17325 | M25: 17325 | N25: 17325 | O25: 17325 | P25: 17325 | Q25: 17325 | R25: 17325 | S25: 17325 | T25: 17325 | U25: 17325 | V25: 17325 | W25: 17325 | X25: 17325 | Y25: 17325 | Z25: 17325 | AA25: 17325 | AB25: 17325 | AC25: 17325 | AD25: 17325 | AE25: 17325 | AF25: 17325 | AG25: 17325 | AH25: 17325 | AI25: 17325
D26: 8 | E26: Structural -skid (revenue) | F26: 0 | G26: 0 | H26: 0 | I26: 0 | J26: 0 | K26: 0 | L26: 0 | M26: 0 | N26: 0 | O26: 0 | P26: 0 | Q26: 0 | R26: 0 | S26: 0 | T26: 0 | U26: 0 | V26: 0 | W26: 0 | X26: 0 | Y26: 0 | Z26: 0 | AA26: 0 | AB26: 0 | AC26: 0 | AD26: 0 | AE26: 0 | AF26: 0 | AG26: 0 | AH26: 0 | AI26: 0
D27: =ROW()-18 -> 9 | E27: Structural - bridges (revenue) | F27: 0 | G27: 0 | H27: 0 | I27: 0 | J27: 0 | K27: 0 | L27: 0 | M27: 0 | N27: 0 | O27: 0 | P27: 0 | Q27: 0 | R27: 0 | S27: 0 | T27: 0 | U27: 0 | V27: 0 | W27: 0 | X27: 0 | Y27: 0 | Z27: 0 | AA27: 0 | AB27: 0 | AC27: 0 | AD27: 0 | AE27: 0 | AF27: 0 | AG27: 0 | AH27: 0 | AI27: 0
D28: 10 | E28: Environment (revenue) | F28: 0 | G28: 0 | H28: 0 | I28: 0 | J28: 0 | K28: 0 | L28: 0 | M28: 0 | N28: 0 | O28: 0 | P28: 0 | Q28: 0 | R28: 0 | S28: 0 | T28: 0 | U28: 0 | V28: 0 | W28: 0 | X28: 0 | Y28: 0 | Z28: 0 | AA28: 0 | AB28: 0 | AC28: 0 | AD28: 0 | AE28: 0 | AF28: 0 | AG28: 0 | AH28: 0 | AI28: 0
D29: 11 | E29: Lighting (revenue) | F29: 0 | G29: 0 | H29: 0 | I29: 0 | J29: 0 | K29: 0 | L29: 0 | M29: 0 | N29: 0 | O29: 0 | P29: 0 | Q29: 0 | R29: 0 | S29: 0 | T29: 0 | U29: 0 | V29: 0 | W29: 0 | X29: 0 | Y29: 0 | Z29: 0 | AA29: 0 | AB29: 0 | AC29: 0 | AD29: 0 | AE29: 0 | AF29: 0 | AG29: 0 | AH29: 0 | AI29: 0
D30: 12 | E30: TM & Road safety (revenue) | F30: 0 | G30: 0 | H30: 0 | I30: 0 | J30: 0 | K30: 0 | L30: 0 | M30: 0 | N30: 0 | O30: 0 | P30: 0 | Q30: 0 | R30: 0 | S30: 0 | T30: 0 | U30: 0 | V30: 0 | W30: 0 | X30: 0 | Y30: 0 | Z30: 0 | AA30: 0 | AB30: 0 | AC30: 0 | AD30: 0 | AE30: 0 | AF30: 0 | AG30: 0 | AH30: 0 | AI30: 0
D121: Budget split by Condition Analysis (£k)
D123: Condition Analysis | F123: =TEXT(start_year+(COLUMN()-6),"0") -> 2020 | G123: 2021 | H123: 2022 | I123: 2023 | J123: 2024 | K123: 2025 | L123: 2026 | M123: 2027 | N123: 2028 | O123: 2029 | P123: 2030 | Q123: 2031 | R123: 2032 | S123: 2033 | T123: 2034 | U123: 2035 | V123: 2036 | W123: 2037 | X123: 2038 | Y123: 2039 | Z123: 2040 | AA123: 2041 | AB123: 2042 | AC123: 2043 | AD123: 2044 | AE123: 2045 | AF123: 2046 | AG123: 2047 | AH123: 2048 | AI123: 2049
D124: Carriageway (incl. skid) - input | F124: 38500 | G124: 38500 | H124: 38500 | I124: 38500 | J124: 38500 | K124: 38500 | L124: 38500 | M124: 38500 | N124: 38500 | O124: 38500 | P124: 38500 | Q124: 38500 | R124: 38500 | S124: 38500 | T124: 38500 | U124: 38500 | V124: 38500 | W124: 38500 | X124: 38500 | Y124: 38500 | Z124: 38500 | AA124: 38500 | AB124: 38500 | AC124: 38500 | AD124: 38500 | AE124: 38500 | AF124: 38500 | AG124: 38500 | AH124: 38500 | AI124: 38500
D125: Carriageway (incl. skid) - output
D126: Skid only | F126: 0 | G126: 0 | H126: 0 | I126: 0 | J126: 0 | K126: 0 | L126: 0 | M126: 0 | N126: 0 | O126: 0 | P126: 0 | Q126: 0 | R126: 0 | S126: 0 | T126: 0 | U126: 0 | V126: 0 | W126: 0 | X126: 0 | Y126: 0 | Z126: 0 | AA126: 0 | AB126: 0 | AC126: 0 | AD126: 0 | AE126: 0 | AF126: 0 | AG126: 0 | AH126: 0 | AI126: 0
D127: Lighting | F127: 0 | G127: 0 | H127: 0 | I127: 0 | J127: 0 | K127: 0 | L127: 0 | M127: 0 | N127: 0 | O127: 0 | P127: 0 | Q127: 0 | R127: 0 | S127: 0 | T127: 0 | U127: 0 | V127: 0 | W127: 0 | X127: 0 | Y127: 0 | Z127: 0 | AA127: 0 | AB127: 0 | AC127: 0 | AD127: 0 | AE127: 0 | AF127: 0 | AG127: 0 | AH127: 0 | AI127: 0
D128: None | F128: 0 | G128: 0 | H128: 0 | I128: 0 | J128: 0 | K128: 0 | L128: 0 | M128: 0 | N128: 0 | O128: 0 | P128: 0 | Q128: 0 | R128: 0 | S128: 0 | T128: 0 | U128: 0 | V128: 0 | W128: 0 | X128: 0 | Y128: 0 | Z128: 0 | AA128: 0 | AB128: 0 | AC128: 0 | AD128: 0 | AE128: 0 | AF128: 0 | AG128: 0 | AH128: 0 | AI128: 0
D129: Total budget - input | F129: =F124+F127+F128 -> 38500 | G129: =G124+G127+G128 -> 38500 | H129: 38500 | I129: 38500 | J129: 38500 | K129: 38500 | L129: 38500 | M129: 38500 | N129: 38500 | O129: 38500 | P129: =P124+P127+P128 -> 38500 | Q129: 38500 | R129: 38500 | S129: 38500 | T129: 38500 | U129: 38500 | V129: 38500 | W129: 38500 | X129: 38500 | Y129: 38500 | Z129: =Z124+Z127+Z128 -> 38500 | AA129: 38500 | AB129: 38500 | AC129: 38500 | AD129: 38500 | AE129: 38500 | AF129: 38500 | AG129: 38500 | AH129: 38500 | AI129: 38500
D130: Total budget - output | F130: =F125+F127+F128 -> 0 | G130: =G125+G127+G128 -> 0 | H130: 0 | I130: 0 | J130: 0 | K130: 0 | L130: 0 | M130: 0 | N130: 0 | O130: 0 | P130: =P125+P127+P128 -> 0 | Q130: 0 | R130: 0 | S130: 0 | T130: 0 | U130: 0 | V130: 0 | W130: 0 | X130: 0 | Y130: 0 | Z130: =Z125+Z127+Z128 -> 0 | AA130: 0 | AB130: 0 | AC130: 0 | AD130: 0 | AE130: 0 | AF130: 0 | AG130: 0 | AH130: 0 | AI130: 0
D132: Budget split by Asset Driver (£ k)
D134: Driver | F134: =TEXT(start_year+(COLUMN()-6),"0") -> 2020 | G134: 2021 | H134: 2022 | I134: 2023 | J134: 2024 | K134: 2025 | L134: 2026 | M134: 2027 | N134: 2028 | O134: 2029 | P134: 2030 | Q134: 2031 | R134: 2032 | S134: 2033 | T134: 2034 | U134: 2035 | V134: 2036 | W134: 2037 | X134: 2038 | Y134: 2039 | Z134: 2040 | AA134: 2041 | AB134: 2042 | AC134: 2043 | AD134: 2044 | AE134: 2045 | AF134: 2046 | AG134: 2047 | AH134: 2048 | AI134: 2049
D135: Safety | F135: 0 | G135: 0 | H135: 0 | I135: 0 | J135: 0 | K135: 0 | L135: 0 | M135: 0 | N135: 0 | O135: 0 | P135: 0 | Q135: 0 | R135: 0 | S135: 0 | T135: 0 | U135: 0 | V135: 0 | W135: 0 | X135: 0 | Y135: 0 | Z135: 0 | AA135: 0 | AB135: 0 | AC135: 0 | AD135: 0 | AE135: 0 | AF135: 0 | AG135: 0 | AH135: 0 | AI135: 0
D136: Accessibility | F136: 0 | G136: 0 | H136: 0 | I136: 0 | J136: 0 | K136: 0 | L136: 0 | M136: 0 | N136: 0 | O136: 0 | P136: 0 | Q136: 0 | R136: 0 | S136: 0 | T136: 0 | U136: 0 | V136: 0 | W136: 0 | X136: 0 | Y136: 0 | Z136: 0 | AA136: 0 | AB136: 0 | AC136: 0 | AD136: 0 | AE136: 0 | AF136: 0 | AG136: 0 | AH136: 0 | AI136: 0
D137: Condition | F137: 38500 | G137: 38500 | H137: 38500 | I137: 38500 | J137: 38500 | K137: 38500 | L137: 38500 | M137: 38500 | N137: 38500 | O137: 38500 | P137: 38500 | Q137: 38500 | R137: 38500 | S137: 38500 | T137: 38500 | U137: 38500 | V137: 38500 | W137: 38500 | X137: 38500 | Y137: 38500 | Z137: 38500 | AA137: 38500 | AB137: 38500 | AC137: 38500 | AD137: 38500 | AE137: 38500 | AF137: 38500 | AG137: 38500 | AH137: 38500 | AI137: 38500
D138: Reliability | F138: 0 | G138: 0 | H138: 0 | I138: 0 | J138: 0 | K138: 0 | L138: 0 | M138: 0 | N138: 0 | O138: 0 | P138: 0 | Q138: 0 | R138: 0 | S138: 0 | T138: 0 | U138: 0 | V138: 0 | W138: 0 | X138: 0 | Y138: 0 | Z138: 0 | AA138: 0 | AB138: 0 | AC138: 0 | AD138: 0 | AE138: 0 | AF138: 0 | AG138: 0 | AH138: 0 | AI138: 0
D139: Customer Service | F139: 0 | G139: 0 | H139: 0 | I139: 0 | J139: 0 | K139: 0 | L139: 0 | M139: 0 | N139: 0 | O139: 0 | P139: 0 | Q139: 0 | R139: 0 | S139: 0 | T139: 0 | U139: 0 | V139: 0 | W139: 0 | X139: 0 | Y139: 0 | Z139: 0 | AA139: 0 | AB139: 0 | AC139: 0 | AD139: 0 | AE139: 0 | AF139: 0 | AG139: 0 | AH139: 0 | AI139: 0
D140: Environment | F140: 0 | G140: 0 | H140: 0 | I140: 0 | J140: 0 | K140: 0 | L140: 0 | M140: 0 | N140: 0 | O140: 0 | P140: 0 | Q140: 0 | R140: 0 | S140: 0 | T140: 0 | U140: 0 | V140: 0 | W140: 0 | X140: 0 | Y140: 0 | Z140: 0 | AA140: 0 | AB140: 0 | AC140: 0 | AD140: 0 | AE140: 0 | AF140: 0 | AG140: 0 | AH140: 0 | AI140: 0
D142: Carriageway budget split by Road Type and Treatment (£k)
D144: Road Type | E144: Treatment | F144: =TEXT(start_year+(COLUMN()-6),"0") -> 2020 | G144: 2021 | H144: 2022 | I144: 2023 | J144: 2024 | K144: 2025 | L144: 2026 | M144: 2027 | N144: 2028 | O144: 2029 | P144: 2030 | Q144: 2031 | R144: 2032 | S144: 2033 | T144: 2034 | U144: 2035 | V144: 2036 | W144: 2037 | X144: 2038 | Y144: 2039 | Z144: 2040 | AA144: 2041 | AB144: 2042 | AC144: 2043 | AD144: 2044 | AE144: 2045 | AF144: 2046 | AG144: 2047 | AH144: 2048 | AI144: 2049
D145: MR | E145: Treatment 1
D146: MR | E146: Treatment 2
D147: MU | E147: Treatment 1
D148: MU | E148: Treatment 2
D149: DR | E149: Treatment 1
D150: DR | E150: Treatment 2
D151: DU | E151: Treatment 1
D152: DU | E152: Treatment 2
D153: SR | E153: Treatment 1
D154: SR | E154: Treatment 2
D155: SU | E155: Treatment 1
D156: SU | E156: Treatment 2

Sheet AdditionalSettings (hidden)
D1: Chanage these bits if you want to change the descriptions
A2: HMEP_Enabled | B2: FALSE
D3: HMEP text | E3: Non HMEP text
A4: HMEPtoggle | B4: =IF(HMEP_Enabled,D4,E4) -> HMEP condition analysis - disabled | D4: HMEP condition analysis - enabled | E4: HMEP condition analysis - disabled
B8: Selected
A9: Step 2 | B9: =IF(HMEP_Enabled,D9,E9) -> n/a | D9: If undertaking a budget analysis, transfer the road type and treatment type budgets from the 'Activity Budgets' tab (calculated in step 1) into the HMEP budget tab '5 - Budgets' | E9: n/a
A11: Step 3 | B11: =IF(HMEP_Enabled,D11,E11) -> n/a | D11: If undertaking a target condition analysis, make sure the required performance targets have been specified on the HMEP performance target tab '6 - Performance Targets' | E11: n/a
A13: Step 4 | B13: =IF(HMEP_Enabled,D13,E13) -> n/a | D13: Make sure the conidition analysis scenario has been setup and specified and that the correct budgets and/or performance targets are used for each year of the analysis for each road type. This is done on the HMEP tab '7 - Scenario' | E13: n/a
A18: Step 5 | B18: =IF(HMEP_Enabled,D18,E18) -> Not applicable | D18: Run the HMEP condition projection | E18: Not applicable
A19: Step 5 button | B19: =IF(HMEP_Enabled,D19,E19) -> n/a | D19: Run HMEP Condition Analysis | E19: n/a
A22: Left link button on Traffic | B22: =IF(HMEP_Enabled,D22,E22) -> BUDGET | D22: SCENARIO | E22: BUDGET

Sheet 1 - Network Size
D3: HOMOGENEOUS ASSET GROUPS
B9: Asset Group | C9: Description | D9: Length (m) | E9: Width (m) | F9: Area | G9: Units
B10: =ROW() - 9 -> 1 | C10: =OFFSET(ASSET_GROUP_NAME,'1 - Homog Asset Groups'!B10-1,0) -> MR | D10: 34920 | E10: 14.1 | F10: =D10*E10 -> 492372 | G10: m²
B11: 2 | C11: =OFFSET(ASSET_GROUP_NAME,'1 - Homog Asset Groups'!B11-1,0) -> MU | D11: 3880 | E11: 14.1 | F11: 54708 | G11: m²
B12: 3 | C12: =OFFSET(ASSET_GROUP_NAME,'1 - Homog Asset Groups'!B12-1,0) -> DR | D12: 80388 | E12: 8.3 | F12: 667220.4 | G12: m²
B13: 4 | C13: =OFFSET(ASSET_GROUP_NAME,'1 - Homog Asset Groups'!B13-1,0) -> DU | D13: 812 | E13: 8.3 | F13: 6739.6 | G13: m²
B14: 5 | C14: =OFFSET(ASSET_GROUP_NAME,'1 - Homog Asset Groups'!B14-1,0) -> SR | D14: 320705 | E14: 7.3 | F14: 2341146.5 | G14: m²
B15: 6 | C15: =OFFSET(ASSET_GROUP_NAME,'1 - Homog Asset Groups'!B15-1,0) -> SU | D15: 56595 | E15: 7.3 | F15: =D15*E15 -> 413143.5 | G15: m²

Sheet 2 - Condition by Year
B3: CONDITION BY YEAR
B7: Asset Group | C7: No. | D7: Cond | F7: =TEXT(start_year+(COLUMN()-6),"0") -> 2020 | G7: 2021 | H7: 2022 | I7: 2023 | J7: 2024 | K7: 2025 | L7: 2026 | M7: 2027 | N7: 2028 | O7: 2029 | P7: 2030 | Q7: 2031 | R7: 2032 | S7: 2033 | T7: 2034 | U7: 2035 | V7: 2036 | W7: 2037 | X7: 2038 | Y7: 2039 | Z7: 2040 | AA7: 2041 | AB7: 2042 | AC7: 2043 | AD7: 2044 | AE7: 2045 | AF7: 2046 | AG7: 2047 | AH7: 2048 | AI7: 2049
A8: =INT((ROW()-8)/current_conditionBands)+1 -> 1 | B8: =OFFSET(ASSET_GROUP_NAME,A8-1,0) -> MR | C8: 1 | D8: =OFFSET(CONDITION_BAND_CODE,'8 - Condition by Year'!C8-1,0) -> G | F8: 0.6613800855 | G8: 0.6421678109 | H8: 0.6431615394 | I8: 0.5887601544 | J8: 0.5550312957 | K8: 0.5341194034 | L8: 0.5211540301 | M8: 0.5131154987 | N8: 0.5081316092 | O8: 0.5050415977 | P8: 0.5031257906 | Q8: 0.5019379901 | R8: 0.5012015539 | S8: 0.5007449634 | T8: 0.5004618773 | U8: 0.5002863639 | V8: 0.5001775456 | W8: 0.5001100783 | X8: 0.5000682485 | Y8: 0.5000423141 | Z8: 0.5000262347 | AA8: 0.5000162655 | AB8: 0.5000100846 | AC8: 0.5000062525 | AD8: 0.5000038765 | AE8: 0.5000024035 | AF8: 0.5000014901 | AG8: 0.5000009239 | AH8: 0.5000005728 | AI8: 0.5000003551
C9: =C8+1 -> 2 | D9: =OFFSET(CONDITION_BAND_CODE,'8 - Condition by Year'!C9-1,0) -> A | F9: 0.2027742438 | G9: 0.2899093537 | H9: 0.3568384606 | I9: 0.4112398456 | J9: 0.4449687043 | K9: 0.4658805966 | L9: 0.4788459699 | M9: 0.4868845013 | N9: 0.4918683908 | O9: 0.4949584023 | P9: 0.4968742094 | Q9: 0.4980620099 | R9: 0.4987984461 | S9: 0.4992550366 | T9: 0.4995381227 | U9: 0.4997136361 | V9: 0.4998224544 | W9: 0.4998899217 | X9: 0.4999317515 | Y9: 0.4999576859 | Z9: 0.4999737653 | AA9: 0.4999837345 | AB9: 0.4999899154 | AC9: 0.4999937475 | AD9: 0.4999961235 | AE9: 0.4999975965 | AF9: 0.4999985099 | AG9: 0.4999990761 | AH9: 0.4999994272 | AI9: 0.4999996449
C10: 3 | D10: =OFFSET(CONDITION_BAND_CODE,'8 - Condition by Year'!C10-1,0) -> R | F10: 0.1358456707 | G10: 0.06792283535 | H10: 0 | I10: 0 | J10: 0 | K10: 0 | L10: 0 | M10: 0 | N10: 0 | O10: 0 | P10: 0 | Q10: 0 | R10: 0 | S10: 0 | T10: 0 | U10: 0 | V10: 0 | W10: 0 | X10: 0 | Y10: 0 | Z10: 0 | AA10: 0 | AB10: 0 | AC10: 0 | AD10: 0 | AE10: 0 | AF10: 0 | AG10: 0 | AH10: 0 | AI10: 0
A11: =INT((ROW()-8)/current_conditionBands)+1 -> 2 | B11: =OFFSET(ASSET_GROUP_NAME,A11-1,0) -> MU | C11: 1 | D11: =OFFSET(CONDITION_BAND_CODE,'8 - Condition by Year'!C11-1,0) -> G | F11: 0.4406595107 | G11: 0.5950045063 | H11: 0.7318158105 | I11: 0.6298168539 | J11: 0.5726974382 | K11: 0.5407105654 | L11: 0.5227979166 | M11: 0.5127668333 | N11: 0.5071494266 | O11: 0.5040036789 | P11: 0.5022420602 | Q11: 0.5012555537 | R11: 0.5007031101 | S11: 0.5003937416 | T11: 0.5002204953 | U11: 0.5001234774 | V11: 0.5000691473 | W11: 0.5000387225 | X11: 0.5000216846 | Y11: 0.5000121434 | Z11: 0.5000068003 | AA11: 0.5000038082 | AB11: 0.5000021326 | AC11: 0.5000011942 | AD11: 0.5000006688 | AE11: 0.5000003745 | AF11: 0.5000002097 | AG11: 0.5000001174 | AH11: 0.5000000658 | AI11: 0.5000000368
C12: =C11+1 -> 2 | D12: =OFFSET(CONDITION_BAND_CODE,'8 - Condition by Year'!C12-1,0) -> A | F12: 0.1013577023 | G12: 0.1760041002 | H12: 0.2681841895 | I12: 0.3701831461 | J12: 0.4273025618 | K12: 0.4592894346 | L12: 0.4772020834 | M12: 0.4872331667 | N12: 0.4928505734 | O12: 0.4959963211 | P12: 0.4977579398 | Q12: 0.4987444463 | R12: 0.4992968899 | S12: 0.4996062584 | T12: 0.4997795047 | U12: 0.4998765226 | V12: 0.4999308527 | W12: 0.4999612775 | X12: 0.4999783154 | Y12: 0.4999878566 | Z12: 0.4999931997 | AA12: 0.4999961918 | AB12: 0.4999978674 | AC12: 0.4999988058 | AD12: 0.4999993312 | AE12: 0.4999996255 | AF12: 0.4999997903 | AG12: 0.4999998826 | AH12: 0.4999999342 | AI12: 0.4999999632
C13: 3 | D13: =OFFSET(CONDITION_BAND_CODE,'8 - Condition by Year'!C13-1,0) -> R | F13: 0.457982787 | G13: 0.2289913935 | H13: 0 | I13: 0 | J13: 0 | K13: 0 | L13: 0 | M13: 0 | N13: 0 | O13: 0 | P13: 0 | Q13: 0 | R13: 0 | S13: 0 | T13: 0 | U13: 0 | V13: 0 | W13: 0 | X13: 0 | Y13: 0 | Z13: 0 | AA13: 0 | AB13: 0 | AC13: 0 | AD13: 0 | AE13: 0 | AF13: 0 | AG13: 0 | AH13: 0 | AI13: 0
A14: =INT((ROW()-8)/current_conditionBands)+1 -> 3 | B14: =OFFSET(ASSET_GROUP_NAME,A14-1,0) -> DR | C14: 1 | D14: =OFFSET(CONDITION_BAND_CODE,'8 - Condition by Year'!C14-1,0) -> G | F14: 0.3724261314 | G14: 0.4776855414 | H14: 0.5617389186 | I14: 0.5395129079 | J14: 0.5252882611 | K14: 0.5161844871 | L14: 0.5103580717 | M14: 0.5066291659 | N14: 0.5042426662 | O14: 0.5027153064 | P14: 0.5017377961 | Q14: 0.5011121895 | R14: 0.5007118013 | S14: 0.5004555528 | T14: 0.5002915538 | U14: 0.5001865944 | V14: 0.5001194204 | W14: 0.5000764291 | X14: 0.5000489146 | Y14: 0.5000313054 | Z14: 0.5000200354 | AA14: 0.5000128227 | AB14: 0.5000082065 | AC14: 0.5000052522 | AD14: 0.5000033614 | AE14: 0.5000021513 | AF14: 0.5000013768 | AG14: 0.5000008812 | AH14: 0.5000005639 | AI14: 0.5000003609
C15: =C14+1 -> 2 | D15: =OFFSET(CONDITION_BAND_CODE,'8 - Condition by Year'!C15-1,0) -> A | F15: 0.4421588147 | G15: 0.4296069317 | H15: 0.4382610814 | I15: 0.4604870921 | J15: 0.4747117389 | K15: 0.4838155129 | L15: 0.4896419283 | M15: 0.4933708341 | N15: 0.4957573338 | O15: 0.4972846936 | P15: 0.4982622039 | Q15: 0.4988878105 | R15: 0.4992881987 | S15: 0.4995444472 | T15: 0.4997084462 | U15: 0.4998134056 | V15: 0.4998805796 | W15: 0.4999235709 | X15: 0.4999510854 | Y15: 0.4999686946 | Z15: 0.4999799646 | AA15: 0.4999871773 | AB15: 0.4999917935 | AC15: 0.4999947478 | AD15: 0.4999966386 | AE15: 0.4999978487 | AF15: 0.4999986232 | AG15: 0.4999991188 | AH15: 0.4999994361 | AI15: 0.4999996391
C16: 3 | D16: =OFFSET(CONDITION_BAND_CODE,'8 - Condition by Year'!C16-1,0) -> R | F16: 0.1854150539 | G16: 0.09270752697 | H16: 0 | I16: 0 | J16: 0 | K16: 0 | L16: 0 | M16: 0 | N16: 0 | O16: 0 | P16: 0 | Q16: 0 | R16: 0 | S16: 0 | T16: 0 | U16: 0 | V16: 0 | W16: 0 | X16: 0 | Y16: 0 | Z16: 0 | AA16: 0 | AB16: 0 | AC16: 0 | AD16: 0 | AE16: 0 | AF16: 0 | AG16: 0 | AH16: 0 | AI16: 0
A17: =INT((ROW()-8)/current_conditionBands)+1 -> 4 | B17: =OFFSET(ASSET_GROUP_NAME,A17-1,0) -> DU | C17: 1 | D17: =OFFSET(CONDITION_BAND_CODE,'8 - Condition by Year'!C17-1,0) -> G | F17: 0.7053065775 | G17: 0.646186845 | H17: 0.6253428941 | I17: 0.5701920207 | J17: 0.5393075316 | K17: 0.5220122177 | L17: 0.5123268419 | M17: 0.5069030315 | N17: 0.5038656976 | O17: 0.5021647907 | P17: 0.5012122828 | Q17: 0.5006788784 | R17: 0.5003801719 | S17: 0.5002128963 | T17: 0.5001192219 | U17: 0.5000667643 | V17: 0.500037388 | W17: 0.5000209373 | X17: 0.5000117249 | Y17: 0.5000065659 | Z17: 0.5000036769 | AA17: 0.5000020591 | AB17: 0.5000011531 | AC17: 0.5000006457 | AD17: 0.5000003616 | AE17: 0.5000002025 | AF17: 0.5000001134 | AG17: 0.5000000635 | AH17: 0.5000000356 | AI17: 0.5000000199
C18: =C17+1 -> 2 | D18: =OFFSET(CONDITION_BAND_CODE,'8 - Condition by Year'!C18-1,0) -> A | F18: 0.1832107023 | G18: 0.2980717949 | H18: 0.3746571059 | I18: 0.4298079793 | J18: 0.4606924684 | K18: 0.4779877823 | L18: 0.4876731581 | M18: 0.4930969685 | N18: 0.4961343024 | O18: 0.4978352093 | P18: 0.4987877172 | Q18: 0.4993211216 | R18: 0.4996198281 | S18: 0.4997871037 | T18: 0.4998807781 | U18: 0.4999332357 | V18: 0.499962612 | W18: 0.4999790627 | X18: 0.4999882751 | Y18: 0.4999934341 | Z18: 0.4999963231 | AA18: 0.4999979409 | AB18: 0.4999988469 | AC18: 0.4999993543 | AD18: 0.4999996384 | AE18: 0.4999997975 | AF18: 0.4999998866 | AG18: 0.4999999365 | AH18: 0.4999999644 | AI18: 0.4999999801
C19: 3 | D19: =OFFSET(CONDITION_BAND_CODE,'8 - Condition by Year'!C19-1,0) -> R | F19: 0.1114827202 | G19: 0.05574136009 | H19: 0 | I19: 0 | J19: 0 | K19: 0 | L19: 0 | M19: 0 | N19: 0 | O19: 0 | P19: 0 | Q19: 0 | R19: 0 | S19: 0 | T19: 0 | U19: 0 | V19: 0 | W19: 0 | X19: 0 | Y19: 0 | Z19: 0 | AA19: 0 | AB19: 0 | AC19: 0 | AD19: 0 | AE19: 0 | AF19: 0 | AG19: 0 | AH19: 0 | AI19: 0
A20: =INT((ROW()-8)/current_conditionBands)+1 -> 5 | B20: =OFFSET(ASSET_GROUP_NAME,A20-1,0) -> SR | C20: 1 | D20: =OFFSET(CONDITION_BAND_CODE,'8 - Condition by Year'!C20-1,0) -> G | F20: 0.4556422282 | G20: 0.5113316174 | H20: 0.5573940112 | I20: 0.5344364067 | J20: 0.520661844 | K20: 0.5123971064 | L20: 0.5074382638 | M20: 0.5044629583 | N20: 0.502677775 | O20: 0.501606665 | P20: 0.500963999 | Q20: 0.5005783994 | R20: 0.5003470396 | S20: 0.5002082238 | T20: 0.5001249343 | U20: 0.5000749606 | V20: 0.5000449763 | W20: 0.5000269858 | X20: 0.5000161915 | Y20: 0.5000097149 | Z20: 0.5000058289 | AA20: 0.5000034974 | AB20: 0.5000020984 | AC20: 0.500001259 | AD20: 0.5000007554 | AE20: 0.5000004533 | AF20: 0.500000272 | AG20: 0.5000001632 | AH20: 0.5000000979 | AI20: 0.5000000587
C21: =C20+1 -> 2 | D21: =OFFSET(CONDITION_BAND_CODE,'8 - Condition by Year'!C21-1,0) -> A | F21: 0.4178701701 | G21: 0.4254245817 | H21: 0.4426059888 | I21: 0.4655635933 | J21: 0.479338156 | K21: 0.4876028936 | L21: 0.4925617362 | M21: 0.4955370417 | N21: 0.497322225 | O21: 0.498393335 | P21: 0.499036001 | Q21: 0.4994216006 | R21: 0.4996529604 | S21: 0.4997917762 | T21: 0.4998750657 | U21: 0.4999250394 | V21: 0.4999550237 | W21: 0.4999730142 | X21: 0.4999838085 | Y21: 0.4999902851 | Z21: 0.4999941711 | AA21: 0.4999965026 | AB21: 0.4999979016 | AC21: 0.499998741 | AD21: 0.4999992446 | AE21: 0.4999995467 | AF21: 0.499999728 | AG21: 0.4999998368 | AH21: 0.4999999021 | AI21: 0.4999999413
C22: 3 | D22: =OFFSET(CONDITION_BAND_CODE,'8 - Condition by Year'!C22-1,0) -> R | F22: 0.1264876018 | G22: 0.06324380089 | H22: 0 | I22: 0 | J22: 0 | K22: 0 | L22: 0 | M22: 0 | N22: 0 | O22: 0 | P22: 0 | Q22: 0 | R22: 0 | S22: 0 | T22: 0 | U22: 0 | V22: 0 | W22: 0 | X22: 0 | Y22: 0 | Z22: 0 | AA22: 0 | AB22: 0 | AC22: 0 | AD22: 0 | AE22: 0 | AF22: 0 | AG22: 0 | AH22: 0 | AI22: 0
A23: =INT((ROW()-8)/current_conditionBands)+1 -> 6 | B23: =OFFSET(ASSET_GROUP_NAME,A23-1,0) -> SU | C23: 1 | D23: =OFFSET(CONDITION_BAND_CODE,'8 - Condition by Year'!C23-1,0) -> G | F23: 0.4128771027 | G23: 0.5129772488 | H23: 0.5932985729 | I23: 0.5522472008 | J23: 0.5292584325 | K23: 0.5163847222 | L23: 0.5091754444 | M23: 0.5051382489 | N23: 0.5028774194 | O23: 0.5016113548 | P23: 0.5009023587 | Q23: 0.5005053209 | R23: 0.5002829797 | S23: 0.5001584686 | T23: 0.5000887424 | U23: 0.5000496958 | V23: 0.5000278296 | W23: 0.5000155846 | X23: 0.5000087274 | Y23: 0.5000048873 | Z23: 0.5000027369 | AA23: 0.5000015327 | AB23: 0.5000008583 | AC23: 0.5000004806 | AD23: 0.5000002692 | AE23: 0.5000001507 | AF23: 0.5000000844 | AG23: 0.5000000473 | AH23: 0.5000000265 | AI23: 0.5000000148
C24: =C23+1 -> 2 | D24: =OFFSET(CONDITION_BAND_CODE,'8 - Condition by Year'!C24-1,0) -> A | F24: 0.3665297855 | G24: 0.3767261953 | H24: 0.4067014271 | I24: 0.4477527992 | J24: 0.4707415675 | K24: 0.4836152778 | L24: 0.4908245556 | M24: 0.4948617511 | N24: 0.4971225806 | O24: 0.4983886452 | P24: 0.4990976413 | Q24: 0.4994946791 | R24: 0.4997170203 | S24: 0.4998415314 | T24: 0.4999112576 | U24: 0.4999503042 | V24: 0.4999721704 | W24: 0.4999844154 | X24: 0.4999912726 | Y24: 0.4999951127 | Z24: 0.4999972631 | AA24: 0.4999984673 | AB24: 0.4999991417 | AC24: 0.4999995194 | AD24: 0.4999997308 | AE24: 0.4999998493 | AF24: 0.4999999156 | AG24: 0.4999999527 | AH24: 0.4999999735 | AI24: 0.4999999852
C25: 3 | D25: =OFFSET(CONDITION_BAND_CODE,'8 - Condition by Year'!C25-1,0) -> R | F25: 0.2205931117 | G25: 0.1102965559 | H25: 0 | I25: 0 | J25: 0 | K25: 0 | L25: 0 | M25: 0 | N25: 0 | O25: 0 | P25: 0 | Q25: 0 | R25: 0 | S25: 0 | T25: 0 | U25: 0 | V25: 0 | W25: 0 | X25: 0 | Y25: 0 | Z25: 0 | AA25: 0 | AB25: 0 | AC25: 0 | AD25: 0 | AE25: 0 | AF25: 0 | AG25: 0 | AH25: 0 | AI25: 0

Sheet 3 - Work Quantity
B3: WORK QUANTITY
B5: Table of Work Quantities (m²) for Treatment Types by Asset Group
B6: Asset Group | C6: Num | D6: Treatment | E6: Total (m²) | F6: =TEXT(start_year+(COLUMN()-6),"0") -> 2020 | G6: 2021 | H6: 2022 | I6: 2023 | J6: 2024 | K6: 2025 | L6: 2026 | M6: 2027 | N6: 2028 | O6: 2029 | P6: 2030 | Q6: 2031 | R6: 2032 | S6: 2033 | T6: 2034 | U6: 2035 | V6: 2036 | W6: 2037 | X6: 2038 | Y6: 2039 | Z6: 2040 | AA6: 2041 | AB6: 2042 | AC6: 2043 | AD6: 2044 | AE6: 2045 | AF6: 2046 | AG6: 2047 | AH6: 2048 | AI6: 2049
A7: =INT((ROW()-7)/(current_treatmentTypes+1))+1 -> 1 | B7: =OFFSET(ASSET_GROUP_NAME,A7-1,0) -> MR | C7: 1 | D7: =OFFSET(TREATMENT_TYPE_NAME,C7-1,0) -> Treatment 1 | E7: =SUM(OFFSET(F7,0,0,1,analysis_period)) -> 0 | F7: 0 | G7: 0 | H7: 0 | I7: 0 | J7: 0 | K7: 0 | L7: 0 | M7: 0 | N7: 0 | O7: 0 | P7: 0 | Q7: 0 | R7: 0 | S7: 0 | T7: 0 | U7: 0 | V7: 0 | W7: 0 | X7: 0 | Y7: 0 | Z7: 0 | AA7: 0 | AB7: 0 | AC7: 0 | AD7: 0 | AE7: 0 | AF7: 0 | AG7: 0 | AH7: 0 | AI7: 0
C8: =C7+1 -> 2 | D8: Treatment 2 | E8: =SUM(OFFSET(F8,0,0,1,analysis_period)) -> 1381879.965 | F8: 41212.5746 | G8: 52412.97068 | H8: 60564.51947 | I8: 33382.48064 | J8: 38471.7672 | K8: 41627.12486 | L8: 43583.44661 | M8: 44796.3661 | N8: 45548.37618 | O8: 46014.62243 | P8: 46303.69511 | Q8: 46482.92017 | R8: 46594.0397 | S8: 46662.93382 | T8: 46705.64817 | U8: 46732.13106 | V8: 46748.55046 | W8: 46758.73048 | X8: 46765.0421 | Y8: 46768.9553 | Z8: 46771.38149 | AA8: 46772.88572 | AB8: 46773.81835 | AC8: 46774.39658 | AD8: 46774.75508 | AE8: 46774.97735 | AF8: 46775.11516 | AG8: 46775.2006 | AH8: 46775.25357 | AI8: 46775.28641
D9: Total | E9: =SUM(OFFSET(E7,0,0,current_treatmentTypes,1)) -> 1381879.965 | F9: 41212.5746 | G9: 52412.97068 | H9: 60564.51947 | I9: 33382.48064 | J9: 38471.7672 | K9: 41627.12486 | L9: 43583.44661 | M9: 44796.3661 | N9: 45548.37618 | O9: 46014.62243 | P9: 46303.69511 | Q9: 46482.92017 | R9: 46594.0397 | S9: 46662.93382 | T9: 46705.64817 | U9: 46732.13106 | V9: 46748.55046 | W9: 46758.73048 | X9: 46765.0421 | Y9: 46768.9553 | Z9: =SUM(OFFSET(Z7,0,0,current_treatmentTypes,1)) -> 46771.38149 | AA9: 46772.88572 | AB9: 46773.81835 | AC9: 46774.39658 | AD9: 46774.75508 | AE9: 46774.97735 | AF9: 46775.11516 | AG9: 46775.2006 | AH9: 46775.25357 | AI9: 46775.28641
A10: =INT((ROW()-7)/(current_treatmentTypes+1))+1 -> 2 | B10: =OFFSET(ASSET_GROUP_NAME,A10-1,0) -> MU | C10: 1 | D10: =OFFSET(TREATMENT_TYPE_NAME,C10-1,0) -> Treatment 1 | E10: =SUM(OFFSET(F10,0,0,1,analysis_period)) -> 0 | F10: 0 | G10: 0 | H10: 0 | I10: 0 | J10: 0 | K10: 0 | L10: 0 | M10: 0 | N10: 0 | O10: 0 | P10: 0 | Q10: 0 | R10: 0 | S10: 0 | T10: 0 | U10: 0 | V10: 0 | W10: 0 | X10: 0 | Y10: 0 | Z10: 0 | AA10: 0 | AB10: 0 | AC10: 0 | AD10: 0 | AE10: 0 | AF10: 0 | AG10: 0 | AH10: 0 | AI10: 0
C11: =C10+1 -> 2 | D11: Treatment 2 | E11: 197761.2473 | F11: 13225.99362 | G11: 13747.57813 | H11: 14646.00426 | I11: 3227.800541 | J11: 4455.435503 | K11: 5142.911082 | L11: 5527.897406 | M11: 5743.489747 | N11: 5864.221458 | O11: 5931.831217 | P11: 5969.692681 | Q11: 5990.895102 | R11: 6002.768457 | S11: 6009.417536 | T11: 6013.14102 | U11: 6015.226171 | V11: 6016.393856 | W11: 6017.047759 | X11: 6017.413945 | Y11: 6017.619009 | Z11: 6017.733845 | AA11: 6017.798153 | AB11: 6017.834166 | AC11: 6017.854333 | AD11: 6017.865626 | AE11: 6017.871951 | AF11: 6017.875492 | AG11: 6017.877476 | AH11: 6017.878586 | AI11: 6017.879208
D12: Total | E12: =SUM(OFFSET(E10,0,0,current_treatmentTypes,1)) -> 197761.2473 | F12: 13225.99362 | G12: 13747.57813 | H12: 14646.00426 | I12: 3227.800541 | J12: 4455.435503 | K12: 5142.911082 | L12: 5527.897406 | M12: 5743.489747 | N12: 5864.221458 | O12: 5931.831217 | P12: 5969.692681 | Q12: 5990.895102 | R12: 6002.768457 | S12: 6009.417536 | T12: 6013.14102 | U12: 6015.226171 | V12: 6016.393856 | W12: 6017.047759 | X12: 6017.413945 | Y12: 6017.619009 | Z12: =SUM(OFFSET(Z10,0,0,current_treatmentTypes,1)) -> 6017.733845 | AA12: 6017.798153 | AB12: 6017.834166 | AC12: 6017.854333 | AD12: 6017.865626 | AE12: 6017.871951 | AF12: 6017.875492 | AG12: 6017.877476 | AH12: 6017.878586 | AI12: 6017.879208
A13: =INT((ROW()-7)/(current_treatmentTypes+1))+1 -> 3 | B13: =OFFSET(ASSET_GROUP_NAME,A13-1,0) -> DR | C13: 1 | D13: =OFFSET(TREATMENT_TYPE_NAME,C13-1,0) -> Treatment 1 | E13: =SUM(OFFSET(F13,0,0,1,analysis_period)) -> 0 | F13: 0 | G13: 0 | H13: 0 | I13: 0 | J13: 0 | K13: 0 | L13: 0 | M13: 0 | N13: 0 | O13: 0 | P13: 0 | Q13: 0 | R13: 0 | S13: 0 | T13: 0 | U13: 0 | V13: 0 | W13: 0 | X13: 0 | Y13: 0 | Z13: 0 | AA13: 0 | AB13: 0 | AC13: 0 | AD13: 0 | AE13: 0 | AF13: 0 | AG13: 0 | AH13: 0 | AI13: 0
C14: =C13+1 -> 2 | D14: Treatment 2 | E14: 1949606.839 | F14: 120446.3926 | G14: 114959.4818 | H14: 113452.0048 | I14: 52635.01213 | J14: 55304.34872 | K14: 57012.72414 | L14: 58106.08441 | M14: 58805.83498 | N14: 59253.67535 | O14: 59540.29318 | P14: 59723.7286 | Q14: 59841.12726 | R14: 59916.26241 | S14: 59964.3489 | T14: 59995.12426 | U14: 60014.82048 | V14: 60027.42607 | W14: 60035.49364 | X14: 60040.65689 | Y14: 60043.96137 | Z14: 60046.07624 | AA14: 60047.42975 | AB14: 60048.296 | AC14: 60048.8504 | AD14: 60049.20522 | AE14: 60049.4323 | AF14: 60049.57763 | AG14: 60049.67064 | AH14: 60049.73017 | AI14: 60049.76827
D15: Total | E15: =SUM(OFFSET(E13,0,0,current_treatmentTypes,1)) -> 1949606.839 | F15: 120446.3926 | G15: 114959.4818 | H15: 113452.0048 | I15: 52635.01213 | J15: 55304.34872 | K15: 57012.72414 | L15: 58106.08441 | M15: 58805.83498 | N15: 59253.67535 | O15: 59540.29318 | P15: 59723.7286 | Q15: 59841.12726 | R15: 59916.26241 | S15: 59964.3489 | T15: 59995.12426 | U15: 60014.82048 | V15: 60027.42607 | W15: 60035.49364 | X15: 60040.65689 | Y15: 60043.96137 | Z15: =SUM(OFFSET(Z13,0,0,current_treatmentTypes,1)) -> 60046.07624 | AA15: 60047.42975 | AB15: 60048.296 | AC15: 60048.8504 | AD15: 60049.20522 | AE15: 60049.4323 | AF15: 60049.57763 | AG15: 60049.67064 | AH15: 60049.73017 | AI15: 60049.76827
A16: =INT((ROW()-7)/(current_treatmentTypes+1))+1 -> 4 | B16: =OFFSET(ASSET_GROUP_NAME,A16-1,0) -> DU | C16: 1 | D16: =OFFSET(TREATMENT_TYPE_NAME,C16-1,0) -> Treatment 1 | E16: =SUM(OFFSET(F16,0,0,1,analysis_period)) -> 0 | F16: 0 | G16: 0 | H16: 0 | I16: 0 | J16: 0 | K16: 0 | L16: 0 | M16: 0 | N16: 0 | O16: 0 | P16: 0 | Q16: 0 | R16: 0 | S16: 0 | T16: 0 | U16: 0 | V16: 0 | W16: 0 | X16: 0 | Y16: 0 | Z16: 0 | AA16: 0 | AB16: 0 | AC16: 0 | AD16: 0 | AE16: 0 | AF16: 0 | AG16: 0 | AH16: 0 | AI16: 0
C17: =C16+1 -> 2 | D17: Treatment 2 | E17: 21434.85833 | F17: 375.6744705 | G17: 647.3231773 | H17: 817.6290976 | I17: 555.5085868 | J17: 637.2814486 | K17: 683.0742512 | L17: 708.7182207 | M17: 723.0788436 | N17: 731.1207924 | O17: 735.6242837 | P17: 738.1462389 | Q17: 739.5585338 | R17: 740.3494189 | S17: 740.7923146 | T17: 741.0403362 | U17: 741.1792283 | V17: 741.2570078 | W17: 741.3005644 | X17: 741.3249561 | Y17: 741.3386154 | Z17: 741.3462646 | AA17: 741.3505482 | AB17: 741.352947 | AC17: 741.3542903 | AD17: 741.3550426 | AE17: 741.3554638 | AF17: 741.3556998 | AG17: 741.3558319 | AH17: 741.3559058 | AI17: 741.3559473
D18: Total | E18: =SUM(OFFSET(E16,0,0,current_treatmentTypes,1)) -> 21434.85833 | F18: 375.6744705 | G18: 647.3231773 | H18: 817.6290976 | I18: 555.5085868 | J18: 637.2814486 | K18: 683.0742512 | L18: 708.7182207 | M18: 723.0788436 | N18: 731.1207924 | O18: 735.6242837 | P18: 738.1462389 | Q18: 739.5585338 | R18: 740.3494189 | S18: 740.7923146 | T18: 741.0403362 | U18: 741.1792283 | V18: 741.2570078 | W18: 741.3005644 | X18: 741.3249561 | Y18: 741.3386154 | Z18: =SUM(OFFSET(Z16,0,0,current_treatmentTypes,1)) -> 741.3462646 | AA18: 741.3505482 | AB18: 741.352947 | AC18: 741.3542903 | AD18: 741.3550426 | AE18: 741.3554638 | AF18: 741.3556998 | AG18: 741.3558319 | AH18: 741.3559058 | AI18: 741.3559473
A19: =INT((ROW()-7)/(current_treatmentTypes+1))+1 -> 5 | B19: =OFFSET(ASSET_GROUP_NAME,A19-1,0) -> SR | C19: 1 | D19: =OFFSET(TREATMENT_TYPE_NAME,C19-1,0) -> Treatment 1 | E19: =SUM(OFFSET(F19,0,0,1,analysis_period)) -> 0 | F19: 0 | G19: 0 | H19: 0 | I19: 0 | J19: 0 | K19: 0 | L19: 0 | M19: 0 | N19: 0 | O19: 0 | P19: 0 | Q19: 0 | R19: 0 | S19: 0 | T19: 0 | U19: 0 | V19: 0 | W19: 0 | X19: 0 | Y19: 0 | Z19: 0 | AA19: 0 | AB19: 0 | AC19: 0 | AD19: 0 | AE19: 0 | AF19: 0 | AG19: 0 | AH19: 0 | AI19: 0
C20: =C19+1 -> 2 | D20: Treatment 2 | E20: 7292590.641 | F20: 347697.5991 | G20: 343722.0603 | H20: 347259.2572 | I20: 207241.0923 | J20: 217990.5154 | K20: 224440.1692 | L20: 228309.9615 | M20: 230631.8369 | N20: 232024.9622 | O20: 232860.8373 | P20: 233362.3624 | Q20: 233663.2774 | R20: 233843.8265 | S20: 233952.1559 | T20: 234017.1535 | U20: 234056.1521 | V20: 234079.5513 | W20: 234093.5908 | X20: 234102.0145 | Y20: 234107.0687 | Z20: 234110.1012 | AA20: 234111.9207 | AB20: 234113.0124 | AC20: 234113.6675 | AD20: 234114.0605 | AE20: 234114.2963 | AF20: 234114.4378 | AG20: 234114.5227 | AH20: 234114.5736 | AI20: 234114.6042
D21: Total | E21: =SUM(OFFSET(E19,0,0,current_treatmentTypes,1)) -> 7292590.641 | F21: 347697.5991 | G21: 343722.0603 | H21: 347259.2572 | I21: 207241.0923 | J21: 217990.5154 | K21: 224440.1692 | L21: 228309.9615 | M21: 230631.8369 | N21: 232024.9622 | O21: 232860.8373 | P21: 233362.3624 | Q21: 233663.2774 | R21: 233843.8265 | S21: 233952.1559 | T21: 234017.1535 | U21: 234056.1521 | V21: 234079.5513 | W21: 234093.5908 | X21: 234102.0145 | Y21: 234107.0687 | Z21: =SUM(OFFSET(Z19,0,0,current_treatmentTypes,1)) -> 234110.1012 | AA21: 234111.9207 | AB21: 234113.0124 | AC21: 234113.6675 | AD21: 234114.0605 | AE21: 234114.2963 | AF21: 234114.4378 | AG21: 234114.5227 | AH21: 234114.5736 | AI21: 234114.6042
A22: =INT((ROW()-7)/(current_treatmentTypes+1))+1 -> 6 | B22: =OFFSET(ASSET_GROUP_NAME,A22-1,0) -> SU | C22: 1 | D22: =OFFSET(TREATMENT_TYPE_NAME,C22-1,0) -> Treatment 1 | E22: =SUM(OFFSET(F22,0,0,1,analysis_period)) -> 0 | F22: 0 | G22: 0 | H22: 0 | I22: 0 | J22: 0 | K22: 0 | L22: 0 | M22: 0 | N22: 0 | O22: 0 | P22: 0 | Q22: 0 | R22: 0 | S22: 0 | T22: 0 | U22: 0 | V22: 0 | W22: 0 | X22: 0 | Y22: 0 | Z22: 0 | AA22: 0 | AB22: 0 | AC22: 0 | AD22: 0 | AE22: 0 | AF22: 0 | AG22: 0 | AH22: 0 | AI22: 0
C23: =C22+1 -> 2 | D23: Treatment 2 | E23: =SUM(OFFSET(F23,0,0,1,analysis_period)) -> 1447621.896 | F23: 81166.23399 | G23: 78882.77279 | H23: 79809.54048 | I23: 36965.73123 | J23: 40696.95489 | K23: 42786.44014 | L23: 43956.55188 | M23: 44611.81445 | N23: 44978.76149 | O23: 45184.25184 | P23: 45299.32643 | Q23: 45363.7682 | R23: 45399.85559 | S23: 45420.06453 | T23: 45431.38154 | U23: 45437.71906 | V23: 45441.26807 | W23: 45443.25552 | X23: 45444.36849 | Y23: 45444.99176 | Z23: 45445.34078 | AA23: 45445.53624 | AB23: 45445.64569 | AC23: 45445.70699 | AD23: 45445.74131 | AE23: 45445.76054 | AF23: 45445.7713 | AG23: 45445.77733 | AH23: 45445.7807 | AI23: 45445.78259
D24: Total | E24: =SUM(OFFSET(E22,0,0,current_treatmentTypes,1)) -> 1447621.896 | F24: 81166.23399 | G24: 78882.77279 | H24: 79809.54048 | I24: 36965.73123 | J24: 40696.95489 | K24: 42786.44014 | L24: 43956.55188 | M24: 44611.81445 | N24: 44978.76149 | O24: 45184.25184 | P24: 45299.32643 | Q24: 45363.7682 | R24: 45399.85559 | S24: 45420.06453 | T24: 45431.38154 | U24: 45437.71906 | V24: 45441.26807 | W24: 45443.25552 | X24: 45444.36849 | Y24: 45444.99176 | Z24: =SUM(OFFSET(Z22,0,0,current_treatmentTypes,1)) -> 45445.34078 | AA24: 45445.53624 | AB24: 45445.64569 | AC24: 45445.70699 | AD24: 45445.74131 | AE24: 45445.76054 | AF24: 45445.7713 | AG24: 45445.77733 | AH24: 45445.7807 | AI24: 45445.78259

Sheet 4 - Exp by Treatment
B3: EXPENDITURE BY TREATMENT
B5: Table of Expenditure (£) by Treatment Type for Asset Groups
B6: Asset Group | C6: No. | D6: Treatment | E6: Analysis Period Total (£) | F6: =TEXT(start_year+(COLUMN()-6),"0") -> 2020 | G6: 2021 | H6: 2022 | I6: 2023 | J6: 2024 | K6: 2025 | L6: 2026 | M6: 2027 | N6: 2028 | O6: 2029 | P6: 2030 | Q6: 2031 | R6: 2032 | S6: 2033 | T6: 2034 | U6: 2035 | V6: 2036 | W6: 2037 | X6: 2038 | Y6: 2039 | Z6: 2040 | AA6: 2041 | AB6: 2042 | AC6: 2043 | AD6: 2044 | AE6: 2045 | AF6: 2046 | AG6: 2047 | AH6: 2048 | AI6: 2049
A7: =INT((ROW()-7)/(current_treatmentTypes+2))+1 -> 1 | B7: =OFFSET(ASSET_GROUP_NAME,A7-1,0) -> MR | C7: 1 | D7: =OFFSET(TREATMENT_TYPE_NAME,C7-1,0) -> Treatment 1 | E7: =SUM(OFFSET(F7,0,0,1,analysis_period)) -> 0 | F7: 0 | G7: 0 | H7: 0 | I7: 0 | J7: 0 | K7: 0 | L7: 0 | M7: 0 | N7: 0 | O7: 0 | P7: 0 | Q7: 0 | R7: 0 | S7: 0 | T7: 0 | U7: 0 | V7: 0 | W7: 0 | X7: 0 | Y7: 0 | Z7: 0 | AA7: 0 | AB7: 0 | AC7: 0 | AD7: 0 | AE7: 0 | AF7: 0 | AG7: 0 | AH7: 0 | AI7: 0
C8: =C7+1 -> 2 | D8: Treatment 2 | E8: =SUM(OFFSET(F8,0,0,1,analysis_period)) -> 35928879.1 | F8: 1071526.94 | G8: 1362737.238 | H8: 1574677.506 | I8: 867944.4966 | J8: 1000265.947 | K8: 1082305.246 | L8: 1133169.612 | M8: 1164705.519 | N8: 1184257.781 | O8: 1196380.183 | P8: 1203896.073 | Q8: 1208555.924 | R8: 1211445.032 | S8: 1213236.279 | T8: 1214346.852 | U8: 1215035.408 | V8: 1215462.312 | W8: 1215726.993 | X8: 1215891.095 | Y8: 1215992.838 | Z8: 1216055.919 | AA8: 1216095.029 | AB8: 1216119.277 | AC8: 1216134.311 | AD8: 1216143.632 | AE8: 1216149.411 | AF8: 1216152.994 | AG8: 1216155.216 | AH8: 1216156.593 | AI8: 1216157.447
D9: Total | E9: =SUM(OFFSET(E7,0,0,current_treatmentTypes,1)) -> 35928879.1 | F9: 1071526.94 | G9: 1362737.238 | H9: 1574677.506 | I9: 867944.4966 | J9: 1000265.947 | K9: 1082305.246 | L9: 1133169.612 | M9: 1164705.519 | N9: 1184257.781 | O9: 1196380.183 | P9: 1203896.073 | Q9: 1208555.924 | R9: 1211445.032 | S9: 1213236.279 | T9: 1214346.852 | U9: 1215035.408 | V9: 1215462.312 | W9: 1215726.993 | X9: 1215891.095 | Y9: 1215992.838 | Z9: =SUM(OFFSET(Z7,0,0,current_treatmentTypes,1)) -> 1216055.919 | AA9: 1216095.029 | AB9: 1216119.277 | AC9: 1216134.311 | AD9: 1216143.632 | AE9: 1216149.411 | AF9: 1216152.994 | AG9: 1216155.216 | AH9: 1216156.593 | AI9: 1216157.447
D10: Cumulative | E10: =E9 -> 35928879.1 | F10: =F9 -> 1071526.94 | G10: =OFFSET(G9,1,-1)+G9 -> 2434264.177 | H10: 4008941.684 | I10: 4876886.18 | J10: 5877152.127 | K10: 6959457.374 | L10: 8092626.986 | M10: 9257332.504 | N10: 10441590.29 | O10: 11637970.47 | P10: 12841866.54 | Q10: 14050422.47 | R10: 15261867.5 | S10: 16475103.78 | T10: 17689450.63 | U10: 18904486.04 | V10: 20119948.35 | W10: 21335675.34 | X10: 22551566.44 | Y10: 23767559.27 | Z10: =OFFSET(Z9,1,-1)+Z9 -> 24983615.19 | AA10: 26199710.22 | AB10: 27415829.5 | AC10: 28631963.81 | AD10: 29848107.44 | AE10: 31064256.85 | AF10: 32280409.85 | AG10: 33496565.06 | AH10: 34712721.65 | AI10: 35928879.1
A11: =INT((ROW()-7)/(current_treatmentTypes+2))+1 -> 2 | B11: =OFFSET(ASSET_GROUP_NAME,A11-1,0) -> MU | C11: 1 | D11: =OFFSET(TREATMENT_TYPE_NAME,C11-1,0) -> Treatment 1 | E11: =SUM(OFFSET(F11,0,0,1,analysis_period)) -> 0 | F11: 0 | G11: 0 | H11: 0 | I11: 0 | J11: 0 | K11: 0 | L11: 0 | M11: 0 | N11: 0 | O11: 0 | P11: 0 | Q11: 0 | R11: 0 | S11: 0 | T11: 0 | U11: 0 | V11: 0 | W11: 0 | X11: 0 | Y11: 0 | Z11: 0 | AA11: 0 | AB11: 0 | AC11: 0 | AD11: 0 | AE11: 0 | AF11: 0 | AG11: 0 | AH11: 0 | AI11: 0
C12: =C11+1 -> 2 | D12: Treatment 2 | E12: =SUM(OFFSET(F12,0,0,1,analysis_period)) -> 5141792.431 | F12: 343875.8341 | G12: 357437.0315 | H12: 380796.1108 | I12: 83922.81407 | J12: 115841.3231 | K12: 133715.6881 | L12: 143725.3325 | M12: 149330.7334 | N12: 152469.7579 | O12: 154227.6116 | P12: 155212.0097 | Q12: 155763.2726 | R12: 156071.9799 | S12: 156244.8559 | T12: 156341.6665 | U12: 156395.8805 | V12: 156426.2403 | W12: 156443.2417 | X12: 156452.7626 | Y12: 156458.0942 | Z12: 156461.08 | AA12: 156462.752 | AB12: 156463.6883 | AC12: 156464.2127 | AD12: 156464.5063 | AE12: 156464.6707 | AF12: 156464.7628 | AG12: 156464.8144 | AH12: 156464.8432 | AI12: 156464.8594
D13: Total | E13: =SUM(OFFSET(E11,0,0,current_treatmentTypes,1)) -> 5141792.431 | F13: 343875.8341 | G13: 357437.0315 | H13: 380796.1108 | I13: 83922.81407 | J13: 115841.3231 | K13: 133715.6881 | L13: 143725.3325 | M13: 149330.7334 | N13: 152469.7579 | O13: 154227.6116 | P13: 155212.0097 | Q13: 155763.2726 | R13: 156071.9799 | S13: 156244.8559 | T13: 156341.6665 | U13: 156395.8805 | V13: 156426.2403 | W13: 156443.2417 | X13: 156452.7626 | Y13: 156458.0942 | Z13: =SUM(OFFSET(Z11,0,0,current_treatmentTypes,1)) -> 156461.08 | AA13: 156462.752 | AB13: 156463.6883 | AC13: 156464.2127 | AD13: 156464.5063 | AE13: 156464.6707 | AF13: 156464.7628 | AG13: 156464.8144 | AH13: 156464.8432 | AI13: 156464.8594
D14: Cumulative | E14: =E13 -> 5141792.431 | F14: =F13 -> 343875.8341 | G14: =OFFSET(G13,1,-1)+G13 -> 701312.8655 | H14: 1082108.976 | I14: 1166031.79 | J14: 1281873.114 | K14: 1415588.802 | L14: 1559314.134 | M14: 1708644.868 | N14: 1861114.626 | O14: 2015342.237 | P14: 2170554.247 | Q14: 2326317.52 | R14: 2482389.499 | S14: 2638634.355 | T14: 2794976.022 | U14: 2951371.902 | V14: 3107798.143 | W14: 3264241.384 | X14: 3420694.147 | Y14: 3577152.241 | Z14: =OFFSET(Z13,1,-1)+Z13 -> 3733613.321 | AA14: 3890076.073 | AB14: 4046539.761 | AC14: 4203003.974 | AD14: 4359468.48 | AE14: 4515933.151 | AF14: 4672397.914 | AG14: 4828862.728 | AH14: 4985327.572 | AI14: 5141792.431
A15: =INT((ROW()-7)/(current_treatmentTypes+2))+1 -> 3 | B15: =OFFSET(ASSET_GROUP_NAME,A15-1,0) -> DR | C15: 1 | D15: =OFFSET(TREATMENT_TYPE_NAME,C15-1,0) -> Treatment 1 | E15: =SUM(OFFSET(F15,0,0,1,analysis_period)) -> 0 | F15: 0 | G15: 0 | H15: 0 | I15: 0 | J15: 0 | K15: 0 | L15: 0 | M15: 0 | N15: 0 | O15: 0 | P15: 0 | Q15: 0 | R15: 0 | S15: 0 | T15: 0 | U15: 0 | V15: 0 | W15: 0 | X15: 0 | Y15: 0 | Z15: 0 | AA15: 0 | AB15: 0 | AC15: 0 | AD15: 0 | AE15: 0 | AF15: 0 | AG15: 0 | AH15: 0 | AI15: 0
C16: =C15+1 -> 2 | D16: Treatment 2 | E16: =SUM(OFFSET(F16,0,0,1,analysis_period)) -> 50689777.81 | F16: 3131606.207 | G16: 2988946.528 | H16: 2949752.125 | I16: 1368510.315 | J16: 1437913.067 | K16: 1482330.828 | L16: 1510758.195 | M16: 1528951.71 | N16: 1540595.559 | O16: 1548047.623 | P16: 1552816.944 | Q16: 1555869.309 | R16: 1557822.823 | S16: 1559073.071 | T16: 1559873.231 | U16: 1560385.333 | V16: 1560713.078 | W16: 1560922.835 | X16: 1561057.079 | Y16: 1561142.996 | Z16: 1561197.982 | AA16: 1561233.174 | AB16: 1561255.696 | AC16: 1561270.11 | AD16: 1561279.336 | AE16: 1561285.24 | AF16: 1561289.018 | AG16: 1561291.437 | AH16: 1561292.984 | AI16: 1561293.975
D17: Total | E17: =SUM(OFFSET(E15,0,0,current_treatmentTypes,1)) -> 50689777.81 | F17: 3131606.207 | G17: 2988946.528 | H17: 2949752.125 | I17: 1368510.315 | J17: 1437913.067 | K17: 1482330.828 | L17: 1510758.195 | M17: 1528951.71 | N17: 1540595.559 | O17: 1548047.623 | P17: 1552816.944 | Q17: 1555869.309 | R17: 1557822.823 | S17: 1559073.071 | T17: 1559873.231 | U17: 1560385.333 | V17: 1560713.078 | W17: 1560922.835 | X17: 1561057.079 | Y17: 1561142.996 | Z17: =SUM(OFFSET(Z15,0,0,current_treatmentTypes,1)) -> 1561197.982 | AA17: 1561233.174 | AB17: 1561255.696 | AC17: 1561270.11 | AD17: 1561279.336 | AE17: 1561285.24 | AF17: 1561289.018 | AG17: 1561291.437 | AH17: 1561292.984 | AI17: 1561293.975
D18: Cumulative | E18: =E17 -> 50689777.81 | F18: =F17 -> 3131606.207 | G18: =OFFSET(G17,1,-1)+G17 -> 6120552.735 | H18: 9070304.86 | I18: 10438815.18 | J18: 11876728.24 | K18: 13359059.07 | L18: 14869817.26 | M18: 16398768.97 | N18: 17939364.53 | O18: 19487412.16 | P18: 21040229.1 | Q18: 22596098.41 | R18: 24153921.23 | S18: 25712994.3 | T18: 27272867.53 | U18: 28833252.87 | V18: 30393965.94 | W18: 31954888.78 | X18: 33515945.86 | Y18: 35077088.85 | Z18: =OFFSET(Z17,1,-1)+Z17 -> 36638286.84 | AA18: 38199520.01 | AB18: 39760775.7 | AC18: 41322045.82 | AD18: 42883325.15 | AE18: 44444610.39 | AF18: 46005899.41 | AG18: 47567190.85 | AH18: 49128483.83 | AI18: 50689777.81
A19: =INT((ROW()-7)/(current_treatmentTypes+2))+1 -> 4 | B19: =OFFSET(ASSET_GROUP_NAME,A19-1,0) -> DU | C19: 1 | D19: =OFFSET(TREATMENT_TYPE_NAME,C19-1,0) -> Treatment 1 | E19: =SUM(OFFSET(F19,0,0,1,analysis_period)) -> 0 | F19: 0 | G19: 0 | H19: 0 | I19: 0 | J19: 0 | K19: 0 | L19: 0 | M19: 0 | N19: 0 | O19: 0 | P19: 0 | Q19: 0 | R19: 0 | S19: 0 | T19: 0 | U19: 0 | V19: 0 | W19: 0 | X19: 0 | Y19: 0 | Z19: 0 | AA19: 0 | AB19: 0 | AC19: 0 | AD19: 0 | AE19: 0 | AF19: 0 | AG19: 0 | AH19: 0 | AI19: 0
C20: =C19+1 -> 2 | D20: Treatment 2 | E20: =SUM(OFFSET(F20,0,0,1,analysis_period)) -> 557306.3165 | F20: 9767.536232 | G20: 16830.40261 | H20: 21258.35654 | I20: 14443.22326 | J20: 16569.31766 | K20: 17759.93053 | L20: 18426.67374 | M20: 18800.04993 | N20: 19009.1406 | O20: 19126.23138 | P20: 19191.80221 | Q20: 19228.52188 | R20: 19249.08489 | S20: 19260.60018 | T20: 19267.04874 | U20: 19270.65993 | V20: 19272.6822 | W20: 19273.81467 | X20: 19274.44886 | Y20: 19274.804 | Z20: 19275.00288 | AA20: 19275.11425 | AB20: 19275.17662 | AC20: 19275.21155 | AD20: 19275.23111 | AE20: 19275.24206 | AF20: 19275.24819 | AG20: 19275.25163 | AH20: 19275.25355 | AI20: 19275.25463
D21: Total | E21: =SUM(OFFSET(E19,0,0,current_treatmentTypes,1)) -> 557306.3165 | F21: 9767.536232 | G21: 16830.40261 | H21: 21258.35654 | I21: 14443.22326 | J21: 16569.31766 | K21: 17759.93053 | L21: 18426.67374 | M21: 18800.04993 | N21: 19009.1406 | O21: 19126.23138 | P21: 19191.80221 | Q21: 19228.52188 | R21: 19249.08489 | S21: 19260.60018 | T21: 19267.04874 | U21: 19270.65993 | V21: 19272.6822 | W21: 19273.81467 | X21: 19274.44886 | Y21: 19274.804 | Z21: =SUM(OFFSET(Z19,0,0,current_treatmentTypes,1)) -> 19275.00288 | AA21: 19275.11425 | AB21: 19275.17662 | AC21: 19275.21155 | AD21: 19275.23111 | AE21: 19275.24206 | AF21: 19275.24819 | AG21: 19275.25163 | AH21: 19275.25355 | AI21: 19275.25463
D22: Cumulative | E22: =E21 -> 557306.3165 | F22: =F21 -> 9767.536232 | G22: =OFFSET(G21,1,-1)+G21 -> 26597.93884 | H22: 47856.29538 | I22: 62299.51864 | J22: 78868.8363 | K22: 96628.76683 | L22: 115055.4406 | M22: 133855.4905 | N22: 152864.6311 | O22: 171990.8625 | P22: 191182.6647 | Q22: 210411.1866 | R22: 229660.2715 | S22: 248920.8716 | T22: 268187.9204 | U22: 287458.5803 | V22: 306731.2625 | W22: 326005.0772 | X22: 345279.5261 | Y22: 364554.3301 | Z22: =OFFSET(Z21,1,-1)+Z21 -> 383829.3329 | AA22: 403104.4472 | AB22: 422379.6238 | AC22: 441654.8354 | AD22: 460930.0665 | AE22: 480205.3085 | AF22: 499480.5567 | AG22: 518755.8083 | AH22: 538031.0619 | AI22: 557306.3165
A23: =INT((ROW()-7)/(current_treatmentTypes+2))+1 -> 5 | B23: =OFFSET(ASSET_GROUP_NAME,A23-1,0) -> SR | C23: 1 | D23: =OFFSET(TREATMENT_TYPE_NAME,C23-1,0) -> Treatment 1 | E23: =SUM(OFFSET(F23,0,0,1,analysis_period)) -> 0 | F23: 0 | G23: 0 | H23: 0 | I23: 0 | J23: 0 | K23: 0 | L23: 0 | M23: 0 | N23: 0 | O23: 0 | P23: 0 | Q23: 0 | R23: 0 | S23: 0 | T23: 0 | U23: 0 | V23: 0 | W23: 0 | X23: 0 | Y23: 0 | Z23: 0 | AA23: 0 | AB23: 0 | AC23: 0 | AD23: 0 | AE23: 0 | AF23: 0 | AG23: 0 | AH23: 0 | AI23: 0
C24: =C23+1 -> 2 | D24: Treatment 2 | E24: =SUM(OFFSET(F24,0,0,1,analysis_period)) -> 189607356.7 | F24: 9040137.576 | G24: 8936773.568 | H24: 9028740.687 | I24: 5388268.4 | J24: 5667753.4 | K24: 5835444.4 | L24: 5936059 | M24: 5996427.76 | N24: 6032649.016 | O24: 6054381.77 | P24: 6067421.422 | Q24: 6075245.213 | R24: 6079939.488 | S24: 6082756.053 | T24: 6084445.992 | U24: 6085459.955 | V24: 6086068.333 | W24: 6086433.36 | X24: 6086652.376 | Y24: 6086783.786 | Z24: 6086862.631 | AA24: 6086909.939 | AB24: 6086938.323 | AC24: 6086955.354 | AD24: 6086965.572 | AE24: 6086971.703 | AF24: 6086975.382 | AG24: 6086977.589 | AH24: 6086978.914 | AI24: 6086979.708
D25: Total | E25: =SUM(OFFSET(E23,0,0,current_treatmentTypes,1)) -> 189607356.7 | F25: 9040137.576 | G25: 8936773.568 | H25: 9028740.687 | I25: 5388268.4 | J25: 5667753.4 | K25: 5835444.4 | L25: 5936059 | M25: 5996427.76 | N25: 6032649.016 | O25: 6054381.77 | P25: 6067421.422 | Q25: 6075245.213 | R25: 6079939.488 | S25: 6082756.053 | T25: 6084445.992 | U25: 6085459.955 | V25: 6086068.333 | W25: 6086433.36 | X25: 6086652.376 | Y25: 6086783.786 | Z25: =SUM(OFFSET(Z23,0,0,current_treatmentTypes,1)) -> 6086862.631 | AA25: 6086909.939 | AB25: 6086938.323 | AC25: 6086955.354 | AD25: 6086965.572 | AE25: 6086971.703 | AF25: 6086975.382 | AG25: 6086977.589 | AH25: 6086978.914 | AI25: 6086979.708
D26: Cumulative | E26: =E25 -> 189607356.7 | F26: =F25 -> 9040137.576 | G26: =OFFSET(G25,1,-1)+G25 -> 17976911.14 | H26: 27005651.83 | I26: 32393920.23 | J26: 38061673.63 | K26: 43897118.03 | L26: 49833177.03 | M26: 55829604.79 | N26: 61862253.81 | O26: 67916635.58 | P26: 73984057 | Q26: 80059302.21 | R26: 86139241.7 | S26: 92221997.75 | T26: 98306443.75 | U26: 104391903.7 | V26: 110477972 | W26: 116564405.4 | X26: 122651057.8 | Y26: 128737841.6 | Z26: =OFFSET(Z25,1,-1)+Z25 -> 134824704.2 | AA26: 140911614.1 | AB26: 146998552.4 | AC26: 153085507.8 | AD26: 159172473.4 | AE26: 165259445.1 | AF26: 171346420.5 | AG26: 177433398 | AH26: 183520377 | AI26: 189607356.7
A27: =INT((ROW()-7)/(current_treatmentTypes+2))+1 -> 6 | B27: =OFFSET(ASSET_GROUP_NAME,A27-1,0) -> SU | C27: 1 | D27: =OFFSET(TREATMENT_TYPE_NAME,C27-1,0) -> Treatment 1 | E27: =SUM(OFFSET(F27,0,0,1,analysis_period)) -> 0 | F27: 0 | G27: 0 | H27: 0 | I27: 0 | J27: 0 | K27: 0 | L27: 0 | M27: 0 | N27: 0 | O27: 0 | P27: 0 | Q27: 0 | R27: 0 | S27: 0 | T27: 0 | U27: 0 | V27: 0 | W27: 0 | X27: 0 | Y27: 0 | Z27: 0 | AA27: 0 | AB27: 0 | AC27: 0 | AD27: 0 | AE27: 0 | AF27: 0 | AG27: 0 | AH27: 0 | AI27: 0
C28: =C27+1 -> 2 | D28: Treatment 2 | E28: =SUM(OFFSET(F28,0,0,1,analysis_period)) -> 37638169.29 | F28: 2110322.084 | G28: 2050952.092 | H28: 2075048.053 | I28: 961109.012 | J28: 1058120.827 | K28: 1112447.444 | L28: 1142870.349 | M28: 1159907.176 | N28: 1169447.799 | O28: 1174790.548 | P28: 1177782.487 | Q28: 1179457.973 | R28: 1180396.245 | S28: 1180921.678 | T28: 1181215.92 | U28: 1181380.696 | V28: 1181472.97 | W28: 1181524.644 | X28: 1181553.581 | Y28: 1181569.786 | Z28: 1181578.86 | AA28: 1181583.942 | AB28: 1181586.788 | AC28: 1181588.382 | AD28: 1181589.274 | AE28: 1181589.774 | AF28: 1181590.054 | AG28: 1181590.211 | AH28: 1181590.298 | AI28: 1181590.347
D29: Total | E29: =SUM(OFFSET(E27,0,0,current_treatmentTypes,1)) -> 37638169.29 | F29: 2110322.084 | G29: 2050952.092 | H29: 2075048.053 | I29: 961109.012 | J29: 1058120.827 | K29: 1112447.444 | L29: 1142870.349 | M29: 1159907.176 | N29: 1169447.799 | O29: 1174790.548 | P29: 1177782.487 | Q29: 1179457.973 | R29: 1180396.245 | S29: 1180921.678 | T29: 1181215.92 | U29: 1181380.696 | V29: 1181472.97 | W29: 1181524.644 | X29: 1181553.581 | Y29: 1181569.786 | Z29: =SUM(OFFSET(Z27,0,0,current_treatmentTypes,1)) -> 1181578.86 | AA29: 1181583.942 | AB29: 1181586.788 | AC29: 1181588.382 | AD29: 1181589.274 | AE29: 1181589.774 | AF29: 1181590.054 | AG29: 1181590.211 | AH29: 1181590.298 | AI29: 1181590.347
D30: Cumulative | E30: =E29 -> 37638169.29 | F30: =F29 -> 2110322.084 | G30: =OFFSET(G29,1,-1)+G29 -> 4161274.176 | H30: 6236322.229 | I30: 7197431.241 | J30: 8255552.068 | K30: 9367999.511 | L30: 10510869.86 | M30: 11670777.04 | N30: 12840224.83 | O30: 14015015.38 | P30: 15192797.87 | Q30: 16372255.84 | R30: 17552652.09 | S30: 18733573.77 | T30: 19914789.69 | U30: 21096170.38 | V30: 22277643.35 | W30: 23459168 | X30: 24640721.58 | Y30: 25822291.36 | Z30: =OFFSET(Z29,1,-1)+Z29 -> 27003870.22 | AA30: 28185454.16 | AB30: 29367040.95 | AC30: 30548629.33 | AD30: 31730218.61 | AE30: 32911808.38 | AF30: 34093398.44 | AG30: 35274988.65 | AH30: 36456578.94 | AI30: 37638169.29
B31: Total Expenditure | C31: 1 | D31: =OFFSET(TREATMENT_TYPE_NAME,C31-1,0) -> Treatment 1 | E31: =SUM(OFFSET(F31,0,0,1,analysis_period)) -> 0 | F31: =SUMIF($D$7:$D$30,$D31,F$7:F$30) -> 0 | G31: 0 | H31: 0 | I31: 0 | J31: 0 | K31: 0 | L31: 0 | M31: 0 | N31: 0 | O31: 0 | P31: =SUMIF($D$7:$D$30,$D31,P$7:P$30) -> 0 | Q31: 0 | R31: 0 | S31: 0 | T31: 0 | U31: 0 | V31: 0 | W31: 0 | X31: 0 | Y31: 0 | Z31: 0 | AA31: 0 | AB31: 0 | AC31: 0 | AD31: 0 | AE31: 0 | AF31: 0 | AG31: 0 | AH31: 0 | AI31: 0
C32: =C31+1 -> 2 | D32: Treatment 2 | E32: =SUM(OFFSET(F32,0,0,1,analysis_period)) -> 319563281.6 | F32: 15707236.18 | G32: 15713676.86 | H32: 16030272.84 | I32: 8684198.262 | J32: 9296463.882 | K32: 9664003.537 | L32: 9885009.162 | M32: 10018122.95 | N32: 10098429.05 | O32: 10146953.97 | P32: 10176320.74 | Q32: 10194120.21 | R32: 10204924.65 | S32: 10211492.54 | T32: 10215490.71 | U32: 10217927.93 | V32: 10219415.62 | W32: 10220324.89 | X32: 10220881.34 | Y32: 10221222.3 | Z32: 10221431.48 | AA32: 10221559.95 | AB32: 10221638.95 | AC32: 10221687.58 | AD32: 10221717.55 | AE32: 10221736.04 | AF32: 10221747.46 | AG32: 10221754.52 | AH32: 10221758.89 | AI32: 10221761.59
D33: Total | E33: =SUM(OFFSET(E31,0,0,current_treatmentTypes,1)) -> 319563281.6 | F33: 15707236.18 | G33: 15713676.86 | H33: 16030272.84 | I33: 8684198.262 | J33: 9296463.882 | K33: 9664003.537 | L33: 9885009.162 | M33: 10018122.95 | N33: 10098429.05 | O33: 10146953.97 | P33: 10176320.74 | Q33: 10194120.21 | R33: 10204924.65 | S33: 10211492.54 | T33: 10215490.71 | U33: 10217927.93 | V33: 10219415.62 | W33: 10220324.89 | X33: 10220881.34 | Y33: 10221222.3 | Z33: =SUM(OFFSET(Z31,0,0,current_treatmentTypes,1)) -> 10221431.48 | AA33: 10221559.95 | AB33: 10221638.95 | AC33: 10221687.58 | AD33: 10221717.55 | AE33: 10221736.04 | AF33: 10221747.46 | AG33: 10221754.52 | AH33: 10221758.89 | AI33: 10221761.59
D34: Cumulative | E34: =E33 -> 319563281.6 | F34: =F33 -> 15707236.18 | G34: =OFFSET(G33,1,-1)+G33 -> 31420913.04 | H34: 47451185.88 | I34: 56135384.14 | J34: 65431848.02 | K34: 75095851.56 | L34: 84980860.72 | M34: 94998983.67 | N34: 105097412.7 | O34: 115244366.7 | P34: 125420687.4 | Q34: 135614807.6 | R34: 145819732.3 | S34: 156031224.8 | T34: 166246715.5 | U34: 176464643.5 | V34: 186684059.1 | W34: 196904384 | X34: 207125265.3 | Y34: 217346487.6 | Z34: =OFFSET(Z33,1,-1)+Z33 -> 227567919.1 | AA34: 237789479 | AB34: 248011118 | AC34: 258232805.6 | AD34: 268454523.1 | AE34: 278676259.2 | AF34: 288898006.6 | AG34: 299119761.1 | AH34: 309341520 | AI34: 319563281.6

Sheet 5 - Lighting and Skid budget
B3: LIGHTING AND SKID BUDGET
C9: Condition Analysis | E9: Units | F9: =TEXT(start_year+(COLUMN()-6),"0") -> 2020 | G9: 2021 | H9: 2022 | I9: 2023 | J9: 2024 | K9: 2025 | L9: 2026 | M9: 2027 | N9: 2028 | O9: 2029 | P9: 2030 | Q9: 2031 | R9: 2032 | S9: 2033 | T9: 2034 | U9: 2035 | V9: 2036 | W9: 2037 | X9: 2038 | Y9: 2039 | Z9: 2040 | AA9: 2041 | AB9: 2042 | AC9: 2043 | AD9: 2044 | AE9: 2045 | AF9: 2046 | AG9: 2047 | AH9: 2048 | AI9: 2049
C10: Skid only | E10: £k | F10: 250 | G10: 250 | H10: 250 | I10: 250 | J10: 250 | K10: 250 | L10: 250 | M10: 250 | N10: 250 | O10: 250 | P10: 250 | Q10: 250 | R10: 250 | S10: 250 | T10: 250 | U10: 250 | V10: 250 | W10: 250 | X10: 250 | Y10: 250 | Z10: 250 | AA10: 250 | AB10: 250 | AC10: 250 | AD10: 250 | AE10: 250 | AF10: 250 | AG10: 250 | AH10: 250 | AI10: 250
C11: Lighting | E11: £k | F11: 400 | G11: 400 | H11: 400 | I11: 400 | J11: 400 | K11: 400 | L11: 400 | M11: 400 | N11: 400 | O11: 400 | P11: 400 | Q11: 400 | R11: 400 | S11: 400 | T11: 400 | U11: 400 | V11: 400 | W11: 400 | X11: 400 | Y11: 400 | Z11: 400 | AA11: 400 | AB11: 400 | AC11: 400 | AD11: 400 | AE11: 400 | AF11: 400 | AG11: 400 | AH11: 400 | AI11: 400

Sheet 0a - Homesheet (hidden)
B3: HOMESHEET
B7: BASIC USER GUIDANCE
B9: SHEET TAB COLOURS
D11: Input Sheets: use these sheets to input data to be used in the model, and to initiate model runs.
D13: Output Sheets: use these sheets to view model outputs in tabular and graphical form.
B15: INPUT CELL COLOURS
D17: Mandatory: values must be supplied for these cells before the model can be run. In certain circumstances values
D18: may be left blank to signify zero values
D20: Optional: the values in these cells are not used in model runs, but may be entered to aid interpretation of outputs.
D22: Read-Only: the values in these cells are for display purposes only and may not be edited.
B24: TASK-BAR BUTTONS
D26: Homesheet: Click on this button to go to the Homesheet.
D29: Model Structure: Click on the button to go to the Model Structure sheet.
D32: Copy to Clipboard: Click on the button to copy the contents of the worksheet to the Windows Clipboard for
D33: subsequent transfer / pasting to MS Word, Excel, etc.
D34: Help Button: a help button is located on the title-bar of each sheet/screen. Click on the button to display
D35: guidance which is appropriate to the relevant screen.
B37: For more comprehensive user guidance, please refer to the accompanying user manual.
B39: N.B. Please ensure that Macros are enabled before attempting to use this model.
B41: VERSION HISTORY
B43: Version | C43: Date | F43: Description
B44: 1.00 | C44: 2012-11-29 | F44: First release of the HMEP Toolkit
B45: 1.01 | C45: 2013-06-18 | F45: Four transition probabilities corrected
B46: 2 | C46: 2019-10-18 | F46: Updated version of the HMEP Toolkit
B50: FEEDBACK
B52: The UKRLG Asset Management Board would welcome any comments and feedback on this Toolkit.
B54: Please send your comments by email to ukrlg@ciht.org.uk with the subject, "Feedback on the Lifecycle Planning Toolkit":
B55: ukrlg@ciht.org.uk
B58: ACKNOWLEDGMENTS
B60: The Lifecycle Planning Toolkit was initially developed by Atkins under the Highways Maintenance Efficiency Programme (HMEP). The help and support of the HMEP Asset Management Working Group and other contributors is acknowledged.
B62: The latest updates of the Lifecycle Planning Toolkit were conducted by Atkins. The project was commissioned by the UKRLG Asset
B63: Management Board.
B65: SHEET LIST
B67: Number | C67: Name
B68: 0a | C68: Homesheet
B69: 0b | C69: Model Structure
B70: 0 | C70: Input Sheet
B71: 1 | C71: Homogeneous Asset Groups
B72: 2 | C72: Transition Matrices
B73: 3 | C73: Treatment Effects and Costs
B74: 4 | C74: Treatment Strategies
B75: 5 | C75: Budgets
B76: 6 | C76: Performance Targets
B77: 7 | C77: Scenario
B78: 8 | C78: Condition by Year
B79: 9 | C79: Condition Graph
B80: 10 | C80: Work Quantity
B81: 11 | C81: Work Qty Graph
B82: 12 | C82: Exp by Condition Band
B83: 13 | C83: Exp by Condition Graph
B84: 14 | C84: Exp by Treatment
B85: 15 | C85: Exp by Treat Graph
B86: 16 | C86: Area by Year

Sheet 0b - Model Structure (hidden)
B3: MODEL STRUCTURE
B5: INPUTS
B16: ANALYSIS
B22: OUTPUTS

Sheet 0 - Input Sheet (hidden)
B3: INPUT SHEET
B7: Analysis period | E7: Condition Bands | L7: Homogeneous asset groups | O7: Scenarios | Q7: Treatment Types
E8: Number of condition bands | L8: Number of homogeneous asset groups | R8: Number of treatment types
B9: Start Year | C9: 2020 | F9: 3 | M9: 6 | S9: 2
B11: Analysis Period | C11: 30 | D11: yrs | E11: Rank | F11: Description | G11: Short Code | L11: No. | M11: Name | O11: Number | Q11: No. | R11: Description | S11: Name
G12: None | S12: None
E13: =ROW()-12 -> 1 | F13: Green | G13: G | L13: =ROW()-12 -> 1 | M13: MR | O13: 1 | Q13: =ROW()-12 -> 1 | R13: T1 | S13: Treatment 1
B14: End Year: | C14: =start_year+analysis_period-1 -> 2049 | E14: =ROW()-12 -> 2 | F14: Amber | G14: A | L14: 2 | M14: MU | O14: 1 | Q14: 2 | R14: T2 | S14: Treatment 2
E15: =ROW()-12 -> 3 | F15: Red | G15: R | L15: 3 | M15: DR | O15: 1
B16: Output Graphs | L16: 4 | M16: DU | O16: 1
L17: 5 | M17: SR | O17: 1
B18: Graph Type: | C18: Bar | D18: Bar | L18: 6 | M18: SU | O18: 1
D19: Area
B115: Model parameters, which are not user-definable
B116: Minimum analysis period | C116: 10 | E116: Minimum number of bands | F116: 3 | L116: Minimum number of homogeneous groups | M116: 1 | O116: 1 | Q116: Minimum number of treatments | S116: 2
B117: Maximum analysis period | C117: 60 | E117: Maximum number of bands | F117: 10 | L117: Maximum number of homogeneous groups | M117: 100 | O117: 3 | Q117: Maximum number of treatments | S117: 10
B121: Notes

Sheet 1 - Homog Asset Groups (hidden)
B3: HOMOGENEOUS ASSET GROUPS
I6: Initial Condition | T6: CAT 1 Defects | Z6: CAT 2 Defects
I7: % of Asset Group in condition band in base year | T7: Average Annual Number per 100m Section in Condition Band | Z7: Average Annual Number per 100m Section in Condition Band
I8: =COLUMN()-8 -> 1 | J8: 2 | K8: 3 | L8: 4 | M8: 5 | N8: 6 | O8: 7 | P8: 8 | Q8: 9 | R8: 10 | T8: 1 | U8: 2 | V8: 3 | W8: 4 | X8: 5 | Z8: 1 | AA8: 2 | AB8: 3 | AC8: 4 | AD8: 5
B9: Asset Group | C9: Description | D9: Length (m) | E9: Width (m) | F9: Area | G9: Units | I9: =OFFSET(CONDITION_BAND_CODE,I8-1,0) -> G | J9: A | K9: R | L9: 0 | M9: 0 | N9: 0 | O9: 0 | P9: 0 | Q9: 0 | R9: 0 | T9: =OFFSET(CONDITION_BAND_CODE,T8-1,0) -> G | U9: =OFFSET(CONDITION_BAND_CODE,U8-1,0) -> A | V9: =OFFSET(CONDITION_BAND_CODE,V8-1,0) -> R | W9: =OFFSET(CONDITION_BAND_CODE,W8-1,0) -> 0 | X9: =OFFSET(CONDITION_BAND_CODE,X8-1,0) -> 0 | Z9: =OFFSET(CONDITION_BAND_CODE,Z8-1,0) -> G | AA9: =OFFSET(CONDITION_BAND_CODE,AA8-1,0) -> A | AB9: =OFFSET(CONDITION_BAND_CODE,AB8-1,0) -> R | AC9: =OFFSET(CONDITION_BAND_CODE,AC8-1,0) -> 0 | AD9: =OFFSET(CONDITION_BAND_CODE,AD8-1,0) -> 0
B10: =ROW() - 9 -> 1 | C10: =OFFSET(ASSET_GROUP_NAME,'1 - Homog Asset Groups'!B10-1,0) -> MR | F10: =D10*E10 -> 0 | G10: m² | N10: 0 | O10: 0 | P10: 0 | Q10: 0 | R10: 0 | S10: =IF(SUM(OFFSET(I10,0,0,1,current_conditionBands)) <> 100%, "ERROR","") -> ERROR
B11: 2 | C11: =OFFSET(ASSET_GROUP_NAME,'1 - Homog Asset Groups'!B11-1,0) -> MU | F11: 0 | G11: m² | N11: 0 | O11: 0 | P11: 0 | Q11: 0 | R11: 0 | S11: ERROR
B12: 3 | C12: =OFFSET(ASSET_GROUP_NAME,'1 - Homog Asset Groups'!B12-1,0) -> DR | F12: 0 | G12: m² | N12: 0 | O12: 0 | P12: 0 | Q12: 0 | R12: 0 | S12: ERROR
B13: 4 | C13: =OFFSET(ASSET_GROUP_NAME,'1 - Homog Asset Groups'!B13-1,0) -> DU | F13: 0 | G13: m² | N13: 0 | O13: 0 | P13: 0 | Q13: 0 | R13: 0 | S13: ERROR
B14: 5 | C14: =OFFSET(ASSET_GROUP_NAME,'1 - Homog Asset Groups'!B14-1,0) -> SR | F14: =D14*E14 -> 0 | G14: m² | N14: 0 | O14: 0 | P14: 0 | Q14: 0 | R14: 0 | S14: =IF(SUM(OFFSET(I14,0,0,1,current_conditionBands)) <> 100%, "ERROR","") -> ERROR
B15: 6 | C15: =OFFSET(ASSET_GROUP_NAME,'1 - Homog Asset Groups'!B15-1,0) -> SU | F15: =D15*E15 -> 0 | G15: m² | N15: 0 | O15: 0 | P15: 0 | Q15: 0 | R15: 0 | S15: =IF(SUM(OFFSET(I15,0,0,1,current_conditionBands)) <> 100%, "ERROR","") -> ERROR

Sheet 2 - Transition Matrices (hidden)
B3: TRANSITION MATRICES
C7: 1 | N7: 2 | X7: 3 | AG7: 4 | AO7: 5 | AV7: 6 | BB7: 7 | BG7: 8 | BK7: 9
C8: =OFFSET(CONDITION_BAND_CODE,C7-1,0) -> G | M8: Validity Check | N8: =OFFSET(CONDITION_BAND_CODE,N7-1,0) -> A | W8: Validity Check | X8: =OFFSET(CONDITION_BAND_CODE,X7-1,0) -> R | AF8: Validity Check | AG8: =OFFSET(CONDITION_BAND_CODE,AG7-1,0) -> 0 | AN8: Validity Check | AO8: =OFFSET(CONDITION_BAND_CODE,AO7-1,0) -> 0 | AU8: Validity Check | AV8: =OFFSET(CONDITION_BAND_CODE,AV7-1,0) -> 0 | BA8: Validity Check | BB8: =OFFSET(CONDITION_BAND_CODE,BB7-1,0) -> 0 | BF8: Validity Check | BG8: =OFFSET(CONDITION_BAND_CODE,BG7-1,0) -> 0 | BJ8: Validity Check | BK8: =OFFSET(CONDITION_BAND_CODE,BK7-1,0) -> 0 | BM8: Validity Check
C9: 1 | D9: 2 | E9: 3 | F9: 4 | G9: 5 | H9: 6 | I9: 7 | J9: 8 | K9: 9 | L9: 10 | N9: 2 | O9: 3 | P9: 4 | Q9: 5 | R9: 6 | S9: 7 | T9: 8 | U9: 9 | V9: 10 | X9: 3 | Y9: 4 | Z9: 5 | AA9: 6 | AB9: 7 | AC9: 8 | AD9: 9 | AE9: 10 | AG9: 4 | AH9: 5 | AI9: 6 | AJ9: 7 | AK9: 8 | AL9: 9 | AM9: 10 | AO9: 5 | AP9: 6 | AQ9: 7 | AR9: 8 | AS9: 9 | AT9: 10 | AV9: 6 | AW9: 7 | AX9: 8 | AY9: 9 | AZ9: 10 | BB9: 7 | BC9: 8 | BD9: 9 | BE9: 10 | BG9: 8 | BH9: 9 | BI9: 10 | BK9: 9 | BL9: 10
B10: Matrix Name | C10: ="-> " & OFFSET(CONDITION_BAND_CODE,C9-1,0) -> -> G | D10: -> A | E10: -> R | F10: -> | G10: -> | H10: -> | I10: -> | J10: -> | K10: -> | L10: -> | N10: ="-> " & OFFSET(CONDITION_BAND_CODE,N9-1,0) -> -> A | O10: -> R | P10: -> | Q10: -> | R10: -> | S10: -> | T10: -> | U10: -> | V10: -> | X10: ="-> " & OFFSET(CONDITION_BAND_CODE,X9-1,0) -> -> R | Y10: -> | Z10: -> | AA10: -> | AB10: -> | AC10: -> | AD10: -> | AE10: -> | AG10: ="-> " & OFFSET(CONDITION_BAND_CODE,AG9-1,0) -> -> | AH10: -> | AI10: -> | AJ10: -> | AK10: -> | AL10: -> | AM10: -> | AO10: ="-> " & OFFSET(CONDITION_BAND_CODE,AO9-1,0) -> -> | AP10: -> | AQ10: -> | AR10: -> | AS10: -> | AT10: -> | AV10: ="-> " & OFFSET(CONDITION_BAND_CODE,AV9-1,0) -> -> | AW10: ="-> " & OFFSET(CONDITION_BAND_CODE,AW9-1,0) -> -> | AX10: ="-> " & OFFSET(CONDITION_BAND_CODE,AX9-1,0) -> -> | AY10: ="-> " & OFFSET(CONDITION_BAND_CODE,AY9-1,0) -> -> | AZ10: ="-> " & OFFSET(CONDITION_BAND_CODE,AZ9-1,0) -> -> | BB10: ="-> " & OFFSET(CONDITION_BAND_CODE,BB9-1,0) -> -> | BC10: ="-> " & OFFSET(CONDITION_BAND_CODE,BC9-1,0) -> -> | BD10: ="-> " & OFFSET(CONDITION_BAND_CODE,BD9-1,0) -> -> | BE10: ="-> " & OFFSET(CONDITION_BAND_CODE,BE9-1,0) -> -> | BG10: ="-> " & OFFSET(CONDITION_BAND_CODE,BG9-1,0) -> -> | BH10: ="-> " & OFFSET(CONDITION_BAND_CODE,BH9-1,0) -> -> | BI10: ="-> " & OFFSET(CONDITION_BAND_CODE,BI9-1,0) -> -> | BK10: ="-> " & OFFSET(CONDITION_BAND_CODE,BK9-1,0) -> -> | BL10: ="-> " & OFFSET(CONDITION_BAND_CODE,BL9-1,0) -> ->
B11: Scanner:Strat&Main:Rur | C11: 0.91 | D11: 0.09 | E11: 0 | F11: 0 | G11: 0 | H11: 0 | I11: 0 | J11: 0 | K11: 0 | L11: 0 | M11: =IF(SUM(OFFSET(C11,0,0,1,current_conditionBands))=1, "OK", "ERROR") -> OK | N11: 0.714 | O11: 0.279 | P11: 0.007 | Q11: 0 | R11: 0 | S11: 0 | T11: 0 | U11: 0 | V11: 0 | W11: =IF(SUM(OFFSET(N11,0,0,1,current_conditionBands-1))=1, "OK", "ERROR") -> ERROR | X11: 0.681 | Y11: 0.318 | Z11: 0.001 | AA11: 0 | AB11: 0 | AC11: 0 | AD11: 0 | AE11: 0 | AF11: =IF(SUM(OFFSET(X11,0,0,1,current_conditionBands-2))=1, "OK", "ERROR") -> ERROR | AG11: 0.771 | AH11: 0.229 | AI11: 0 | AJ11: 0 | AK11: 0 | AL11: 0 | AM11: 0 | AN11: =IF(SUM(OFFSET(AG11,0,0,1,current_conditionBands-3))=1, "OK", "ERROR") ->  | AO11: 1 | AP11: 0 | AQ11: 0 | AR11: 0 | AS11: 0 | AT11: 0 | AU11: =IF(SUM(OFFSET(AO11,0,0,1,current_conditionBands-4))=1, "OK", "ERROR") -> OK | AV11: 0.95 | AW11: 0.05 | AX11: 0 | AY11: 0 | AZ11: 0 | BA11: =IF(SUM(OFFSET(AV11,0,0,1,current_conditionBands-5))=1, "OK", "ERROR") -> ERROR | BB11: 0.95 | BC11: 0.05 | BD11: 0 | BE11: 0 | BF11: =IF(SUM(OFFSET(BB11,0,0,1,current_conditionBands-6))=1, "OK", "ERROR") -> ERROR | BG11: 0.95 | BH11: 0.05 | BI11: 0 | BJ11: =IF(SUM(OFFSET(BG11,0,0,1,current_conditionBands-7))=1, "OK", "ERROR") -> ERROR | BK11: 0.95 | BL11: 0.05 | BM11: =IF(SUM(OFFSET(BK11,0,0,1,current_conditionBands-8))=1, "OK", "ERROR") -> ERROR
B12: Scanner:Secondary:Urb | C12: 0.929 | D12: 0.071 | E12: 0 | F12: 0 | G12: 0 | H12: 0 | I12: 0 | J12: 0 | K12: 0 | L12: 0 | M12: OK | N12: 0.814 | O12: 0.186 | P12: 0 | Q12: 0 | R12: 0 | S12: 0 | T12: 0 | U12: 0 | V12: 0 | W12: OK | X12: 0.775 | Y12: 0.225 | Z12: 0 | AA12: 0 | AB12: 0 | AC12: 0 | AD12: 0 | AE12: 0 | AF12: ERROR | AG12: 0.846 | AH12: 0.154 | AI12: 0 | AJ12: 0 | AK12: 0 | AL12: 0 | AM12: 0 | AO12: 1 | AP12: 0 | AQ12: 0 | AR12: 0 | AS12: 0 | AT12: 0 | AU12: OK | AV12: 0.95 | AW12: 0.05 | AX12: 0 | AY12: 0 | AZ12: 0 | BA12: ERROR | BB12: 0.95 | BC12: 0.05 | BD12: 0 | BE12: 0 | BF12: ERROR | BG12: 0.95 | BH12: 0.05 | BI12: 0 | BJ12: ERROR | BK12: 0.95 | BL12: 0.05 | BM12: ERROR
B13: Scanner:Secondary:Rur | C13: 0.928 | D13: 0.072 | E13: 0 | F13: 0 | G13: 0 | H13: 0 | I13: 0 | J13: 0 | K13: 0 | L13: 0 | M13: OK | N13: 0.811 | O13: 0.189 | P13: 0 | Q13: 0 | R13: 0 | S13: 0 | T13: 0 | U13: 0 | V13: 0 | W13: OK | X13: 0.777 | Y13: 0.223 | Z13: 0 | AA13: 0 | AB13: 0 | AC13: 0 | AD13: 0 | AE13: 0 | AF13: ERROR | AG13: 0.839 | AH13: 0.161 | AI13: 0 | AJ13: 0 | AK13: 0 | AL13: 0 | AM13: 0 | AO13: 1 | AP13: 0 | AQ13: 0 | AR13: 0 | AS13: 0 | AT13: 0 | AU13: OK | AV13: 0.95 | AW13: 0.05 | AX13: 0 | AY13: 0 | AZ13: 0 | BA13: ERROR | BB13: 0.95 | BC13: 0.05 | BD13: 0 | BE13: 0 | BF13: ERROR | BG13: 0.95 | BH13: 0.05 | BI13: 0 | BJ13: ERROR | BK13: 0.95 | BL13: 0.05 | BM13: ERROR
B14: Scanner:Link:Urb | C14: 0.937 | D14: 0.063 | E14: 0 | F14: 0 | G14: 0 | H14: 0 | I14: 0 | J14: 0 | K14: 0 | L14: 0 | M14: OK | N14: 0.796 | O14: 0.202 | P14: 0.002 | Q14: 0 | R14: 0 | S14: 0 | T14: 0 | U14: 0 | V14: 0 | W14: ERROR | X14: 0.756 | Y14: 0.244 | Z14: 0 | AA14: 0 | AB14: 0 | AC14: 0 | AD14: 0 | AE14: 0 | AF14: ERROR | AG14: 0.88 | AH14: 0.12 | AI14: 0 | AJ14: 0 | AK14: 0 | AL14: 0 | AM14: 0 | AO14: 1 | AP14: 0 | AQ14: 0 | AR14: 0 | AS14: 0 | AT14: 0 | AU14: OK | AV14: 0.95 | AW14: 0.05 | AX14: 0 | AY14: 0 | AZ14: 0 | BA14: ERROR | BB14: 0.95 | BC14: 0.05 | BD14: 0 | BE14: 0 | BF14: ERROR | BG14: 0.95 | BH14: 0.05 | BI14: 0 | BJ14: ERROR | BK14: 0.95 | BL14: 0.05 | BM14: ERROR
B15: Scanner:Link:Rur | C15: 0.933 | D15: 0.067 | E15: 0 | F15: 0 | G15: 0 | H15: 0 | I15: 0 | J15: 0 | K15: 0 | L15: 0 | M15: OK | N15: 0.773 | O15: 0.225 | P15: 0.002 | Q15: 0 | R15: 0 | S15: 0 | T15: 0 | U15: 0 | V15: 0 | W15: ERROR | X15: 0.722 | Y15: 0.278 | Z15: 0 | AA15: 0 | AB15: 0 | AC15: 0 | AD15: 0 | AE15: 0 | AF15: ERROR | AG15: 0.836 | AH15: 0.164 | AI15: 0 | AJ15: 0 | AK15: 0 | AL15: 0 | AM15: 0 | AO15: 1 | AP15: 0 | AQ15: 0 | AR15: 0 | AS15: 0 | AT15: 0 | AU15: OK | AV15: 0.95 | AW15: 0.05 | AX15: 0 | AY15: 0 | AZ15: 0 | BA15: ERROR | BB15: 0.95 | BC15: 0.05 | BD15: 0 | BE15: 0 | BF15: ERROR | BG15: 0.95 | BH15: 0.05 | BI15: 0 | BJ15: ERROR | BK15: 0.95 | BL15: 0.05 | BM15: ERROR
B16: Scanner:Local:Urb&Rur | C16: 0.963 | D16: 0.037 | E16: 0 | F16: 0 | G16: 0 | H16: 0 | I16: 0 | J16: 0 | K16: 0 | L16: 0 | M16: OK | N16: 0.898 | O16: 0.102 | P16: 0 | Q16: 0 | R16: 0 | S16: 0 | T16: 0 | U16: 0 | V16: 0 | W16: OK | X16: 0.897 | Y16: 0.103 | Z16: 0 | AA16: 0 | AB16: 0 | AC16: 0 | AD16: 0 | AE16: 0 | AF16: ERROR | AG16: 0.933 | AH16: 0.067 | AI16: 0 | AJ16: 0 | AK16: 0 | AL16: 0 | AM16: 0 | AO16: 1 | AP16: 0 | AQ16: 0 | AR16: 0 | AS16: 0 | AT16: 0 | AU16: OK | AV16: 0.95 | AW16: 0.05 | AX16: 0 | AY16: 0 | AZ16: 0 | BA16: ERROR | BB16: 0.95 | BC16: 0.05 | BD16: 0 | BE16: 0 | BF16: ERROR | BG16: 0.95 | BH16: 0.05 | BI16: 0 | BJ16: ERROR | BK16: 0.95 | BL16: 0.05 | BM16: ERROR
B17: CVI:Strategic:Urban | C17: 0.911 | D17: 0.088 | E17: 0.001 | F17: 0 | G17: 0 | H17: 0 | I17: 0 | J17: 0 | K17: 0 | L17: 0 | M17: OK | N17: 0.727 | O17: 0.265 | P17: 0.008 | Q17: 0 | R17: 0 | S17: 0 | T17: 0 | U17: 0 | V17: 0 | W17: ERROR | X17: 0.688 | Y17: 0.31 | Z17: 0.002 | AA17: 0 | AB17: 0 | AC17: 0 | AD17: 0 | AE17: 0 | AF17: ERROR | AG17: 0.775 | AH17: 0.225 | AI17: 0 | AJ17: 0 | AK17: 0 | AL17: 0 | AM17: 0 | AO17: 1 | AP17: 0 | AQ17: 0 | AR17: 0 | AS17: 0 | AT17: 0 | AU17: OK | AV17: 0.95 | AW17: 0.05 | AX17: 0 | AY17: 0 | AZ17: 0 | BA17: ERROR | BB17: 0.95 | BC17: 0.05 | BD17: 0 | BE17: 0 | BF17: ERROR | BG17: 0.95 | BH17: 0.05 | BI17: 0 | BJ17: ERROR | BK17: 0.95 | BL17: 0.05 | BM17: ERROR
B18: CVI:Strategic:Rural | C18: 0.913 | D18: 0.087 | E18: 0 | F18: 0 | G18: 0 | H18: 0 | I18: 0 | J18: 0 | K18: 0 | L18: 0 | M18: OK | N18: 0.741 | O18: 0.254 | P18: 0.005 | Q18: 0 | R18: 0 | S18: 0 | T18: 0 | U18: 0 | V18: 0 | W18: ERROR | X18: 0.71 | Y18: 0.289 | Z18: 0.001 | AA18: 0 | AB18: 0 | AC18: 0 | AD18: 0 | AE18: 0 | AF18: ERROR | AG18: 0.788 | AH18: 0.212 | AI18: 0 | AJ18: 0 | AK18: 0 | AL18: 0 | AM18: 0 | AO18: 1 | AP18: 0 | AQ18: 0 | AR18: 0 | AS18: 0 | AT18: 0 | AU18: OK | AV18: 0.95 | AW18: 0.05 | AX18: 0 | AY18: 0 | AZ18: 0 | BA18: ERROR | BB18: 0.95 | BC18: 0.05 | BD18: 0 | BE18: 0 | BF18: ERROR | BG18: 0.95 | BH18: 0.05 | BI18: 0 | BJ18: ERROR | BK18: 0.95 | BL18: 0.05 | BM18: ERROR
B19: CVI:Main:Urban | C19: 0.88 | D19: 0.119 | E19: 0.001 | F19: 0 | G19: 0 | H19: 0 | I19: 0 | J19: 0 | K19: 0 | L19: 0 | M19: OK | N19: 0.74 | O19: 0.251 | P19: 0.009 | Q19: 0 | R19: 0 | S19: 0 | T19: 0 | U19: 0 | V19: 0 | W19: ERROR | X19: 0.706 | Y19: 0.292 | Z19: 0.002 | AA19: 0 | AB19: 0 | AC19: 0 | AD19: 0 | AE19: 0 | AF19: ERROR | AG19: 0.78 | AH19: 0.22 | AI19: 0 | AJ19: 0 | AK19: 0 | AL19: 0 | AM19: 0 | AO19: 1 | AP19: 0 | AQ19: 0 | AR19: 0 | AS19: 0 | AT19: 0 | AU19: OK | AV19: 0.95 | AW19: 0.05 | AX19: 0 | AY19: 0 | AZ19: 0 | BA19: ERROR | BB19: 0.95 | BC19: 0.05 | BD19: 0 | BE19: 0 | BF19: ERROR | BG19: 0.95 | BH19: 0.05 | BI19: 0 | BJ19: ERROR | BK19: 0.95 | BL19: 0.05 | BM19: ERROR
B20: CVI:Main:Rural | C20: 0.913 | D20: 0.086 | E20: 0.001 | F20: 0 | G20: 0 | H20: 0 | I20: 0 | J20: 0 | K20: 0 | L20: 0 | M20: OK | N20: 0.752 | O20: 0.242 | P20: 0.006 | Q20: 0 | R20: 0 | S20: 0 | T20: 0 | U20: 0 | V20: 0 | W20: ERROR | X20: 0.714 | Y20: 0.285 | Z20: 0.001 | AA20: 0 | AB20: 0 | AC20: 0 | AD20: 0 | AE20: 0 | AF20: ERROR | AG20: 0.796 | AH20: 0.204 | AI20: 0 | AJ20: 0 | AK20: 0 | AL20: 0 | AM20: 0 | AO20: 1 | AP20: 0 | AQ20: 0 | AR20: 0 | AS20: 0 | AT20: 0 | AU20: OK | AV20: 0.95 | AW20: 0.05 | AX20: 0 | AY20: 0 | AZ20: 0 | BA20: ERROR | BB20: 0.95 | BC20: 0.05 | BD20: 0 | BE20: 0 | BF20: ERROR | BG20: 0.95 | BH20: 0.05 | BI20: 0 | BJ20: ERROR | BK20: 0.95 | BL20: 0.05 | BM20: ERROR
B21: CVI:Secondary:Urban | C21: 0.932 | D21: 0.068 | E21: 0 | F21: 0 | G21: 0 | H21: 0 | I21: 0 | J21: 0 | K21: 0 | L21: 0 | M21: OK | N21: 0.831 | O21: 0.169 | P21: 0 | Q21: 0 | R21: 0 | S21: 0 | T21: 0 | U21: 0 | V21: 0 | W21: OK | X21: 0.797 | Y21: 0.203 | Z21: 0 | AA21: 0 | AB21: 0 | AC21: 0 | AD21: 0 | AE21: 0 | AF21: ERROR | AG21: 0.853 | AH21: 0.147 | AI21: 0 | AJ21: 0 | AK21: 0 | AL21: 0 | AM21: 0 | AO21: 1 | AP21: 0 | AQ21: 0 | AR21: 0 | AS21: 0 | AT21: 0 | AU21: OK | AV21: 0.95 | AW21: 0.05 | AX21: 0 | AY21: 0 | AZ21: 0 | BA21: ERROR | BB21: 0.95 | BC21: 0.05 | BD21: 0 | BE21: 0 | BF21: ERROR | BG21: 0.95 | BH21: 0.05 | BI21: 0 | BJ21: ERROR | BK21: 0.95 | BL21: 0.05 | BM21: ERROR
B22: CVI:Secondary:Rural | C22: 0.932 | D22: 0.068 | E22: 0 | F22: 0 | G22: 0 | H22: 0 | I22: 0 | J22: 0 | K22: 0 | L22: 0 | M22: OK | N22: 0.834 | O22: 0.166 | P22: 0 | Q22: 0 | R22: 0 | S22: 0 | T22: 0 | U22: 0 | V22: 0 | W22: OK | X22: 0.797 | Y22: 0.203 | Z22: 0 | AA22: 0 | AB22: 0 | AC22: 0 | AD22: 0 | AE22: 0 | AF22: ERROR | AG22: 0.856 | AH22: 0.144 | AI22: 0 | AJ22: 0 | AK22: 0 | AL22: 0 | AM22: 0 | AO22: 1 | AP22: 0 | AQ22: 0 | AR22: 0 | AS22: 0 | AT22: 0 | AU22: OK | AV22: 0.95 | AW22: 0.05 | AX22: 0 | AY22: 0 | AZ22: 0 | BA22: ERROR | BB22: 0.95 | BC22: 0.05 | BD22: 0 | BE22: 0 | BF22: ERROR | BG22: 0.95 | BH22: 0.05 | BI22: 0 | BJ22: ERROR | BK22: 0.95 | BL22: 0.05 | BM22: ERROR
B23: CVI:Link:Urban | C23: 0.94 | D23: 0.06 | E23: 0 | F23: 0 | G23: 0 | H23: 0 | I23: 0 | J23: 0 | K23: 0 | L23: 0 | M23: OK | N23: 0.815 | O23: 0.184 | P23: 0.001 | Q23: 0 | R23: 0 | S23: 0 | T23: 0 | U23: 0 | V23: 0 | W23: ERROR | X23: 0.781 | Y23: 0.219 | Z23: 0 | AA23: 0 | AB23: 0 | AC23: 0 | AD23: 0 | AE23: 0 | AF23: ERROR | AG23: 0.862 | AH23: 0.138 | AI23: 0 | AJ23: 0 | AK23: 0 | AL23: 0 | AM23: 0 | AO23: 1 | AP23: 0 | AQ23: 0 | AR23: 0 | AS23: 0 | AT23: 0 | AU23: OK | AV23: 0.95 | AW23: 0.05 | AX23: 0 | AY23: 0 | AZ23: 0 | BA23: ERROR | BB23: 0.95 | BC23: 0.05 | BD23: 0 | BE23: 0 | BF23: ERROR | BG23: 0.95 | BH23: 0.05 | BI23: 0 | BJ23: ERROR | BK23: 0.95 | BL23: 0.05 | BM23: ERROR
B24: CVI:Link:Rural | C24: 0.941 | D24: 0.059 | E24: 0 | F24: 0 | G24: 0 | H24: 0 | I24: 0 | J24: 0 | K24: 0 | L24: 0 | M24: OK | N24: 0.815 | O24: 0.184 | P24: 0.001 | Q24: 0 | R24: 0 | S24: 0 | T24: 0 | U24: 0 | V24: 0 | W24: ERROR | X24: 0.788 | Y24: 0.212 | Z24: 0 | AA24: 0 | AB24: 0 | AC24: 0 | AD24: 0 | AE24: 0 | AF24: ERROR | AG24: 0.864 | AH24: 0.136 | AI24: 0 | AJ24: 0 | AK24: 0 | AL24: 0 | AM24: 0 | AO24: 1 | AP24: 0 | AQ24: 0 | AR24: 0 | AS24: 0 | AT24: 0 | AU24: OK | AV24: 0.95 | AW24: 0.05 | AX24: 0 | AY24: 0 | AZ24: 0 | BA24: ERROR | BB24: 0.95 | BC24: 0.05 | BD24: 0 | BE24: 0 | BF24: ERROR | BG24: 0.95 | BH24: 0.05 | BI24: 0 | BJ24: ERROR | BK24: 0.95 | BL24: 0.05 | BM24: ERROR
B25: CVI:Local:Urban | C25: 0.942 | D25: 0.058 | E25: 0 | F25: 0 | G25: 0 | H25: 0 | I25: 0 | J25: 0 | K25: 0 | L25: 0 | M25: OK | N25: 0.829 | O25: 0.17 | P25: 0.001 | Q25: 0 | R25: 0 | S25: 0 | T25: 0 | U25: 0 | V25: 0 | W25: ERROR | X25: 0.795 | Y25: 0.205 | Z25: 0 | AA25: 0 | AB25: 0 | AC25: 0 | AD25: 0 | AE25: 0 | AF25: ERROR | AG25: 0.872 | AH25: 0.128 | AI25: 0 | AJ25: 0 | AK25: 0 | AL25: 0 | AM25: 0 | AO25: 1 | AP25: 0 | AQ25: 0 | AR25: 0 | AS25: 0 | AT25: 0 | AU25: OK | AV25: 0.95 | AW25: 0.05 | AX25: 0 | AY25: 0 | AZ25: 0 | BA25: ERROR | BB25: 0.95 | BC25: 0.05 | BD25: 0 | BE25: 0 | BF25: ERROR | BG25: 0.95 | BH25: 0.05 | BI25: 0 | BJ25: ERROR | BK25: 0.95 | BL25: 0.05 | BM25: ERROR
B26: CVI:Local:Rural | C26: 0.943 | D26: 0.057 | E26: 0 | F26: 0 | G26: 0 | H26: 0 | I26: 0 | J26: 0 | K26: 0 | L26: 0 | M26: OK | N26: 0.832 | O26: 0.167 | P26: 0.001 | Q26: 0 | R26: 0 | S26: 0 | T26: 0 | U26: 0 | V26: 0 | W26: ERROR | X26: 0.795 | Y26: 0.205 | Z26: 0 | AA26: 0 | AB26: 0 | AC26: 0 | AD26: 0 | AE26: 0 | AF26: ERROR | AG26: 0.874 | AH26: 0.126 | AI26: 0 | AJ26: 0 | AK26: 0 | AL26: 0 | AM26: 0 | AO26: 1 | AP26: 0 | AQ26: 0 | AR26: 0 | AS26: 0 | AT26: 0 | AU26: OK | AV26: 0.95 | AW26: 0.05 | AX26: 0 | AY26: 0 | AZ26: 0 | BA26: ERROR | BB26: 0.95 | BC26: 0.05 | BD26: 0 | BE26: 0 | BF26: ERROR | BG26: 0.95 | BH26: 0.05 | BI26: 0 | BJ26: ERROR | BK26: 0.95 | BL26: 0.05 | BM26: ERROR
B27: Strategic & Main | C27: 0.9 | D27: 0.1 | E27: 0 | F27: 0 | G27: 0 | H27: 0 | I27: 0 | J27: 0 | K27: 0 | L27: 0 | M27: =IF(SUM(OFFSET(C27,0,0,1,current_conditionBands))=1, "OK", "ERROR") -> OK | N27: 0.9 | O27: 0.1 | P27: 0 | Q27: 0 | R27: 0 | S27: 0 | T27: 0 | U27: 0 | V27: 0 | W27: =IF(SUM(OFFSET(N27,0,0,1,current_conditionBands-1))=1, "OK", "ERROR") -> OK | X27: 0.9 | Y27: 0.1 | Z27: 0 | AA27: 0 | AB27: 0 | AC27: 0 | AD27: 0 | AE27: 0 | AF27: =IF(SUM(OFFSET(X27,0,0,1,current_conditionBands-2))=1, "OK", "ERROR") -> ERROR | AG27: 0.9 | AH27: 0.1 | AI27: 0 | AJ27: 0 | AK27: 0 | AL27: 0 | AM27: 0 | AN27: =IF(SUM(OFFSET(AG27,0,0,1,current_conditionBands-3))=1, "OK", "ERROR") ->  | AO27: 1 | AP27: 0 | AQ27: 0 | AR27: 0 | AS27: 0 | AT27: 0 | AU27: =IF(SUM(OFFSET(AO27,0,0,1,current_conditionBands-4))=1, "OK", "ERROR") -> OK | AV27: 0.95 | AW27: 0.05 | AX27: 0 | AY27: 0 | AZ27: 0 | BA27: =IF(SUM(OFFSET(AV27,0,0,1,current_conditionBands-5))=1, "OK", "ERROR") -> ERROR | BB27: 0.95 | BC27: 0.05 | BD27: 0 | BE27: 0 | BF27: =IF(SUM(OFFSET(BB27,0,0,1,current_conditionBands-6))=1, "OK", "ERROR") -> ERROR | BG27: 0.95 | BH27: 0.05 | BI27: 0 | BJ27: =IF(SUM(OFFSET(BG27,0,0,1,current_conditionBands-7))=1, "OK", "ERROR") -> ERROR | BK27: 0.95 | BL27: 0.05 | BM27: =IF(SUM(OFFSET(BK27,0,0,1,current_conditionBands-8))=1, "OK", "ERROR") -> ERROR

Sheet 3 - Treatment Effects & Costs (hidden)
B3: TREATMENTS EFFECTS & COSTS
H6: Effect of treatment | T6: Treatment Cost (£)
I8: 1 | J8: 2 | K8: 3 | L8: 4 | M8: 5 | N8: 6 | O8: 7 | P8: 8 | Q8: 9 | R8: 10 | T8: 1 | U8: 2 | V8: 3 | W8: 4 | X8: 5 | Y8: 6 | Z8: 7 | AA8: 8 | AB8: 9 | AC8: 10 | AD8: Units (£ per)
B9: No | C9: Asset Group | D9: Treatment | F9: Treatment Details | G9: ID | H9: After-treatment Asset Group | I9: =OFFSET(CONDITION_BAND_CODE,I8-1,0) -> G | J9: A | K9: R | L9: 0 | M9: 0 | N9: 0 | O9: 0 | P9: 0 | Q9: 0 | R9: 0 | S9: Validity Check | T9: =OFFSET(CONDITION_BAND_CODE,T8-1,0) -> G | U9: A | V9: R | W9: 0 | X9: 0 | Y9: 0 | Z9: 0 | AA9: 0 | AB9: 0 | AC9: 0
F10: CAT 1 | H10: CAT 1 | I10: None | J10: None | K10: None | L10: None | M10: None | N10: None | O10: None | P10: None | Q10: None | R10: None | T10: 5.58 | U10: 5.58 | V10: 5.58 | W10: 5.58 | X10: 5.58 | Y10: 5.58 | Z10: 5.58 | AA10: 5.58 | AB10: 5.58 | AC10: 5.58 | AD10: no.
F11: CAT 2 | H11: CAT 2 | I11: None | J11: None | K11: None | L11: None | M11: None | N11: None | O11: None | P11: None | Q11: None | R11: None | T11: 29.39 | U11: 29.39 | V11: 29.39 | W11: 29.39 | X11: 29.39 | Y11: 29.39 | Z11: 29.39 | AA11: 29.39 | AB11: 29.39 | AC11: 29.39 | AD11: no.
B12: =INT((ROW()-12)/(current_treatmentTypes))+1 -> 1 | C12: =OFFSET(ASSET_GROUP_NAME,B12-1,0) -> MR | D12: 1 | F12: =OFFSET(TREATMENT_TYPE_NAME,D12-1,0) -> Treatment 1 | G12: =IF(H12="",0,IF(ISERROR(MATCH(H12,System!$AE$4:$AE$105,0)),-1,MATCH(H12,System!$AE$4:$AE$105,0)-1)) -> 0 | H12: No Change | S12: =IF(CheckTreatmenTypeCodesOK(SELECT_CONDITION_BAND,OFFSET(I12,0,0,1,current_conditionBands),H12,G12)=FALSE,"ERROR","OK") -> ERROR | AD12: m²
D13: =D12+1 -> 2 | F13: Treatment 2 | G13: =IF(H13="",0,IF(ISERROR(MATCH(H13,System!$AE$4:$AE$105,0)),-1,MATCH(H13,System!$AE$4:$AE$105,0)-1)) -> 0 | H13: No Change | S13: =IF(CheckTreatmenTypeCodesOK(SELECT_CONDITION_BAND,OFFSET(I13,0,0,1,current_conditionBands),H13,G13)=FALSE,"ERROR","OK") -> ERROR
B14: =INT((ROW()-12)/(current_treatmentTypes))+1 -> 2 | C14: =OFFSET(ASSET_GROUP_NAME,B14-1,0) -> MU | D14: 1 | F14: =OFFSET(TREATMENT_TYPE_NAME,D14-1,0) -> Treatment 1 | G14: =IF(H14="",0,IF(ISERROR(MATCH(H14,System!$AE$4:$AE$105,0)),-1,MATCH(H14,System!$AE$4:$AE$105,0)-1)) -> 0 | H14: No Change | S14: =IF(CheckTreatmenTypeCodesOK(SELECT_CONDITION_BAND,OFFSET(I14,0,0,1,current_conditionBands),H14,G14)=FALSE,"ERROR","OK") -> ERROR | AD14: m²
D15: =D14+1 -> 2 | F15: Treatment 2 | G15: =IF(H15="",0,IF(ISERROR(MATCH(H15,System!$AE$4:$AE$105,0)),-1,MATCH(H15,System!$AE$4:$AE$105,0)-1)) -> 0 | H15: No Change | S15: =IF(CheckTreatmenTypeCodesOK(SELECT_CONDITION_BAND,OFFSET(I15,0,0,1,current_conditionBands),H15,G15)=FALSE,"ERROR","OK") -> ERROR
B16: =INT((ROW()-12)/(current_treatmentTypes))+1 -> 3 | C16: =OFFSET(ASSET_GROUP_NAME,B16-1,0) -> DR | D16: 1 | F16: =OFFSET(TREATMENT_TYPE_NAME,D16-1,0) -> Treatment 1 | G16: =IF(H16="",0,IF(ISERROR(MATCH(H16,System!$AE$4:$AE$105,0)),-1,MATCH(H16,System!$AE$4:$AE$105,0)-1)) -> 0 | H16: No Change | S16: =IF(CheckTreatmenTypeCodesOK(SELECT_CONDITION_BAND,OFFSET(I16,0,0,1,current_conditionBands),H16,G16)=FALSE,"ERROR","OK") -> ERROR | AD16: m²
D17: =D16+1 -> 2 | F17: Treatment 2 | G17: =IF(H17="",0,IF(ISERROR(MATCH(H17,System!$AE$4:$AE$105,0)),-1,MATCH(H17,System!$AE$4:$AE$105,0)-1)) -> 0 | H17: No Change | S17: =IF(CheckTreatmenTypeCodesOK(SELECT_CONDITION_BAND,OFFSET(I17,0,0,1,current_conditionBands),H17,G17)=FALSE,"ERROR","OK") -> ERROR
B18: =INT((ROW()-12)/(current_treatmentTypes))+1 -> 4 | C18: =OFFSET(ASSET_GROUP_NAME,B18-1,0) -> DU | D18: 1 | F18: =OFFSET(TREATMENT_TYPE_NAME,D18-1,0) -> Treatment 1 | G18: =IF(H18="",0,IF(ISERROR(MATCH(H18,System!$AE$4:$AE$105,0)),-1,MATCH(H18,System!$AE$4:$AE$105,0)-1)) -> 0 | H18: No Change | S18: =IF(CheckTreatmenTypeCodesOK(SELECT_CONDITION_BAND,OFFSET(I18,0,0,1,current_conditionBands),H18,G18)=FALSE,"ERROR","OK") -> ERROR | AD18: m²
D19: =D18+1 -> 2 | F19: Treatment 2 | G19: =IF(H19="",0,IF(ISERROR(MATCH(H19,System!$AE$4:$AE$105,0)),-1,MATCH(H19,System!$AE$4:$AE$105,0)-1)) -> 0 | H19: No Change | S19: =IF(CheckTreatmenTypeCodesOK(SELECT_CONDITION_BAND,OFFSET(I19,0,0,1,current_conditionBands),H19,G19)=FALSE,"ERROR","OK") -> ERROR
B20: =INT((ROW()-12)/(current_treatmentTypes))+1 -> 5 | C20: =OFFSET(ASSET_GROUP_NAME,B20-1,0) -> SR | D20: 1 | F20: =OFFSET(TREATMENT_TYPE_NAME,D20-1,0) -> Treatment 1 | G20: =IF(H20="",0,IF(ISERROR(MATCH(H20,System!$AE$4:$AE$105,0)),-1,MATCH(H20,System!$AE$4:$AE$105,0)-1)) -> 0 | H20: No Change | S20: =IF(CheckTreatmenTypeCodesOK(SELECT_CONDITION_BAND,OFFSET(I20,0,0,1,current_conditionBands),H20,G20)=FALSE,"ERROR","OK") -> ERROR | AD20: m²
D21: =D20+1 -> 2 | F21: Treatment 2 | G21: =IF(H21="",0,IF(ISERROR(MATCH(H21,System!$AE$4:$AE$105,0)),-1,MATCH(H21,System!$AE$4:$AE$105,0)-1)) -> 0 | H21: No Change | S21: =IF(CheckTreatmenTypeCodesOK(SELECT_CONDITION_BAND,OFFSET(I21,0,0,1,current_conditionBands),H21,G21)=FALSE,"ERROR","OK") -> ERROR
B22: =INT((ROW()-12)/(current_treatmentTypes))+1 -> 6 | C22: =OFFSET(ASSET_GROUP_NAME,B22-1,0) -> SU | D22: 1 | F22: =OFFSET(TREATMENT_TYPE_NAME,D22-1,0) -> Treatment 1 | G22: =IF(H22="",0,IF(ISERROR(MATCH(H22,System!$AE$4:$AE$105,0)),-1,MATCH(H22,System!$AE$4:$AE$105,0)-1)) -> 0 | H22: No Change | S22: =IF(CheckTreatmenTypeCodesOK(SELECT_CONDITION_BAND,OFFSET(I22,0,0,1,current_conditionBands),H22,G22)=FALSE,"ERROR","OK") -> ERROR | AD22: m²
D23: =D22+1 -> 2 | F23: Treatment 2 | G23: =IF(H23="",0,IF(ISERROR(MATCH(H23,System!$AE$4:$AE$105,0)),-1,MATCH(H23,System!$AE$4:$AE$105,0)-1)) -> 0 | H23: No Change | S23: =IF(CheckTreatmenTypeCodesOK(SELECT_CONDITION_BAND,OFFSET(I23,0,0,1,current_conditionBands),H23,G23)=FALSE,"ERROR","OK") -> ERROR

Sheet 4 - Treatment Strategies (hidden)
B3: TREATMENT STRATEGIES
L8: 1 | M8: 2 | N8: 3 | O8: 4 | P8: 5 | Q8: 6 | R8: 7 | S8: 8 | T8: 9 | U8: 10
B9: Serial | C9: Name | D9: Step | E9: Condition Band Index | F9: Treatment Type Index | G9: Treatment | H9: Condition Band | I9: % Treated | J9: Serial Index | K9: Band Total | L9: =OFFSET(CONDITION_BAND_CODE,'4 - Treatment Strategies'!L8-1,0) -> G | M9: =OFFSET(CONDITION_BAND_CODE,'4 - Treatment Strategies'!M8-1,0) -> A | N9: =OFFSET(CONDITION_BAND_CODE,'4 - Treatment Strategies'!N8-1,0) -> R | O9: =OFFSET(CONDITION_BAND_CODE,'4 - Treatment Strategies'!O8-1,0) -> 0 | P9: =OFFSET(CONDITION_BAND_CODE,'4 - Treatment Strategies'!P8-1,0) -> 0 | Q9: =OFFSET(CONDITION_BAND_CODE,'4 - Treatment Strategies'!Q8-1,0) -> 0 | R9: =OFFSET(CONDITION_BAND_CODE,'4 - Treatment Strategies'!R8-1,0) -> 0 | S9: =OFFSET(CONDITION_BAND_CODE,'4 - Treatment Strategies'!S8-1,0) -> 0 | T9: =OFFSET(CONDITION_BAND_CODE,'4 - Treatment Strategies'!T8-1,0) -> 0 | U9: =OFFSET(CONDITION_BAND_CODE,'4 - Treatment Strategies'!U8-1,0) -> 0
B10: =1+INT((ROW()-10)/System!$B$38) -> 1 | C10: Treatment Strategy 1 | D10: 1 | E10: =IF(ISERROR(MATCH(H10,SELECT_CONDITION_BAND_ONLY,0)),0,MATCH(H10,SELECT_CONDITION_BAND_ONLY,0)) -> 0 | F10: =IF(ISERROR(MATCH(G10,SELECT_TREATMENT_TYPE,0)),0,MATCH(G10,SELECT_TREATMENT_TYPE,0)-1) -> 0 | J10: =IF(ISNUMBER(D9),IF(D10>D9,J9,J9+1),1) -> 1 | K10: =SUMIFS($I$9:$I9,$H$9:H9,$H10,$J$9:J9,$J10) -> 0 | L10: =IF($E10=L$8,$I10,"") ->  | V10: =IF(D10=0,"Error: Update/enter a performance indicator",IF(G10='0 - Input Sheet'!$S$12,"",IF(OR(G10="",H10=""),System!$Q$6,IF(F10=0,System!$Q$4,IF(E10=0,System!$Q$5,IF(I10="","Error: Update/enter a percentage of treatment","")))))) -> Error: Select a treatment type and condition band.
D11: 2 | E11: 0 | F11: 0 | J11: =IF(ISNUMBER(D10),IF(D11>D10,J10,J10+1),1) -> 1 | K11: =SUMIFS($I$9:$I10,$H$9:H10,$H11,$J$9:J10,$J11) -> 0 | V11: =IF(D11=0,"Error: Update/enter a performance indicator",IF(G11='0 - Input Sheet'!$S$12,"",IF(OR(G11="",H11=""),System!$Q$6,IF(F11=0,System!$Q$4,IF(E11=0,System!$Q$5,IF(I11="","Error: Update/enter a percentage of treatment","")))))) -> Error: Select a treatment type and condition band.
D12: 3 | E12: 0 | F12: 0 | J12: 1 | K12: =SUMIFS($I$9:$I11,$H$9:H11,$H12,$J$9:J11,$J12) -> 0 | V12: =IF(D12=0,"Error: Update/enter a performance indicator",IF(G12='0 - Input Sheet'!$S$12,"",IF(OR(G12="",H12=""),System!$Q$6,IF(F12=0,System!$Q$4,IF(E12=0,System!$Q$5,IF(I12="","Error: Update/enter a percentage of treatment","")))))) -> Error: Select a treatment type and condition band.
D13: 4 | E13: =IF(ISERROR(MATCH(H13,SELECT_CONDITION_BAND_ONLY,0)),0,MATCH(H13,SELECT_CONDITION_BAND_ONLY,0)) -> 0 | F13: =IF(ISERROR(MATCH(G13,SELECT_TREATMENT_TYPE,0)),0,MATCH(G13,SELECT_TREATMENT_TYPE,0)-1) -> 0 | J13: 1 | K13: =SUMIFS($I$9:$I12,$H$9:H12,$H13,$J$9:J12,$J13) -> 0 | V13: =IF(D13=0,"Error: Update/enter a performance indicator",IF(G13='0 - Input Sheet'!$S$12,"",IF(OR(G13="",H13=""),System!$Q$6,IF(F13=0,System!$Q$4,IF(E13=0,System!$Q$5,IF(I13="","Error: Update/enter a percentage of treatment","")))))) -> Error: Select a treatment type and condition band.
D14: 5 | E14: =IF(ISERROR(MATCH(H14,SELECT_CONDITION_BAND_ONLY,0)),0,MATCH(H14,SELECT_CONDITION_BAND_ONLY,0)) -> 0 | F14: =IF(ISERROR(MATCH(G14,SELECT_TREATMENT_TYPE,0)),0,MATCH(G14,SELECT_TREATMENT_TYPE,0)-1) -> 0 | J14: 1 | K14: =SUMIFS($I$9:$I13,$H$9:H13,$H14,$J$9:J13,$J14) -> 0 | V14: =IF(D14=0,"Error: Update/enter a performance indicator",IF(G14='0 - Input Sheet'!$S$12,"",IF(OR(G14="",H14=""),System!$Q$6,IF(F14=0,System!$Q$4,IF(E14=0,System!$Q$5,IF(I14="","Error: Update/enter a percentage of treatment","")))))) -> Error: Select a treatment type and condition band.

Sheet 5 - Budgets (hidden)
B3: BUDGETS
B9: Serial | C9: Name | D9: Treatment No. | E9: Treatment | F9: Budget constraints (£ 000s) | G9: Roll Over Code | H9: Roll Over | I9: Total (£ 000s)
B10: =1+(INT(ROW()-10)/System!$B$35) -> 1 | D10: 1 | E10: =OFFSET(TREATMENT_TYPE_NAME,D10-1,0) -> Treatment 1 | G10: =IF(H10="Y",1,0) -> 0 | H10: N | I10: =SUM(OFFSET(F10,0,0,current_treatmentTypes,1)) -> 0
D11: =D10+1 -> 2 | E11: Treatment 2 | G11: =IF(H11="Y",1,0) -> 0 | H11: N
B12: =1+(INT(ROW()-10)/System!$B$35) -> 2 | D12: 1 | E12: =OFFSET(TREATMENT_TYPE_NAME,D12-1,0) -> Treatment 1 | G12: =IF(H12="Y",1,0) -> 0 | H12: N | I12: =SUM(OFFSET(F12,0,0,current_treatmentTypes,1)) -> 0
D13: =D12+1 -> 2 | E13: Treatment 2 | G13: 0 | H13: N

Sheet 6 - Performance Targets (hidden)
B3: PERFORMANCE TARGETS
C7: Maximum number of iterations for treatment strategy: | E7: 1
B9: No. | C9: Name | D9: Performance Indicator Code | E9: Performance Indicator | F9: Expression Index | G9: Expression | H9: Performance Target (%)
B10: =ROW()-9 -> 1 | C10: PT1 | D10: =IF(ISERROR(MATCH(E10,SELECT_PERFOEMANCETARGET,0)),0,MATCH(E10,SELECT_PERFOEMANCETARGET,0)) -> 0 | F10: =IF(ISERROR(MATCH(G10,LIST_EXPRESSIONS,0)),0,MATCH(G10,LIST_EXPRESSIONS,0)) -> 0 | I10: =IF(D10=0,"Error: Update/enter a performance indicator",IF(OR(E10="",G10="",H10=""),"Incomplete data entered for target",IF(OR(AND(F10=1,D10>2),AND(F10=3,D10<3)),"Error: invalid expression for '"&E10&"'.",""))) -> Error: Update/enter a performance indicator
B11: 2 | C11: PT2 | D11: =IF(ISERROR(MATCH(E11,SELECT_PERFOEMANCETARGET,0)),0,MATCH(E11,SELECT_PERFOEMANCETARGET,0)) -> 0 | F11: =IF(ISERROR(MATCH(G11,LIST_EXPRESSIONS,0)),0,MATCH(G11,LIST_EXPRESSIONS,0)) -> 0 | I11: Error: Update/enter a performance indicator

Sheet 7 - Scenario (hidden)
B3: SCENARIOS
F6: =TEXT((COLUMN()-5),"0") -> 1 | G6: =TEXT((COLUMN()-5),"0") -> 2 | H6: 3 | I6: 4 | J6: 5 | K6: 6 | L6: 7 | M6: 8 | N6: 9 | O6: 10 | P6: 11 | Q6: 12 | R6: 13 | S6: 14 | T6: 15 | U6: 16 | V6: 17 | W6: 18 | X6: 19 | Y6: 20 | Z6: 21 | AA6: 22 | AB6: 23 | AC6: 24 | AD6: 25 | AE6: 26 | AF6: 27 | AG6: 28 | AH6: 29 | AI6: 30
B7: No. | C7: Homogeneous Group | D7: Scenario Name | E7: Criteria | F7: =TEXT(start_year+(COLUMN()-6),"0") -> 2020 | G7: 2021 | H7: 2022 | I7: 2023 | J7: 2024 | K7: 2025 | L7: 2026 | M7: 2027 | N7: 2028 | O7: 2029 | P7: 2030 | Q7: 2031 | R7: 2032 | S7: 2033 | T7: 2034 | U7: 2035 | V7: 2036 | W7: 2037 | X7: 2038 | Y7: 2039 | Z7: 2040 | AA7: 2041 | AB7: 2042 | AC7: 2043 | AD7: 2044 | AE7: 2045 | AF7: 2046 | AG7: 2047 | AH7: 2048 | AI7: 2049
B8: =1+B4 -> 1 | C8: =OFFSET(ASSET_GROUP_NAME,B8-1,0) -> MR | D8: Scenario 1 | E8: Transition matrix
E9: Treatment strategy
E10: Budget constraint
E11: Performance target
B12: =1+B8 -> 2 | C12: =OFFSET(ASSET_GROUP_NAME,B12-1,0) -> MU | D12: Scenario 2 | E12: Transition matrix
E13: Treatment strategy
E14: Budget constraint
E15: Performance target
B16: =1+B12 -> 3 | C16: =OFFSET(ASSET_GROUP_NAME,B16-1,0) -> DR | D16: Scenario 3 | E16: Transition matrix
E17: Treatment strategy
E18: Budget constraint
E19: Performance target
B20: =1+B16 -> 4 | C20: =OFFSET(ASSET_GROUP_NAME,B20-1,0) -> DU | D20: Scenario 4 | E20: Transition matrix
E21: Treatment strategy
E22: Budget constraint
E23: Performance target
B24: =1+B20 -> 5 | C24: =OFFSET(ASSET_GROUP_NAME,B24-1,0) -> SR | E24: Transition matrix
E25: Treatment strategy
E26: Budget constraint
E27: Performance target
B28: =1+B24 -> 6 | C28: =OFFSET(ASSET_GROUP_NAME,B28-1,0) -> SU | E28: Transition matrix
E29: Treatment strategy
E30: Budget constraint
E31: Performance target

Sheet 8 - Condition by Year (hidden)
B3: CONDITION BY YEAR
E6: Initial Distribution | F6: ="End of Year" -> End of Year
B7: Asset Group | C7: No. | D7: Cond | E7: =TEXT(start_year+(COLUMN()-5),"0") -> 2020 | F7: =TEXT(start_year+(COLUMN()-6),"0") -> 2020 | G7: 2021 | H7: 2022 | I7: 2023 | J7: 2024 | K7: 2025 | L7: 2026 | M7: 2027 | N7: 2028 | O7: 2029 | P7: 2030 | Q7: 2031 | R7: 2032 | S7: 2033 | T7: 2034 | U7: 2035 | V7: 2036 | W7: 2037 | X7: 2038 | Y7: 2039 | Z7: 2040 | AA7: 2041 | AB7: 2042 | AC7: 2043 | AD7: 2044 | AE7: 2045 | AF7: 2046 | AG7: 2047 | AH7: 2048 | AI7: 2049
A8: =INT((ROW()-8)/current_conditionBands)+1 -> 1 | B8: =OFFSET(ASSET_GROUP_NAME,A8-1,0) -> MR | C8: 1 | D8: =OFFSET(CONDITION_BAND_CODE,'8 - Condition by Year'!C8-1,0) -> G | E8: 0.2 | F8: 0.4 | G8: 0.38 | H8: 0.362 | I8: 0.3458 | J8: 0.33124 | K8: 0.318188 | L8: 0.3065312 | M8: 0.29616968 | N8: 0.287011984 | O8: 0.2789721488 | P8: 0.2719678131 | Q8: 0.2659191193 | R8: 0.2607481822 | S8: 0.2563789495 | T8: 0.2527373191 | U8: 0.2497514114 | V8: 0.2473519194 | W8: 0.2454724819 | X8: 0.244050041 | Y8: 0.2430251566 | Z8: 0.2430251566 | AA8: 0.2430251566 | AB8: 0.2430251566 | AC8: 0.2430251566 | AD8: 0.2430251566 | AE8: 0.2430251566 | AF8: 0.2430251566 | AG8: 0.2430251566 | AH8: 0.2430251566 | AI8: 0.2430251566
C9: =C8+1 -> 2 | D9: =OFFSET(CONDITION_BAND_CODE,'8 - Condition by Year'!C9-1,0) -> A | E9: 0.2 | F9: 0.2 | G9: 0.22 | H9: 0.236 | I9: 0.2486 | J9: 0.25832 | K9: 0.265612 | L9: 0.2708696 | M9: 0.27443576 | N9: 0.276609152 | O9: 0.2776494352 | P9: 0.2777817066 | Q9: 0.2772003172 | R9: 0.2760721974 | S9: 0.2745397959 | T9: 0.2727237113 | U9: 0.2707250721 | V9: 0.268627706 | W9: 0.2665001273 | X9: 0.2643973628 | Y9: 0.2623626306 | Z9: 0.2623626306 | AA9: 0.2623626306 | AB9: 0.2623626306 | AC9: 0.2623626306 | AD9: 0.2623626306 | AE9: 0.2623626306 | AF9: 0.2623626306 | AG9: 0.2623626306 | AH9: 0.2623626306 | AI9: 0.2623626306
C10: =C9+1 -> 3 | D10: =OFFSET(CONDITION_BAND_CODE,'8 - Condition by Year'!C10-1,0) -> R | E10: 0.2 | F10: 0.2 | G10: 0.2 | H10: 0.202 | I10: 0.2054 | J10: 0.20972 | K10: 0.21458 | L10: 0.2196832 | M10: 0.22480184 | N10: 0.229765232 | O10: 0.234449624 | P10: 0.2387696051 | Q10: 0.2426708153 | R10: 0.2461237655 | S10: 0.2491186087 | T10: 0.2516607274 | U10: 0.2537670258 | V10: 0.2554628304 | W10: 0.256779318 | X10: 0.2577513989 | Y10: 0.2584159953 | Z10: 0.2584159953 | AA10: 0.2584159953 | AB10: 0.2584159953 | AC10: 0.2584159953 | AD10: 0.2584159953 | AE10: 0.2584159953 | AF10: 0.2584159953 | AG10: 0.2584159953 | AH10: 0.2584159953 | AI10: 0.2584159953
A11: =INT((ROW()-8)/current_conditionBands)+1 -> 2 | B11: =OFFSET(ASSET_GROUP_NAME,A11-1,0) -> MU | C11: 1 | D11: =OFFSET(CONDITION_BAND_CODE,'8 - Condition by Year'!C11-1,0) -> G | E11: 0.2 | F11: 0.8 | G11: 0.82 | H11: 0.838 | I11: 0.8542 | J11: 0.86878 | K11: 0.881902 | L11: 0.8937118 | M11: 0.90434062 | N11: 0.913906558 | O11: 0.9225159022 | P11: 0.930264312 | Q11: 0.9372378808 | R11: 0.9435140927 | S11: 0.9491626834 | T11: 0.9542464151 | U11: 0.9588217736 | V11: 0.9629395962 | W11: 0.9666456366 | X11: 0.9699810729 | Y11: 0.9729829656 | Z11: 0.9729829656 | AA11: 0.9729829656 | AB11: 0.9729829656 | AC11: 0.9729829656 | AD11: 0.9729829656 | AE11: 0.9729829656 | AF11: 0.9729829656 | AG11: 0.9729829656 | AH11: 0.9729829656 | AI11: 0.9729829656
C12: =C11+1 -> 2 | D12: =OFFSET(CONDITION_BAND_CODE,'8 - Condition by Year'!C12-1,0) -> A | E12: 0.2 | F12: 0 | G12: 0 | H12: 0 | I12: 0 | J12: 0 | K12: 0 | L12: 0 | M12: 0 | N12: 0 | O12: 0 | P12: 0 | Q12: 0 | R12: 0 | S12: 0 | T12: 0 | U12: 0 | V12: 0 | W12: 0 | X12: 0 | Y12: 0 | Z12: 0 | AA12: 0 | AB12: 0 | AC12: 0 | AD12: 0 | AE12: 0 | AF12: 0 | AG12: 0 | AH12: 0 | AI12: 0
C13: =C12+1 -> 3 | D13: =OFFSET(CONDITION_BAND_CODE,'8 - Condition by Year'!C13-1,0) -> R | E13: 0.2 | F13: 0 | G13: 0 | H13: 0 | I13: 0 | J13: 0 | K13: 0 | L13: 0 | M13: 0 | N13: 0 | O13: 0 | P13: 0 | Q13: 0 | R13: 0 | S13: 0 | T13: 0 | U13: 0 | V13: 0 | W13: 0 | X13: 0 | Y13: 0 | Z13: 0 | AA13: 0 | AB13: 0 | AC13: 0 | AD13: 0 | AE13: 0 | AF13: 0 | AG13: 0 | AH13: 0 | AI13: 0
A14: =INT((ROW()-8)/current_conditionBands)+1 -> 3 | B14: =OFFSET(ASSET_GROUP_NAME,A14-1,0) -> DR | C14: 1 | D14: =OFFSET(CONDITION_BAND_CODE,'8 - Condition by Year'!C14-1,0) -> G | E14: 0.2 | F14: 0.3466666667 | G14: 0.3853333333 | H14: 0.3668 | I14: 0.35012 | J14: 0.3351226667 | K14: 0.3216685333 | L14: 0.30963968 | M14: 0.298932752 | N14: 0.2894540363 | O14: 0.2811161049 | P14: 0.273835636 | Q14: 0.2675321043 | R14: 0.2621270988 | S14: 0.2575440782 | T14: 0.2537084206 | U14: 0.2505476535 | V14: 0.2479917839 | W14: 0.2459736652 | X14: 0.2444293585 | Y14: 0.2432984591 | Z14: 0.2432984591 | AA14: 0.2432984591 | AB14: 0.2432984591 | AC14: 0.2432984591 | AD14: 0.2432984591 | AE14: 0.2432984591 | AF14: 0.2432984591 | AG14: 0.2432984591 | AH14: 0.2432984591 | AI14: 0.2432984591
C15: =C14+1 -> 2 | D15: =OFFSET(CONDITION_BAND_CODE,'8 - Condition by Year'!C15-1,0) -> A | E15: 0.2 | F15: 0.2 | G15: 0.2146666667 | H15: 0.2317333333 | I15: 0.24524 | J15: 0.255728 | K15: 0.2636674667 | L15: 0.2694675733 | M15: 0.273484784 | N15: 0.2760295808 | O15: 0.2773720263 | P15: 0.2777464342 | Q15: 0.2773553544 | R15: 0.2763730294 | S15: 0.2749484363 | T15: 0.2732080005 | U15: 0.2712580425 | V15: 0.2691870036 | W15: 0.2670674816 | X15: 0.2649581 | Y15: 0.2629052258 | Z15: 0.2629052258 | AA15: 0.2629052258 | AB15: 0.2629052258 | AC15: 0.2629052258 | AD15: 0.2629052258 | AE15: 0.2629052258 | AF15: 0.2629052258 | AG15: 0.2629052258 | AH15: 0.2629052258 | AI15: 0.2629052258
C16: =C15+1 -> 3 | D16: =OFFSET(CONDITION_BAND_CODE,'8 - Condition by Year'!C16-1,0) -> R | E16: 0.2 | F16: 0.2 | G16: 0.2 | H16: 0.2014666667 | I16: 0.2044933333 | J16: 0.208568 | K16: 0.213284 | L16: 0.2183223467 | M16: 0.2234368693 | N16: 0.2284416608 | O16: 0.2332004528 | P16: 0.2376176102 | Q16: 0.2416304926 | R16: 0.2452029787 | S16: 0.2483199838 | T16: 0.2509828291 | U16: 0.2532053462 | V16: 0.2550106158 | W16: 0.2564282546 | X16: 0.2574921773 | Y16: 0.2582387696 | Z16: 0.2582387696 | AA16: 0.2582387696 | AB16: 0.2582387696 | AC16: 0.2582387696 | AD16: 0.2582387696 | AE16: 0.2582387696 | AF16: 0.2582387696 | AG16: 0.2582387696 | AH16: 0.2582387696 | AI16: 0.2582387696
A17: =INT((ROW()-8)/current_conditionBands)+1 -> 4 | B17: =OFFSET(ASSET_GROUP_NAME,A17-1,0) -> DU | C17: 1 | D17: =OFFSET(CONDITION_BAND_CODE,'8 - Condition by Year'!C17-1,0) -> G | E17: 0.2 | F17: 0.2633333333 | G17: 0.3203333333 | H17: 0.3716333333 | I17: 0.36447 | J17: 0.3480293333 | K17: 0.3332555333 | L17: 0.3200104133 | M17: 0.308176812 | N17: 0.2976518069 | O17: 0.2883419341 | P17: 0.2801599335 | Q17: 0.2730226416 | R17: 0.2668497271 | S17: 0.2615630368 | T17: 0.2570863654 | U17: 0.2533455078 | V17: 0.2502684866 | W17: 0.2477858733 | X17: 0.2458311439 | Y17: 0.2443410278 | Z17: 0.2443410278 | AA17: 0.2443410278 | AB17: 0.2443410278 | AC17: 0.2443410278 | AD17: 0.2443410278 | AE17: 0.2443410278 | AF17: 0.2443410278 | AG17: 0.2443410278 | AH17: 0.2443410278 | AI17: 0.2443410278
C18: =C17+1 -> 2 | D18: =OFFSET(CONDITION_BAND_CODE,'8 - Condition by Year'!C18-1,0) -> A | E18: 0.2 | F18: 0.2 | G18: 0.2063333333 | H18: 0.2177333333 | I18: 0.2331233333 | J18: 0.246258 | K18: 0.2564351333 | L18: 0.2641171733 | M18: 0.2697064973 | N18: 0.2735535288 | O18: 0.2759633566 | P18: 0.2772012144 | Q18: 0.2774970863 | R18: 0.2770496418 | S18: 0.2760296503 | T18: 0.274582989 | U18: 0.2728333266 | V18: 0.2708845447 | W18: 0.2688229389 | X18: 0.2667192324 | Y18: 0.2646304235 | Z18: 0.2646304235 | AA18: 0.2646304235 | AB18: 0.2646304235 | AC18: 0.2646304235 | AD18: 0.2646304235 | AE18: 0.2646304235 | AF18: 0.2646304235 | AG18: 0.2646304235 | AH18: 0.2646304235 | AI18: 0.2646304235
C19: =C18+1 -> 3 | D19: =OFFSET(CONDITION_BAND_CODE,'8 - Condition by Year'!C19-1,0) -> R | E19: 0.2 | F19: 0.2 | G19: 0.2 | H19: 0.2006333333 | I19: 0.2023433333 | J19: 0.2054213333 | K19: 0.209505 | L19: 0.2141980133 | M19: 0.2191899293 | N19: 0.2242415861 | O19: 0.2291727804 | P19: 0.233851838 | Q19: 0.2381867757 | R19: 0.2421178067 | S19: 0.2456109902 | T19: 0.2486528562 | U19: 0.2512458695 | V19: 0.2534046152 | W19: 0.2551526082 | X19: 0.2565196413 | Y19: 0.2575396004 | Z19: 0.2575396004 | AA19: 0.2575396004 | AB19: 0.2575396004 | AC19: 0.2575396004 | AD19: 0.2575396004 | AE19: 0.2575396004 | AF19: 0.2575396004 | AG19: 0.2575396004 | AH19: 0.2575396004 | AI19: 0.2575396004
A20: =INT((ROW()-8)/current_conditionBands)+1 -> 5 | B20: =OFFSET(ASSET_GROUP_NAME,A20-1,0) -> SR | C20: 1 | D20: =OFFSET(CONDITION_BAND_CODE,'8 - Condition by Year'!C20-1,0) -> G
C21: =C20+1 -> 2 | D21: =OFFSET(CONDITION_BAND_CODE,'8 - Condition by Year'!C21-1,0) -> A
C22: =C21+1 -> 3 | D22: =OFFSET(CONDITION_BAND_CODE,'8 - Condition by Year'!C22-1,0) -> R
A23: =INT((ROW()-8)/current_conditionBands)+1 -> 6 | B23: =OFFSET(ASSET_GROUP_NAME,A23-1,0) -> SU | C23: 1 | D23: =OFFSET(CONDITION_BAND_CODE,'8 - Condition by Year'!C23-1,0) -> G
C24: =C23+1 -> 2 | D24: =OFFSET(CONDITION_BAND_CODE,'8 - Condition by Year'!C24-1,0) -> A
C25: =C24+1 -> 3 | D25: =OFFSET(CONDITION_BAND_CODE,'8 - Condition by Year'!C25-1,0) -> R

Sheet 9 - Condition Graph (hidden)
B3: CONDITION GRAPH
B6: Select Asset Group: | D6: Strategic & Main

Sheet 10 - Work Quantity (hidden)
B3: WORK QUANTITY
B5: Table of Work Quantities (m²) for Treatment Types by Asset Group
B6: Asset Group | C6: Num | D6: Treatment | E6: Total (m²) | F6: =TEXT(start_year+(COLUMN()-6),"0") -> 2020 | G6: 2021 | H6: 2022 | I6: 2023 | J6: 2024 | K6: 2025 | L6: 2026 | M6: 2027 | N6: 2028 | O6: 2029 | P6: 2030 | Q6: 2031 | R6: 2032 | S6: 2033 | T6: 2034 | U6: 2035 | V6: 2036 | W6: 2037 | X6: 2038 | Y6: 2039 | Z6: 2040 | AA6: 2041 | AB6: 2042 | AC6: 2043 | AD6: 2044 | AE6: 2045 | AF6: 2046 | AG6: 2047 | AH6: 2048 | AI6: 2049
A7: =INT((ROW()-7)/(current_treatmentTypes+1))+1 -> 1 | B7: =OFFSET(ASSET_GROUP_NAME,A7-1,0) -> MR | C7: 1 | D7: =OFFSET(TREATMENT_TYPE_NAME,'10 - Work Quantity'!C7-1,0) -> Treatment 1 | E7: =SUM(OFFSET(F7,0,0,1,analysis_period)) -> 0 | F7: 0 | G7: 0 | H7: 0 | I7: 0 | J7: 0 | K7: 0 | L7: 0 | M7: 0 | N7: 0 | O7: 0 | P7: 0 | Q7: 0 | R7: 0 | S7: 0 | T7: 0 | U7: 0 | V7: 0 | W7: 0 | X7: 0 | Y7: 0 | Z7: 0 | AA7: 0 | AB7: 0 | AC7: 0 | AD7: 0 | AE7: 0 | AF7: 0 | AG7: 0 | AH7: 0 | AI7: 0
C8: =C7+1 -> 2 | D8: =OFFSET(TREATMENT_TYPE_NAME,'10 - Work Quantity'!C8-1,0) -> Treatment 2 | E8: 0 | F8: 0 | G8: 0 | H8: 0 | I8: 0 | J8: 0 | K8: 0 | L8: 0 | M8: 0 | N8: 0 | O8: 0 | P8: 0 | Q8: 0 | R8: 0 | S8: 0 | T8: 0 | U8: 0 | V8: 0 | W8: 0 | X8: 0 | Y8: 0 | Z8: 0 | AA8: 0 | AB8: 0 | AC8: 0 | AD8: 0 | AE8: 0 | AF8: 0 | AG8: 0 | AH8: 0 | AI8: 0
D9: Total | E9: =SUM(OFFSET(E7,0,0,current_treatmentTypes,1)) -> 0 | F9: 0 | G9: 0 | H9: 0 | I9: 0 | J9: 0 | K9: 0 | L9: 0 | M9: 0 | N9: 0 | O9: 0 | P9: 0 | Q9: 0 | R9: 0 | S9: 0 | T9: 0 | U9: 0 | V9: 0 | W9: 0 | X9: 0 | Y9: 0 | Z9: =SUM(OFFSET(Z7,0,0,current_treatmentTypes,1)) -> 0 | AA9: =SUM(OFFSET(AA7,0,0,current_treatmentTypes,1)) -> 0 | AB9: =SUM(OFFSET(AB7,0,0,current_treatmentTypes,1)) -> 0 | AC9: =SUM(OFFSET(AC7,0,0,current_treatmentTypes,1)) -> 0 | AD9: =SUM(OFFSET(AD7,0,0,current_treatmentTypes,1)) -> 0 | AE9: =SUM(OFFSET(AE7,0,0,current_treatmentTypes,1)) -> 0 | AF9: =SUM(OFFSET(AF7,0,0,current_treatmentTypes,1)) -> 0 | AG9: =SUM(OFFSET(AG7,0,0,current_treatmentTypes,1)) -> 0 | AH9: =SUM(OFFSET(AH7,0,0,current_treatmentTypes,1)) -> 0 | AI9: =SUM(OFFSET(AI7,0,0,current_treatmentTypes,1)) -> 0
A10: =INT((ROW()-7)/(current_treatmentTypes+1))+1 -> 2 | B10: =OFFSET(ASSET_GROUP_NAME,A10-1,0) -> MU | C10: 1 | D10: =OFFSET(TREATMENT_TYPE_NAME,'10 - Work Quantity'!C10-1,0) -> Treatment 1 | E10: =SUM(OFFSET(F10,0,0,1,analysis_period)) -> 8204994.322 | F10: 114000 | G10: 240000 | H10: 246000 | I10: 251400 | J10: 256260 | K10: 260634 | L10: 264570.6 | M10: 268113.54 | N10: 271302.186 | O10: 274171.9674 | P10: 276754.7707 | Q10: 279079.2936 | R10: 281171.3642 | S10: 283054.2278 | T10: 284748.805 | U10: 286273.9245 | V10: 287646.5321 | W10: 288881.8789 | X10: 289993.691 | Y10: 290994.3219 | Z10: 290994.3219 | AA10: 290994.3219 | AB10: 290994.3219 | AC10: 290994.3219 | AD10: 290994.3219 | AE10: 290994.3219 | AF10: 290994.3219 | AG10: 290994.3219 | AH10: 290994.3219 | AI10: 290994.3219
C11: =C10+1 -> 2 | D11: =OFFSET(TREATMENT_TYPE_NAME,'10 - Work Quantity'!C11-1,0) -> Treatment 2 | E11: 0 | F11: 0 | G11: 0 | H11: 0 | I11: 0 | J11: 0 | K11: 0 | L11: 0 | M11: 0 | N11: 0 | O11: 0 | P11: 0 | Q11: 0 | R11: 0 | S11: 0 | T11: 0 | U11: 0 | V11: 0 | W11: 0 | X11: 0 | Y11: 0 | Z11: 0 | AA11: 0 | AB11: 0 | AC11: 0 | AD11: 0 | AE11: 0 | AF11: 0 | AG11: 0 | AH11: 0 | AI11: 0
D12: Total | E12: =SUM(OFFSET(E10,0,0,current_treatmentTypes,1)) -> 8204994.322 | F12: 114000 | G12: 240000 | H12: 246000 | I12: 251400 | J12: 256260 | K12: 260634 | L12: 264570.6 | M12: 268113.54 | N12: 271302.186 | O12: 274171.9674 | P12: 276754.7707 | Q12: 279079.2936 | R12: 281171.3642 | S12: 283054.2278 | T12: 284748.805 | U12: 286273.9245 | V12: 287646.5321 | W12: 288881.8789 | X12: 289993.691 | Y12: 290994.3219 | Z12: =SUM(OFFSET(Z10,0,0,current_treatmentTypes,1)) -> 290994.3219 | AA12: =SUM(OFFSET(AA10,0,0,current_treatmentTypes,1)) -> 290994.3219 | AB12: =SUM(OFFSET(AB10,0,0,current_treatmentTypes,1)) -> 290994.3219 | AC12: =SUM(OFFSET(AC10,0,0,current_treatmentTypes,1)) -> 290994.3219 | AD12: =SUM(OFFSET(AD10,0,0,current_treatmentTypes,1)) -> 290994.3219 | AE12: =SUM(OFFSET(AE10,0,0,current_treatmentTypes,1)) -> 290994.3219 | AF12: =SUM(OFFSET(AF10,0,0,current_treatmentTypes,1)) -> 290994.3219 | AG12: =SUM(OFFSET(AG10,0,0,current_treatmentTypes,1)) -> 290994.3219 | AH12: =SUM(OFFSET(AH10,0,0,current_treatmentTypes,1)) -> 290994.3219 | AI12: =SUM(OFFSET(AI10,0,0,current_treatmentTypes,1)) -> 290994.3219
A13: =INT((ROW()-7)/(current_treatmentTypes+1))+1 -> 3 | B13: =OFFSET(ASSET_GROUP_NAME,A13-1,0) -> DR | C13: 1 | D13: =OFFSET(TREATMENT_TYPE_NAME,'10 - Work Quantity'!C13-1,0) -> Treatment 1 | E13: =SUM(OFFSET(F13,0,0,1,analysis_period)) -> 0 | F13: 0 | G13: 0 | H13: 0 | I13: 0 | J13: 0 | K13: 0 | L13: 0 | M13: 0 | N13: 0 | O13: 0 | P13: 0 | Q13: 0 | R13: 0 | S13: 0 | T13: 0 | U13: 0 | V13: 0 | W13: 0 | X13: 0 | Y13: 0 | Z13: 0 | AA13: 0 | AB13: 0 | AC13: 0 | AD13: 0 | AE13: 0 | AF13: 0 | AG13: 0 | AH13: 0 | AI13: 0
C14: =C13+1 -> 2 | D14: =OFFSET(TREATMENT_TYPE_NAME,'10 - Work Quantity'!C14-1,0) -> Treatment 2 | E14: 0 | F14: 0 | G14: 0 | H14: 0 | I14: 0 | J14: 0 | K14: 0 | L14: 0 | M14: 0 | N14: 0 | O14: 0 | P14: 0 | Q14: 0 | R14: 0 | S14: 0 | T14: 0 | U14: 0 | V14: 0 | W14: 0 | X14: 0 | Y14: 0 | Z14: 0 | AA14: 0 | AB14: 0 | AC14: 0 | AD14: 0 | AE14: 0 | AF14: 0 | AG14: 0 | AH14: 0 | AI14: 0
D15: Total | E15: =SUM(OFFSET(E13,0,0,current_treatmentTypes,1)) -> 0 | F15: 0 | G15: 0 | H15: 0 | I15: 0 | J15: 0 | K15: 0 | L15: 0 | M15: 0 | N15: 0 | O15: 0 | P15: 0 | Q15: 0 | R15: 0 | S15: 0 | T15: 0 | U15: 0 | V15: 0 | W15: 0 | X15: 0 | Y15: 0 | Z15: =SUM(OFFSET(Z13,0,0,current_treatmentTypes,1)) -> 0 | AA15: =SUM(OFFSET(AA13,0,0,current_treatmentTypes,1)) -> 0 | AB15: =SUM(OFFSET(AB13,0,0,current_treatmentTypes,1)) -> 0 | AC15: =SUM(OFFSET(AC13,0,0,current_treatmentTypes,1)) -> 0 | AD15: =SUM(OFFSET(AD13,0,0,current_treatmentTypes,1)) -> 0 | AE15: =SUM(OFFSET(AE13,0,0,current_treatmentTypes,1)) -> 0 | AF15: =SUM(OFFSET(AF13,0,0,current_treatmentTypes,1)) -> 0 | AG15: =SUM(OFFSET(AG13,0,0,current_treatmentTypes,1)) -> 0 | AH15: =SUM(OFFSET(AH13,0,0,current_treatmentTypes,1)) -> 0 | AI15: =SUM(OFFSET(AI13,0,0,current_treatmentTypes,1)) -> 0
A16: =INT((ROW()-7)/(current_treatmentTypes+1))+1 -> 4 | B16: =OFFSET(ASSET_GROUP_NAME,A16-1,0) -> DU | C16: 1 | D16: =OFFSET(TREATMENT_TYPE_NAME,'10 - Work Quantity'!C16-1,0) -> Treatment 1 | E16: =SUM(OFFSET(F16,0,0,1,analysis_period)) -> 0 | F16: 0 | G16: 0 | H16: 0 | I16: 0 | J16: 0 | K16: 0 | L16: 0 | M16: 0 | N16: 0 | O16: 0 | P16: 0 | Q16: 0 | R16: 0 | S16: 0 | T16: 0 | U16: 0 | V16: 0 | W16: 0 | X16: 0 | Y16: 0 | Z16: 0 | AA16: 0 | AB16: 0 | AC16: 0 | AD16: 0 | AE16: 0 | AF16: 0 | AG16: 0 | AH16: 0 | AI16: 0
C17: =C16+1 -> 2 | D17: =OFFSET(TREATMENT_TYPE_NAME,'10 - Work Quantity'!C17-1,0) -> Treatment 2 | E17: 0 | F17: 0 | G17: 0 | H17: 0 | I17: 0 | J17: 0 | K17: 0 | L17: 0 | M17: 0 | N17: 0 | O17: 0 | P17: 0 | Q17: 0 | R17: 0 | S17: 0 | T17: 0 | U17: 0 | V17: 0 | W17: 0 | X17: 0 | Y17: 0 | Z17: 0 | AA17: 0 | AB17: 0 | AC17: 0 | AD17: 0 | AE17: 0 | AF17: 0 | AG17: 0 | AH17: 0 | AI17: 0
D18: Total | E18: =SUM(OFFSET(E16,0,0,current_treatmentTypes,1)) -> 0 | F18: 0 | G18: 0 | H18: 0 | I18: 0 | J18: 0 | K18: 0 | L18: 0 | M18: 0 | N18: 0 | O18: 0 | P18: 0 | Q18: 0 | R18: 0 | S18: 0 | T18: 0 | U18: 0 | V18: 0 | W18: 0 | X18: 0 | Y18: 0 | Z18: =SUM(OFFSET(Z16,0,0,current_treatmentTypes,1)) -> 0 | AA18: =SUM(OFFSET(AA16,0,0,current_treatmentTypes,1)) -> 0 | AB18: =SUM(OFFSET(AB16,0,0,current_treatmentTypes,1)) -> 0 | AC18: =SUM(OFFSET(AC16,0,0,current_treatmentTypes,1)) -> 0 | AD18: =SUM(OFFSET(AD16,0,0,current_treatmentTypes,1)) -> 0 | AE18: =SUM(OFFSET(AE16,0,0,current_treatmentTypes,1)) -> 0 | AF18: =SUM(OFFSET(AF16,0,0,current_treatmentTypes,1)) -> 0 | AG18: =SUM(OFFSET(AG16,0,0,current_treatmentTypes,1)) -> 0 | AH18: =SUM(OFFSET(AH16,0,0,current_treatmentTypes,1)) -> 0 | AI18: =SUM(OFFSET(AI16,0,0,current_treatmentTypes,1)) -> 0
A19: =INT((ROW()-7)/(current_treatmentTypes+1))+1 -> 5 | B19: =OFFSET(ASSET_GROUP_NAME,A19-1,0) -> SR | C19: 1 | D19: =OFFSET(TREATMENT_TYPE_NAME,'10 - Work Quantity'!C19-1,0) -> Treatment 1 | E19: =SUM(OFFSET(F19,0,0,1,analysis_period)) -> 0
C20: =C19+1 -> 2 | D20: =OFFSET(TREATMENT_TYPE_NAME,'10 - Work Quantity'!C20-1,0) -> Treatment 2 | E20: 0
D21: Total | E21: =SUM(OFFSET(E19,0,0,current_treatmentTypes,1)) -> 0 | F21: 0 | G21: 0 | H21: 0 | I21: 0 | J21: 0 | K21: 0 | L21: 0 | M21: 0 | N21: 0 | O21: 0 | P21: 0 | Q21: 0 | R21: 0 | S21: 0 | T21: 0 | U21: 0 | V21: 0 | W21: 0 | X21: 0 | Y21: 0 | Z21: =SUM(OFFSET(Z19,0,0,current_treatmentTypes,1)) -> 0 | AA21: =SUM(OFFSET(AA19,0,0,current_treatmentTypes,1)) -> 0 | AB21: =SUM(OFFSET(AB19,0,0,current_treatmentTypes,1)) -> 0 | AC21: =SUM(OFFSET(AC19,0,0,current_treatmentTypes,1)) -> 0 | AD21: =SUM(OFFSET(AD19,0,0,current_treatmentTypes,1)) -> 0 | AE21: =SUM(OFFSET(AE19,0,0,current_treatmentTypes,1)) -> 0 | AF21: =SUM(OFFSET(AF19,0,0,current_treatmentTypes,1)) -> 0 | AG21: =SUM(OFFSET(AG19,0,0,current_treatmentTypes,1)) -> 0 | AH21: =SUM(OFFSET(AH19,0,0,current_treatmentTypes,1)) -> 0 | AI21: =SUM(OFFSET(AI19,0,0,current_treatmentTypes,1)) -> 0
A22: =INT((ROW()-7)/(current_treatmentTypes+1))+1 -> 6 | B22: =OFFSET(ASSET_GROUP_NAME,A22-1,0) -> SU | C22: 1 | D22: =OFFSET(TREATMENT_TYPE_NAME,'10 - Work Quantity'!C22-1,0) -> Treatment 1 | E22: =SUM(OFFSET(F22,0,0,1,analysis_period)) -> 0
C23: =C22+1 -> 2 | D23: =OFFSET(TREATMENT_TYPE_NAME,'10 - Work Quantity'!C23-1,0) -> Treatment 2 | E23: 0
D24: Total | E24: =SUM(OFFSET(E22,0,0,current_treatmentTypes,1)) -> 0 | F24: 0 | G24: 0 | H24: 0 | I24: 0 | J24: 0 | K24: 0 | L24: 0 | M24: 0 | N24: 0 | O24: 0 | P24: 0 | Q24: 0 | R24: 0 | S24: 0 | T24: 0 | U24: 0 | V24: 0 | W24: 0 | X24: 0 | Y24: 0 | Z24: =SUM(OFFSET(Z22,0,0,current_treatmentTypes,1)) -> 0 | AA24: =SUM(OFFSET(AA22,0,0,current_treatmentTypes,1)) -> 0 | AB24: =SUM(OFFSET(AB22,0,0,current_treatmentTypes,1)) -> 0 | AC24: =SUM(OFFSET(AC22,0,0,current_treatmentTypes,1)) -> 0 | AD24: =SUM(OFFSET(AD22,0,0,current_treatmentTypes,1)) -> 0 | AE24: =SUM(OFFSET(AE22,0,0,current_treatmentTypes,1)) -> 0 | AF24: =SUM(OFFSET(AF22,0,0,current_treatmentTypes,1)) -> 0 | AG24: =SUM(OFFSET(AG22,0,0,current_treatmentTypes,1)) -> 0 | AH24: =SUM(OFFSET(AH22,0,0,current_treatmentTypes,1)) -> 0 | AI24: =SUM(OFFSET(AI22,0,0,current_treatmentTypes,1)) -> 0

Sheet 11 - Work Qty Graph (hidden)
B3: WORK QUANTITY GRAPH
B6: Select Asset Group: | D6: New Asset Grp 1

Sheet 12 - Exp by Condition Band (hidden)
B3: EXPENDITURE BY CONDITION BAND
B5: Table of Expenditure (£) in each Condition Band for Asset Groups
B6: Asset Group | C6: No. | D6: Condition Band | E6: Analysis Period Total (£) | F6: =TEXT(start_year+(COLUMN()-6),"0") -> 2020 | G6: 2021 | H6: 2022 | I6: 2023 | J6: 2024 | K6: 2025 | L6: 2026 | M6: 2027 | N6: 2028 | O6: 2029 | P6: 2030 | Q6: 2031 | R6: 2032 | S6: 2033 | T6: 2034 | U6: 2035 | V6: 2036 | W6: 2037 | X6: 2038 | Y6: 2039 | Z6: 2040 | AA6: 2041 | AB6: 2042 | AC6: 2043 | AD6: 2044 | AE6: 2045 | AF6: 2046 | AG6: 2047 | AH6: 2048 | AI6: 2049
A7: =INT((ROW()-7)/(current_conditionBands+2))+1 -> 1 | B7: =OFFSET(ASSET_GROUP_NAME,A7-1,0) -> MR | C7: 1 | D7: =OFFSET(CONDITION_BAND_CODE,C7-1,0) -> G | E7: =SUM(OFFSET(F7,0,0,1,analysis_period)) -> 0 | F7: 0 | G7: 0 | H7: 0 | I7: 0 | J7: 0 | K7: 0 | L7: 0 | M7: 0 | N7: 0 | O7: 0 | P7: 0 | Q7: 0 | R7: 0 | S7: 0 | T7: 0 | U7: 0 | V7: 0 | W7: 0 | X7: 0 | Y7: 0 | Z7: 0 | AA7: 0 | AB7: 0 | AC7: 0 | AD7: 0 | AE7: 0 | AF7: 0 | AG7: 0 | AH7: 0 | AI7: 0
C8: =C7+1 -> 2 | D8: =OFFSET(CONDITION_BAND_CODE,C8-1,0) -> A | E8: =SUM(OFFSET(F8,0,0,1,analysis_period)) -> 0 | F8: 0 | G8: 0 | H8: 0 | I8: 0 | J8: 0 | K8: 0 | L8: 0 | M8: 0 | N8: 0 | O8: 0 | P8: 0 | Q8: 0 | R8: 0 | S8: 0 | T8: 0 | U8: 0 | V8: 0 | W8: 0 | X8: 0 | Y8: 0 | Z8: 0 | AA8: 0 | AB8: 0 | AC8: 0 | AD8: 0 | AE8: 0 | AF8: 0 | AG8: 0 | AH8: 0 | AI8: 0
C9: =C8+1 -> 3 | D9: =OFFSET(CONDITION_BAND_CODE,C9-1,0) -> R | E9: =SUM(OFFSET(F9,0,0,1,analysis_period)) -> 0 | F9: 0 | G9: 0 | H9: 0 | I9: 0 | J9: 0 | K9: 0 | L9: 0 | M9: 0 | N9: 0 | O9: 0 | P9: 0 | Q9: 0 | R9: 0 | S9: 0 | T9: 0 | U9: 0 | V9: 0 | W9: 0 | X9: 0 | Y9: 0 | Z9: 0 | AA9: 0 | AB9: 0 | AC9: 0 | AD9: 0 | AE9: 0 | AF9: 0 | AG9: 0 | AH9: 0 | AI9: 0
D10: Total | E10: =SUM(OFFSET(E7,0,0,current_conditionBands,1)) -> 0 | F10: 0 | G10: 0 | H10: 0 | I10: 0 | J10: 0 | K10: 0 | L10: 0 | M10: 0 | N10: 0 | O10: 0 | P10: 0 | Q10: 0 | R10: 0 | S10: 0 | T10: 0 | U10: 0 | V10: 0 | W10: 0 | X10: 0 | Y10: 0 | Z10: 0 | AA10: 0 | AB10: 0 | AC10: 0 | AD10: 0 | AE10: 0 | AF10: 0 | AG10: 0 | AH10: 0 | AI10: 0
D11: Cumulative | E11: =E10 -> 0 | F11: =F10 -> 0 | G11: =OFFSET(G10,1,-1)+G10 -> 0 | H11: 0 | I11: 0 | J11: 0 | K11: 0 | L11: 0 | M11: 0 | N11: 0 | O11: 0 | P11: 0 | Q11: 0 | R11: 0 | S11: 0 | T11: 0 | U11: 0 | V11: 0 | W11: 0 | X11: 0 | Y11: 0 | Z11: =OFFSET(Z10,1,-1)+Z10 -> 0 | AA11: =OFFSET(AA10,1,-1)+AA10 -> 0 | AB11: =OFFSET(AB10,1,-1)+AB10 -> 0 | AC11: =OFFSET(AC10,1,-1)+AC10 -> 0 | AD11: =OFFSET(AD10,1,-1)+AD10 -> 0 | AE11: =OFFSET(AE10,1,-1)+AE10 -> 0 | AF11: =OFFSET(AF10,1,-1)+AF10 -> 0 | AG11: =OFFSET(AG10,1,-1)+AG10 -> 0 | AH11: =OFFSET(AH10,1,-1)+AH10 -> 0 | AI11: =OFFSET(AI10,1,-1)+AI10 -> 0
A12: =INT((ROW()-7)/(current_conditionBands+2))+1 -> 2 | B12: =OFFSET(ASSET_GROUP_NAME,A12-1,0) -> MU | C12: 1 | D12: =OFFSET(CONDITION_BAND_CODE,C12-1,0) -> G | E12: =SUM(OFFSET(F12,0,0,1,analysis_period)) -> 7335894.89 | F12: 54000 | G12: 216000 | H12: 221400 | I12: 226260 | J12: 230634 | K12: 234570.6 | L12: 238113.54 | M12: 241302.186 | N12: 244171.9674 | O12: 246754.7707 | P12: 249079.2936 | Q12: 251171.3642 | R12: 253054.2278 | S12: 254748.805 | T12: 256273.9245 | U12: 257646.5321 | V12: 258881.8789 | W12: 259993.691 | X12: 260994.3219 | Y12: 261894.8897 | Z12: 261894.8897 | AA12: 261894.8897 | AB12: 261894.8897 | AC12: 261894.8897 | AD12: 261894.8897 | AE12: 261894.8897 | AF12: 261894.8897 | AG12: 261894.8897 | AH12: 261894.8897 | AI12: 261894.8897
C13: =C12+1 -> 2 | D13: =OFFSET(CONDITION_BAND_CODE,C13-1,0) -> A | E13: =SUM(OFFSET(F13,0,0,1,analysis_period)) -> 869099.4322 | F13: 60000 | G13: 24000 | H13: 24600 | I13: 25140 | J13: 25626 | K13: 26063.4 | L13: 26457.06 | M13: 26811.354 | N13: 27130.2186 | O13: 27417.19674 | P13: 27675.47707 | Q13: 27907.92936 | R13: 28117.13642 | S13: 28305.42278 | T13: 28474.8805 | U13: 28627.39245 | V13: 28764.65321 | W13: 28888.18789 | X13: 28999.3691 | Y13: 29099.43219 | Z13: 29099.43219 | AA13: 29099.43219 | AB13: 29099.43219 | AC13: 29099.43219 | AD13: 29099.43219 | AE13: 29099.43219 | AF13: 29099.43219 | AG13: 29099.43219 | AH13: 29099.43219 | AI13: 29099.43219
C14: =C13+1 -> 3 | D14: =OFFSET(CONDITION_BAND_CODE,C14-1,0) -> R | E14: =SUM(OFFSET(F14,0,0,1,analysis_period)) -> 60000 | F14: 60000 | G14: 0 | H14: 0 | I14: 0 | J14: 0 | K14: 0 | L14: 0 | M14: 0 | N14: 0 | O14: 0 | P14: 0 | Q14: 0 | R14: 0 | S14: 0 | T14: 0 | U14: 0 | V14: 0 | W14: 0 | X14: 0 | Y14: 0 | Z14: 0 | AA14: 0 | AB14: 0 | AC14: 0 | AD14: 0 | AE14: 0 | AF14: 0 | AG14: 0 | AH14: 0 | AI14: 0
D15: Total | E15: =SUM(OFFSET(E12,0,0,current_conditionBands,1)) -> 8264994.322 | F15: 174000 | G15: 240000 | H15: 246000 | I15: 251400 | J15: 256260 | K15: 260634 | L15: 264570.6 | M15: 268113.54 | N15: 271302.186 | O15: 274171.9674 | P15: 276754.7707 | Q15: 279079.2936 | R15: 281171.3642 | S15: 283054.2278 | T15: 284748.805 | U15: 286273.9245 | V15: 287646.5321 | W15: 288881.8789 | X15: 289993.691 | Y15: 290994.3219 | Z15: 290994.3219 | AA15: 290994.3219 | AB15: 290994.3219 | AC15: 290994.3219 | AD15: 290994.3219 | AE15: 290994.3219 | AF15: 290994.3219 | AG15: 290994.3219 | AH15: 290994.3219 | AI15: 290994.3219
D16: Cumulative | E16: =E15 -> 8264994.322 | F16: =F15 -> 174000 | G16: =OFFSET(G15,1,-1)+G15 -> 414000 | H16: 660000 | I16: 911400 | J16: 1167660 | K16: 1428294 | L16: 1692864.6 | M16: 1960978.14 | N16: 2232280.326 | O16: 2506452.293 | P16: 2783207.064 | Q16: 3062286.358 | R16: 3343457.722 | S16: 3626511.95 | T16: 3911260.755 | U16: 4197534.679 | V16: 4485181.211 | W16: 4774063.09 | X16: 5064056.781 | Y16: 5355051.103 | Z16: =OFFSET(Z15,1,-1)+Z15 -> 5646045.425 | AA16: =OFFSET(AA15,1,-1)+AA15 -> 5937039.747 | AB16: =OFFSET(AB15,1,-1)+AB15 -> 6228034.069 | AC16: =OFFSET(AC15,1,-1)+AC15 -> 6519028.391 | AD16: =OFFSET(AD15,1,-1)+AD15 -> 6810022.712 | AE16: =OFFSET(AE15,1,-1)+AE15 -> 7101017.034 | AF16: =OFFSET(AF15,1,-1)+AF15 -> 7392011.356 | AG16: =OFFSET(AG15,1,-1)+AG15 -> 7683005.678 | AH16: =OFFSET(AH15,1,-1)+AH15 -> 7974000 | AI16: =OFFSET(AI15,1,-1)+AI15 -> 8264994.322
A17: =INT((ROW()-7)/(current_conditionBands+2))+1 -> 3 | B17: =OFFSET(ASSET_GROUP_NAME,A17-1,0) -> DR | C17: 1 | D17: =OFFSET(CONDITION_BAND_CODE,C17-1,0) -> G | E17: =SUM(OFFSET(F17,0,0,1,analysis_period)) -> 0 | F17: 0 | G17: 0 | H17: 0 | I17: 0 | J17: 0 | K17: 0 | L17: 0 | M17: 0 | N17: 0 | O17: 0 | P17: 0 | Q17: 0 | R17: 0 | S17: 0 | T17: 0 | U17: 0 | V17: 0 | W17: 0 | X17: 0 | Y17: 0 | Z17: 0 | AA17: 0 | AB17: 0 | AC17: 0 | AD17: 0 | AE17: 0 | AF17: 0 | AG17: 0 | AH17: 0 | AI17: 0
C18: =C17+1 -> 2 | D18: =OFFSET(CONDITION_BAND_CODE,C18-1,0) -> A | E18: =SUM(OFFSET(F18,0,0,1,analysis_period)) -> 0 | F18: 0 | G18: 0 | H18: 0 | I18: 0 | J18: 0 | K18: 0 | L18: 0 | M18: 0 | N18: 0 | O18: 0 | P18: 0 | Q18: 0 | R18: 0 | S18: 0 | T18: 0 | U18: 0 | V18: 0 | W18: 0 | X18: 0 | Y18: 0 | Z18: 0 | AA18: 0 | AB18: 0 | AC18: 0 | AD18: 0 | AE18: 0 | AF18: 0 | AG18: 0 | AH18: 0 | AI18: 0
C19: =C18+1 -> 3 | D19: =OFFSET(CONDITION_BAND_CODE,C19-1,0) -> R | E19: =SUM(OFFSET(F19,0,0,1,analysis_period)) -> 0 | F19: 0 | G19: 0 | H19: 0 | I19: 0 | J19: 0 | K19: 0 | L19: 0 | M19: 0 | N19: 0 | O19: 0 | P19: 0 | Q19: 0 | R19: 0 | S19: 0 | T19: 0 | U19: 0 | V19: 0 | W19: 0 | X19: 0 | Y19: 0 | Z19: 0 | AA19: 0 | AB19: 0 | AC19: 0 | AD19: 0 | AE19: 0 | AF19: 0 | AG19: 0 | AH19: 0 | AI19: 0
D20: Total | E20: =SUM(OFFSET(E17,0,0,current_conditionBands,1)) -> 0 | F20: 0 | G20: 0 | H20: 0 | I20: 0 | J20: 0 | K20: 0 | L20: 0 | M20: 0 | N20: 0 | O20: 0 | P20: 0 | Q20: 0 | R20: 0 | S20: 0 | T20: 0 | U20: 0 | V20: 0 | W20: 0 | X20: 0 | Y20: 0 | Z20: 0 | AA20: 0 | AB20: 0 | AC20: 0 | AD20: 0 | AE20: 0 | AF20: 0 | AG20: 0 | AH20: 0 | AI20: 0
D21: Cumulative | E21: =E20 -> 0 | F21: =F20 -> 0 | G21: =OFFSET(G20,1,-1)+G20 -> 0 | H21: 0 | I21: 0 | J21: 0 | K21: 0 | L21: 0 | M21: 0 | N21: 0 | O21: 0 | P21: 0 | Q21: 0 | R21: 0 | S21: 0 | T21: 0 | U21: 0 | V21: 0 | W21: 0 | X21: 0 | Y21: 0 | Z21: =OFFSET(Z20,1,-1)+Z20 -> 0 | AA21: =OFFSET(AA20,1,-1)+AA20 -> 0 | AB21: =OFFSET(AB20,1,-1)+AB20 -> 0 | AC21: =OFFSET(AC20,1,-1)+AC20 -> 0 | AD21: =OFFSET(AD20,1,-1)+AD20 -> 0 | AE21: =OFFSET(AE20,1,-1)+AE20 -> 0 | AF21: =OFFSET(AF20,1,-1)+AF20 -> 0 | AG21: =OFFSET(AG20,1,-1)+AG20 -> 0 | AH21: =OFFSET(AH20,1,-1)+AH20 -> 0 | AI21: =OFFSET(AI20,1,-1)+AI20 -> 0
A22: =INT((ROW()-7)/(current_conditionBands+2))+1 -> 4 | B22: =OFFSET(ASSET_GROUP_NAME,A22-1,0) -> DU | C22: 1 | D22: =OFFSET(CONDITION_BAND_CODE,C22-1,0) -> G | E22: =SUM(OFFSET(F22,0,0,1,analysis_period)) -> 0 | F22: 0 | G22: 0 | H22: 0 | I22: 0 | J22: 0 | K22: 0 | L22: 0 | M22: 0 | N22: 0 | O22: 0 | P22: 0 | Q22: 0 | R22: 0 | S22: 0 | T22: 0 | U22: 0 | V22: 0 | W22: 0 | X22: 0 | Y22: 0 | Z22: 0 | AA22: 0 | AB22: 0 | AC22: 0 | AD22: 0 | AE22: 0 | AF22: 0 | AG22: 0 | AH22: 0 | AI22: 0
C23: =C22+1 -> 2 | D23: =OFFSET(CONDITION_BAND_CODE,C23-1,0) -> A | E23: =SUM(OFFSET(F23,0,0,1,analysis_period)) -> 0 | F23: 0 | G23: 0 | H23: 0 | I23: 0 | J23: 0 | K23: 0 | L23: 0 | M23: 0 | N23: 0 | O23: 0 | P23: 0 | Q23: 0 | R23: 0 | S23: 0 | T23: 0 | U23: 0 | V23: 0 | W23: 0 | X23: 0 | Y23: 0 | Z23: 0 | AA23: 0 | AB23: 0 | AC23: 0 | AD23: 0 | AE23: 0 | AF23: 0 | AG23: 0 | AH23: 0 | AI23: 0
C24: =C23+1 -> 3 | D24: =OFFSET(CONDITION_BAND_CODE,C24-1,0) -> R | E24: =SUM(OFFSET(F24,0,0,1,analysis_period)) -> 0 | F24: 0 | G24: 0 | H24: 0 | I24: 0 | J24: 0 | K24: 0 | L24: 0 | M24: 0 | N24: 0 | O24: 0 | P24: 0 | Q24: 0 | R24: 0 | S24: 0 | T24: 0 | U24: 0 | V24: 0 | W24: 0 | X24: 0 | Y24: 0 | Z24: 0 | AA24: 0 | AB24: 0 | AC24: 0 | AD24: 0 | AE24: 0 | AF24: 0 | AG24: 0 | AH24: 0 | AI24: 0
D25: Total | E25: =SUM(OFFSET(E22,0,0,current_conditionBands,1)) -> 0 | F25: 0 | G25: 0 | H25: 0 | I25: 0 | J25: 0 | K25: 0 | L25: 0 | M25: 0 | N25: 0 | O25: 0 | P25: 0 | Q25: 0 | R25: 0 | S25: 0 | T25: 0 | U25: 0 | V25: 0 | W25: 0 | X25: 0 | Y25: 0 | Z25: 0 | AA25: 0 | AB25: 0 | AC25: 0 | AD25: 0 | AE25: 0 | AF25: 0 | AG25: 0 | AH25: 0 | AI25: 0
D26: Cumulative | E26: =E25 -> 0 | F26: =F25 -> 0 | G26: =OFFSET(G25,1,-1)+G25 -> 0 | H26: 0 | I26: 0 | J26: 0 | K26: 0 | L26: 0 | M26: 0 | N26: 0 | O26: 0 | P26: 0 | Q26: 0 | R26: 0 | S26: 0 | T26: 0 | U26: 0 | V26: 0 | W26: 0 | X26: 0 | Y26: 0 | Z26: =OFFSET(Z25,1,-1)+Z25 -> 0 | AA26: =OFFSET(AA25,1,-1)+AA25 -> 0 | AB26: =OFFSET(AB25,1,-1)+AB25 -> 0 | AC26: =OFFSET(AC25,1,-1)+AC25 -> 0 | AD26: =OFFSET(AD25,1,-1)+AD25 -> 0 | AE26: =OFFSET(AE25,1,-1)+AE25 -> 0 | AF26: =OFFSET(AF25,1,-1)+AF25 -> 0 | AG26: =OFFSET(AG25,1,-1)+AG25 -> 0 | AH26: =OFFSET(AH25,1,-1)+AH25 -> 0 | AI26: =OFFSET(AI25,1,-1)+AI25 -> 0
A27: =INT((ROW()-7)/(current_conditionBands+2))+1 -> 5 | B27: =OFFSET(ASSET_GROUP_NAME,A27-1,0) -> SR | C27: 1 | D27: =OFFSET(CONDITION_BAND_CODE,C27-1,0) -> G | E27: =SUM(OFFSET(F27,0,0,1,analysis_period)) -> 0
C28: =C27+1 -> 2 | D28: =OFFSET(CONDITION_BAND_CODE,C28-1,0) -> A | E28: =SUM(OFFSET(F28,0,0,1,analysis_period)) -> 0
C29: =C28+1 -> 3 | D29: =OFFSET(CONDITION_BAND_CODE,C29-1,0) -> R | E29: =SUM(OFFSET(F29,0,0,1,analysis_period)) -> 0
D30: Total | E30: =SUM(OFFSET(E27,0,0,current_conditionBands,1)) -> 0 | F30: 0 | G30: 0 | H30: 0 | I30: 0 | J30: 0 | K30: 0 | L30: 0 | M30: 0 | N30: 0 | O30: 0 | P30: 0 | Q30: 0 | R30: 0 | S30: 0 | T30: 0 | U30: 0 | V30: 0 | W30: 0 | X30: 0 | Y30: 0 | Z30: 0 | AA30: 0 | AB30: 0 | AC30: 0 | AD30: 0 | AE30: 0 | AF30: 0 | AG30: 0 | AH30: 0 | AI30: 0
D31: Cumulative | E31: =E30 -> 0 | F31: =F30 -> 0 | G31: =OFFSET(G30,1,-1)+G30 -> 0 | H31: 0 | I31: 0 | J31: 0 | K31: 0 | L31: 0 | M31: 0 | N31: 0 | O31: 0 | P31: 0 | Q31: 0 | R31: 0 | S31: 0 | T31: 0 | U31: 0 | V31: 0 | W31: 0 | X31: 0 | Y31: 0 | Z31: =OFFSET(Z30,1,-1)+Z30 -> 0 | AA31: =OFFSET(AA30,1,-1)+AA30 -> 0 | AB31: =OFFSET(AB30,1,-1)+AB30 -> 0 | AC31: =OFFSET(AC30,1,-1)+AC30 -> 0 | AD31: =OFFSET(AD30,1,-1)+AD30 -> 0 | AE31: =OFFSET(AE30,1,-1)+AE30 -> 0 | AF31: =OFFSET(AF30,1,-1)+AF30 -> 0 | AG31: =OFFSET(AG30,1,-1)+AG30 -> 0 | AH31: =OFFSET(AH30,1,-1)+AH30 -> 0 | AI31: =OFFSET(AI30,1,-1)+AI30 -> 0
A32: =INT((ROW()-7)/(current_conditionBands+2))+1 -> 6 | B32: =OFFSET(ASSET_GROUP_NAME,A32-1,0) -> SU | C32: 1 | D32: =OFFSET(CONDITION_BAND_CODE,C32-1,0) -> G | E32: =SUM(OFFSET(F32,0,0,1,analysis_period)) -> 0
C33: =C32+1 -> 2 | D33: =OFFSET(CONDITION_BAND_CODE,C33-1,0) -> A | E33: =SUM(OFFSET(F33,0,0,1,analysis_period)) -> 0
C34: =C33+1 -> 3 | D34: =OFFSET(CONDITION_BAND_CODE,C34-1,0) -> R | E34: =SUM(OFFSET(F34,0,0,1,analysis_period)) -> 0
D35: Total | E35: =SUM(OFFSET(E32,0,0,current_conditionBands,1)) -> 0 | F35: 0 | G35: 0 | H35: 0 | I35: 0 | J35: 0 | K35: 0 | L35: 0 | M35: 0 | N35: 0 | O35: 0 | P35: 0 | Q35: 0 | R35: 0 | S35: 0 | T35: 0 | U35: 0 | V35: 0 | W35: 0 | X35: 0 | Y35: 0 | Z35: 0 | AA35: 0 | AB35: 0 | AC35: 0 | AD35: 0 | AE35: 0 | AF35: 0 | AG35: 0 | AH35: 0 | AI35: 0
D36: Cumulative | E36: =E35 -> 0 | F36: =F35 -> 0 | G36: =OFFSET(G35,1,-1)+G35 -> 0 | H36: 0 | I36: 0 | J36: 0 | K36: 0 | L36: 0 | M36: 0 | N36: 0 | O36: 0 | P36: 0 | Q36: 0 | R36: 0 | S36: 0 | T36: 0 | U36: 0 | V36: 0 | W36: 0 | X36: 0 | Y36: 0 | Z36: =OFFSET(Z35,1,-1)+Z35 -> 0 | AA36: =OFFSET(AA35,1,-1)+AA35 -> 0 | AB36: =OFFSET(AB35,1,-1)+AB35 -> 0 | AC36: =OFFSET(AC35,1,-1)+AC35 -> 0 | AD36: =OFFSET(AD35,1,-1)+AD35 -> 0 | AE36: =OFFSET(AE35,1,-1)+AE35 -> 0 | AF36: =OFFSET(AF35,1,-1)+AF35 -> 0 | AG36: =OFFSET(AG35,1,-1)+AG35 -> 0 | AH36: =OFFSET(AH35,1,-1)+AH35 -> 0 | AI36: =OFFSET(AI35,1,-1)+AI35 -> 0
B37: Total Expenditure | C37: 1 | D37: =OFFSET(CONDITION_BAND_CODE,C37-1,0) -> G | E37: =SUM(OFFSET(F37,0,0,1,analysis_period)) -> 7335894.89 | F37: 54000 | G37: 216000 | H37: 221400 | I37: 226260 | J37: 230634 | K37: 234570.6 | L37: 238113.54 | M37: 241302.186 | N37: 244171.9674 | O37: 246754.7707 | P37: 249079.2936 | Q37: 251171.3642 | R37: 253054.2278 | S37: 254748.805 | T37: 256273.9245 | U37: 257646.5321 | V37: 258881.8789 | W37: 259993.691 | X37: 260994.3219 | Y37: 261894.8897 | Z37: 261894.8897 | AA37: 261894.8897 | AB37: 261894.8897 | AC37: 261894.8897 | AD37: 261894.8897 | AE37: 261894.8897 | AF37: 261894.8897 | AG37: 261894.8897 | AH37: 261894.8897 | AI37: 261894.8897
C38: =C37+1 -> 2 | D38: =OFFSET(CONDITION_BAND_CODE,C38-1,0) -> A | E38: =SUM(OFFSET(F38,0,0,1,analysis_period)) -> 869099.4322 | F38: 60000 | G38: 24000 | H38: 24600 | I38: 25140 | J38: 25626 | K38: 26063.4 | L38: 26457.06 | M38: 26811.354 | N38: 27130.2186 | O38: 27417.19674 | P38: 27675.47707 | Q38: 27907.92936 | R38: 28117.13642 | S38: 28305.42278 | T38: 28474.8805 | U38: 28627.39245 | V38: 28764.65321 | W38: 28888.18789 | X38: 28999.3691 | Y38: 29099.43219 | Z38: 29099.43219 | AA38: 29099.43219 | AB38: 29099.43219 | AC38: 29099.43219 | AD38: 29099.43219 | AE38: 29099.43219 | AF38: 29099.43219 | AG38: 29099.43219 | AH38: 29099.43219 | AI38: 29099.43219
C39: =C38+1 -> 3 | D39: =OFFSET(CONDITION_BAND_CODE,C39-1,0) -> R | E39: =SUM(OFFSET(F39,0,0,1,analysis_period)) -> 60000 | F39: 60000 | G39: 0 | H39: 0 | I39: 0 | J39: 0 | K39: 0 | L39: 0 | M39: 0 | N39: 0 | O39: 0 | P39: 0 | Q39: 0 | R39: 0 | S39: 0 | T39: 0 | U39: 0 | V39: 0 | W39: 0 | X39: 0 | Y39: 0 | Z39: 0 | AA39: 0 | AB39: 0 | AC39: 0 | AD39: 0 | AE39: 0 | AF39: 0 | AG39: 0 | AH39: 0 | AI39: 0
D40: Total | E40: =SUM(OFFSET(E37,0,0,current_conditionBands,1)) -> 8264994.322 | F40: 174000 | G40: 240000 | H40: 246000 | I40: 251400 | J40: 256260 | K40: 260634 | L40: 264570.6 | M40: 268113.54 | N40: 271302.186 | O40: 274171.9674 | P40: 276754.7707 | Q40: 279079.2936 | R40: 281171.3642 | S40: 283054.2278 | T40: 284748.805 | U40: 286273.9245 | V40: 287646.5321 | W40: 288881.8789 | X40: 289993.691 | Y40: 290994.3219 | Z40: 290994.3219 | AA40: 290994.3219 | AB40: 290994.3219 | AC40: 290994.3219 | AD40: 290994.3219 | AE40: 290994.3219 | AF40: 290994.3219 | AG40: 290994.3219 | AH40: 290994.3219 | AI40: 290994.3219
D41: Cumulative | E41: =E40 -> 8264994.322 | F41: =F40 -> 174000 | G41: =OFFSET(G40,1,-1)+G40 -> 414000 | H41: 660000 | I41: 911400 | J41: 1167660 | K41: 1428294 | L41: 1692864.6 | M41: 1960978.14 | N41: 2232280.326 | O41: 2506452.293 | P41: 2783207.064 | Q41: 3062286.358 | R41: 3343457.722 | S41: 3626511.95 | T41: 3911260.755 | U41: 4197534.679 | V41: 4485181.211 | W41: 4774063.09 | X41: 5064056.781 | Y41: 5355051.103 | Z41: =OFFSET(Z40,1,-1)+Z40 -> 5646045.425 | AA41: =OFFSET(AA40,1,-1)+AA40 -> 5937039.747 | AB41: =OFFSET(AB40,1,-1)+AB40 -> 6228034.069 | AC41: =OFFSET(AC40,1,-1)+AC40 -> 6519028.391 | AD41: =OFFSET(AD40,1,-1)+AD40 -> 6810022.712 | AE41: =OFFSET(AE40,1,-1)+AE40 -> 7101017.034 | AF41: =OFFSET(AF40,1,-1)+AF40 -> 7392011.356 | AG41: =OFFSET(AG40,1,-1)+AG40 -> 7683005.678 | AH41: =OFFSET(AH40,1,-1)+AH40 -> 7974000 | AI41: =OFFSET(AI40,1,-1)+AI40 -> 8264994.322

Sheet 13 - Exp by Cond Graph (hidden)
B3: EXPENDITURE BY CONDITION BAND GRAPH
E6: (Selected: MR)

Sheet 14 - Exp by Treatment (hidden)
B3: EXPENDITURE BY TREATMENT
B5: Table of Expenditure (£) by Treatment Type for Asset Groups
B6: Asset Group | C6: No. | D6: Treatment | E6: Analysis Period Total (£) | F6: =TEXT(start_year+(COLUMN()-6),"0") -> 2020 | G6: 2021 | H6: 2022 | I6: 2023 | J6: 2024 | K6: 2025 | L6: 2026 | M6: 2027 | N6: 2028 | O6: 2029 | P6: 2030 | Q6: 2031 | R6: 2032 | S6: 2033 | T6: 2034 | U6: 2035 | V6: 2036 | W6: 2037 | X6: 2038 | Y6: 2039 | Z6: 2040 | AA6: 2041 | AB6: 2042 | AC6: 2043 | AD6: 2044 | AE6: 2045 | AF6: 2046 | AG6: 2047 | AH6: 2048 | AI6: 2049
A7: =INT((ROW()-7)/(current_treatmentTypes+2))+1 -> 1 | B7: =OFFSET(ASSET_GROUP_NAME,A7-1,0) -> MR | C7: 1 | D7: =OFFSET(TREATMENT_TYPE_NAME,C7-1,0) -> Treatment 1 | E7: =SUM(OFFSET(F7,0,0,1,analysis_period)) -> 0 | F7: 0 | G7: 0 | H7: 0 | I7: 0 | J7: 0 | K7: 0 | L7: 0 | M7: 0 | N7: 0 | O7: 0 | P7: 0 | Q7: 0 | R7: 0 | S7: 0 | T7: 0 | U7: 0 | V7: 0 | W7: 0 | X7: 0 | Y7: 0 | Z7: 0 | AA7: 0 | AB7: 0 | AC7: 0 | AD7: 0 | AE7: 0 | AF7: 0 | AG7: 0 | AH7: 0 | AI7: 0
C8: =C7+1 -> 2 | D8: Treatment 2 | E8: 0 | F8: 0 | G8: 0 | H8: 0 | I8: 0 | J8: 0 | K8: 0 | L8: 0 | M8: 0 | N8: 0 | O8: 0 | P8: 0 | Q8: 0 | R8: 0 | S8: 0 | T8: 0 | U8: 0 | V8: 0 | W8: 0 | X8: 0 | Y8: 0 | Z8: 0 | AA8: 0 | AB8: 0 | AC8: 0 | AD8: 0 | AE8: 0 | AF8: 0 | AG8: 0 | AH8: 0 | AI8: 0
D9: Total | E9: =SUM(OFFSET(E7,0,0,current_treatmentTypes,1)) -> 0 | F9: 0 | G9: 0 | H9: 0 | I9: 0 | J9: 0 | K9: 0 | L9: 0 | M9: 0 | N9: 0 | O9: 0 | P9: 0 | Q9: 0 | R9: 0 | S9: 0 | T9: 0 | U9: 0 | V9: 0 | W9: 0 | X9: 0 | Y9: 0 | Z9: =SUM(OFFSET(Z7,0,0,current_treatmentTypes,1)) -> 0 | AA9: =SUM(OFFSET(AA7,0,0,current_treatmentTypes,1)) -> 0 | AB9: =SUM(OFFSET(AB7,0,0,current_treatmentTypes,1)) -> 0 | AC9: =SUM(OFFSET(AC7,0,0,current_treatmentTypes,1)) -> 0 | AD9: =SUM(OFFSET(AD7,0,0,current_treatmentTypes,1)) -> 0 | AE9: =SUM(OFFSET(AE7,0,0,current_treatmentTypes,1)) -> 0 | AF9: =SUM(OFFSET(AF7,0,0,current_treatmentTypes,1)) -> 0 | AG9: =SUM(OFFSET(AG7,0,0,current_treatmentTypes,1)) -> 0 | AH9: =SUM(OFFSET(AH7,0,0,current_treatmentTypes,1)) -> 0 | AI9: =SUM(OFFSET(AI7,0,0,current_treatmentTypes,1)) -> 0
D10: Cumulative | E10: =E9 -> 0 | F10: =F9 -> 0 | G10: =OFFSET(G9,1,-1)+G9 -> 0 | H10: 0 | I10: 0 | J10: 0 | K10: 0 | L10: 0 | M10: 0 | N10: 0 | O10: 0 | P10: 0 | Q10: 0 | R10: 0 | S10: 0 | T10: 0 | U10: 0 | V10: 0 | W10: 0 | X10: 0 | Y10: 0 | Z10: =OFFSET(Z9,1,-1)+Z9 -> 0 | AA10: =OFFSET(AA9,1,-1)+AA9 -> 0 | AB10: =OFFSET(AB9,1,-1)+AB9 -> 0 | AC10: =OFFSET(AC9,1,-1)+AC9 -> 0 | AD10: =OFFSET(AD9,1,-1)+AD9 -> 0 | AE10: =OFFSET(AE9,1,-1)+AE9 -> 0 | AF10: =OFFSET(AF9,1,-1)+AF9 -> 0 | AG10: =OFFSET(AG9,1,-1)+AG9 -> 0 | AH10: =OFFSET(AH9,1,-1)+AH9 -> 0 | AI10: =OFFSET(AI9,1,-1)+AI9 -> 0
A11: =INT((ROW()-7)/(current_treatmentTypes+2))+1 -> 2 | B11: =OFFSET(ASSET_GROUP_NAME,A11-1,0) -> MU | C11: 1 | D11: =OFFSET(TREATMENT_TYPE_NAME,C11-1,0) -> Treatment 1 | E11: =SUM(OFFSET(F11,0,0,1,analysis_period)) -> 8204994.322 | F11: 114000 | G11: 240000 | H11: 246000 | I11: 251400 | J11: 256260 | K11: 260634 | L11: 264570.6 | M11: 268113.54 | N11: 271302.186 | O11: 274171.9674 | P11: 276754.7707 | Q11: 279079.2936 | R11: 281171.3642 | S11: 283054.2278 | T11: 284748.805 | U11: 286273.9245 | V11: 287646.5321 | W11: 288881.8789 | X11: 289993.691 | Y11: 290994.3219 | Z11: 290994.3219 | AA11: 290994.3219 | AB11: 290994.3219 | AC11: 290994.3219 | AD11: 290994.3219 | AE11: 290994.3219 | AF11: 290994.3219 | AG11: 290994.3219 | AH11: 290994.3219 | AI11: 290994.3219
C12: =C11+1 -> 2 | D12: Treatment 2 | E12: 0 | F12: 0 | G12: 0 | H12: 0 | I12: 0 | J12: 0 | K12: 0 | L12: 0 | M12: 0 | N12: 0 | O12: 0 | P12: 0 | Q12: 0 | R12: 0 | S12: 0 | T12: 0 | U12: 0 | V12: 0 | W12: 0 | X12: 0 | Y12: 0 | Z12: 0 | AA12: 0 | AB12: 0 | AC12: 0 | AD12: 0 | AE12: 0 | AF12: 0 | AG12: 0 | AH12: 0 | AI12: 0
D13: Total | E13: =SUM(OFFSET(E11,0,0,current_treatmentTypes,1)) -> 8204994.322 | F13: 114000 | G13: 240000 | H13: 246000 | I13: 251400 | J13: 256260 | K13: 260634 | L13: 264570.6 | M13: 268113.54 | N13: 271302.186 | O13: 274171.9674 | P13: 276754.7707 | Q13: 279079.2936 | R13: 281171.3642 | S13: 283054.2278 | T13: 284748.805 | U13: 286273.9245 | V13: 287646.5321 | W13: 288881.8789 | X13: 289993.691 | Y13: 290994.3219 | Z13: =SUM(OFFSET(Z11,0,0,current_treatmentTypes,1)) -> 290994.3219 | AA13: =SUM(OFFSET(AA11,0,0,current_treatmentTypes,1)) -> 290994.3219 | AB13: =SUM(OFFSET(AB11,0,0,current_treatmentTypes,1)) -> 290994.3219 | AC13: =SUM(OFFSET(AC11,0,0,current_treatmentTypes,1)) -> 290994.3219 | AD13: =SUM(OFFSET(AD11,0,0,current_treatmentTypes,1)) -> 290994.3219 | AE13: =SUM(OFFSET(AE11,0,0,current_treatmentTypes,1)) -> 290994.3219 | AF13: =SUM(OFFSET(AF11,0,0,current_treatmentTypes,1)) -> 290994.3219 | AG13: =SUM(OFFSET(AG11,0,0,current_treatmentTypes,1)) -> 290994.3219 | AH13: =SUM(OFFSET(AH11,0,0,current_treatmentTypes,1)) -> 290994.3219 | AI13: =SUM(OFFSET(AI11,0,0,current_treatmentTypes,1)) -> 290994.3219
D14: Cumulative | E14: =E13 -> 8204994.322 | F14: =F13 -> 114000 | G14: =OFFSET(G13,1,-1)+G13 -> 354000 | H14: 600000 | I14: 851400 | J14: 1107660 | K14: 1368294 | L14: 1632864.6 | M14: 1900978.14 | N14: 2172280.326 | O14: 2446452.293 | P14: 2723207.064 | Q14: 3002286.358 | R14: 3283457.722 | S14: 3566511.95 | T14: 3851260.755 | U14: 4137534.679 | V14: 4425181.211 | W14: 4714063.09 | X14: 5004056.781 | Y14: 5295051.103 | Z14: =OFFSET(Z13,1,-1)+Z13 -> 5586045.425 | AA14: =OFFSET(AA13,1,-1)+AA13 -> 5877039.747 | AB14: =OFFSET(AB13,1,-1)+AB13 -> 6168034.069 | AC14: =OFFSET(AC13,1,-1)+AC13 -> 6459028.391 | AD14: =OFFSET(AD13,1,-1)+AD13 -> 6750022.712 | AE14: =OFFSET(AE13,1,-1)+AE13 -> 7041017.034 | AF14: =OFFSET(AF13,1,-1)+AF13 -> 7332011.356 | AG14: =OFFSET(AG13,1,-1)+AG13 -> 7623005.678 | AH14: =OFFSET(AH13,1,-1)+AH13 -> 7914000 | AI14: =OFFSET(AI13,1,-1)+AI13 -> 8204994.322
A15: =INT((ROW()-7)/(current_treatmentTypes+2))+1 -> 3 | B15: =OFFSET(ASSET_GROUP_NAME,A15-1,0) -> DR | C15: 1 | D15: =OFFSET(TREATMENT_TYPE_NAME,C15-1,0) -> Treatment 1 | E15: =SUM(OFFSET(F15,0,0,1,analysis_period)) -> 0 | F15: 0 | G15: 0 | H15: 0 | I15: 0 | J15: 0 | K15: 0 | L15: 0 | M15: 0 | N15: 0 | O15: 0 | P15: 0 | Q15: 0 | R15: 0 | S15: 0 | T15: 0 | U15: 0 | V15: 0 | W15: 0 | X15: 0 | Y15: 0 | Z15: 0 | AA15: 0 | AB15: 0 | AC15: 0 | AD15: 0 | AE15: 0 | AF15: 0 | AG15: 0 | AH15: 0 | AI15: 0
C16: =C15+1 -> 2 | D16: Treatment 2 | E16: 0 | F16: 0 | G16: 0 | H16: 0 | I16: 0 | J16: 0 | K16: 0 | L16: 0 | M16: 0 | N16: 0 | O16: 0 | P16: 0 | Q16: 0 | R16: 0 | S16: 0 | T16: 0 | U16: 0 | V16: 0 | W16: 0 | X16: 0 | Y16: 0 | Z16: 0 | AA16: 0 | AB16: 0 | AC16: 0 | AD16: 0 | AE16: 0 | AF16: 0 | AG16: 0 | AH16: 0 | AI16: 0
D17: Total | E17: =SUM(OFFSET(E15,0,0,current_treatmentTypes,1)) -> 0 | F17: 0 | G17: 0 | H17: 0 | I17: 0 | J17: 0 | K17: 0 | L17: 0 | M17: 0 | N17: 0 | O17: 0 | P17: 0 | Q17: 0 | R17: 0 | S17: 0 | T17: 0 | U17: 0 | V17: 0 | W17: 0 | X17: 0 | Y17: 0 | Z17: =SUM(OFFSET(Z15,0,0,current_treatmentTypes,1)) -> 0 | AA17: =SUM(OFFSET(AA15,0,0,current_treatmentTypes,1)) -> 0 | AB17: =SUM(OFFSET(AB15,0,0,current_treatmentTypes,1)) -> 0 | AC17: =SUM(OFFSET(AC15,0,0,current_treatmentTypes,1)) -> 0 | AD17: =SUM(OFFSET(AD15,0,0,current_treatmentTypes,1)) -> 0 | AE17: =SUM(OFFSET(AE15,0,0,current_treatmentTypes,1)) -> 0 | AF17: =SUM(OFFSET(AF15,0,0,current_treatmentTypes,1)) -> 0 | AG17: =SUM(OFFSET(AG15,0,0,current_treatmentTypes,1)) -> 0 | AH17: =SUM(OFFSET(AH15,0,0,current_treatmentTypes,1)) -> 0 | AI17: =SUM(OFFSET(AI15,0,0,current_treatmentTypes,1)) -> 0
D18: Cumulative | E18: =E17 -> 0 | F18: =F17 -> 0 | G18: =OFFSET(G17,1,-1)+G17 -> 0 | H18: 0 | I18: 0 | J18: 0 | K18: 0 | L18: 0 | M18: 0 | N18: 0 | O18: 0 | P18: 0 | Q18: 0 | R18: 0 | S18: 0 | T18: 0 | U18: 0 | V18: 0 | W18: 0 | X18: 0 | Y18: 0 | Z18: =OFFSET(Z17,1,-1)+Z17 -> 0 | AA18: =OFFSET(AA17,1,-1)+AA17 -> 0 | AB18: =OFFSET(AB17,1,-1)+AB17 -> 0 | AC18: =OFFSET(AC17,1,-1)+AC17 -> 0 | AD18: =OFFSET(AD17,1,-1)+AD17 -> 0 | AE18: =OFFSET(AE17,1,-1)+AE17 -> 0 | AF18: =OFFSET(AF17,1,-1)+AF17 -> 0 | AG18: =OFFSET(AG17,1,-1)+AG17 -> 0 | AH18: =OFFSET(AH17,1,-1)+AH17 -> 0 | AI18: =OFFSET(AI17,1,-1)+AI17 -> 0
A19: =INT((ROW()-7)/(current_treatmentTypes+2))+1 -> 4 | B19: =OFFSET(ASSET_GROUP_NAME,A19-1,0) -> DU | C19: 1 | D19: =OFFSET(TREATMENT_TYPE_NAME,C19-1,0) -> Treatment 1 | E19: =SUM(OFFSET(F19,0,0,1,analysis_period)) -> 0 | F19: 0 | G19: 0 | H19: 0 | I19: 0 | J19: 0 | K19: 0 | L19: 0 | M19: 0 | N19: 0 | O19: 0 | P19: 0 | Q19: 0 | R19: 0 | S19: 0 | T19: 0 | U19: 0 | V19: 0 | W19: 0 | X19: 0 | Y19: 0 | Z19: 0 | AA19: 0 | AB19: 0 | AC19: 0 | AD19: 0 | AE19: 0 | AF19: 0 | AG19: 0 | AH19: 0 | AI19: 0
C20: =C19+1 -> 2 | D20: Treatment 2 | E20: 0 | F20: 0 | G20: 0 | H20: 0 | I20: 0 | J20: 0 | K20: 0 | L20: 0 | M20: 0 | N20: 0 | O20: 0 | P20: 0 | Q20: 0 | R20: 0 | S20: 0 | T20: 0 | U20: 0 | V20: 0 | W20: 0 | X20: 0 | Y20: 0 | Z20: 0 | AA20: 0 | AB20: 0 | AC20: 0 | AD20: 0 | AE20: 0 | AF20: 0 | AG20: 0 | AH20: 0 | AI20: 0
D21: Total | E21: =SUM(OFFSET(E19,0,0,current_treatmentTypes,1)) -> 0 | F21: 0 | G21: 0 | H21: 0 | I21: 0 | J21: 0 | K21: 0 | L21: 0 | M21: 0 | N21: 0 | O21: 0 | P21: 0 | Q21: 0 | R21: 0 | S21: 0 | T21: 0 | U21: 0 | V21: 0 | W21: 0 | X21: 0 | Y21: 0 | Z21: =SUM(OFFSET(Z19,0,0,current_treatmentTypes,1)) -> 0 | AA21: =SUM(OFFSET(AA19,0,0,current_treatmentTypes,1)) -> 0 | AB21: =SUM(OFFSET(AB19,0,0,current_treatmentTypes,1)) -> 0 | AC21: =SUM(OFFSET(AC19,0,0,current_treatmentTypes,1)) -> 0 | AD21: =SUM(OFFSET(AD19,0,0,current_treatmentTypes,1)) -> 0 | AE21: =SUM(OFFSET(AE19,0,0,current_treatmentTypes,1)) -> 0 | AF21: =SUM(OFFSET(AF19,0,0,current_treatmentTypes,1)) -> 0 | AG21: =SUM(OFFSET(AG19,0,0,current_treatmentTypes,1)) -> 0 | AH21: =SUM(OFFSET(AH19,0,0,current_treatmentTypes,1)) -> 0 | AI21: =SUM(OFFSET(AI19,0,0,current_treatmentTypes,1)) -> 0
D22: Cumulative | E22: =E21 -> 0 | F22: =F21 -> 0 | G22: =OFFSET(G21,1,-1)+G21 -> 0 | H22: 0 | I22: 0 | J22: 0 | K22: 0 | L22: 0 | M22: 0 | N22: 0 | O22: 0 | P22: 0 | Q22: 0 | R22: 0 | S22: 0 | T22: 0 | U22: 0 | V22: 0 | W22: 0 | X22: 0 | Y22: 0 | Z22: =OFFSET(Z21,1,-1)+Z21 -> 0 | AA22: =OFFSET(AA21,1,-1)+AA21 -> 0 | AB22: =OFFSET(AB21,1,-1)+AB21 -> 0 | AC22: =OFFSET(AC21,1,-1)+AC21 -> 0 | AD22: =OFFSET(AD21,1,-1)+AD21 -> 0 | AE22: =OFFSET(AE21,1,-1)+AE21 -> 0 | AF22: =OFFSET(AF21,1,-1)+AF21 -> 0 | AG22: =OFFSET(AG21,1,-1)+AG21 -> 0 | AH22: =OFFSET(AH21,1,-1)+AH21 -> 0 | AI22: =OFFSET(AI21,1,-1)+AI21 -> 0
A23: =INT((ROW()-7)/(current_treatmentTypes+2))+1 -> 5 | B23: =OFFSET(ASSET_GROUP_NAME,A23-1,0) -> SR | C23: 1 | D23: =OFFSET(TREATMENT_TYPE_NAME,C23-1,0) -> Treatment 1 | E23: =SUM(OFFSET(F23,0,0,1,analysis_period)) -> 0
C24: =C23+1 -> 2 | D24: Treatment 2 | E24: 0
D25: Total | E25: =SUM(OFFSET(E23,0,0,current_treatmentTypes,1)) -> 0 | F25: 0 | G25: 0 | H25: 0 | I25: 0 | J25: 0 | K25: 0 | L25: 0 | M25: 0 | N25: 0 | O25: 0 | P25: 0 | Q25: 0 | R25: 0 | S25: 0 | T25: 0 | U25: 0 | V25: 0 | W25: 0 | X25: 0 | Y25: 0 | Z25: =SUM(OFFSET(Z23,0,0,current_treatmentTypes,1)) -> 0 | AA25: =SUM(OFFSET(AA23,0,0,current_treatmentTypes,1)) -> 0 | AB25: =SUM(OFFSET(AB23,0,0,current_treatmentTypes,1)) -> 0 | AC25: =SUM(OFFSET(AC23,0,0,current_treatmentTypes,1)) -> 0 | AD25: =SUM(OFFSET(AD23,0,0,current_treatmentTypes,1)) -> 0 | AE25: =SUM(OFFSET(AE23,0,0,current_treatmentTypes,1)) -> 0 | AF25: =SUM(OFFSET(AF23,0,0,current_treatmentTypes,1)) -> 0 | AG25: =SUM(OFFSET(AG23,0,0,current_treatmentTypes,1)) -> 0 | AH25: =SUM(OFFSET(AH23,0,0,current_treatmentTypes,1)) -> 0 | AI25: =SUM(OFFSET(AI23,0,0,current_treatmentTypes,1)) -> 0
D26: Cumulative | E26: =E25 -> 0 | F26: =F25 -> 0 | G26: =OFFSET(G25,1,-1)+G25 -> 0 | H26: 0 | I26: 0 | J26: 0 | K26: 0 | L26: 0 | M26: 0 | N26: 0 | O26: 0 | P26: 0 | Q26: 0 | R26: 0 | S26: 0 | T26: 0 | U26: 0 | V26: 0 | W26: 0 | X26: 0 | Y26: 0 | Z26: =OFFSET(Z25,1,-1)+Z25 -> 0 | AA26: =OFFSET(AA25,1,-1)+AA25 -> 0 | AB26: =OFFSET(AB25,1,-1)+AB25 -> 0 | AC26: =OFFSET(AC25,1,-1)+AC25 -> 0 | AD26: =OFFSET(AD25,1,-1)+AD25 -> 0 | AE26: =OFFSET(AE25,1,-1)+AE25 -> 0 | AF26: =OFFSET(AF25,1,-1)+AF25 -> 0 | AG26: =OFFSET(AG25,1,-1)+AG25 -> 0 | AH26: =OFFSET(AH25,1,-1)+AH25 -> 0 | AI26: =OFFSET(AI25,1,-1)+AI25 -> 0
A27: =INT((ROW()-7)/(current_treatmentTypes+2))+1 -> 6 | B27: =OFFSET(ASSET_GROUP_NAME,A27-1,0) -> SU | C27: 1 | D27: =OFFSET(TREATMENT_TYPE_NAME,C27-1,0) -> Treatment 1 | E27: =SUM(OFFSET(F27,0,0,1,analysis_period)) -> 0
C28: =C27+1 -> 2 | D28: Treatment 2 | E28: 0
D29: Total | E29: =SUM(OFFSET(E27,0,0,current_treatmentTypes,1)) -> 0 | F29: 0 | G29: 0 | H29: 0 | I29: 0 | J29: 0 | K29: 0 | L29: 0 | M29: 0 | N29: 0 | O29: 0 | P29: 0 | Q29: 0 | R29: 0 | S29: 0 | T29: 0 | U29: 0 | V29: 0 | W29: 0 | X29: 0 | Y29: 0 | Z29: =SUM(OFFSET(Z27,0,0,current_treatmentTypes,1)) -> 0 | AA29: =SUM(OFFSET(AA27,0,0,current_treatmentTypes,1)) -> 0 | AB29: =SUM(OFFSET(AB27,0,0,current_treatmentTypes,1)) -> 0 | AC29: =SUM(OFFSET(AC27,0,0,current_treatmentTypes,1)) -> 0 | AD29: =SUM(OFFSET(AD27,0,0,current_treatmentTypes,1)) -> 0 | AE29: =SUM(OFFSET(AE27,0,0,current_treatmentTypes,1)) -> 0 | AF29: =SUM(OFFSET(AF27,0,0,current_treatmentTypes,1)) -> 0 | AG29: =SUM(OFFSET(AG27,0,0,current_treatmentTypes,1)) -> 0 | AH29: =SUM(OFFSET(AH27,0,0,current_treatmentTypes,1)) -> 0 | AI29: =SUM(OFFSET(AI27,0,0,current_treatmentTypes,1)) -> 0
D30: Cumulative | E30: =E29 -> 0 | F30: =F29 -> 0 | G30: =OFFSET(G29,1,-1)+G29 -> 0 | H30: 0 | I30: 0 | J30: 0 | K30: 0 | L30: 0 | M30: 0 | N30: 0 | O30: 0 | P30: 0 | Q30: 0 | R30: 0 | S30: 0 | T30: 0 | U30: 0 | V30: 0 | W30: 0 | X30: 0 | Y30: 0 | Z30: =OFFSET(Z29,1,-1)+Z29 -> 0 | AA30: =OFFSET(AA29,1,-1)+AA29 -> 0 | AB30: =OFFSET(AB29,1,-1)+AB29 -> 0 | AC30: =OFFSET(AC29,1,-1)+AC29 -> 0 | AD30: =OFFSET(AD29,1,-1)+AD29 -> 0 | AE30: =OFFSET(AE29,1,-1)+AE29 -> 0 | AF30: =OFFSET(AF29,1,-1)+AF29 -> 0 | AG30: =OFFSET(AG29,1,-1)+AG29 -> 0 | AH30: =OFFSET(AH29,1,-1)+AH29 -> 0 | AI30: =OFFSET(AI29,1,-1)+AI29 -> 0
B31: Total Expenditure | C31: 1 | D31: =OFFSET(TREATMENT_TYPE_NAME,C31-1,0) -> Treatment 1 | E31: =SUM(OFFSET(F31,0,0,1,analysis_period)) -> 8204994.322 | F31: 114000 | G31: 240000 | H31: 246000 | I31: 251400 | J31: 256260 | K31: 260634 | L31: 264570.6 | M31: 268113.54 | N31: 271302.186 | O31: 274171.9674 | P31: 276754.7707 | Q31: 279079.2936 | R31: 281171.3642 | S31: 283054.2278 | T31: 284748.805 | U31: 286273.9245 | V31: 287646.5321 | W31: 288881.8789 | X31: 289993.691 | Y31: 290994.3219 | Z31: 290994.3219 | AA31: 290994.3219 | AB31: 290994.3219 | AC31: 290994.3219 | AD31: 290994.3219 | AE31: 290994.3219 | AF31: 290994.3219 | AG31: 290994.3219 | AH31: 290994.3219 | AI31: 290994.3219
C32: =C31+1 -> 2 | D32: Treatment 2 | E32: 0 | F32: 0 | G32: 0 | H32: 0 | I32: 0 | J32: 0 | K32: 0 | L32: 0 | M32: 0 | N32: 0 | O32: 0 | P32: 0 | Q32: 0 | R32: 0 | S32: 0 | T32: 0 | U32: 0 | V32: 0 | W32: 0 | X32: 0 | Y32: 0 | Z32: 0 | AA32: 0 | AB32: 0 | AC32: 0 | AD32: 0 | AE32: 0 | AF32: 0 | AG32: 0 | AH32: 0 | AI32: 0
D33: Total | E33: =SUM(OFFSET(E31,0,0,current_treatmentTypes,1)) -> 8204994.322 | F33: 114000 | G33: 240000 | H33: 246000 | I33: 251400 | J33: 256260 | K33: 260634 | L33: 264570.6 | M33: 268113.54 | N33: 271302.186 | O33: 274171.9674 | P33: 276754.7707 | Q33: 279079.2936 | R33: 281171.3642 | S33: 283054.2278 | T33: 284748.805 | U33: 286273.9245 | V33: 287646.5321 | W33: 288881.8789 | X33: 289993.691 | Y33: 290994.3219 | Z33: =SUM(OFFSET(Z31,0,0,current_treatmentTypes,1)) -> 290994.3219 | AA33: =SUM(OFFSET(AA31,0,0,current_treatmentTypes,1)) -> 290994.3219 | AB33: =SUM(OFFSET(AB31,0,0,current_treatmentTypes,1)) -> 290994.3219 | AC33: =SUM(OFFSET(AC31,0,0,current_treatmentTypes,1)) -> 290994.3219 | AD33: =SUM(OFFSET(AD31,0,0,current_treatmentTypes,1)) -> 290994.3219 | AE33: =SUM(OFFSET(AE31,0,0,current_treatmentTypes,1)) -> 290994.3219 | AF33: =SUM(OFFSET(AF31,0,0,current_treatmentTypes,1)) -> 290994.3219 | AG33: =SUM(OFFSET(AG31,0,0,current_treatmentTypes,1)) -> 290994.3219 | AH33: =SUM(OFFSET(AH31,0,0,current_treatmentTypes,1)) -> 290994.3219 | AI33: =SUM(OFFSET(AI31,0,0,current_treatmentTypes,1)) -> 290994.3219
D34: Cumulative | E34: =E33 -> 8204994.322 | F34: =F33 -> 114000 | G34: =OFFSET(G33,1,-1)+G33 -> 354000 | H34: 600000 | I34: 851400 | J34: 1107660 | K34: 1368294 | L34: 1632864.6 | M34: 1900978.14 | N34: 2172280.326 | O34: 2446452.293 | P34: 2723207.064 | Q34: 3002286.358 | R34: 3283457.722 | S34: 3566511.95 | T34: 3851260.755 | U34: 4137534.679 | V34: 4425181.211 | W34: 4714063.09 | X34: 5004056.781 | Y34: 5295051.103 | Z34: =OFFSET(Z33,1,-1)+Z33 -> 5586045.425 | AA34: =OFFSET(AA33,1,-1)+AA33 -> 5877039.747 | AB34: =OFFSET(AB33,1,-1)+AB33 -> 6168034.069 | AC34: =OFFSET(AC33,1,-1)+AC33 -> 6459028.391 | AD34: =OFFSET(AD33,1,-1)+AD33 -> 6750022.712 | AE34: =OFFSET(AE33,1,-1)+AE33 -> 7041017.034 | AF34: =OFFSET(AF33,1,-1)+AF33 -> 7332011.356 | AG34: =OFFSET(AG33,1,-1)+AG33 -> 7623005.678 | AH34: =OFFSET(AH33,1,-1)+AH33 -> 7914000 | AI34: =OFFSET(AI33,1,-1)+AI33 -> 8204994.322

Sheet 15 - Exp by Treat Graph (hidden)
B3: EXPENDITURE BY TREATMENT GRAPH
B6: Select Asset Group: | D6: Strategic & Main | M6: Treatment: | N6: All Treatments

Sheet 16 - Area by Year (hidden)
B3: AREA BY YEAR
E6: Initial Distribution (m²) | F6: ="End of Year Distribution (m²)" -> End of Year Distribution (m²)
B7: Asset Group | C7: No. | D7: Cond | E7: =TEXT(start_year+(COLUMN()-5),"0") -> 2020 | F7: =TEXT(start_year+(COLUMN()-6),"0") -> 2020 | G7: 2021 | H7: 2022 | I7: 2023 | J7: 2024 | K7: 2025 | L7: 2026 | M7: 2027 | N7: 2028 | O7: 2029 | P7: 2030 | Q7: 2031 | R7: 2032 | S7: 2033 | T7: 2034 | U7: 2035 | V7: 2036 | W7: 2037 | X7: 2038 | Y7: 2039 | Z7: 2040 | AA7: 2041 | AB7: 2042 | AC7: 2043 | AD7: 2044 | AE7: 2045 | AF7: 2046 | AG7: 2047 | AH7: 2048 | AI7: 2049
A8: =INT((ROW()-8)/current_conditionBands)+1 -> 1 | B8: =OFFSET(ASSET_GROUP_NAME,A8-1,0) -> MR | C8: 1 | D8: =OFFSET(CONDITION_BAND_CODE,'16 - Area by Year'!C8-1,0) -> G | E8: 60000 | F8: 120000 | G8: 114000 | H8: 108600 | I8: 103740 | J8: 99372 | K8: 95456.4 | L8: 91959.36 | M8: 88850.904 | N8: 86103.5952 | O8: 83691.64464 | P8: 81590.34394 | Q8: 79775.7358 | R8: 78224.45466 | S8: 76913.68484 | T8: 75821.19574 | U8: 74925.42343 | V8: 74205.57581 | W8: 73641.74456 | X8: 73215.01229 | Y8: 72907.54698 | Z8: 72907.54698 | AA8: 72907.54698 | AB8: 72907.54698 | AC8: 72907.54698 | AD8: 72907.54698 | AE8: 72907.54698 | AF8: 72907.54698 | AG8: 72907.54698 | AH8: 72907.54698 | AI8: 72907.54698
C9: =C8+1 -> 2 | D9: =OFFSET(CONDITION_BAND_CODE,'16 - Area by Year'!C9-1,0) -> A | E9: 60000 | F9: 60000 | G9: 66000 | H9: 70800 | I9: 74580 | J9: 77496 | K9: 79683.6 | L9: 81260.88 | M9: 82330.728 | N9: 82982.7456 | O9: 83294.83056 | P9: 83334.51197 | Q9: 83160.09516 | R9: 82821.65923 | S9: 82361.93877 | T9: 81817.11338 | U9: 81217.52162 | V9: 80588.3118 | W9: 79950.0382 | X9: 79319.20883 | Y9: 78708.78918 | Z9: 78708.78918 | AA9: 78708.78918 | AB9: 78708.78918 | AC9: 78708.78918 | AD9: 78708.78918 | AE9: 78708.78918 | AF9: 78708.78918 | AG9: 78708.78918 | AH9: 78708.78918 | AI9: 78708.78918
C10: =C9+1 -> 3 | D10: =OFFSET(CONDITION_BAND_CODE,'16 - Area by Year'!C10-1,0) -> R | E10: 60000 | F10: 60000 | G10: 60000 | H10: 60600 | I10: 61620 | J10: 62916 | K10: 64374 | L10: 65904.96 | M10: 67440.552 | N10: 68929.5696 | O10: 70334.8872 | P10: 71630.88154 | Q10: 72801.24458 | R10: 73837.12964 | S10: 74735.5826 | T10: 75498.21821 | U10: 76130.10773 | V10: 76638.84912 | W10: 77033.79539 | X10: 77325.41967 | Y10: 77524.79858 | Z10: 77524.79858 | AA10: 77524.79858 | AB10: 77524.79858 | AC10: 77524.79858 | AD10: 77524.79858 | AE10: 77524.79858 | AF10: 77524.79858 | AG10: 77524.79858 | AH10: 77524.79858 | AI10: 77524.79858
A11: =INT((ROW()-8)/current_conditionBands)+1 -> 2 | B11: =OFFSET(ASSET_GROUP_NAME,A11-1,0) -> MU | C11: 1 | D11: =OFFSET(CONDITION_BAND_CODE,'16 - Area by Year'!C11-1,0) -> G | E11: 60000 | F11: 240000 | G11: 246000 | H11: 251400 | I11: 256260 | J11: 260634 | K11: 264570.6 | L11: 268113.54 | M11: 271302.186 | N11: 274171.9674 | O11: 276754.7707 | P11: 279079.2936 | Q11: 281171.3642 | R11: 283054.2278 | S11: 284748.805 | T11: 286273.9245 | U11: 287646.5321 | V11: 288881.8789 | W11: 289993.691 | X11: 290994.3219 | Y11: 291894.8897 | Z11: 291894.8897 | AA11: 291894.8897 | AB11: 291894.8897 | AC11: 291894.8897 | AD11: 291894.8897 | AE11: 291894.8897 | AF11: 291894.8897 | AG11: 291894.8897 | AH11: 291894.8897 | AI11: 291894.8897
C12: =C11+1 -> 2 | D12: =OFFSET(CONDITION_BAND_CODE,'16 - Area by Year'!C12-1,0) -> A | E12: 60000 | F12: 0 | G12: 0 | H12: 0 | I12: 0 | J12: 0 | K12: 0 | L12: 0 | M12: 0 | N12: 0 | O12: 0 | P12: 0 | Q12: 0 | R12: 0 | S12: 0 | T12: 0 | U12: 0 | V12: 0 | W12: 0 | X12: 0 | Y12: 0 | Z12: 0 | AA12: 0 | AB12: 0 | AC12: 0 | AD12: 0 | AE12: 0 | AF12: 0 | AG12: 0 | AH12: 0 | AI12: 0
C13: =C12+1 -> 3 | D13: =OFFSET(CONDITION_BAND_CODE,'16 - Area by Year'!C13-1,0) -> R | E13: 60000 | F13: 0 | G13: 0 | H13: 0 | I13: 0 | J13: 0 | K13: 0 | L13: 0 | M13: 0 | N13: 0 | O13: 0 | P13: 0 | Q13: 0 | R13: 0 | S13: 0 | T13: 0 | U13: 0 | V13: 0 | W13: 0 | X13: 0 | Y13: 0 | Z13: 0 | AA13: 0 | AB13: 0 | AC13: 0 | AD13: 0 | AE13: 0 | AF13: 0 | AG13: 0 | AH13: 0 | AI13: 0
A14: =INT((ROW()-8)/current_conditionBands)+1 -> 3 | B14: =OFFSET(ASSET_GROUP_NAME,A14-1,0) -> DR | C14: 1 | D14: =OFFSET(CONDITION_BAND_CODE,'16 - Area by Year'!C14-1,0) -> G | E14: 60000 | F14: 104000 | G14: 115600 | H14: 110040 | I14: 105036 | J14: 100536.8 | K14: 96500.56 | L14: 92891.904 | M14: 89679.8256 | N14: 86836.21088 | O14: 84334.83146 | P14: 82150.69079 | Q14: 80259.6313 | R14: 78638.12963 | S14: 77263.22346 | T14: 76112.52617 | U14: 75164.29605 | V14: 74397.53518 | W14: 73792.09956 | X14: 73328.80756 | Y14: 72989.53773 | Z14: 72989.53773 | AA14: 72989.53773 | AB14: 72989.53773 | AC14: 72989.53773 | AD14: 72989.53773 | AE14: 72989.53773 | AF14: 72989.53773 | AG14: 72989.53773 | AH14: 72989.53773 | AI14: 72989.53773
C15: =C14+1 -> 2 | D15: =OFFSET(CONDITION_BAND_CODE,'16 - Area by Year'!C15-1,0) -> A | E15: 60000 | F15: 60000 | G15: 64400 | H15: 69520 | I15: 73572 | J15: 76718.4 | K15: 79100.24 | L15: 80840.272 | M15: 82045.4352 | N15: 82808.87424 | O15: 83211.6079 | P15: 83323.93026 | Q15: 83206.60631 | R15: 82911.90881 | S15: 82484.53089 | T15: 81962.40015 | U15: 81377.41275 | V15: 80756.10108 | W15: 80120.24449 | X15: 79487.43 | Y15: 78871.56775 | Z15: 78871.56775 | AA15: 78871.56775 | AB15: 78871.56775 | AC15: 78871.56775 | AD15: 78871.56775 | AE15: 78871.56775 | AF15: 78871.56775 | AG15: 78871.56775 | AH15: 78871.56775 | AI15: 78871.56775
C16: =C15+1 -> 3 | D16: =OFFSET(CONDITION_BAND_CODE,'16 - Area by Year'!C16-1,0) -> R | E16: 60000 | F16: 60000 | G16: 60000 | H16: 60440 | I16: 61348 | J16: 62570.4 | K16: 63985.2 | L16: 65496.704 | M16: 67031.0608 | N16: 68532.49824 | O16: 69960.13584 | P16: 71285.28305 | Q16: 72489.14777 | R16: 73560.89362 | S16: 74495.99514 | T16: 75294.84872 | U16: 75961.60386 | V16: 76503.18475 | W16: 76928.47638 | X16: 77247.65319 | Y16: 77471.63087 | Z16: 77471.63087 | AA16: 77471.63087 | AB16: 77471.63087 | AC16: 77471.63087 | AD16: 77471.63087 | AE16: 77471.63087 | AF16: 77471.63087 | AG16: 77471.63087 | AH16: 77471.63087 | AI16: 77471.63087
A17: =INT((ROW()-8)/current_conditionBands)+1 -> 4 | B17: =OFFSET(ASSET_GROUP_NAME,A17-1,0) -> DU | C17: 1 | D17: =OFFSET(CONDITION_BAND_CODE,'16 - Area by Year'!C17-1,0) -> G | E17: 60000 | F17: 79000 | G17: 96100 | H17: 111490 | I17: 109341 | J17: 104408.8 | K17: 99976.66 | L17: 96003.124 | M17: 92453.0436 | N17: 89295.54208 | O17: 86502.58022 | P17: 84047.98006 | Q17: 81906.79248 | R17: 80054.91812 | S17: 78468.91104 | T17: 77125.90962 | U17: 76003.65234 | V17: 75080.54599 | W17: 74335.76199 | X17: 73749.34318 | Y17: 73302.30833 | Z17: 73302.30833 | AA17: 73302.30833 | AB17: 73302.30833 | AC17: 73302.30833 | AD17: 73302.30833 | AE17: 73302.30833 | AF17: 73302.30833 | AG17: 73302.30833 | AH17: 73302.30833 | AI17: 73302.30833
C18: =C17+1 -> 2 | D18: =OFFSET(CONDITION_BAND_CODE,'16 - Area by Year'!C18-1,0) -> A | E18: 60000 | F18: 60000 | G18: 61900 | H18: 65320 | I18: 69937 | J18: 73877.4 | K18: 76930.54 | L18: 79235.152 | M18: 80911.9492 | N18: 82066.05864 | O18: 82789.00698 | P18: 83160.36431 | Q18: 83249.12588 | R18: 83114.89254 | S18: 82808.8951 | T18: 82374.89669 | U18: 81849.99799 | V18: 81265.36342 | W18: 80646.88168 | X18: 80015.76971 | Y18: 79389.12706 | Z18: 79389.12706 | AA18: 79389.12706 | AB18: 79389.12706 | AC18: 79389.12706 | AD18: 79389.12706 | AE18: 79389.12706 | AF18: 79389.12706 | AG18: 79389.12706 | AH18: 79389.12706 | AI18: 79389.12706
C19: =C18+1 -> 3 | D19: =OFFSET(CONDITION_BAND_CODE,'16 - Area by Year'!C19-1,0) -> R | E19: 60000 | F19: 60000 | G19: 60000 | H19: 60190 | I19: 60703 | J19: 61626.4 | K19: 62851.5 | L19: 64259.404 | M19: 65756.9788 | N19: 67272.47584 | O19: 68751.83412 | P19: 70155.55141 | Q19: 71456.0327 | R19: 72635.34202 | S19: 73683.29707 | T19: 74595.85687 | U19: 75373.76085 | V19: 76021.38457 | W19: 76545.78245 | X19: 76955.89238 | Y19: 77261.88011 | Z19: 77261.88011 | AA19: 77261.88011 | AB19: 77261.88011 | AC19: 77261.88011 | AD19: 77261.88011 | AE19: 77261.88011 | AF19: 77261.88011 | AG19: 77261.88011 | AH19: 77261.88011 | AI19: 77261.88011
A20: =INT((ROW()-8)/current_conditionBands)+1 -> 5 | B20: =OFFSET(ASSET_GROUP_NAME,A20-1,0) -> SR | C20: 1 | D20: =OFFSET(CONDITION_BAND_CODE,'16 - Area by Year'!C20-1,0) -> G
C21: =C20+1 -> 2 | D21: =OFFSET(CONDITION_BAND_CODE,'16 - Area by Year'!C21-1,0) -> A
C22: =C21+1 -> 3 | D22: =OFFSET(CONDITION_BAND_CODE,'16 - Area by Year'!C22-1,0) -> R
A23: =INT((ROW()-8)/current_conditionBands)+1 -> 6 | B23: =OFFSET(ASSET_GROUP_NAME,A23-1,0) -> SU | C23: 1 | D23: =OFFSET(CONDITION_BAND_CODE,'16 - Area by Year'!C23-1,0) -> G
C24: =C23+1 -> 2 | D24: =OFFSET(CONDITION_BAND_CODE,'16 - Area by Year'!C24-1,0) -> A
C25: =C24+1 -> 3 | D25: =OFFSET(CONDITION_BAND_CODE,'16 - Area by Year'!C25-1,0) -> R

Sheet 16 - Graph Data (hidden)
A1: Year | B1: 2020 | C1: 2021 | D1: 2022 | E1: 2023 | F1: 2024 | G1: 2025 | H1: 2026 | I1: 2027 | J1: 2028 | K1: 2029 | L1: 2030 | M1: 2031 | N1: 2032 | O1: 2033 | P1: 2034 | Q1: 2035 | R1: 2036 | S1: 2037 | T1: 2038 | U1: 2039 | V1: 2040 | W1: 2041 | X1: 2042 | Y1: 2043 | Z1: 2044 | AA1: 2045 | AB1: 2046 | AC1: 2047 | AD1: 2048 | AE1: 2049 | AF1: 2050 | AG1: 2051 | AH1: 2052 | AI1: 2053 | AJ1: 2054 | AK1: 2055 | AL1: 2056 | AM1: 2057 | AN1: 2058 | AO1: 2059 | AP1: 2060 | AQ1: 2061 | AR1: 2062 | AS1: 2063 | AT1: 2064 | AU1: 2065 | AV1: 2066 | AW1: 2067 | AX1: 2068 | AY1: 2069 | AZ1: 2070 | BA1: 2071 | BB1: 2072 | BC1: 2073 | BD1: 2074 | BE1: 2075 | BF1: 2076 | BG1: 2077 | BH1: 2078 | BI1: 2079
A2: G | B2: 0 | C2: 0 | D2: 0 | E2: 0 | F2: 0 | G2: 0 | H2: 0 | I2: 0 | J2: 0 | K2: 0 | L2: 0 | M2: 0 | N2: 0 | O2: 0 | P2: 0 | Q2: 0 | R2: 0 | S2: 0 | T2: 0 | U2: 0 | V2: 0 | W2: 0 | X2: 0 | Y2: 0 | Z2: 0 | AA2: 0 | AB2: 0 | AC2: 0 | AD2: 0 | AE2: 0
A3: A | B3: 0 | C3: 0 | D3: 0 | E3: 0 | F3: 0 | G3: 0 | H3: 0 | I3: 0 | J3: 0 | K3: 0 | L3: 0 | M3: 0 | N3: 0 | O3: 0 | P3: 0 | Q3: 0 | R3: 0 | S3: 0 | T3: 0 | U3: 0 | V3: 0 | W3: 0 | X3: 0 | Y3: 0 | Z3: 0 | AA3: 0 | AB3: 0 | AC3: 0 | AD3: 0 | AE3: 0
A4: R | B4: 0 | C4: 0 | D4: 0 | E4: 0 | F4: 0 | G4: 0 | H4: 0 | I4: 0 | J4: 0 | K4: 0 | L4: 0 | M4: 0 | N4: 0 | O4: 0 | P4: 0 | Q4: 0 | R4: 0 | S4: 0 | T4: 0 | U4: 0 | V4: 0 | W4: 0 | X4: 0 | Y4: 0 | Z4: 0 | AA4: 0 | AB4: 0 | AC4: 0 | AD4: 0 | AE4: 0
A5: P | B5: 0 | C5: 0 | D5: 0 | E5: 0 | F5: 0 | G5: 0 | H5: 0 | I5: 0 | J5: 0 | K5: 0 | L5: 0 | M5: 0 | N5: 0 | O5: 0 | P5: 0 | Q5: 0 | R5: 0 | S5: 0 | T5: 0 | U5: 0
A6: VP | B6: 66000 | C6: 6000 | D6: 6000 | E6: 6000 | F6: 6006 | G6: 6021.6 | H6: 6048.6 | I6: 6087.48 | J6: 6137.7816 | K6: 6198.40896 | L6: 6267.86376 | M6: 6344.426256 | N6: 6426.292446 | O6: 6511.675647 | P6: 6598.879379 | Q6: 6686.347267 | R6: 6772.694722 | S6: 6856.726327 | T6: 6937.442186 | U6: 7014.035921
A7: CB#6 | B7: 0 | C7: 0 | D7: 0 | E7: 0 | F7: 0 | G7: 0 | H7: 0 | I7: 0 | J7: 0 | K7: 0 | L7: 0 | M7: 0 | N7: 0 | O7: 0 | P7: 0 | Q7: 0 | R7: 0 | S7: 0 | T7: 0 | U7: 0 | V7: 0 | W7: 0 | X7: 0 | Y7: 0 | Z7: 0
A8: 0
A9: CB#8 | B9: 0 | C9: 0 | D9: 0 | E9: 0 | F9: 0 | G9: 0 | H9: 0 | I9: 0 | J9: 0 | K9: 0 | L9: 0 | M9: 0 | N9: 0 | O9: 0 | P9: 0 | Q9: 0 | R9: 0 | S9: 0 | T9: 0 | U9: 0 | V9: 0 | W9: 0 | X9: 0 | Y9: 0 | Z9: 0
A10: CB#9 | B10: 0 | C10: 0 | D10: 0 | E10: 0 | F10: 0 | G10: 0 | H10: 0 | I10: 0 | J10: 0 | K10: 0 | L10: 0 | M10: 0 | N10: 0 | O10: 0 | P10: 0 | Q10: 0 | R10: 0 | S10: 0 | T10: 0 | U10: 0 | V10: 0 | W10: 0 | X10: 0 | Y10: 0 | Z10: 0
A11: CB#10 | B11: 0 | C11: 0 | D11: 0 | E11: 0 | F11: 0 | G11: 0 | H11: 0 | I11: 0 | J11: 0 | K11: 0 | L11: 0 | M11: 0 | N11: 0 | O11: 0 | P11: 0 | Q11: 0 | R11: 0 | S11: 0 | T11: 0 | U11: 0 | V11: 0 | W11: 0 | X11: 0 | Y11: 0 | Z11: 0

Sheet Deterioration Graph (hidden)
A1: yr | B1: =OFFSET(CONDITION_BAND_CODE,COLUMN()-2,0) -> G | C1: A | D1: R | E1: 0 | F1: 0 | G1: 0 | H1: 0 | I1: 0 | J1: 0 | K1: 0
A2: 0 | B2: 1 | C2: 0 | D2: 0 | E2: 0 | F2: 0 | G2: 0 | H2: 0.05 | I2: 0.05 | J2: 0.05 | K2: 0.05
A3: 1 | B3: 0.9 | C3: 0.1 | D3: 0 | E3: 0 | F3: 0 | G3: 0 | H3: 0.1 | I3: 0.1 | J3: 0.05 | K3: 0.05
A4: 2 | B4: 0.81 | C4: 0.18 | D4: 0.01 | E4: 0 | F4: 0 | G4: 0.03 | H4: 0.12 | I4: 0.2 | J4: 0.05 | K4: 0.05
A5: 3 | B5: 0.729 | C5: 0.243 | D5: 0.027 | E5: 0.001 | F5: 0 | G5: 0.1375 | H5: 0.131 | I5: 0.32 | J5: 0.05 | K5: 0.05
A6: 4 | B6: 0.6561 | C6: 0.2916 | D6: 0.0486 | E6: 0.0036 | F6: 0.0001 | G6: 0.33725 | H6: 0.122 | I6: 0.451 | J6: 0.05 | K6: 0.05
A7: 5 | B7: 0.59049 | C7: 0.32805 | D7: 0.0729 | E7: 0.0081 | F7: 0.00046 | G7: 0.54539375 | H7: 0.1122875 | I7: 0.573 | J7: 0.05 | K7: 0.05
A8: 6 | B8: 0.531441 | C8: 0.354294 | D8: 0.098415 | E8: 0.01458 | F8: 0.00127 | G8: 0.709905625 | H8: 0.08193 | I8: 0.6852875 | J8: 0.05 | K8: 0.05
A9: 7 | B9: 0.4782969 | C9: 0.3720087 | D9: 0.1240029 | E9: 0.0229635 | F9: 0.002728 | G9: 0.8233781719 | H9: 0.05371384375 | I9: 0.7672175 | J9: 0.05 | K9: 0.05
A10: 8 | B10: 0.43046721 | C10: 0.38263752 | D10: 0.14880348 | E10: 0.03306744 | F10: 0.00502435 | G10: 0.8958747797 | H10: 0.03320141875 | I10: 0.8209313437 | J10: 0.05 | K10: 0.05
A11: 9 | B11: 0.387420489 | C11: 0.387420489 | D11: 0.172186884 | E11: 0.044641044 | F11: 0.008331094 | G11: 0.9400261821 | H11: 0.01976805492 | I11: 0.8541327625 | J11: 0.05 | K11: 0.05
A12: 10 | B12: 0.3486784401 | C12: 0.387420489 | D12: 0.1937102445 | E12: 0.057395628 | F12: 0.0127951984 | G12: 0.9660568787 | H12: 0.01146694409 | I12: 0.8739008174 | J12: 0.05 | K12: 0.05
A13: 11 | B13: 0.3138105961 | C13: 0.3835462841 | D13: 0.213081269 | E13: 0.07102708965 | F13: 0.0185347612 | G13: 0.9810502419 | H13: 0.006524815907 | I13: 0.8853677615 | J13: 0.05 | K13: 0.05
A14: 12 | B14: 0.2824295365 | C14: 0.3765727153 | D14: 0.2301277705 | E14: 0.08523250758 | F14: 0.02563747017 | G14: 0.9895360085 | H14: 0.003658062663 | I14: 0.8918925774 | J14: 0.05 | K14: 0.05
A15: 13 | B15: 0.2541865828 | C15: 0.3671583974 | D15: 0.244772265 | E15: 0.09972203387 | F15: 0.03416072092 | G15: 0.994273446 | H15: 0.002026856101 | I15: 0.8955506401 | J15: 0.05 | K15: 0.05
A16: 14 | B16: 0.2287679245 | C16: 0.355861216 | D16: 0.2570108782 | E16: 0.114227057 | F16: 0.04413292431 | G16: 0.9968894435 | H16: 0.001112340047 | I16: 0.8975774962 | J16: 0.05 | K16: 0.05
A17: 15 | B17: 0.2058911321 | C17: 0.3431518868 | D17: 0.266895912 | E17: 0.1285054391 | F17: 0.05555563001 | G17: 0.998321082 | H17: 0.0006056259637 | I17: 0.8986898362 | J17: 0.05 | K17: 0.05
A18: 16 | B18: 0.1853020189 | C18: 0.3294258114 | D18: 0.2745215095 | E18: 0.1423444864 | F18: 0.06840617392 | G18: 0.9990987211 | H18: 0.0003275409432 | I18: 0.8992954622 | J18: 0.05 | K18: 0.05
A19: 17 | B19: 0.166771817 | C19: 0.3150134321 | D19: 0.2800119396 | E19: 0.1555621887 | F19: 0.08264062256 | G19: 0.9995184506 | H19: 0.0001761344509 | I19: 0.8996230031 | J19: 0.05 | K19: 0.05
A20: 18 | B20: 0.1500946353 | C20: 0.3001892706 | D20: 0.2835120889 | E20: 0.1680071638 | F20: 0.09819684143 | G20: 0.9997437703 | H20: 9.424921495e-05 | I20: 0.8997991376 | J20: 0.05 | K20: 0.05
A21: 19 | B21: 0.1350851718 | C21: 0.2851798071 | D21: 0.2851798071 | E21: 0.1795576563 | F21: 0.1149975578 | G21: 0.9998641577 | H21: 5.021560219e-05 | I21: 0.8998933868 | J21: 0.05 | K21: 0.05
A22: 20 | B22: 0.1215766546 | C22: 0.2701703435 | D22: 0.2851798071 | E22: 0.1901198714 | F22: 0.1329533234 | G22: 0.9999282151 | H22: 2.665329844e-05 | I22: 0.8999436024 | J22: 0.05 | K22: 0.05
A23: 21 | B23: 0.1094189891 | C23: 0.2553109746 | D23: 0.2836788607 | E23: 0.1996258649 | F23: 0.1519653106
A24: 22 | B24: 0.09847709022 | C24: 0.2407217761 | D24: 0.2808420721 | E24: 0.2080311645 | F24: 0.1719278971
A25: 23 | B25: 0.0886293812 | C25: 0.2264973075 | D25: 0.2768300425 | E25: 0.2153122553 | F25: 0.1927310135
A26: 24 | B26: 0.07976644308 | C26: 0.2127105149 | D26: 0.271796769 | E26: 0.221464034 | F26: 0.214262239
A27: 25 | B27: 0.07178979877 | C27: 0.1994161077 | D27: 0.2658881436 | E27: 0.2264973075 | F27: 0.2364086424
A28: 26 | B28: 0.06461081889 | C28: 0.1866534768 | D28: 0.25924094 | E28: 0.2304363911 | F28: 0.2590583732
A29: 27 | B29: 0.058149737 | C29: 0.174449211 | D29: 0.2519821937 | E29: 0.233316846 | F29: 0.2821020123
A30: 28 | B30: 0.0523347633 | C30: 0.1628192636 | D30: 0.2442288954 | E30: 0.2351833808 | F30: 0.3054336969
A31: 29 | B31: 0.04710128697 | C31: 0.1517708136 | D31: 0.2360879322 | E31: 0.2360879322 | F31: 0.328952035
A32: 30 | B32: 0.04239115828 | C32: 0.1413038609 | D32: 0.2276562204 | E32: 0.2360879322 | F32: 0.3525608282

Sheet System (hidden)
A1: DO NOT EDIT THIS WORKSHEET
AB2: Graph Titles | AH2: Colours For Condition Based Graphs | AT2: Colours For Treatment Based Graphs | AY2: Expenditure By Condition Graph Selections
A3: Improvement in Condition | D3: Asset Groups | E3: Scenarios | F3: Strategies | H3: Transition Matrix | J3: List of Treatment Strategies | M3: List of Budgets | P3: Error Messages | S3: List of Performance Targets | V3: List of Performance Expressions | Z3: All Treatments | AB3: Sheet | AC3: Title | AE3: Asset Groups - after-treatment list | AS3: Treat Num | AU3: R | AV3: G | AW3: B | AY3: # Assets | AZ3: 1
A4: VG | D4: Total Expenditure | F4: Do Nothing | H4: Unselected | J4: 1 | K4: =TREATSTRAT_NAME_FIRST -> Treatment Strategy 1 | M4: 1 | N4: =BUDGETS_NAME_FIRST -> 0 | P4: 1 | Q4: Error: The treatment selected no longer exists on the input sheet. | S4: 1 | T4: =CONDITION_BAND_CODE -> G | V4: 1 | W4: >= | Z4: All Treatments | AB4: 9 | AC4: ="Asset: " & cond_graph_subnet_choice & " Scenario: " & OFFSET('7 - Scenario'!D8,(MATCH(cond_graph_subnet_choice,subnets_pick_range,0)-1)*4,0) ->  | AE4: No Change | AG4: RED | AH4: 0 | AI4: 0 | AJ4: 0 | AK4: 0 | AL4: 0 | AM4: 0 | AN4: 0 | AO4: 0 | AS4: 1 | AT4: [Color 17] | AU4: 153 | AV4: 153 | AW4: 255 | AY4: Asset List | AZ4: 0
A5: G | D5: ='0 - Input Sheet'!M13 -> MR | E5: 1 | F5: Subnetwork 1 | G5: 1 | H5: Scanner:Strat&Main:Rur | J5: =J4+1 -> 2 | K5: =IF(CURRENT_TREATMENT_STRATEGIES>=J5,OFFSET(TREATSTRAT_NAME_FIRST,CURRENT_TREATMENT_STEPS*(System!J5-1),0),"") ->  | M5: =M4+1 -> 2 | N5: =IF(CURRENT_BUDGETS>=M5,OFFSET(BUDGETS_NAME_FIRST,current_treatmentTypes*(System!M5-1),0),IF(CURRENT_BUDGETS+1=M5,"Overall","")) -> 0 | P5: =P4+1 -> 2 | Q5: Error: The condition band selected no longer exists on the input sheet. | S5: =S4+1 -> 2 | T5: =CONDITION_BAND_CODE & " & " &'0 - Input Sheet'!G14 -> G & A | V5: =V4+1 -> 2 | W5: = | Y5: 1 | Z5: =TREATMENT_TYPE_NAME -> Treatment 1 | AB5: 11 | AC5: ="Asset: " & work_qty_picklist & " Scenario: " & OFFSET('7 - Scenario'!D8,(MATCH(work_qty_picklist,subnets_pick_range,0)-1)*4,0) ->  | AE5: ='0 - Input Sheet'!M13 -> MR | AH5: 51 | AI5: 51 | AJ5: 0 | AK5: 0 | AL5: 0 | AM5: 0 | AN5: 0 | AO5: 255 | AP5: 1 | AR5: 0, 128, 0 | AS5: 2 | AU5: 255 | AV5: 255 | AW5: 0 | AZ5: 1
A6: A | D6: ='0 - Input Sheet'!M14 -> MU | E6: 1 | F6: Subnetworks 2 to 4 | G6: =G5+1 -> 2 | H6: Scanner:Secondary:Urb | J6: =J5+1 -> 3 | K6: =IF(CURRENT_TREATMENT_STRATEGIES>=J6,OFFSET(TREATSTRAT_NAME_FIRST,CURRENT_TREATMENT_STEPS*(System!J6-1),0),"") ->  | M6: =M5+1 -> 3 | N6: =IF(CURRENT_BUDGETS>=M6,OFFSET(BUDGETS_NAME_FIRST,current_treatmentTypes*(System!M6-1),0),IF(CURRENT_BUDGETS+1=M6,"Overall","")) -> Overall | P6: 3 | Q6: Error: Select a treatment type and condition band. | S6: =S5+1 -> 3 | T6: =OFFSET(CONDITION_BAND_CODE,current_conditionBands-1,0) & " & " & OFFSET(CONDITION_BAND_CODE, current_conditionBands-2,0) -> R & A | V6: 3 | W6: <= | Y6: 2 | Z6: =OFFSET(TREATMENT_TYPE_NAME,Y6-1,0) -> Treatment 2 | AB6: 13 | AE6: ='0 - Input Sheet'!M14 -> MU | AH6: 0 | AI6: 0 | AJ6: 153 | AK6: 153 | AL6: 153 | AM6: 255 | AN6: 255 | AO6: 255 | AP6: 2 | AR6: 153, 204, 0 | AS6: 3 | AT6: [Color 19] | AU6: 255 | AV6: 255 | AW6: 204
A7: None | D7: ='0 - Input Sheet'!M15 -> DR | E7: 1 | G7: =G6+1 -> 3 | H7: Scanner:Secondary:Rur | J7: 4 | K7: =IF(CURRENT_TREATMENT_STRATEGIES>=J7,OFFSET(TREATSTRAT_NAME_FIRST,CURRENT_TREATMENT_STEPS*(System!J7-1),0),"") ->  | M7: 4 | N7: =IF(CURRENT_BUDGETS>=M7,OFFSET(BUDGETS_NAME_FIRST,current_treatmentTypes*(System!M7-1),0),IF(CURRENT_BUDGETS+1=M7,"Overall","")) ->  | P7: 4 | S7: =S6+1 -> 4 | T7: =OFFSET(CONDITION_BAND_CODE,current_conditionBands-1,0) -> R | Y7: 3 | Z7: 0 | AB7: 15 | AC7: =IF(exp_by_treat_picklist=System!D4,System!D4,"Asset: " & exp_by_treat_picklist & " Scenario: " & OFFSET('7 - Scenario'!D8,(MATCH(exp_by_treat_picklist,subnets_pick_range,0)-1)*4,0)) ->  | AE7: ='0 - Input Sheet'!M15 -> DR | AH7: 153 | AI7: 153 | AJ7: 255 | AK7: 255 | AL7: 255 | AM7: 255 | AN7: 255 | AP7: 3 | AR7: 0, 255, 0 | AS7: 4 | AT7: [Color 20] | AU7: 204 | AV7: 255 | AW7: 255
D8: ='0 - Input Sheet'!M16 -> DU | E8: 1 | G8: 4 | H8: Scanner:Link:Urb | J8: 5 | K8: =IF(CURRENT_TREATMENT_STRATEGIES>=J8,OFFSET(TREATSTRAT_NAME_FIRST,CURRENT_TREATMENT_STEPS*(System!J8-1),0),"") ->  | M8: 5 | N8: =IF(CURRENT_BUDGETS>=M8,OFFSET(BUDGETS_NAME_FIRST,current_treatmentTypes*(System!M8-1),0),IF(CURRENT_BUDGETS+1=M8,"Overall","")) ->  | P8: 5 | Y8: 4 | Z8: 0 | AE8: ='0 - Input Sheet'!M16 -> DU | AH8: 255 | AI8: 255 | AJ8: 255 | AK8: 255 | AL8: 255 | AM8: 255 | AP8: 4 | AR8: 255, 255, 0 | AS8: 5 | AT8: [Color 21] | AU8: 102 | AV8: 0 | AW8: 102
A9: Yes/No | D9: ='0 - Input Sheet'!M17 -> SR | E9: 1 | G9: 5 | H9: Scanner:Link:Rur | J9: 6 | K9: =IF(CURRENT_TREATMENT_STRATEGIES>=J9,OFFSET(TREATSTRAT_NAME_FIRST,CURRENT_TREATMENT_STEPS*(System!J9-1),0),"") ->  | M9: 6 | N9: =IF(CURRENT_BUDGETS>=M9,OFFSET(BUDGETS_NAME_FIRST,current_treatmentTypes*(System!M9-1),0),IF(CURRENT_BUDGETS+1=M9,"Overall","")) ->  | P9: 6 | Y9: 5 | Z9: 0 | AE9: ='0 - Input Sheet'!M17 -> SR | AH9: 255 | AI9: 255 | AJ9: 255 | AK9: 255 | AL9: 255 | AP9: 5 | AR9: 255, 255, 153 | AS9: 6 | AT9: [Color 22] | AU9: 255 | AV9: 128 | AW9: 128
A10: Y | D10: ='0 - Input Sheet'!M18 -> SU | E10: 1 | G10: 6 | H10: Scanner:Local:Urb&Rur | J10: 7 | K10: =IF(CURRENT_TREATMENT_STRATEGIES>=J10,OFFSET(TREATSTRAT_NAME_FIRST,CURRENT_TREATMENT_STEPS*(System!J10-1),0),"") ->  | M10: 7 | N10: =IF(CURRENT_BUDGETS>=M10,OFFSET(BUDGETS_NAME_FIRST,current_treatmentTypes*(System!M10-1),0),IF(CURRENT_BUDGETS+1=M10,"Overall","")) ->  | P10: 7 | Y10: 6 | Z10: 0 | AE10: ='0 - Input Sheet'!M18 -> SU | AH10: 255 | AI10: 255 | AJ10: 255 | AK10: 255 | AP10: 6 | AR10: 255, 153, 0 | AS10: 7 | AT10: [Color 23] | AU10: 0 | AV10: 102 | AW10: 204
A11: N | D11: ='0 - Input Sheet'!M19 -> 0 | E11: 1 | G11: 7 | H11: CVI:Strategic:Urban | J11: 8 | K11: =IF(CURRENT_TREATMENT_STRATEGIES>=J11,OFFSET(TREATSTRAT_NAME_FIRST,CURRENT_TREATMENT_STEPS*(System!J11-1),0),"") ->  | M11: 8 | N11: =IF(CURRENT_BUDGETS>=M11,OFFSET(BUDGETS_NAME_FIRST,current_treatmentTypes*(System!M11-1),0),IF(CURRENT_BUDGETS+1=M11,"Overall","")) ->  | P11: 8 | Y11: 7 | Z11: 0 | AE11: ='0 - Input Sheet'!M19 -> 0 | AH11: 255 | AI11: 255 | AJ11: 255 | AP11: 7 | AR11: 255, 102, 0 | AS11: 8 | AT11: [Color 24] | AU11: 204 | AV11: 204 | AW11: 255
D12: ='0 - Input Sheet'!M20 -> 0 | E12: 1 | G12: 8 | H12: CVI:Strategic:Rural | J12: 9 | K12: =IF(CURRENT_TREATMENT_STRATEGIES>=J12,OFFSET(TREATSTRAT_NAME_FIRST,CURRENT_TREATMENT_STEPS*(System!J12-1),0),"") ->  | M12: 9 | N12: =IF(CURRENT_BUDGETS>=M12,OFFSET(BUDGETS_NAME_FIRST,current_treatmentTypes*(System!M12-1),0),IF(CURRENT_BUDGETS+1=M12,"Overall","")) ->  | Y12: 8 | Z12: 0 | AE12: ='0 - Input Sheet'!M20 -> 0 | AH12: 255 | AI12: 255 | AP12: 8 | AR12: 255, 153, 204 | AS12: 9 | AT12: [Color 25] | AU12: 0 | AV12: 0 | AW12: 128
A13: Units | D13: ='0 - Input Sheet'!M21 -> 0 | E13: 1 | G13: 9 | H13: CVI:Main:Urban | J13: 10 | K13: =IF(CURRENT_TREATMENT_STRATEGIES>=J13,OFFSET(TREATSTRAT_NAME_FIRST,CURRENT_TREATMENT_STEPS*(System!J13-1),0),"") ->  | M13: 10 | N13: =IF(CURRENT_BUDGETS>=M13,OFFSET(BUDGETS_NAME_FIRST,current_treatmentTypes*(System!M13-1),0),IF(CURRENT_BUDGETS+1=M13,"Overall","")) ->  | Y13: 9 | Z13: 0 | AE13: ='0 - Input Sheet'!M21 -> 0 | AH13: 255 | AP13: 9 | AR13: 255, 128, 128 | AS13: 10 | AT13: [Color 26] | AU13: 255 | AV13: 0 | AW13: 255
A14: no. | D14: ='0 - Input Sheet'!M22 -> 0 | E14: 1 | G14: 10 | H14: CVI:Main:Rural | J14: 11 | K14: =IF(CURRENT_TREATMENT_STRATEGIES>=J14,OFFSET(TREATSTRAT_NAME_FIRST,CURRENT_TREATMENT_STEPS*(System!J14-1),0),"") ->  | M14: 11 | N14: =IF(CURRENT_BUDGETS>=M14,OFFSET(BUDGETS_NAME_FIRST,current_treatmentTypes*(System!M14-1),0),IF(CURRENT_BUDGETS+1=M14,"Overall","")) ->  | Y14: 10 | Z14: 0 | AE14: ='0 - Input Sheet'!M22 -> 0 | AP14: 10 | AR14: 255, 0, 0
A15: m | D15: ='0 - Input Sheet'!M23 -> 0 | E15: 1 | G15: 11 | H15: CVI:Secondary:Urban | J15: 12 | K15: =IF(CURRENT_TREATMENT_STRATEGIES>=J15,OFFSET(TREATSTRAT_NAME_FIRST,CURRENT_TREATMENT_STEPS*(System!J15-1),0),"") ->  | M15: 12 | N15: =IF(CURRENT_BUDGETS>=M15,OFFSET(BUDGETS_NAME_FIRST,current_treatmentTypes*(System!M15-1),0),IF(CURRENT_BUDGETS+1=M15,"Overall","")) ->  | AE15: ='0 - Input Sheet'!M23 -> 0 | AG15: GREEN | AH15: 128 | AI15: 128 | AJ15: 128 | AK15: 128 | AL15: 128 | AM15: 128 | AN15: 128 | AO15: 128
A16: m² | D16: ='0 - Input Sheet'!M24 -> 0 | E16: 1 | G16: 12 | H16: CVI:Secondary:Rural | J16: 13 | K16: =IF(CURRENT_TREATMENT_STRATEGIES>=J16,OFFSET(TREATSTRAT_NAME_FIRST,CURRENT_TREATMENT_STEPS*(System!J16-1),0),"") ->  | M16: 13 | N16: =IF(CURRENT_BUDGETS>=M16,OFFSET(BUDGETS_NAME_FIRST,current_treatmentTypes*(System!M16-1),0),IF(CURRENT_BUDGETS+1=M16,"Overall","")) ->  | AE16: ='0 - Input Sheet'!M24 -> 0 | AH16: 153 | AI16: 153 | AJ16: 255 | AK16: 255 | AL16: 255 | AM16: 255 | AN16: 255 | AO16: 255
D17: ='0 - Input Sheet'!M25 -> 0 | E17: 1 | G17: 13 | H17: CVI:Link:Urban | J17: 14 | K17: =IF(CURRENT_TREATMENT_STRATEGIES>=J17,OFFSET(TREATSTRAT_NAME_FIRST,CURRENT_TREATMENT_STEPS*(System!J17-1),0),"") ->  | M17: 14 | N17: =IF(CURRENT_BUDGETS>=M17,OFFSET(BUDGETS_NAME_FIRST,current_treatmentTypes*(System!M17-1),0),IF(CURRENT_BUDGETS+1=M17,"Overall","")) ->  | AE17: ='0 - Input Sheet'!M25 -> 0 | AH17: 255 | AI17: 255 | AJ17: 204 | AK17: 204 | AL17: 204 | AM17: 255 | AN17: 255 | AO17: 0
A18: Months | D18: ='0 - Input Sheet'!M26 -> 0 | E18: 1 | G18: 14 | H18: CVI:Link:Rural | J18: 15 | K18: =IF(CURRENT_TREATMENT_STRATEGIES>=J18,OFFSET(TREATSTRAT_NAME_FIRST,CURRENT_TREATMENT_STEPS*(System!J18-1),0),"") ->  | M18: 15 | N18: =IF(CURRENT_BUDGETS>=M18,OFFSET(BUDGETS_NAME_FIRST,current_treatmentTypes*(System!M18-1),0),IF(CURRENT_BUDGETS+1=M18,"Overall","")) ->  | AE18: ='0 - Input Sheet'!M26 -> 0 | AH18: 204 | AI18: 204 | AJ18: 255 | AK18: 255 | AL18: 255 | AM18: 204 | AN18: 0
A19: 1 | B19: January | D19: ='0 - Input Sheet'!M27 -> 0 | E19: 1 | G19: 15 | H19: CVI:Local:Urban | J19: 16 | K19: =IF(CURRENT_TREATMENT_STRATEGIES>=J19,OFFSET(TREATSTRAT_NAME_FIRST,CURRENT_TREATMENT_STEPS*(System!J19-1),0),"") ->  | M19: 16 | N19: =IF(CURRENT_BUDGETS>=M19,OFFSET(BUDGETS_NAME_FIRST,current_treatmentTypes*(System!M19-1),0),IF(CURRENT_BUDGETS+1=M19,"Overall","")) ->  | AE19: ='0 - Input Sheet'!M27 -> 0 | AH19: 255 | AI19: 255 | AJ19: 255 | AK19: 255 | AL19: 204 | AM19: 0
A20: 2 | B20: February | D20: ='0 - Input Sheet'!M28 -> 0 | E20: 1 | G20: 16 | H20: CVI:Local:Rural | J20: 17 | K20: =IF(CURRENT_TREATMENT_STRATEGIES>=J20,OFFSET(TREATSTRAT_NAME_FIRST,CURRENT_TREATMENT_STEPS*(System!J20-1),0),"") ->  | M20: 17 | N20: =IF(CURRENT_BUDGETS>=M20,OFFSET(BUDGETS_NAME_FIRST,current_treatmentTypes*(System!M20-1),0),IF(CURRENT_BUDGETS+1=M20,"Overall","")) ->  | AE20: ='0 - Input Sheet'!M28 -> 0 | AH20: 255 | AI20: 255 | AJ20: 255 | AK20: 204 | AL20: 0
A21: 3 | B21: March | D21: ='0 - Input Sheet'!M29 -> 0 | E21: 1 | G21: 17 | H21: Strategic & Main | J21: 18 | K21: =IF(CURRENT_TREATMENT_STRATEGIES>=J21,OFFSET(TREATSTRAT_NAME_FIRST,CURRENT_TREATMENT_STEPS*(System!J21-1),0),"") ->  | M21: 18 | N21: =IF(CURRENT_BUDGETS>=M21,OFFSET(BUDGETS_NAME_FIRST,current_treatmentTypes*(System!M21-1),0),IF(CURRENT_BUDGETS+1=M21,"Overall","")) ->  | AE21: ='0 - Input Sheet'!M29 -> 0 | AH21: 255 | AI21: 255 | AJ21: 204 | AK21: 0
A22: 4 | B22: April | D22: ='0 - Input Sheet'!M30 -> 0 | E22: 1 | G22: 18 | H22: <New> | J22: 19 | K22: =IF(CURRENT_TREATMENT_STRATEGIES>=J22,OFFSET(TREATSTRAT_NAME_FIRST,CURRENT_TREATMENT_STEPS*(System!J22-1),0),"") ->  | M22: 19 | N22: =IF(CURRENT_BUDGETS>=M22,OFFSET(BUDGETS_NAME_FIRST,current_treatmentTypes*(System!M22-1),0),IF(CURRENT_BUDGETS+1=M22,"Overall","")) ->  | AE22: ='0 - Input Sheet'!M30 -> 0 | AH22: 204 | AI22: 204 | AJ22: 0
A23: 5 | B23: May | D23: ='0 - Input Sheet'!M31 -> 0 | E23: 1 | G23: 19 | H23: Local | J23: 20 | K23: =IF(CURRENT_TREATMENT_STRATEGIES>=J23,OFFSET(TREATSTRAT_NAME_FIRST,CURRENT_TREATMENT_STEPS*(System!J23-1),0),"") ->  | M23: 20 | N23: =IF(CURRENT_BUDGETS>=M23,OFFSET(BUDGETS_NAME_FIRST,current_treatmentTypes*(System!M23-1),0),IF(CURRENT_BUDGETS+1=M23,"Overall","")) ->  | AE23: ='0 - Input Sheet'!M31 -> 0 | AH23: 102 | AI23: 0
A24: 6 | B24: June | D24: ='0 - Input Sheet'!M32 -> 0 | E24: 1 | G24: 20 | H24: Local | J24: 21 | K24: =IF(CURRENT_TREATMENT_STRATEGIES>=J24,OFFSET(TREATSTRAT_NAME_FIRST,CURRENT_TREATMENT_STEPS*(System!J24-1),0),"") ->  | M24: 21 | N24: =IF(CURRENT_BUDGETS>=M24,OFFSET(BUDGETS_NAME_FIRST,current_treatmentTypes*(System!M24-1),0),IF(CURRENT_BUDGETS+1=M24,"Overall","")) ->  | AE24: ='0 - Input Sheet'!M32 -> 0 | AH24: 0
A25: 7 | B25: July | D25: ='0 - Input Sheet'!M33 -> 0 | E25: 1 | G25: 21 | H25: Link | J25: 22 | K25: =IF(CURRENT_TREATMENT_STRATEGIES>=J25,OFFSET(TREATSTRAT_NAME_FIRST,CURRENT_TREATMENT_STEPS*(System!J25-1),0),"") ->  | M25: 22 | N25: =IF(CURRENT_BUDGETS>=M25,OFFSET(BUDGETS_NAME_FIRST,current_treatmentTypes*(System!M25-1),0),IF(CURRENT_BUDGETS+1=M25,"Overall","")) ->  | AE25: ='0 - Input Sheet'!M33 -> 0
A26: 8 | B26: August | D26: ='0 - Input Sheet'!M34 -> 0 | E26: 1 | G26: 22 | H26: =OFFSET('2 - Transition Matrices'!#REF!,G26-1,0) ->  | J26: 23 | K26: =IF(CURRENT_TREATMENT_STRATEGIES>=J26,OFFSET(TREATSTRAT_NAME_FIRST,CURRENT_TREATMENT_STEPS*(System!J26-1),0),"") ->  | M26: 23 | N26: =IF(CURRENT_BUDGETS>=M26,OFFSET(BUDGETS_NAME_FIRST,current_treatmentTypes*(System!M26-1),0),IF(CURRENT_BUDGETS+1=M26,"Overall","")) ->  | AE26: ='0 - Input Sheet'!M34 -> 0 | AG26: BLUE | AH26: 0 | AI26: 0 | AJ26: 0 | AK26: 0 | AL26: 0 | AM26: 0 | AN26: 0 | AO26: 0
A27: 9 | B27: September | D27: ='0 - Input Sheet'!M35 -> 0 | E27: 1 | G27: 23 | H27: =OFFSET('2 - Transition Matrices'!#REF!,G27-1,0) ->  | J27: 24 | K27: =IF(CURRENT_TREATMENT_STRATEGIES>=J27,OFFSET(TREATSTRAT_NAME_FIRST,CURRENT_TREATMENT_STEPS*(System!J27-1),0),"") ->  | M27: 24 | N27: =IF(CURRENT_BUDGETS>=M27,OFFSET(BUDGETS_NAME_FIRST,current_treatmentTypes*(System!M27-1),0),IF(CURRENT_BUDGETS+1=M27,"Overall","")) ->  | AE27: ='0 - Input Sheet'!M35 -> 0 | AH27: 102 | AI27: 102 | AJ27: 0 | AK27: 0 | AL27: 0 | AM27: 0 | AN27: 0 | AO27: 0
A28: 10 | B28: October | D28: ='0 - Input Sheet'!M36 -> 0 | E28: 1 | G28: 24 | H28: =OFFSET('2 - Transition Matrices'!#REF!,G28-1,0) ->  | J28: 25 | K28: =IF(CURRENT_TREATMENT_STRATEGIES>=J28,OFFSET(TREATSTRAT_NAME_FIRST,CURRENT_TREATMENT_STEPS*(System!J28-1),0),"") ->  | M28: 25 | N28: =IF(CURRENT_BUDGETS>=M28,OFFSET(BUDGETS_NAME_FIRST,current_treatmentTypes*(System!M28-1),0),IF(CURRENT_BUDGETS+1=M28,"Overall","")) ->  | AE28: ='0 - Input Sheet'!M36 -> 0 | AH28: 0 | AI28: 0 | AJ28: 0 | AK28: 0 | AL28: 0 | AM28: 0 | AN28: 0 | AO28: 0
A29: 11 | B29: November | D29: ='0 - Input Sheet'!M37 -> 0 | E29: 1 | G29: 25 | H29: =OFFSET('2 - Transition Matrices'!#REF!,G29-1,0) ->  | J29: 26 | K29: =IF(CURRENT_TREATMENT_STRATEGIES>=J29,OFFSET(TREATSTRAT_NAME_FIRST,CURRENT_TREATMENT_STEPS*(System!J29-1),0),"") ->  | M29: 26 | N29: =IF(CURRENT_BUDGETS>=M29,OFFSET(BUDGETS_NAME_FIRST,current_treatmentTypes*(System!M29-1),0),IF(CURRENT_BUDGETS+1=M29,"Overall","")) ->  | AE29: ='0 - Input Sheet'!M37 -> 0 | AH29: 0 | AI29: 0 | AJ29: 204 | AK29: 153 | AL29: 0 | AM29: 0 | AN29: 0
A30: 12 | B30: December | D30: ='0 - Input Sheet'!M38 -> 0 | E30: 1 | G30: 26 | H30: =OFFSET('2 - Transition Matrices'!#REF!,G30-1,0) ->  | J30: 27 | K30: =IF(CURRENT_TREATMENT_STRATEGIES>=J30,OFFSET(TREATSTRAT_NAME_FIRST,CURRENT_TREATMENT_STEPS*(System!J30-1),0),"") ->  | M30: 27 | N30: =IF(CURRENT_BUDGETS>=M30,OFFSET(BUDGETS_NAME_FIRST,current_treatmentTypes*(System!M30-1),0),IF(CURRENT_BUDGETS+1=M30,"Overall","")) ->  | AE30: ='0 - Input Sheet'!M38 -> 0 | AH30: 204 | AI30: 204 | AJ30: 153 | AK30: 0 | AL30: 0 | AM30: 0
D31: ='0 - Input Sheet'!M39 -> 0 | E31: 1 | G31: 27 | H31: =OFFSET('2 - Transition Matrices'!#REF!,G31-1,0) ->  | J31: 28 | K31: =IF(CURRENT_TREATMENT_STRATEGIES>=J31,OFFSET(TREATSTRAT_NAME_FIRST,CURRENT_TREATMENT_STEPS*(System!J31-1),0),"") ->  | M31: 28 | N31: =IF(CURRENT_BUDGETS>=M31,OFFSET(BUDGETS_NAME_FIRST,current_treatmentTypes*(System!M31-1),0),IF(CURRENT_BUDGETS+1=M31,"Overall","")) ->  | AE31: ='0 - Input Sheet'!M39 -> 0 | AH31: 153 | AI31: 153 | AJ31: 0 | AK31: 0 | AL31: 0
A32: Analysis period: | B32: 30 | D32: ='0 - Input Sheet'!M40 -> 0 | E32: 1 | G32: 28 | H32: =OFFSET('2 - Transition Matrices'!#REF!,G32-1,0) ->  | J32: 29 | K32: =IF(CURRENT_TREATMENT_STRATEGIES>=J32,OFFSET(TREATSTRAT_NAME_FIRST,CURRENT_TREATMENT_STEPS*(System!J32-1),0),"") ->  | M32: 29 | N32: =IF(CURRENT_BUDGETS>=M32,OFFSET(BUDGETS_NAME_FIRST,current_treatmentTypes*(System!M32-1),0),IF(CURRENT_BUDGETS+1=M32,"Overall","")) ->  | AE32: ='0 - Input Sheet'!M40 -> 0 | AH32: 0 | AI32: 0 | AJ32: 0 | AK32: 0
A33: Start Year: | B33: 2020 | D33: ='0 - Input Sheet'!M41 -> 0 | E33: 1 | G33: 29 | H33: =OFFSET('2 - Transition Matrices'!#REF!,G33-1,0) ->  | J33: 30 | K33: =IF(CURRENT_TREATMENT_STRATEGIES>=J33,OFFSET(TREATSTRAT_NAME_FIRST,CURRENT_TREATMENT_STEPS*(System!J33-1),0),"") ->  | M33: 30 | N33: =IF(CURRENT_BUDGETS>=M33,OFFSET(BUDGETS_NAME_FIRST,current_treatmentTypes*(System!M33-1),0),IF(CURRENT_BUDGETS+1=M33,"Overall","")) ->  | AE33: ='0 - Input Sheet'!M41 -> 0 | AH33: 0 | AI33: 0 | AJ33: 0
A34: condition bands: | B34: 3 | D34: ='0 - Input Sheet'!M42 -> 0 | E34: 1 | G34: 30 | H34: =OFFSET('2 - Transition Matrices'!#REF!,G34-1,0) ->  | J34: 31 | K34: =IF(CURRENT_TREATMENT_STRATEGIES>=J34,OFFSET(TREATSTRAT_NAME_FIRST,CURRENT_TREATMENT_STEPS*(System!J34-1),0),"") ->  | M34: 31 | N34: =IF(CURRENT_BUDGETS>=M34,OFFSET(BUDGETS_NAME_FIRST,current_treatmentTypes*(System!M34-1),0),IF(CURRENT_BUDGETS+1=M34,"Overall","")) ->  | AE34: ='0 - Input Sheet'!M42 -> 0 | AH34: 0 | AI34: 0
A35: treatment types: | B35: 2 | D35: ='0 - Input Sheet'!M43 -> 0 | E35: 1 | G35: 31 | H35: =OFFSET('2 - Transition Matrices'!#REF!,G35-1,0) ->  | J35: 32 | K35: =IF(CURRENT_TREATMENT_STRATEGIES>=J35,OFFSET(TREATSTRAT_NAME_FIRST,CURRENT_TREATMENT_STEPS*(System!J35-1),0),"") ->  | M35: 32 | N35: =IF(CURRENT_BUDGETS>=M35,OFFSET(BUDGETS_NAME_FIRST,current_treatmentTypes*(System!M35-1),0),IF(CURRENT_BUDGETS+1=M35,"Overall","")) ->  | AE35: ='0 - Input Sheet'!M43 -> 0 | AH35: 0
A36: asset groups: | B36: 6 | D36: ='0 - Input Sheet'!M44 -> 0 | E36: 1 | G36: 32 | H36: =OFFSET('2 - Transition Matrices'!#REF!,G36-1,0) ->  | J36: 33 | K36: =IF(CURRENT_TREATMENT_STRATEGIES>=J36,OFFSET(TREATSTRAT_NAME_FIRST,CURRENT_TREATMENT_STEPS*(System!J36-1),0),"") ->  | M36: 33 | N36: =IF(CURRENT_BUDGETS>=M36,OFFSET(BUDGETS_NAME_FIRST,current_treatmentTypes*(System!M36-1),0),IF(CURRENT_BUDGETS+1=M36,"Overall","")) ->  | AE36: ='0 - Input Sheet'!M44 -> 0 | AH36: =AH4 & "," & AH15 & "," &AH26 -> 0,128,0 | AI36: =AI4 & "," & AI15 & "," &AI26 -> 0,128,0 | AJ36: 0,128,0 | AK36: 0,128,0 | AL36: 0,128,0 | AM36: 0,128,0 | AN36: 0,128,0 | AO36: 0,128,0
A37: treatment strategies: | B37: 1 | D37: ='0 - Input Sheet'!M45 -> 0 | E37: 1 | G37: 33 | H37: =OFFSET('2 - Transition Matrices'!#REF!,G37-1,0) ->  | J37: 34 | K37: =IF(CURRENT_TREATMENT_STRATEGIES>=J37,OFFSET(TREATSTRAT_NAME_FIRST,CURRENT_TREATMENT_STEPS*(System!J37-1),0),"") ->  | M37: 34 | N37: =IF(CURRENT_BUDGETS>=M37,OFFSET(BUDGETS_NAME_FIRST,current_treatmentTypes*(System!M37-1),0),IF(CURRENT_BUDGETS+1=M37,"Overall","")) ->  | AE37: ='0 - Input Sheet'!M45 -> 0 | AH37: =AH5 & "," & AH16 & "," &AH27 -> 51,153,102 | AI37: 51,153,102 | AJ37: 0,255,0 | AK37: 0,255,0 | AL37: 0,255,0 | AM37: 0,255,0 | AN37: 0,255,0 | AO37: 255,255,0
A38: treatment steps: | B38: 5 | D38: ='0 - Input Sheet'!M46 -> 0 | E38: 1 | G38: 34 | H38: =OFFSET('2 - Transition Matrices'!#REF!,G38-1,0) ->  | J38: 35 | K38: =IF(CURRENT_TREATMENT_STRATEGIES>=J38,OFFSET(TREATSTRAT_NAME_FIRST,CURRENT_TREATMENT_STEPS*(System!J38-1),0),"") ->  | M38: 35 | N38: =IF(CURRENT_BUDGETS>=M38,OFFSET(BUDGETS_NAME_FIRST,current_treatmentTypes*(System!M38-1),0),IF(CURRENT_BUDGETS+1=M38,"Overall","")) ->  | AE38: ='0 - Input Sheet'!M46 -> 0 | AH38: 0,255,0 | AI38: 0,255,0 | AJ38: 153,204,0 | AK38: 153,204,0 | AL38: 153,204,0 | AM38: 255,255,0 | AN38: 255,255,0 | AO38: 255,0,0
A39: budgets | B39: 2 | D39: ='0 - Input Sheet'!M47 -> 0 | E39: 1 | G39: 35 | H39: =OFFSET('2 - Transition Matrices'!#REF!,G39-1,0) ->  | J39: 36 | K39: =IF(CURRENT_TREATMENT_STRATEGIES>=J39,OFFSET(TREATSTRAT_NAME_FIRST,CURRENT_TREATMENT_STEPS*(System!J39-1),0),"") ->  | M39: 36 | N39: =IF(CURRENT_BUDGETS>=M39,OFFSET(BUDGETS_NAME_FIRST,current_treatmentTypes*(System!M39-1),0),IF(CURRENT_BUDGETS+1=M39,"Overall","")) ->  | AE39: ='0 - Input Sheet'!M47 -> 0 | AH39: 153,204,0 | AI39: 153,204,0 | AJ39: 255,255,204 | AK39: 255,255,153 | AL39: 255,255,0 | AM39: 255,204,0 | AN39: 255,0,0
A40: transition matrix | B40: 17 | D40: ='0 - Input Sheet'!M48 -> 0 | E40: 1 | G40: 36 | H40: =OFFSET('2 - Transition Matrices'!#REF!,G40-1,0) ->  | J40: 37 | K40: =IF(CURRENT_TREATMENT_STRATEGIES>=J40,OFFSET(TREATSTRAT_NAME_FIRST,CURRENT_TREATMENT_STEPS*(System!J40-1),0),"") ->  | M40: 37 | N40: =IF(CURRENT_BUDGETS>=M40,OFFSET(BUDGETS_NAME_FIRST,current_treatmentTypes*(System!M40-1),0),IF(CURRENT_BUDGETS+1=M40,"Overall","")) ->  | AE40: ='0 - Input Sheet'!M48 -> 0 | AH40: 255,255,204 | AI40: 255,255,204 | AJ40: 255,255,153 | AK40: 255,255,0 | AL40: 255,204,0 | AM40: 255,0,0
A41: performance targets | B41: 2 | D41: ='0 - Input Sheet'!M49 -> 0 | E41: 1 | G41: 37 | H41: =OFFSET('2 - Transition Matrices'!#REF!,G41-1,0) ->  | J41: 38 | K41: =IF(CURRENT_TREATMENT_STRATEGIES>=J41,OFFSET(TREATSTRAT_NAME_FIRST,CURRENT_TREATMENT_STEPS*(System!J41-1),0),"") ->  | M41: 38 | N41: =IF(CURRENT_BUDGETS>=M41,OFFSET(BUDGETS_NAME_FIRST,current_treatmentTypes*(System!M41-1),0),IF(CURRENT_BUDGETS+1=M41,"Overall","")) ->  | AE41: ='0 - Input Sheet'!M49 -> 0 | AH41: 255,255,153 | AI41: 255,255,153 | AJ41: 255,255,0 | AK41: 255,204,0 | AL41: 255,0,0
A42: perftargetoptions | B42: 4 | D42: ='0 - Input Sheet'!M50 -> 0 | E42: 1 | G42: 38 | H42: =OFFSET('2 - Transition Matrices'!#REF!,G42-1,0) ->  | J42: 39 | K42: =IF(CURRENT_TREATMENT_STRATEGIES>=J42,OFFSET(TREATSTRAT_NAME_FIRST,CURRENT_TREATMENT_STEPS*(System!J42-1),0),"") ->  | M42: 39 | N42: =IF(CURRENT_BUDGETS>=M42,OFFSET(BUDGETS_NAME_FIRST,current_treatmentTypes*(System!M42-1),0),IF(CURRENT_BUDGETS+1=M42,"Overall","")) ->  | AE42: ='0 - Input Sheet'!M50 -> 0 | AH42: 255,255,0 | AI42: 255,255,0 | AJ42: 255,204,0 | AK42: 255,0,0
A43: cat1 & cat2 visible | B43: TRUE | D43: ='0 - Input Sheet'!M51 -> 0 | E43: 1 | G43: 39 | H43: =OFFSET('2 - Transition Matrices'!#REF!,G43-1,0) ->  | J43: 40 | K43: =IF(CURRENT_TREATMENT_STRATEGIES>=J43,OFFSET(TREATSTRAT_NAME_FIRST,CURRENT_TREATMENT_STEPS*(System!J43-1),0),"") ->  | M43: 40 | N43: =IF(CURRENT_BUDGETS>=M43,OFFSET(BUDGETS_NAME_FIRST,current_treatmentTypes*(System!M43-1),0),IF(CURRENT_BUDGETS+1=M43,"Overall","")) ->  | AE43: ='0 - Input Sheet'!M51 -> 0 | AH43: 255,204,0 | AI43: 255,204,0 | AJ43: 255,0,0
D44: ='0 - Input Sheet'!M52 -> 0 | E44: 1 | G44: 40 | H44: =OFFSET('2 - Transition Matrices'!#REF!,G44-1,0) ->  | J44: 41 | K44: =IF(CURRENT_TREATMENT_STRATEGIES>=J44,OFFSET(TREATSTRAT_NAME_FIRST,CURRENT_TREATMENT_STEPS*(System!J44-1),0),"") ->  | M44: 41 | N44: =IF(CURRENT_BUDGETS>=M44,OFFSET(BUDGETS_NAME_FIRST,current_treatmentTypes*(System!M44-1),0),IF(CURRENT_BUDGETS+1=M44,"Overall","")) ->  | AE44: ='0 - Input Sheet'!M52 -> 0 | AH44: 255,102,0 | AI44: 255,0,0
D45: ='0 - Input Sheet'!M53 -> 0 | E45: 1 | G45: 41 | H45: =OFFSET('2 - Transition Matrices'!#REF!,G45-1,0) ->  | J45: 42 | K45: =IF(CURRENT_TREATMENT_STRATEGIES>=J45,OFFSET(TREATSTRAT_NAME_FIRST,CURRENT_TREATMENT_STEPS*(System!J45-1),0),"") ->  | M45: 42 | N45: =IF(CURRENT_BUDGETS>=M45,OFFSET(BUDGETS_NAME_FIRST,current_treatmentTypes*(System!M45-1),0),IF(CURRENT_BUDGETS+1=M45,"Overall","")) ->  | AE45: ='0 - Input Sheet'!M53 -> 0 | AH45: 255,0,0
D46: ='0 - Input Sheet'!M54 -> 0 | E46: 1 | G46: 42 | H46: =OFFSET('2 - Transition Matrices'!#REF!,G46-1,0) ->  | J46: 43 | K46: =IF(CURRENT_TREATMENT_STRATEGIES>=J46,OFFSET(TREATSTRAT_NAME_FIRST,CURRENT_TREATMENT_STEPS*(System!J46-1),0),"") ->  | M46: 43 | N46: =IF(CURRENT_BUDGETS>=M46,OFFSET(BUDGETS_NAME_FIRST,current_treatmentTypes*(System!M46-1),0),IF(CURRENT_BUDGETS+1=M46,"Overall","")) ->  | AE46: ='0 - Input Sheet'!M54 -> 0
D47: ='0 - Input Sheet'!M55 -> 0 | E47: 1 | G47: 43 | H47: =OFFSET('2 - Transition Matrices'!#REF!,G47-1,0) ->  | J47: 44 | K47: =IF(CURRENT_TREATMENT_STRATEGIES>=J47,OFFSET(TREATSTRAT_NAME_FIRST,CURRENT_TREATMENT_STEPS*(System!J47-1),0),"") ->  | M47: 44 | N47: =IF(CURRENT_BUDGETS>=M47,OFFSET(BUDGETS_NAME_FIRST,current_treatmentTypes*(System!M47-1),0),IF(CURRENT_BUDGETS+1=M47,"Overall","")) ->  | AE47: ='0 - Input Sheet'!M55 -> 0
D48: ='0 - Input Sheet'!M56 -> 0 | E48: 1 | G48: 44 | H48: =OFFSET('2 - Transition Matrices'!#REF!,G48-1,0) ->  | J48: 45 | K48: =IF(CURRENT_TREATMENT_STRATEGIES>=J48,OFFSET(TREATSTRAT_NAME_FIRST,CURRENT_TREATMENT_STEPS*(System!J48-1),0),"") ->  | M48: 45 | N48: =IF(CURRENT_BUDGETS>=M48,OFFSET(BUDGETS_NAME_FIRST,current_treatmentTypes*(System!M48-1),0),IF(CURRENT_BUDGETS+1=M48,"Overall","")) ->  | AE48: ='0 - Input Sheet'!M56 -> 0
D49: ='0 - Input Sheet'!M57 -> 0 | E49: 1 | G49: 45 | H49: =OFFSET('2 - Transition Matrices'!#REF!,G49-1,0) ->  | J49: 46 | K49: =IF(CURRENT_TREATMENT_STRATEGIES>=J49,OFFSET(TREATSTRAT_NAME_FIRST,CURRENT_TREATMENT_STEPS*(System!J49-1),0),"") ->  | M49: 46 | N49: =IF(CURRENT_BUDGETS>=M49,OFFSET(BUDGETS_NAME_FIRST,current_treatmentTypes*(System!M49-1),0),IF(CURRENT_BUDGETS+1=M49,"Overall","")) ->  | AE49: ='0 - Input Sheet'!M57 -> 0
D50: ='0 - Input Sheet'!M58 -> 0 | E50: 1 | G50: 46 | H50: =OFFSET('2 - Transition Matrices'!#REF!,G50-1,0) ->  | J50: 47 | K50: =IF(CURRENT_TREATMENT_STRATEGIES>=J50,OFFSET(TREATSTRAT_NAME_FIRST,CURRENT_TREATMENT_STEPS*(System!J50-1),0),"") ->  | M50: 47 | N50: =IF(CURRENT_BUDGETS>=M50,OFFSET(BUDGETS_NAME_FIRST,current_treatmentTypes*(System!M50-1),0),IF(CURRENT_BUDGETS+1=M50,"Overall","")) ->  | AE50: ='0 - Input Sheet'!M58 -> 0
D51: ='0 - Input Sheet'!M59 -> 0 | E51: 1 | G51: 47 | H51: =OFFSET('2 - Transition Matrices'!#REF!,G51-1,0) ->  | J51: 48 | K51: =IF(CURRENT_TREATMENT_STRATEGIES>=J51,OFFSET(TREATSTRAT_NAME_FIRST,CURRENT_TREATMENT_STEPS*(System!J51-1),0),"") ->  | M51: 48 | N51: =IF(CURRENT_BUDGETS>=M51,OFFSET(BUDGETS_NAME_FIRST,current_treatmentTypes*(System!M51-1),0),IF(CURRENT_BUDGETS+1=M51,"Overall","")) ->  | AE51: ='0 - Input Sheet'!M59 -> 0
D52: ='0 - Input Sheet'!M60 -> 0 | E52: 1 | G52: 48 | H52: =OFFSET('2 - Transition Matrices'!#REF!,G52-1,0) ->  | J52: 49 | K52: =IF(CURRENT_TREATMENT_STRATEGIES>=J52,OFFSET(TREATSTRAT_NAME_FIRST,CURRENT_TREATMENT_STEPS*(System!J52-1),0),"") ->  | M52: 49 | N52: =IF(CURRENT_BUDGETS>=M52,OFFSET(BUDGETS_NAME_FIRST,current_treatmentTypes*(System!M52-1),0),IF(CURRENT_BUDGETS+1=M52,"Overall","")) ->  | AE52: ='0 - Input Sheet'!M60 -> 0
D53: ='0 - Input Sheet'!M61 -> 0 | E53: 1 | G53: 49 | H53: =OFFSET('2 - Transition Matrices'!#REF!,G53-1,0) ->  | J53: 50 | K53: =IF(CURRENT_TREATMENT_STRATEGIES>=J53,OFFSET(TREATSTRAT_NAME_FIRST,CURRENT_TREATMENT_STEPS*(System!J53-1),0),"") ->  | M53: 50 | N53: =IF(CURRENT_BUDGETS>=M53,OFFSET(BUDGETS_NAME_FIRST,current_treatmentTypes*(System!M53-1),0),IF(CURRENT_BUDGETS+1=M53,"Overall","")) ->  | AE53: ='0 - Input Sheet'!M61 -> 0
D54: ='0 - Input Sheet'!M62 -> 0 | E54: 1 | G54: 50 | H54: =OFFSET('2 - Transition Matrices'!#REF!,G54-1,0) ->  | AE54: ='0 - Input Sheet'!M62 -> 0
D55: ='0 - Input Sheet'!M63 -> 0 | E55: 1 | G55: 51 | H55: =OFFSET('2 - Transition Matrices'!#REF!,G55-1,0) ->  | AE55: ='0 - Input Sheet'!M63 -> 0
D56: ='0 - Input Sheet'!M64 -> 0 | E56: 1 | G56: 52 | H56: =OFFSET('2 - Transition Matrices'!#REF!,G56-1,0) ->  | AE56: ='0 - Input Sheet'!M64 -> 0
D57: ='0 - Input Sheet'!M65 -> 0 | E57: 1 | AE57: ='0 - Input Sheet'!M65 -> 0
D58: ='0 - Input Sheet'!M66 -> 0 | E58: 1 | AE58: ='0 - Input Sheet'!M66 -> 0
D59: ='0 - Input Sheet'!M67 -> 0 | E59: 1 | AE59: ='0 - Input Sheet'!M67 -> 0
D60: ='0 - Input Sheet'!M68 -> 0 | E60: 1 | AE60: ='0 - Input Sheet'!M68 -> 0
D61: ='0 - Input Sheet'!M69 -> 0 | E61: 1 | AE61: ='0 - Input Sheet'!M69 -> 0
D62: ='0 - Input Sheet'!M70 -> 0 | E62: 1 | AE62: ='0 - Input Sheet'!M70 -> 0
D63: ='0 - Input Sheet'!M71 -> 0 | E63: 1 | AE63: ='0 - Input Sheet'!M71 -> 0
D64: ='0 - Input Sheet'!M72 -> 0 | E64: 1 | AE64: ='0 - Input Sheet'!M72 -> 0
D65: ='0 - Input Sheet'!M73 -> 0 | E65: 1 | AE65: ='0 - Input Sheet'!M73 -> 0
D66: ='0 - Input Sheet'!M74 -> 0 | E66: 1 | AE66: ='0 - Input Sheet'!M74 -> 0
D67: ='0 - Input Sheet'!M75 -> 0 | E67: 1 | AE67: ='0 - Input Sheet'!M75 -> 0
D68: ='0 - Input Sheet'!M76 -> 0 | E68: 1 | AE68: ='0 - Input Sheet'!M76 -> 0
D69: ='0 - Input Sheet'!M77 -> 0 | E69: 1 | AE69: ='0 - Input Sheet'!M77 -> 0
D70: ='0 - Input Sheet'!M78 -> 0 | E70: 1 | AE70: ='0 - Input Sheet'!M78 -> 0
D71: ='0 - Input Sheet'!M79 -> 0 | E71: 1 | AE71: ='0 - Input Sheet'!M79 -> 0
D72: ='0 - Input Sheet'!M80 -> 0 | E72: 1 | AE72: ='0 - Input Sheet'!M80 -> 0
D73: ='0 - Input Sheet'!M81 -> 0 | E73: 1 | AE73: ='0 - Input Sheet'!M81 -> 0
D74: ='0 - Input Sheet'!M82 -> 0 | E74: 1 | AE74: ='0 - Input Sheet'!M82 -> 0
D75: ='0 - Input Sheet'!M83 -> 0 | E75: 1 | AE75: ='0 - Input Sheet'!M83 -> 0
D76: ='0 - Input Sheet'!M84 -> 0 | E76: 1 | AE76: ='0 - Input Sheet'!M84 -> 0
D77: ='0 - Input Sheet'!M85 -> 0 | E77: 1 | AE77: ='0 - Input Sheet'!M85 -> 0
D78: ='0 - Input Sheet'!M86 -> 0 | E78: 1 | AE78: ='0 - Input Sheet'!M86 -> 0
D79: ='0 - Input Sheet'!M87 -> 0 | E79: 1 | AE79: ='0 - Input Sheet'!M87 -> 0
D80: ='0 - Input Sheet'!M88 -> 0 | E80: 1 | AE80: ='0 - Input Sheet'!M88 -> 0
D81: ='0 - Input Sheet'!M89 -> 0 | E81: 1 | AE81: ='0 - Input Sheet'!M89 -> 0
D82: ='0 - Input Sheet'!M90 -> 0 | E82: 1 | AE82: ='0 - Input Sheet'!M90 -> 0
D83: ='0 - Input Sheet'!M91 -> 0 | E83: 1 | AE83: ='0 - Input Sheet'!M91 -> 0
D84: ='0 - Input Sheet'!M92 -> 0 | E84: 1 | AE84: ='0 - Input Sheet'!M92 -> 0
D85: ='0 - Input Sheet'!M93 -> 0 | E85: 1 | AE85: ='0 - Input Sheet'!M93 -> 0
D86: ='0 - Input Sheet'!M94 -> 0 | E86: 1 | AE86: ='0 - Input Sheet'!M94 -> 0
D87: ='0 - Input Sheet'!M95 -> 0 | E87: 1 | AE87: ='0 - Input Sheet'!M95 -> 0
D88: ='0 - Input Sheet'!M96 -> 0 | E88: 1 | AE88: ='0 - Input Sheet'!M96 -> 0
D89: ='0 - Input Sheet'!M97 -> 0 | E89: 1 | AE89: ='0 - Input Sheet'!M97 -> 0
D90: ='0 - Input Sheet'!M98 -> 0 | E90: 1 | AE90: ='0 - Input Sheet'!M98 -> 0
D91: ='0 - Input Sheet'!M99 -> 0 | E91: 1 | AE91: ='0 - Input Sheet'!M99 -> 0
D92: ='0 - Input Sheet'!M100 -> 0 | E92: 1 | AE92: ='0 - Input Sheet'!M100 -> 0
D93: ='0 - Input Sheet'!M101 -> 0 | E93: 1 | AE93: ='0 - Input Sheet'!M101 -> 0
D94: ='0 - Input Sheet'!M102 -> 0 | E94: 1 | AE94: ='0 - Input Sheet'!M102 -> 0
D95: ='0 - Input Sheet'!M103 -> 0 | E95: 1 | AE95: ='0 - Input Sheet'!M103 -> 0
D96: ='0 - Input Sheet'!M104 -> 0 | E96: 1 | AE96: ='0 - Input Sheet'!M104 -> 0
D97: ='0 - Input Sheet'!M105 -> 0 | E97: 1 | AE97: ='0 - Input Sheet'!M105 -> 0
D98: ='0 - Input Sheet'!M106 -> 0 | E98: 1 | AE98: ='0 - Input Sheet'!M106 -> 0
D99: ='0 - Input Sheet'!M107 -> 0 | E99: 1 | AE99: ='0 - Input Sheet'!M107 -> 0
D100: ='0 - Input Sheet'!M108 -> 0 | E100: 1 | AE100: ='0 - Input Sheet'!M108 -> 0
D101: ='0 - Input Sheet'!M109 -> 0 | E101: 1 | AE101: ='0 - Input Sheet'!M109 -> 0
D102: ='0 - Input Sheet'!M110 -> 0 | E102: 1 | AE102: ='0 - Input Sheet'!M110 -> 0
D103: ='0 - Input Sheet'!M111 -> 0 | E103: 1 | AE103: ='0 - Input Sheet'!M111 -> 0
D104: ='0 - Input Sheet'!M112 -> 0 | E104: 1 | AE104: ='0 - Input Sheet'!M112 -> 0
D105: ='0 - Input Sheet'!M113 -> 0 | E105: 1 | AE105: ='0 - Input Sheet'!M113 -> 0

Sheet Traffic
F2: Traffic Inputs
H6: OGV1 | I6: OGV2
D7: No Road Types | E7: 6 | F7: DfT | G7: Motorway | H7: 33 | I7: 67 | J7: All road types
D8: No Analysis Yrs | E8: 30 | F8: Model | G8: Built-up Principal | H8: 69 | I8: 31 | J8: By road type
D9: Start Year | E9: 2020 | G9: Non Built-up Principal | H9: 58 | I9: 42
G10: Other | H10: 50 | I10: 50
D13: Traffic Data - annual thousand veh km | G13: Data Entry Format | I13: DfT
L14: Model required data format
D15: No. | E15: Road Type | F15: Class (used for OGV1:OGV2 splits) | G15: Cars and taxis | H15: Motorbikes | I15: Light vans | J15: Goods vehicles | K15: Buses and coaches | L15: Cars | M15: LGV | N15: OGV1 | O15: OGV2 | P15: PSV | Q15: OGV1 split | R15: OGV2 split
D16: =ROW()-15 -> 1 | E16: MR | F16: =VLOOKUP('Standard Inputs'!F18,Defaults!$A$18:$D$29,4,FALSE) -> Motorway | G16: 338864 | H16: 1184 | I16: 67535 | J16: 36730 | K16: 1184 | L16: =IF(TPM_Vehkm_Input_Format="Model", G16,G16+H16) -> 340048 | M16: =IF(TPM_Vehkm_Input_Format="Model", H16,I16) -> 67535 | N16: =IF(TPM_Vehkm_Input_Format="Model",I16,ROUND(J16*(VLOOKUP(F16,$G$7:$I$10,2,FALSE)/100),0)) -> 12121 | O16: =IF(TPM_Vehkm_Input_Format="Model", J16,ROUND(J16*(VLOOKUP(F16,$G$7:$I$10,3,FALSE)/100),0)) -> 24609 | P16: =K16 -> 1184 | Q16: =VLOOKUP($F16,$G$7:$I$10,2,FALSE) -> 33 | R16: =VLOOKUP($F16,$G$7:$I$10,3,FALSE) -> 67
D17: 2 | E17: MU | F17: =VLOOKUP('Standard Inputs'!F19,Defaults!$A$18:$D$29,4,FALSE) -> Motorway | G17: 37651 | H17: 131 | I17: 7503 | J17: 4081 | K17: 131 | L17: 37782 | M17: 7503 | N17: 1347 | O17: 2734 | P17: 131 | Q17: =VLOOKUP($F17,$G$7:$I$10,2,FALSE) -> 33 | R17: =VLOOKUP($F17,$G$7:$I$10,3,FALSE) -> 67
D18: 3 | E18: DR | F18: =VLOOKUP('Standard Inputs'!F20,Defaults!$A$18:$D$29,4,FALSE) -> Non Built-up Principal | G18: 104267 | H18: 1008 | I18: 22789 | J18: 8067 | K18: 605 | L18: 105275 | M18: 22789 | N18: 4679 | O18: 3388 | P18: 605 | Q18: 58 | R18: 42
D19: 4 | E19: DU | F19: =VLOOKUP('Standard Inputs'!F21,Defaults!$A$18:$D$29,4,FALSE) -> Built-up Principal | G19: 428 | H19: 0 | I19: 79 | J19: 19 | K19: 0 | L19: 428 | M19: 79 | N19: 13 | O19: 6 | P19: 0 | Q19: 69 | R19: 31
D20: 5 | E20: SR | F20: =VLOOKUP('Standard Inputs'!F22,Defaults!$A$18:$D$29,4,FALSE) -> Non Built-up Principal | G20: 831942 | H20: 8045 | I20: 181836 | J20: 64366 | K20: 4827 | L20: 839987 | M20: 181836 | N20: 37332 | O20: 27034 | P20: 4827 | Q20: 58 | R20: 42
D21: 6 | E21: SU | F21: =VLOOKUP('Standard Inputs'!F23,Defaults!$A$18:$D$29,4,FALSE) -> Built-up Principal | G21: 59756 | H21: 0 | I21: 11031 | J21: 2757 | K21: 0 | L21: =IF(TPM_Vehkm_Input_Format="Model", G21,G21+H21) -> 59756 | M21: =IF(TPM_Vehkm_Input_Format="Model", H21,I21) -> 11031 | N21: =IF(TPM_Vehkm_Input_Format="Model",I21,ROUND(J21*(VLOOKUP(F21,$G$7:$I$10,2,FALSE)/100),0)) -> 1902 | O21: =IF(TPM_Vehkm_Input_Format="Model", J21,ROUND(J21*(VLOOKUP(F21,$G$7:$I$10,3,FALSE)/100),0)) -> 855 | P21: =K21 -> 0 | Q21: =VLOOKUP($F21,$G$7:$I$10,2,FALSE) -> 69 | R21: =VLOOKUP($F21,$G$7:$I$10,3,FALSE) -> 31
D67: Traffic Growth Data - annual growth (%) | G67: Data Entry Format | I67: All road types
D69: No. | E69: Road Type | F69: Vehicle | G69: 2020 | H69: 2021 | I69: 2022 | J69: 2023 | K69: 2024 | L69: 2025 | M69: 2026 | N69: 2027 | O69: 2028 | P69: 2029 | Q69: 2030 | R69: 2031 | S69: 2032 | T69: 2033 | U69: 2034 | V69: 2035 | W69: 2036 | X69: 2037 | Y69: 2038 | Z69: 2039 | AA69: 2040 | AB69: 2041 | AC69: 2042 | AD69: 2043 | AE69: 2044 | AF69: 2045 | AG69: 2046 | AH69: 2047 | AI69: 2048 | AJ69: 2049
D70: =ROW()-69 -> 1 | E70: All | F70: Cars and taxis | G70: 1.628601515 | H70: 1.08886737 | I70: 1.077138757 | J70: 1.065660119 | K70: 1.054423548 | L70: 1.043421466 | M70: 0.9223606308 | N70: 0.913930892 | O70: 0.9056538418 | P70: 0.8975253688 | Q70: 0.8895415081 | R70: 0.9582408605 | S70: 0.949145758 | T70: 0.9402216838 | U70: 0.9314638586 | V70: 0.9228676797 | W70: 0.7734011823 | X70: 0.7674655943 | Y70: 0.7616204196 | Z70: 0.7558636081 | AA70: 0.7501931709 | AB70: 0.641996098 | AC70: 0.6379007997 | AD70: 0.6338574182 | AE70: 0.6298649724 | AF70: 0.6259225057 | AG70: 0.5521990835 | AH70: 0.5491665906 | AI70: 0.5461672227 | AJ70: 0.5432004399
D71: =ROW()-69 -> 2 | E71: All | F71: Motorbikes | G71: 1.628601515 | H71: 1.08886737 | I71: 1.077138757 | J71: 1.065660119 | K71: 1.054423548 | L71: 1.043421466 | M71: 0.9223606308 | N71: 0.913930892 | O71: 0.9056538418 | P71: 0.8975253688 | Q71: 0.8895415081 | R71: 0.9582408605 | S71: 0.949145758 | T71: 0.9402216838 | U71: 0.9314638586 | V71: 0.9228676797 | W71: 0.7734011823 | X71: 0.7674655943 | Y71: 0.7616204196 | Z71: 0.7558636081 | AA71: 0.7501931709 | AB71: 0.641996098 | AC71: 0.6379007997 | AD71: 0.6338574182 | AE71: 0.6298649724 | AF71: 0.6259225057 | AG71: 0.5521990835 | AH71: 0.5491665906 | AI71: 0.5461672227 | AJ71: 0.5432004399
D72: 3 | E72: All | F72: Light vans | G72: 1.797331945 | H72: 0.6710010158 | I72: 0.6665286021 | J72: 0.6621154135 | K72: 0.6577602813 | L72: 0.6534620674 | M72: 0.968445249 | N72: 0.9591563449 | O72: 0.9500439382 | P72: 0.9411030458 | Q72: 0.9323288704 | R72: 1.36740177 | S72: 1.34895612 | T72: 1.331001494 | U72: 1.313518543 | V72: 1.29648892 | W72: 1.289989777 | X72: 1.273560971 | Y72: 1.257545364 | Z72: 1.241927561 | AA72: 1.226692924 | AB72: 1.018804691 | AC72: 1.008529742 | AD72: 0.9984599766 | AE72: 0.9885893081 | AF72: 0.9789118898 | AG72: 0.7694309159 | AH72: 0.7635558809 | AI72: 0.7577698844 | AJ72: 0.7520709174
D73: 4 | E73: All | F73: Goods vehicles | G73: -0.029403995 | H73: -0.03610759194 | I73: -0.03612063423 | J73: -0.03613368595 | K73: -0.0361467471 | L73: -0.0361598177 | M73: 0.07745891522 | N73: 0.07739896283 | O73: 0.07733910316 | P73: 0.07727933602 | Q73: 0.07721966118 | R73: 0.3081280668 | S73: 0.3071815542 | T73: 0.3062408388 | U73: 0.3053058676 | V73: 0.304376588 | W73: 0.3463196159 | X73: 0.3451243824 | Y73: 0.3439373707 | Z73: 0.3427584961 | AA73: 0.3415876754 | AB73: 0.3284170057 | AC73: 0.3273419591 | AD73: 0.3262739276 | AE73: 0.3252128429 | AF73: 0.3241586374 | AG73: 0.2918189479 | AH73: 0.2909698428 | AI73: 0.2901256646 | AJ73: 0.2892863706
D74: 5 | E74: All | F74: Buses and coaches | G74: -2.175560662 | H74: 0 | I74: 0 | J74: 0 | K74: 0 | L74: 0 | M74: 0 | N74: 0 | O74: 0 | P74: 0 | Q74: 0 | R74: 0 | S74: 0 | T74: 0 | U74: 0 | V74: 0 | W74: 0 | X74: 0 | Y74: 0 | Z74: 0 | AA74: 0 | AB74: 0 | AC74: 0 | AD74: 0 | AE74: 0 | AF74: 0 | AG74: 0 | AH74: 0 | AI74: 0 | AJ74: 0

Sheet Treatment Impacts
F2: Treatment Impacts
E8: No Road Types | F8: 6 | H8: High
E9: No Analysis Yrs | F9: 30 | H9: Central
E10: Start Year | F10: 2020 | H10: Low
E11: No Treatments | F11: 2
D13: Carbon Cost | F13: Central
D16: No. | E16: Road Type | F16: Delay Lookup | G16: Maintenance closure split (%) | L16: Output Rates - sq.m / hr
G17: 24hr closures | H17: Off-peak closures | I17: Night closures | L17: Treatment 1 | M17: Treatment 2
D18: =ROW()-17 -> 1 | E18: MR | F18: =VLOOKUP('Standard Inputs'!F18,Defaults!$A$18:$D$29,2,FALSE) -> M-way Rural | G18: 0 | H18: 0 | I18: 100 | J18: =IF(SUM(G18:I18)=100, "ü", "û") -> ü | L18: 320 | M18: 320
D19: =ROW()-17 -> 2 | E19: MU | F19: =VLOOKUP('Standard Inputs'!F19,Defaults!$A$18:$D$29,2,FALSE) -> M-way Urban | G19: 0 | H19: 0 | I19: 100 | J19: ü | L19: 320 | M19: 320
D20: 3 | E20: DR | F20: =VLOOKUP('Standard Inputs'!F20,Defaults!$A$18:$D$29,2,FALSE) -> A-Road Rural Dual | G20: 0 | H20: 0 | I20: 100 | J20: ü | L20: 256 | M20: 256
D21: 4 | E21: DU | F21: =VLOOKUP('Standard Inputs'!F21,Defaults!$A$18:$D$29,2,FALSE) -> A-Road Urban Dual | G21: 0 | H21: 0 | I21: 100 | J21: =IF(SUM(G21:I21)=100, "ü", "û") -> ü | L21: 229 | M21: 229
D22: 5 | E22: SR | F22: =VLOOKUP('Standard Inputs'!F22,Defaults!$A$18:$D$29,2,FALSE) -> A-Road Rural Single | G22: 20 | H22: 10 | I22: 70 | J22: ü | L22: 103 | M22: 103
D23: =ROW()-17 -> 6 | E23: SU | F23: =VLOOKUP('Standard Inputs'!F23,Defaults!$A$18:$D$29,2,FALSE) -> A-Road Urban Single | G23: 20 | H23: 10 | I23: 70 | J23: ü | L23: 80 | M23: 80

Sheet Road Condition Impacts
F2: Road Condtion Impacts
E9: No Road Types | F9: 6
E12: CO2 produced by vehicle engines
E14: CO2 per litre of petrol (g) | H14: 2071
E15: CO2 per litre of diesel (g) | H15: 2420
E16: CO2 per km of electric (g) | H16: 296

Sheet Accidents
F2: Accident Analysis
C10: Accident Record
C11: Severity | D11: Number of Accidents
C12: Slight | D12: 585
C13: Serious | D13: 170
C14: Fatal | D14: 15
C17: Lighting Related Accidents
C18: Lighting Budget (£k) | D18: Severity | E18: Daylight | F18: Darkness - Lit | G18: Darkness - Unlit | H18: Darkness - Unknown
C19: 380 | D19: Slight | E19: 447 | F19: 20 | G19: 109 | H19: 9 | I19: =IF(D12<>"", IF(SUM(E19:H19)=D12, "ü", "û"), "û") -> ü
D20: Serious | E20: 94 | F20: 16 | G20: 59 | H20: 1 | I20: =IF(D13<>"", IF(SUM(E20:H20)=D13, "ü", "û"), "û") -> ü
D21: Fatal | E21: 9 | F21: 0 | G21: 5 | H21: 1 | I21: =IF(D14<>"", IF(SUM(E21:H21)=D14, "ü", "û"), "û") -> ü
C24: Skid Resistance Impacts
C25: Budget | D25: Budget Level (£k) | F25: Proportion of network with negative SCRIM value (%)
C26: base budget | D26: 540 | F26: 9
C27: ±% | D27: 0.5 | E27: =$D$26+$D$26*D27 -> 810 | F27: 7
C28: ±% | D28: -0.5 | E28: =$D$26+$D$26*D28 -> 270 | F28: 15
C29: ±% | E29: =$D$26+$D$26*D29 -> 540
C30: ±% | E30: =$D$26+$D$26*D30 -> 540
C32: Skid Risk Factor | D32: 1.66

Sheet Job Impacts (hidden)
F2: Job Impacts
C8: Gross Value Added (£k) | D8: 0.1
C9: Employment | D9: 1298000
C10: Turnover (£k) | D10: 0.1
C12: Turnover per Job (£k) | D12: =$D$10/JIAM_Employment -> 7.704160247e-08
C13: GVA per Job (£k) | D13: =$D$8/JIAM_Employment -> 7.704160247e-08
C15: Category | D15: =TEXT(start_year+(COLUMN()-4),"0") -> 2020 | E15: 2021 | F15: 2022 | G15: 2023 | H15: 2024 | I15: 2025 | J15: 2026 | K15: 2027 | L15: 2028 | M15: 2029 | N15: 2030 | O15: 2031 | P15: 2032 | Q15: 2033 | R15: 2034 | S15: 2035 | T15: 2036 | U15: 2037 | V15: 2038 | W15: 2039
C16: Budget (£k) | D16: 0 | E16: 0 | F16: 0 | G16: 0 | H16: 0 | I16: 0 | J16: 0 | K16: 0 | L16: 0 | M16: 0 | N16: 0 | O16: 0 | P16: 0 | Q16: 0 | R16: 0 | S16: 0 | T16: 0 | U16: 0 | V16: 0 | W16: 0
C18: Total Jobs | D18: =D16/$D$12 -> 0 | E18: 0 | F18: =F16/$D$12 -> 0 | G18: 0 | H18: 0 | I18: 0 | J18: 0 | K18: 0 | L18: 0 | M18: 0 | N18: 0 | O18: 0 | P18: 0 | Q18: 0 | R18: 0 | S18: 0 | T18: 0 | U18: 0 | V18: 0 | W18: 0
C19: GVA (£k) | D19: =D18*$D$13 -> 0 | E19: 0 | F19: =F18*$D$13 -> 0 | G19: 0 | H19: 0 | I19: 0 | J19: 0 | K19: 0 | L19: 0 | M19: 0 | N19: 0 | O19: 0 | P19: 0 | Q19: 0 | R19: 0 | S19: 0 | T19: 0 | U19: 0 | V19: 0 | W19: 0

Sheet Condition Bands to IRI Tables
A1: =F4 -> 
F2: Condition Bands to IRI conversion
B3: Number of Condition Bands: | C3: 3
B4: Number of Asset Groups: | C4: 6 | F4: =IF(CCI_CB=sinput_condition_bands,IF(CCI_Assets=sinput_road_types,"","Tables need Recreating. Number of assets has changed."),"Tables need Recreating. Number of condition bands has changed.") -> 
C5: =IF(C6="", "", "WARNING!") -> 
A6: A-Road Urban | C6: =IF(IRI_Error_Asset="", "", CONCATENATE(IRI_Error_Asset_Text,IRI_Error_Asset)) -> 
A7: A-Road Rural | C7: =IF(IRI_Error_CB="", "", CONCATENATE(IRI_Error_CB_Text,IRI_Error_CB)) -> 
A8: B-Road Urban
A9: B-Road Rural
A10: C-Road Urban
A11: C-Road Rural | C11: MR
A12: M-way Urban | B12: IRI | C12: 0-1 | D12: 1-2 | E12: 2-3 | F12: 3-4 | G12: 4-5 | H12: 5-6 | I12: 6-7 | J12: 7-8 | K12: 8-9 | L12: 9-10 | M12: 10+
A13: M-way Rural | B13: G | C13: 0.02 | D13: 0.08 | E13: 0.2 | F13: 0.35 | G13: 0.22 | H13: 0.08 | I13: 0.03 | J13: 0.02 | K13: 0 | L13: 0 | M13: 0 | N13: =IF(SUM(C13:M13)=1, "ü", "û") -> ü
A14: U-Road Urban | B14: A | C14: 0 | D14: 0.04 | E14: 0.11 | F14: 0.2 | G14: 0.3 | H14: 0.19 | I14: 0.08 | J14: 0.04 | K14: 0.04 | L14: 0 | M14: 0 | N14: =IF(SUM(C14:M14)=1, "ü", "û") -> ü
A15: U-Road Rural | B15: R | C15: 0 | D15: 0 | E15: 0.01 | F15: 0.04 | G15: 0.07 | H15: 0.13 | I15: 0.16 | J15: 0.18 | K15: 0.19 | L15: 0.15 | M15: 0.07 | N15: =IF(SUM(C15:M15)=1, "ü", "û") -> ü
C17: MU
B18: IRI | C18: 0-1 | D18: 1-2 | E18: 2-3 | F18: 3-4 | G18: 4-5 | H18: 5-6 | I18: 6-7 | J18: 7-8 | K18: 8-9 | L18: 9-10 | M18: 10+
B19: G | C19: 0 | D19: 0.04 | E19: 0.1 | F19: 0.18 | G19: 0.28 | H19: 0.22 | I19: 0.11 | J19: 0.05 | K19: 0.02 | L19: 0 | M19: 0 | N19: =IF(SUM(C19:M19)=1, "ü", "û") -> ü
B20: A | C20: 0 | D20: 0 | E20: 0.08 | F20: 0.14 | G20: 0.18 | H20: 0.28 | I20: 0.2 | J20: 0.08 | K20: 0.04 | L20: 0 | M20: 0 | N20: =IF(SUM(C20:M20)=1, "ü", "û") -> ü
B21: R | C21: 0 | D21: 0 | E21: 0 | F21: 0.02 | G21: 0.05 | H21: 0.1 | I21: 0.16 | J21: 0.2 | K21: 0.22 | L21: 0.17 | M21: 0.08 | N21: =IF(SUM(C21:M21)=1, "ü", "û") -> ü
C23: DR
B24: IRI | C24: 0-1 | D24: 1-2 | E24: 2-3 | F24: 3-4 | G24: 4-5 | H24: 5-6 | I24: 6-7 | J24: 7-8 | K24: 8-9 | L24: 9-10 | M24: 10+
B25: G | C25: 0 | D25: 0.05 | E25: 0.18 | F25: 0.28 | G25: 0.22 | H25: 0.12 | I25: 0.1 | J25: 0.05 | K25: 0 | L25: 0 | M25: 0 | N25: =IF(SUM(C25:M25)=1, "ü", "û") -> ü
B26: A | C26: 0 | D26: 0.02 | E26: 0.07 | F26: 0.14 | G26: 0.24 | H26: 0.3 | I26: 0.15 | J26: 0.06 | K26: 0.02 | L26: 0 | M26: 0 | N26: =IF(SUM(C26:M26)=1, "ü", "û") -> ü
B27: R | C27: 0 | D27: 0 | E27: 0.01 | F27: 0.04 | G27: 0.07 | H27: 0.12 | I27: 0.19 | J27: 0.21 | K27: 0.17 | L27: 0.11 | M27: 0.08 | N27: =IF(SUM(C27:M27)=1, "ü", "û") -> ü
C29: DU
B30: IRI | C30: 0-1 | D30: 1-2 | E30: 2-3 | F30: 3-4 | G30: 4-5 | H30: 5-6 | I30: 6-7 | J30: 7-8 | K30: 8-9 | L30: 9-10 | M30: 10+
B31: G | C31: 0 | D31: 0.04 | E31: 0.16 | F31: 0.28 | G31: 0.2 | H31: 0.14 | I31: 0.1 | J31: 0.06 | K31: 0.02 | L31: 0 | M31: 0 | N31: =IF(SUM(C31:M31)=1, "ü", "û") -> ü
B32: A | C32: 0 | D32: 0 | E32: 0.06 | F32: 0.13 | G32: 0.22 | H32: 0.27 | I32: 0.17 | J32: 0.09 | K32: 0.04 | L32: 0.02 | M32: 0 | N32: =IF(SUM(C32:M32)=1, "ü", "û") -> ü
B33: R | C33: 0 | D33: 0 | E33: 0 | F33: 0.02 | G33: 0.06 | H33: 0.13 | I33: 0.19 | J33: 0.21 | K33: 0.18 | L33: 0.12 | M33: 0.09 | N33: =IF(SUM(C33:M33)=1, "ü", "û") -> ü
C35: SR
B36: IRI | C36: 0-1 | D36: 1-2 | E36: 2-3 | F36: 3-4 | G36: 4-5 | H36: 5-6 | I36: 6-7 | J36: 7-8 | K36: 8-9 | L36: 9-10 | M36: 10+
B37: G | C37: 0 | D37: 0 | E37: 0.08 | F37: 0.16 | G37: 0.28 | H37: 0.2 | I37: 0.12 | J37: 0.07 | K37: 0.05 | L37: 0.04 | M37: 0 | N37: =IF(SUM(C37:M37)=1, "ü", "û") -> ü
B38: A | C38: 0 | D38: 0 | E38: 0 | F38: 0.06 | G38: 0.15 | H38: 0.2 | I38: 0.28 | J38: 0.14 | K38: 0.1 | L38: 0.05 | M38: 0.02 | N38: =IF(SUM(C38:M38)=1, "ü", "û") -> ü
B39: R | C39: 0 | D39: 0 | E39: 0 | F39: 0 | G39: 0.07 | H39: 0.13 | I39: 0.19 | J39: 0.28 | K39: 0.16 | L39: 0.11 | M39: 0.06 | N39: =IF(SUM(C39:M39)=1, "ü", "û") -> ü
C41: SU
B42: IRI | C42: 0-1 | D42: 1-2 | E42: 2-3 | F42: 3-4 | G42: 4-5 | H42: 5-6 | I42: 6-7 | J42: 7-8 | K42: 8-9 | L42: 9-10 | M42: 10+
B43: G | C43: 0 | D43: 0 | E43: 0.04 | F43: 0.1 | G43: 0.17 | H43: 0.24 | I43: 0.19 | J43: 0.12 | K43: 0.07 | L43: 0.05 | M43: 0.02 | N43: =IF(SUM(C43:M43)=1, "ü", "û") -> ü
B44: A | C44: 0 | D44: 0 | E44: 0 | F44: 0.04 | G44: 0.12 | H44: 0.18 | I44: 0.24 | J44: 0.18 | K44: 0.12 | L44: 0.08 | M44: 0.04 | N44: =IF(SUM(C44:M44)=1, "ü", "û") -> ü
B45: R | C45: 0 | D45: 0 | E45: 0 | F45: 0 | G45: 0.02 | H45: 0.07 | I45: 0.14 | J45: 0.235 | K45: 0.245 | L45: 0.18 | M45: 0.11 | N45: =IF(SUM(C45:M45)=1, "ü", "û") -> ü

Sheet Base Vehicle Speeds
F2: Base Vehicle Speeds
E14: Base Vehicle Speeds (mph)
E16: Road Type | F16: VOC Lookup Group | G16: Vehicle Type
G17: Car | H17: LGV | I17: OGV1 | J17: OGV2 | K17: PSV
E18: MR | F18: =VLOOKUP('Standard Inputs'!F18,Defaults!$A$18:$D$29,3,FALSE) -> M-way | G18: 70 | H18: 70 | I18: 60 | J18: 60 | K18: 70 | L18: =VLOOKUP(F18, 'Road Condition Impacts Lookup'!$A$1:$G$5,7, FALSE) -> Road_M
E19: MU | F19: =VLOOKUP('Standard Inputs'!F19,Defaults!$A$18:$D$29,3,FALSE) -> M-way | G19: 50 | H19: 50 | I19: 50 | J19: 50 | K19: 50 | L19: =VLOOKUP(F19, 'Road Condition Impacts Lookup'!$A$1:$G$5,7, FALSE) -> Road_M
E20: DR | F20: =VLOOKUP('Standard Inputs'!F20,Defaults!$A$18:$D$29,3,FALSE) -> A-Road | G20: 60 | H20: 60 | I20: 50 | J20: 50 | K20: 60 | L20: =VLOOKUP(F20, 'Road Condition Impacts Lookup'!$A$1:$G$5,7, FALSE) -> Road_A
E21: DU | F21: =VLOOKUP('Standard Inputs'!F21,Defaults!$A$18:$D$29,3,FALSE) -> A-Road | G21: 30 | H21: 30 | I21: 30 | J21: 30 | K21: 30 | L21: =VLOOKUP(F21, 'Road Condition Impacts Lookup'!$A$1:$G$5,7, FALSE) -> Road_A
E22: SR | F22: =VLOOKUP('Standard Inputs'!F22,Defaults!$A$18:$D$29,3,FALSE) -> A-Road | G22: 60 | H22: 50 | I22: 40 | J22: 40 | K22: 50 | L22: =VLOOKUP(F22, 'Road Condition Impacts Lookup'!$A$1:$G$5,7, FALSE) -> Road_A
E23: SU | F23: =VLOOKUP('Standard Inputs'!F23,Defaults!$A$18:$D$29,3,FALSE) -> A-Road | G23: 30 | H23: 30 | I23: 30 | J23: 30 | K23: 30 | L23: =VLOOKUP(F23, 'Road Condition Impacts Lookup'!$A$1:$G$5,7, FALSE) -> Road_A

Sheet Projected Traffic
F2: Projected Traffic Output
D11: Traffic Data - annual thousand veh km
D13: No. | E13: Road Type | F13: Vehicle | G13: 2020 | H13: 2021 | I13: 2022 | J13: 2023 | K13: 2024 | L13: 2025 | M13: 2026 | N13: 2027 | O13: 2028 | P13: 2029 | Q13: 2030 | R13: 2031 | S13: 2032 | T13: 2033 | U13: 2034 | V13: 2035 | W13: 2036 | X13: 2037 | Y13: 2038 | Z13: 2039 | AA13: 2040 | AB13: 2041 | AC13: 2042 | AD13: 2043 | AE13: 2044 | AF13: 2045 | AG13: 2046 | AH13: 2047 | AI13: 2048 | AJ13: 2049
D14: =ROW()-13 -> 1 | E14: MR | F14: Cars | G14: 340048 | H14: 345586.0269 | I14: 349349.0004 | J14: 353111.9738 | K14: 356874.9473 | L14: 360637.9208 | M14: 364400.8943 | N14: 367761.9847 | O14: 371123.0751 | P14: 374484.1654 | Q14: 377845.2558 | R14: 381206.3462 | S14: 384859.2212 | T14: 388512.0962 | U14: 392164.9711 | V14: 395817.8461 | W14: 399470.7211 | X14: 402560.2324 | Y14: 405649.7436 | Z14: 408739.2549 | AA14: 411828.7662 | AB14: 414918.2775 | AC14: 417582.0366 | AD14: 420245.7958 | AE14: 422909.5549 | AF14: 425573.3141 | AG14: 428237.0732 | AH14: 430601.7944 | AI14: 432966.5156 | AJ14: 435331.2368
D15: =ROW()-13 -> 2 | E15: MR | F15: LGV | G15: 67535 | H15: 68748.82813 | I15: 69210.13346 | J15: 69671.4388 | K15: 70132.74413 | L15: 70594.04947 | M15: 71055.3548 | N15: 71743.48701 | O15: 72431.61922 | P15: 73119.75143 | Q15: 73807.88364 | R15: 74496.01584 | S15: 75514.67568 | T15: 76533.33552 | U15: 77551.99536 | V15: 78570.6552 | W15: 79589.31504 | X15: 80616.00907 | Y15: 81642.70309 | Z15: 82669.39712 | AA15: 83696.09115 | AB15: 84722.78518 | AC15: 85585.94489 | AD15: 86449.1046 | AE15: 87312.26431 | AF15: 88175.42402 | AG15: 89038.58373 | AH15: 89723.67412 | AI15: 90408.76451 | AJ15: 91093.8549
D16: 3 | E16: MR | F16: OGV1 | G16: 12120.9 | H16: 12117.33597 | I16: 12112.96069 | J16: 12108.58541 | K16: 12104.21014 | L16: 12099.83486 | M16: 12095.45958 | N16: 12104.82859 | O16: 12114.1976 | P16: 12123.56662 | Q16: 12132.93563 | R16: 12142.30464 | S16: 12179.71849 | T16: 12217.13234 | U16: 12254.54618 | V16: 12291.96003 | W16: 12329.37388 | X16: 12372.07292 | Y16: 12414.77196 | Z16: 12457.471 | AA16: 12500.17004 | AB16: 12542.86908 | AC16: 12584.062 | AD16: 12625.25491 | AE16: 12666.44783 | AF16: 12707.64074 | AG16: 12748.83366 | AH16: 12786.03717 | AI16: 12823.24068 | AJ16: 12860.4442
D17: 4 | E17: MR | F17: OGV2 | G17: 24609.1 | H17: 24601.86394 | I17: 24592.9808 | J17: 24584.09766 | K17: 24575.21452 | L17: 24566.33138 | M17: 24557.44824 | N17: 24576.47017 | O17: 24595.4921 | P17: 24614.51404 | Q17: 24633.53597 | R17: 24652.5579 | S17: 24728.51935 | T17: 24804.4808 | U17: 24880.44225 | V17: 24956.4037 | W17: 25032.36515 | X17: 25119.05714 | Y17: 25205.74914 | Z17: 25292.44113 | AA17: 25379.13312 | AB17: 25465.82511 | AC17: 25549.45921 | AD17: 25633.09331 | AE17: 25716.72741 | AF17: 25800.36151 | AG17: 25883.99561 | AH17: 25959.53001 | AI17: 26035.06442 | AJ17: 26110.59882
D18: 5 | E18: MR | F18: PSV | G18: 1184 | H18: 1158.241362 | I18: 1158.241362 | J18: 1158.241362 | K18: 1158.241362 | L18: 1158.241362 | M18: 1158.241362 | N18: 1158.241362 | O18: 1158.241362 | P18: 1158.241362 | Q18: 1158.241362 | R18: 1158.241362 | S18: 1158.241362 | T18: 1158.241362 | U18: 1158.241362 | V18: 1158.241362 | W18: 1158.241362 | X18: 1158.241362 | Y18: 1158.241362 | Z18: 1158.241362 | AA18: 1158.241362 | AB18: 1158.241362 | AC18: 1158.241362 | AD18: 1158.241362 | AE18: 1158.241362 | AF18: 1158.241362 | AG18: 1158.241362 | AH18: 1158.241362 | AI18: 1158.241362 | AJ18: 1158.241362
D19: =ROW()-13 -> 6 | E19: MU | F19: Cars | G19: 37782 | H19: 38397.31822 | I19: 38815.41409 | J19: 39233.50996 | K19: 39651.60583 | L19: 40069.7017 | M19: 40487.79757 | N19: 40861.24107 | O19: 41234.68458 | P19: 41608.12808 | Q19: 41981.57159 | R19: 42355.0151 | S19: 42760.87816 | T19: 43166.74122 | U19: 43572.60428 | V19: 43978.46734 | W19: 44384.3304 | X19: 44727.59934 | Y19: 45070.86827 | Z19: 45414.13721 | AA19: 45757.40614 | AB19: 46100.67508 | AC19: 46396.63962 | AD19: 46692.60415 | AE19: 46988.56869 | AF19: 47284.53322 | AG19: 47580.49776 | AH19: 47843.23683 | AI19: 48105.9759 | AJ19: 48368.71497
D20: 7 | E20: MU | F20: LGV | G20: 7503 | H20: 7637.853816 | I20: 7689.103893 | J20: 7740.353969 | K20: 7791.604046 | L20: 7842.854123 | M20: 7894.104199 | N20: 7970.554276 | O20: 8047.004353 | P20: 8123.454431 | Q20: 8199.904508 | R20: 8276.354585 | S20: 8389.525604 | T20: 8502.696623 | U20: 8615.867642 | V20: 8729.038661 | W20: 8842.20968 | X20: 8956.273281 | Y20: 9070.336882 | Z20: 9184.400483 | AA20: 9298.464084 | AB20: 9412.527685 | AC20: 9508.422958 | AD20: 9604.318232 | AE20: 9700.213505 | AF20: 9796.108779 | AG20: 9892.004053 | AH20: 9968.11619 | AI20: 10044.22833 | AJ20: 10120.34046
D21: 8 | E21: MU | F21: OGV1 | G21: 1346.73 | H21: 1346.334008 | I21: 1345.847879 | J21: 1345.36175 | K21: 1344.875621 | L21: 1344.389492 | M21: 1343.903364 | N21: 1344.944337 | O21: 1345.98531 | P21: 1347.026283 | Q21: 1348.067255 | R21: 1349.108228 | S21: 1353.26521 | T21: 1357.422191 | U21: 1361.579172 | V21: 1365.736153 | W21: 1369.893134 | X21: 1374.637343 | Y21: 1379.381551 | Z21: 1384.12576 | AA21: 1388.869969 | AB21: 1393.614177 | AC21: 1398.191043 | AD21: 1402.767909 | AE21: 1407.344775 | AF21: 1411.921641 | AG21: 1416.498507 | AH21: 1420.632118 | AI21: 1424.765729 | AJ21: 1428.89934
D22: 9 | E22: MU | F22: OGV2 | G22: 2734.27 | H22: 2733.466015 | I22: 2732.479027 | J22: 2731.492038 | K22: 2730.505049 | L22: 2729.51806 | M22: 2728.531072 | N22: 2730.644562 | O22: 2732.758053 | P22: 2734.871543 | Q22: 2736.985034 | R22: 2739.098524 | S22: 2747.538456 | T22: 2755.978387 | U22: 2764.418318 | V22: 2772.85825 | W22: 2781.298181 | X22: 2790.930362 | Y22: 2800.562543 | Z22: 2810.194725 | AA22: 2819.826906 | AB22: 2829.459087 | AC22: 2838.751512 | AD22: 2848.043937 | AE22: 2857.336361 | AF22: 2866.628786 | AG22: 2875.921211 | AH22: 2884.313694 | AI22: 2892.706177 | AJ22: 2901.09866
D23: 10 | E23: MU | F23: PSV | G23: 131 | H23: 128.1500155 | I23: 128.1500155 | J23: 128.1500155 | K23: 128.1500155 | L23: 128.1500155 | M23: 128.1500155 | N23: 128.1500155 | O23: 128.1500155 | P23: 128.1500155 | Q23: 128.1500155 | R23: 128.1500155 | S23: 128.1500155 | T23: 128.1500155 | U23: 128.1500155 | V23: 128.1500155 | W23: 128.1500155 | X23: 128.1500155 | Y23: 128.1500155 | Z23: 128.1500155 | AA23: 128.1500155 | AB23: 128.1500155 | AC23: 128.1500155 | AD23: 128.1500155 | AE23: 128.1500155 | AF23: 128.1500155 | AG23: 128.1500155 | AH23: 128.1500155 | AI23: 128.1500155 | AJ23: 128.1500155
D24: =ROW()-13 -> 11 | E24: DR | F24: Cars | G24: 105275 | H24: 106989.5102 | I24: 108154.4841 | J24: 109319.458 | K24: 110484.4318 | L24: 111649.4057 | M24: 112814.3796 | N24: 113854.935 | O24: 114895.4904 | P24: 115936.0458 | Q24: 116976.6013 | R24: 118017.1567 | S24: 119148.0453 | T24: 120278.9339 | U24: 121409.8225 | V24: 122540.7112 | W24: 123671.5998 | X24: 124628.0774 | Y24: 125584.555 | Z24: 126541.0326 | AA24: 127497.5102 | AB24: 128453.9879 | AC24: 129278.6574 | AD24: 130103.327 | AE24: 130927.9966 | AF24: 131752.6662 | AG24: 132577.3358 | AH24: 133309.4266 | AI24: 134041.5175 | AJ24: 134773.6083
D25: 12 | E25: DR | F25: LGV | G25: 22789 | H25: 23198.59398 | I25: 23354.25678 | J25: 23509.91958 | K25: 23665.58238 | L25: 23821.24518 | M25: 23976.90798 | N25: 24209.11121 | O25: 24441.31444 | P25: 24673.51766 | Q25: 24905.72089 | R25: 25137.92411 | S25: 25481.66053 | T25: 25825.39695 | U25: 26169.13337 | V25: 26512.86979 | W25: 26856.60621 | X25: 27203.05369 | Y25: 27549.50116 | Z25: 27895.94863 | AA25: 28242.39611 | AB25: 28588.84358 | AC25: 28880.10806 | AD25: 29171.37254 | AE25: 29462.63702 | AF25: 29753.9015 | AG25: 30045.16598 | AH25: 30276.34278 | AI25: 30507.51957 | AJ25: 30738.69637
D26: 13 | E26: DR | F26: OGV1 | G26: 4678.86 | H26: 4677.484228 | I26: 4675.795301 | J26: 4674.106374 | K26: 4672.417447 | L26: 4670.728521 | M26: 4669.039594 | N26: 4672.656181 | O26: 4676.272768 | P26: 4679.889356 | Q26: 4683.505943 | R26: 4687.122531 | S26: 4701.564871 | T26: 4716.007211 | U26: 4730.449551 | V26: 4744.891891 | W26: 4759.334231 | X26: 4775.816739 | Y26: 4792.299247 | Z26: 4808.781755 | AA26: 4825.264263 | AB26: 4841.746771 | AC26: 4857.647891 | AD26: 4873.549011 | AE26: 4889.45013 | AF26: 4905.35125 | AG26: 4921.25237 | AH26: 4935.613517 | AI26: 4949.974664 | AJ26: 4964.335811
D27: 14 | E27: DR | F27: OGV2 | G27: 3388.14 | H27: 3387.143751 | I27: 3385.920735 | J27: 3384.697719 | K27: 3383.474703 | L27: 3382.251687 | M27: 3381.028671 | N27: 3383.647579 | O27: 3386.266488 | P27: 3388.885396 | Q27: 3391.504304 | R27: 3394.123212 | S27: 3404.581458 | T27: 3415.039704 | U27: 3425.497951 | V27: 3435.956197 | W27: 3446.414443 | X27: 3458.350052 | Y27: 3470.285662 | Z27: 3482.221271 | AA27: 3494.15688 | AB27: 3506.092489 | AC27: 3517.607093 | AD27: 3529.121697 | AE27: 3540.636301 | AF27: 3552.150905 | AG27: 3563.665509 | AH27: 3574.06496 | AI27: 3584.464412 | AJ27: 3594.863863
D28: 15 | E28: DR | F28: PSV | G28: 605 | H28: 591.837858 | I28: 591.837858 | J28: 591.837858 | K28: 591.837858 | L28: 591.837858 | M28: 591.837858 | N28: 591.837858 | O28: 591.837858 | P28: 591.837858 | Q28: 591.837858 | R28: 591.837858 | S28: 591.837858 | T28: 591.837858 | U28: 591.837858 | V28: 591.837858 | W28: 591.837858 | X28: 591.837858 | Y28: 591.837858 | Z28: 591.837858 | AA28: 591.837858 | AB28: 591.837858 | AC28: 591.837858 | AD28: 591.837858 | AE28: 591.837858 | AF28: 591.837858 | AG28: 591.837858 | AH28: 591.837858 | AI28: 591.837858 | AJ28: 591.837858
D29: =ROW()-13 -> 16 | E29: DU | F29: Cars | G29: 428 | H29: 434.9704145 | I29: 439.7066654 | J29: 444.4429163 | K29: 449.1791672 | L29: 453.9154181 | M29: 458.651669 | N29: 462.8820915 | O29: 467.1125139 | P29: 471.3429363 | Q29: 475.5733588 | R29: 479.8037812 | S29: 484.4014571 | T29: 488.9991329 | U29: 493.5968088 | V29: 498.1944847 | W29: 502.7921606 | X29: 506.6807611 | Y29: 510.5693616 | Z29: 514.4579621 | AA29: 518.3465626 | AB29: 522.2351632 | AC29: 525.5878925 | AD29: 528.9406219 | AE29: 532.2933513 | AF29: 535.6460806 | AG29: 538.99881 | AH29: 541.9751565 | AI29: 544.951503 | AJ29: 547.9278495
D30: 17 | E30: DU | F30: LGV | G30: 79 | H30: 80.41989224 | I30: 80.95951053 | J30: 81.49912882 | K30: 82.03874712 | L30: 82.57836541 | M30: 83.11798371 | N30: 83.92293587 | O30: 84.72788803 | P30: 85.5328402 | Q30: 86.33779236 | R30: 87.14274453 | S30: 88.33433596 | T30: 89.52592739 | U30: 90.71751882 | V30: 91.90911025 | W30: 93.10070168 | X30: 94.30169122 | Y30: 95.50268075 | Z30: 96.70367028 | AA30: 97.90465982 | AB30: 99.10564935 | AC30: 100.1153424 | AD30: 101.1250354 | AE30: 102.1347284 | AF30: 103.1444214 | AG30: 104.1541144 | AH30: 104.9555083 | AI30: 105.7569023 | AJ30: 106.5582962
D31: 18 | E31: DU | F31: OGV1 | G31: 13.11 | H31: 13.10614514 | I31: 13.10141282 | J31: 13.09668051 | K31: 13.0919482 | L31: 13.08721588 | M31: 13.08248357 | N31: 13.09261712 | O31: 13.10275067 | P31: 13.11288422 | Q31: 13.12301777 | R31: 13.13315132 | S31: 13.17361824 | T31: 13.21408517 | U31: 13.25455209 | V31: 13.29501902 | W31: 13.33548594 | X31: 13.38166935 | Y31: 13.42785275 | Z31: 13.47403616 | AA31: 13.52021956 | AB31: 13.56640296 | AC31: 13.61095734 | AD31: 13.65551171 | AE31: 13.70006609 | AF31: 13.74462046 | AG31: 13.78917484 | AH31: 13.82941426 | AI31: 13.86965369 | AJ31: 13.90989311
D32: 19 | E32: DU | F32: OGV2 | G32: 5.89 | H32: 5.888268105 | I32: 5.886141993 | J32: 5.884015881 | K32: 5.881889769 | L32: 5.879763657 | M32: 5.877637546 | N32: 5.8821903 | O32: 5.886743054 | P32: 5.891295808 | Q32: 5.895848563 | R32: 5.900401317 | S32: 5.91858211 | T32: 5.936762902 | U32: 5.954943695 | V32: 5.973124487 | W32: 5.99130528 | X32: 6.012054345 | Y32: 6.03280341 | Z32: 6.053552476 | AA32: 6.074301541 | AB32: 6.095050607 | AC32: 6.115067789 | AD32: 6.135084972 | AE32: 6.155102155 | AF32: 6.175119338 | AG32: 6.19513652 | AH32: 6.213215102 | AI32: 6.231293685 | AJ32: 6.249372267
D33: 20 | E33: DU | F33: PSV | G33: 0 | H33: 0 | I33: 0 | J33: 0 | K33: 0 | L33: 0 | M33: 0 | N33: 0 | O33: 0 | P33: 0 | Q33: 0 | R33: 0 | S33: 0 | T33: 0 | U33: 0 | V33: 0 | W33: 0 | X33: 0 | Y33: 0 | Z33: 0 | AA33: 0 | AB33: 0 | AC33: 0 | AD33: 0 | AE33: 0 | AF33: 0 | AG33: 0 | AH33: 0 | AI33: 0 | AJ33: 0
D34: =ROW()-13 -> 21 | E34: SR | F34: Cars | G34: 839987 | H34: 853667.041 | I34: 862962.3429 | J34: 872257.6447 | K34: 881552.9466 | L34: 890848.2484 | M34: 900143.5503 | N34: 908446.12 | O34: 916748.6898 | P34: 925051.2595 | Q34: 933353.8292 | R34: 941656.3989 | S34: 950679.7353 | T34: 959703.0717 | U34: 968726.4081 | V34: 977749.7445 | W34: 986773.0808 | X34: 994404.7955 | Y34: 1002036.51 | Z34: 1009668.225 | AA34: 1017299.94 | AB34: 1024931.654 | AC34: 1031511.675 | AD34: 1038091.697 | AE34: 1044671.718 | AF34: 1051251.739 | AG34: 1057831.76 | AH34: 1063673.098 | AI34: 1069514.435 | AJ34: 1075355.772
D35: 22 | E35: SR | F35: LGV | G35: 181836 | H35: 185104.1965 | I35: 186346.2476 | J35: 187588.2986 | K35: 188830.3496 | L35: 190072.4007 | M35: 191314.4517 | N35: 193167.2274 | O35: 195020.0031 | P35: 196872.7789 | Q35: 198725.5546 | R35: 200578.3303 | S35: 203321.0419 | T35: 206063.7536 | U35: 208806.4652 | V35: 211549.1769 | W35: 214291.8885 | X35: 217056.232 | Y35: 219820.5754 | Z35: 222584.9189 | AA35: 225349.2623 | AB35: 228113.6058 | AC35: 230437.6379 | AD35: 232761.67 | AE35: 235085.7021 | AF35: 237409.7342 | AG35: 239733.7663 | AH35: 241578.3521 | AI35: 243422.9378 | AJ35: 245267.5235
D36: 23 | E36: SR | F36: OGV1 | G36: 37332.28 | H36: 37321.30282 | I36: 37307.82699 | J36: 37294.35117 | K36: 37280.87535 | L36: 37267.39952 | M36: 37253.9237 | N36: 37282.78018 | O36: 37311.63667 | P36: 37340.49316 | Q36: 37369.34964 | R36: 37398.20613 | S36: 37513.4405 | T36: 37628.67486 | U36: 37743.90923 | V36: 37859.1436 | W36: 37974.37797 | X36: 38105.89069 | Y36: 38237.40341 | Z36: 38368.91613 | AA36: 38500.42885 | AB36: 38631.94157 | AC36: 38758.81544 | AD36: 38885.6893 | AE36: 39012.56317 | AF36: 39139.43704 | AG36: 39266.3109 | AH36: 39380.89744 | AI36: 39495.48397 | AJ36: 39610.07051
D37: 24 | E37: SR | F37: OGV2 | G37: 27033.72 | H37: 27025.77101 | I37: 27016.01265 | J37: 27006.2543 | K37: 26996.49594 | L37: 26986.73759 | M37: 26976.97923 | N37: 26997.87531 | O37: 27018.77138 | P37: 27039.66746 | Q37: 27060.56353 | R37: 27081.45961 | S37: 27164.90519 | T37: 27248.35076 | U37: 27331.79634 | V37: 27415.24192 | W37: 27498.6875 | X37: 27593.92085 | Y37: 27689.1542 | Z37: 27784.38754 | AA37: 27879.62089 | AB37: 27974.85424 | AC37: 28066.72842 | AD37: 28158.6026 | AE37: 28250.47678 | AF37: 28342.35096 | AG37: 28434.22514 | AH37: 28517.20159 | AI37: 28600.17805 | AJ37: 28683.15451
D38: 25 | E38: SR | F38: PSV | G38: 4827 | H38: 4721.985687 | I38: 4721.985687 | J38: 4721.985687 | K38: 4721.985687 | L38: 4721.985687 | M38: 4721.985687 | N38: 4721.985687 | O38: 4721.985687 | P38: 4721.985687 | Q38: 4721.985687 | R38: 4721.985687 | S38: 4721.985687 | T38: 4721.985687 | U38: 4721.985687 | V38: 4721.985687 | W38: 4721.985687 | X38: 4721.985687 | Y38: 4721.985687 | Z38: 4721.985687 | AA38: 4721.985687 | AB38: 4721.985687 | AC38: 4721.985687 | AD38: 4721.985687 | AE38: 4721.985687 | AF38: 4721.985687 | AG38: 4721.985687 | AH38: 4721.985687 | AI38: 4721.985687 | AJ38: 4721.985687
D39: =ROW()-13 -> 26 | E39: SU | F39: Cars | G39: 59756 | H39: 60729.18712 | I39: 61390.44742 | J39: 62051.70773 | K39: 62712.96803 | L39: 63374.22833 | M39: 64035.48863 | N39: 64626.12677 | O39: 65216.76491 | P39: 65807.40304 | Q39: 66398.04118 | R39: 66988.67932 | S39: 67630.59222 | T39: 68272.50511 | U39: 68914.41801 | V39: 69556.33091 | W39: 70198.2438 | X39: 70741.15785 | Y39: 71284.0719 | Z39: 71826.98595 | AA39: 72369.89999 | AB39: 72912.81404 | AC39: 73380.91146 | AD39: 73849.00888 | AE39: 74317.10631 | AF39: 74785.20373 | AG39: 75253.30115 | AH39: 75668.84919 | AI39: 76084.39723 | AJ39: 76499.94527
D40: 27 | E40: SU | F40: LGV | G40: 11031 | H40: 11229.26369 | I40: 11304.61216 | J40: 11379.96063 | K40: 11455.30911 | L40: 11530.65758 | M40: 11606.00605 | N40: 11718.40387 | O40: 11830.80168 | P40: 11943.1995 | Q40: 12055.59731 | R40: 12167.99513 | S40: 12334.38051 | T40: 12500.76589 | U40: 12667.15127 | V40: 12833.53665 | W40: 12999.92203 | X40: 13167.61969 | Y40: 13335.31736 | Z40: 13503.01502 | AA40: 13670.71269 | AB40: 13838.41035 | AC40: 13979.39673 | AD40: 14120.3831 | AE40: 14261.36948 | AF40: 14402.35585 | AG40: 14543.34222 | AH40: 14655.24319 | AI40: 14767.14417 | AJ40: 14879.04514
D41: 28 | E41: SU | F41: OGV1 | G41: 1902.33 | H41: 1901.770639 | I41: 1901.083955 | J41: 1900.397272 | K41: 1899.710588 | L41: 1899.023905 | M41: 1898.337221 | N41: 1899.807652 | O41: 1901.278084 | P41: 1902.748515 | Q41: 1904.218947 | R41: 1905.689378 | S41: 1911.561342 | T41: 1917.433306 | U41: 1923.30527 | V41: 1929.177234 | W41: 1935.049197 | X41: 1941.750652 | Y41: 1948.452107 | Z41: 1955.153562 | AA41: 1961.855017 | AB41: 1968.556472 | AC41: 1975.021546 | AD41: 1981.486621 | AE41: 1987.951695 | AF41: 1994.416769 | AG41: 2000.881843 | AH41: 2006.720796 | AI41: 2012.559748 | AJ41: 2018.3987
D42: 29 | E42: SU | F42: OGV2 | G42: 854.67 | H42: 854.4186929 | I42: 854.1101829 | J42: 853.8016728 | K42: 853.4931628 | L42: 853.1846528 | M42: 852.8761428 | N42: 853.5367714 | O42: 854.1974 | P42: 854.8580286 | Q42: 855.5186572 | R42: 856.1792858 | S42: 858.8174145 | T42: 861.4555432 | U42: 864.0936719 | V42: 866.7318006 | W42: 869.3699293 | X42: 872.3807278 | Y42: 875.3915264 | Z42: 878.402325 | AA42: 881.4131236 | AB42: 884.4239222 | AC42: 887.3285208 | AD42: 890.2331194 | AE42: 893.1377179 | AF42: 896.0423165 | AG42: 898.9469151 | AH42: 901.5702125 | AI42: 904.1935099 | AJ42: 906.8168074
D43: 30 | E43: SU | F43: PSV | G43: 0 | H43: 0 | I43: 0 | J43: 0 | K43: 0 | L43: 0 | M43: 0 | N43: 0 | O43: 0 | P43: 0 | Q43: 0 | R43: 0 | S43: 0 | T43: 0 | U43: 0 | V43: 0 | W43: 0 | X43: 0 | Y43: 0 | Z43: 0 | AA43: 0 | AB43: 0 | AC43: 0 | AD43: 0 | AE43: 0 | AF43: 0 | AG43: 0 | AH43: 0 | AI43: 0 | AJ43: 0
D506: Traffic Data - AADT
D508: No. | E508: Road Type | F508: Vehicle | G508: 2020 | H508: 2021 | I508: 2022 | J508: 2023 | K508: 2024 | L508: 2025 | M508: 2026 | N508: 2027 | O508: 2028 | P508: 2029 | Q508: 2030 | R508: 2031 | S508: 2032 | T508: 2033 | U508: 2034 | V508: 2035 | W508: 2036 | X508: 2037 | Y508: 2038 | Z508: 2039 | AA508: 2040 | AB508: 2041 | AC508: 2042 | AD508: 2043 | AE508: 2044 | AF508: 2045 | AG508: 2046 | AH508: 2047 | AI508: 2048 | AJ508: 2049
D509: =ROW()-508 -> 1 | E509: MR | F509: Cars | G509: 26679.21982 | H509: 27113.718 | I509: 27408.95043 | J509: 27704.18286 | K509: 27999.41528 | L509: 28294.64771 | M509: 28589.88014 | N509: 28853.58194 | O509: 29117.28374 | P509: 29380.98554 | Q509: 29644.68734 | R509: 29908.38913 | S509: 30194.98354 | T509: 30481.57794 | U509: 30768.17235 | V509: 31054.76676 | W509: 31341.36116 | X509: 31583.75562 | Y509: 31826.15008 | Z509: 32068.54453 | AA509: 32310.93899 | AB509: 32553.33345 | AC509: 32762.32458 | AD509: 32971.31571 | AE509: 33180.30684 | AF509: 33389.29797 | AG509: 33598.2891 | AH509: 33783.81855 | AI509: 33969.34799 | AJ509: 34154.87744
D510: =ROW()-508 -> 2 | E510: MR | F510: LGV | G510: 5298.608169 | H510: 5393.841746 | I510: 5430.034479 | J510: 5466.227212 | K510: 5502.419945 | L510: 5538.612678 | M510: 5574.805411 | N510: 5628.794349 | O510: 5682.783287 | P510: 5736.772225 | Q510: 5790.761163 | R510: 5844.750101 | S510: 5924.671318 | T510: 6004.592534 | U510: 6084.513751 | V510: 6164.434967 | W510: 6244.356183 | X510: 6324.90774 | Y510: 6405.459296 | Z510: 6486.010852 | AA510: 6566.562409 | AB510: 6647.113965 | AC510: 6714.835074 | AD510: 6782.556183 | AE510: 6850.277292 | AF510: 6917.998401 | AG510: 6985.71951 | AH510: 7039.469795 | AI510: 7093.220081 | AJ510: 7146.970366
D511: 3 | E511: MR | F511: OGV1 | G511: 950.9720849 | H511: 950.6924611 | I511: 950.349189 | J511: 950.0059168 | K511: 949.6626447 | L511: 949.3193725 | M511: 948.9761004 | N511: 949.711167 | O511: 950.4462336 | P511: 951.1813001 | Q511: 951.9163667 | R511: 952.6514333 | S511: 955.5868198 | T511: 958.5222062 | U511: 961.4575927 | V511: 964.3929791 | W511: 967.3283656 | X511: 970.6784134 | Y511: 974.0284613 | Z511: 977.3785092 | AA511: 980.7285571 | AB511: 984.078605 | AC511: 987.3104864 | AD511: 990.5423679 | AE511: 993.7742494 | AF511: 997.0061309 | AG511: 1000.238012 | AH511: 1003.156896 | AI511: 1006.07578 | AJ511: 1008.994665
D512: 4 | E512: MR | F512: OGV2 | G512: 1930.761506 | H512: 1930.193785 | I512: 1929.496838 | J512: 1928.799892 | K512: 1928.102945 | L512: 1927.405999 | M512: 1926.709052 | N512: 1928.20146 | O512: 1929.693868 | P512: 1931.186276 | Q512: 1932.678684 | R512: 1934.171092 | S512: 1940.130816 | T512: 1946.09054 | U512: 1952.050264 | V512: 1958.009988 | W512: 1963.969712 | X512: 1970.771324 | Y512: 1977.572937 | Z512: 1984.374549 | AA512: 1991.176161 | AB512: 1997.977774 | AC512: 2004.539472 | AD512: 2011.101171 | AE512: 2017.66287 | AF512: 2024.224569 | AG512: 2030.786268 | AH512: 2036.712487 | AI512: 2042.638706 | AJ512: 2048.564925
D513: 5 | E513: MR | F513: PSV | G513: 92.89334526 | H513: 90.87239418 | I513: 90.87239418 | J513: 90.87239418 | K513: 90.87239418 | L513: 90.87239418 | M513: 90.87239418 | N513: 90.87239418 | O513: 90.87239418 | P513: 90.87239418 | Q513: 90.87239418 | R513: 90.87239418 | S513: 90.87239418 | T513: 90.87239418 | U513: 90.87239418 | V513: 90.87239418 | W513: 90.87239418 | X513: 90.87239418 | Y513: 90.87239418 | Z513: 90.87239418 | AA513: 90.87239418 | AB513: 90.87239418 | AC513: 90.87239418 | AD513: 90.87239418 | AE513: 90.87239418 | AF513: 90.87239418 | AG513: 90.87239418 | AH513: 90.87239418 | AI513: 90.87239418 | AJ513: 90.87239418
D514: =ROW()-508 -> 6 | E514: MU | F514: Cars | G514: 26678.43525 | H514: 27112.92065 | I514: 27408.1444 | J514: 27703.36814 | K514: 27998.59189 | L514: 28293.81563 | M514: 28589.03938 | N514: 28852.73342 | O514: 29116.42747 | P514: 29380.12151 | Q514: 29643.81556 | R514: 29907.5096 | S514: 30194.09558 | T514: 30480.68155 | U514: 30767.26753 | V514: 31053.85351 | W514: 31340.43949 | X514: 31582.82682 | Y514: 31825.21415 | Z514: 32067.60147 | AA514: 32309.9888 | AB514: 32552.37613 | AC514: 32761.36112 | AD514: 32970.3461 | AE514: 33179.33109 | AF514: 33388.31607 | AG514: 33597.30106 | AH514: 33782.82505 | AI514: 33968.34903 | AJ514: 34153.87302
D515: 7 | E515: MU | F515: LGV | G515: 5297.980511 | H515: 5393.202807 | I515: 5429.391253 | J515: 5465.579699 | K515: 5501.768144 | L515: 5537.95659 | M515: 5574.145036 | N515: 5628.127578 | O515: 5682.110121 | P515: 5736.092664 | Q515: 5790.075207 | R515: 5844.057749 | S515: 5923.969498 | T515: 6003.881248 | U515: 6083.792997 | V515: 6163.704746 | W515: 6243.616495 | X515: 6324.158509 | Y515: 6404.700524 | Z515: 6485.242538 | AA515: 6565.784553 | AB515: 6646.326567 | AC515: 6714.039654 | AD515: 6781.752741 | AE515: 6849.465828 | AF515: 6917.178915 | AG515: 6984.892002 | AH515: 7038.63592 | AI515: 7092.379839 | AJ515: 7146.123757
D516: 8 | E516: MU | F516: OGV1 | G516: 950.946194 | H516: 950.6665779 | I516: 950.3233151 | J516: 949.9800523 | K516: 949.6367894 | L516: 949.2935266 | M516: 948.9502638 | N516: 949.6853104 | O516: 950.420357 | P516: 951.1554036 | Q516: 951.8904501 | R516: 952.6254967 | S516: 955.5608033 | T516: 958.4961098 | U516: 961.4314163 | V516: 964.3667228 | W516: 967.3020294 | X516: 970.651986 | Y516: 974.0019427 | Z516: 977.3518994 | AA516: 980.701856 | AB516: 984.0518127 | AC516: 987.2836062 | AD516: 990.5153997 | AE516: 993.7471932 | AF516: 996.9789867 | AG516: 1000.21078 | AH516: 1003.129585 | AI516: 1006.048389 | AJ516: 1008.967194
D517: 9 | E517: MU | F517: OGV2 | G517: 1930.708939 | H517: 1930.141234 | I517: 1929.444306 | J517: 1928.747379 | K517: 1928.050451 | L517: 1927.353524 | M517: 1926.656596 | N517: 1928.148964 | O517: 1929.641331 | P517: 1931.133698 | Q517: 1932.626065 | R517: 1934.118433 | S517: 1940.077994 | T517: 1946.037556 | U517: 1951.997118 | V517: 1957.95668 | W517: 1963.916241 | X517: 1970.717669 | Y517: 1977.519096 | Z517: 1984.320523 | AA517: 1991.12195 | AB517: 1997.923377 | AC517: 2004.484897 | AD517: 2011.046418 | AE517: 2017.607938 | AF517: 2024.169458 | AG517: 2030.730978 | AH517: 2036.657036 | AI517: 2042.583094 | AJ517: 2048.509151
D518: 10 | E518: MU | F518: PSV | G518: 92.50105917 | H518: 90.48864252 | I518: 90.48864252 | J518: 90.48864252 | K518: 90.48864252 | L518: 90.48864252 | M518: 90.48864252 | N518: 90.48864252 | O518: 90.48864252 | P518: 90.48864252 | Q518: 90.48864252 | R518: 90.48864252 | S518: 90.48864252 | T518: 90.48864252 | U518: 90.48864252 | V518: 90.48864252 | W518: 90.48864252 | X518: 90.48864252 | Y518: 90.48864252 | Z518: 90.48864252 | AA518: 90.48864252 | AB518: 90.48864252 | AC518: 90.48864252 | AD518: 90.48864252 | AE518: 90.48864252 | AF518: 90.48864252 | AG518: 90.48864252 | AH518: 90.48864252 | AI518: 90.48864252 | AJ518: 90.48864252
D519: =ROW()-508 -> 11 | E519: DR | F519: Cars | G519: 3587.906871 | H519: 3646.339577 | I519: 3686.043378 | J519: 3725.74718 | K519: 3765.450982 | L519: 3805.154784 | M519: 3844.858586 | N519: 3880.322048 | O519: 3915.78551 | P519: 3951.248971 | Q519: 3986.712433 | R519: 4022.175895 | S519: 4060.718028 | T519: 4099.260161 | U519: 4137.802294 | V519: 4176.344427 | W519: 4214.88656 | X519: 4247.484542 | Y519: 4280.082525 | Z519: 4312.680507 | AA519: 4345.27849 | AB519: 4377.876472 | AC519: 4405.982268 | AD519: 4434.088064 | AE519: 4462.193861 | AF519: 4490.299657 | AG519: 4518.405453 | AH519: 4543.356046 | AI519: 4568.30664 | AJ519: 4593.257233
D520: 12 | E520: DR | F520: LGV | G520: 776.6783156 | H520: 790.6378031 | I520: 795.9429908 | J520: 801.2481785 | K520: 806.5533662 | L520: 811.8585539 | M520: 817.1637416 | N520: 825.077525 | O520: 832.9913084 | P520: 840.9050919 | Q520: 848.8188753 | R520: 856.7326587 | S520: 868.4476363 | T520: 880.1626138 | U520: 891.8775914 | V520: 903.5925689 | W520: 915.3075464 | X520: 927.1149202 | Y520: 938.922294 | Z520: 950.7296678 | AA520: 962.5370415 | AB520: 974.3444153 | AC520: 984.2710819 | AD520: 994.1977485 | AE520: 1004.124415 | AF520: 1014.051082 | AG520: 1023.977748 | AH520: 1031.85655 | AI520: 1039.735351 | AJ520: 1047.614152
D521: 13 | E521: DR | F521: OGV1 | G521: 159.461543 | H521: 159.414655 | I521: 159.3570942 | J521: 159.2995334 | K521: 159.2419726 | L521: 159.1844118 | M521: 159.126851 | N521: 159.2501089 | O521: 159.3733669 | P521: 159.4966248 | Q521: 159.6198827 | R521: 159.7431407 | S521: 160.2353541 | T521: 160.7275676 | U521: 161.219781 | V521: 161.7119945 | W521: 162.2042079 | X521: 162.7659529 | Y521: 163.3276979 | Z521: 163.8894429 | AA521: 164.4511879 | AB521: 165.0129329 | AC521: 165.5548634 | AD521: 166.0967939 | AE521: 166.6387245 | AF521: 167.180655 | AG521: 167.7225855 | AH521: 168.2120318 | AI521: 168.7014781 | AJ521: 169.1909244
D522: 14 | E522: DR | F522: OGV2 | G522: 115.4721518 | H522: 115.4381984 | I522: 115.3965165 | J522: 115.3548345 | K522: 115.3131526 | L522: 115.2714706 | M522: 115.2297887 | N522: 115.3190444 | O522: 115.4083001 | P522: 115.4975559 | Q522: 115.5868116 | R522: 115.6760674 | S522: 116.0324978 | T522: 116.3889282 | U522: 116.7453587 | V522: 117.1017891 | W522: 117.4582195 | X522: 117.8650004 | Y522: 118.2717812 | Z522: 118.6785621 | AA522: 119.0853429 | AB522: 119.4921238 | AC522: 119.8845563 | AD522: 120.2769887 | AE522: 120.6694212 | AF522: 121.0618536 | AG522: 121.4542861 | AH522: 121.8087127 | AI522: 122.1631393 | AJ522: 122.5175659
D523: 15 | E523: DR | F523: PSV | G523: 20.61917508 | H523: 20.17059242 | I523: 20.17059242 | J523: 20.17059242 | K523: 20.17059242 | L523: 20.17059242 | M523: 20.17059242 | N523: 20.17059242 | O523: 20.17059242 | P523: 20.17059242 | Q523: 20.17059242 | R523: 20.17059242 | S523: 20.17059242 | T523: 20.17059242 | U523: 20.17059242 | V523: 20.17059242 | W523: 20.17059242 | X523: 20.17059242 | Y523: 20.17059242 | Z523: 20.17059242 | AA523: 20.17059242 | AB523: 20.17059242 | AC523: 20.17059242 | AD523: 20.17059242 | AE523: 20.17059242 | AF523: 20.17059242 | AG523: 20.17059242 | AH523: 20.17059242 | AI523: 20.17059242 | AJ523: 20.17059242
D524: =ROW()-508 -> 16 | E524: DU | F524: Cars | G524: 1444.092044 | H524: 1467.610549 | I524: 1483.590881 | J524: 1499.571214 | K524: 1515.551546 | L524: 1531.531878 | M524: 1547.512211 | N524: 1561.785854 | O524: 1576.059498 | P524: 1590.333141 | Q524: 1604.606784 | R524: 1618.880428 | S524: 1634.393202 | T524: 1649.905975 | U524: 1665.418749 | V524: 1680.931523 | W524: 1696.444296 | X524: 1709.564617 | Y524: 1722.684937 | Z524: 1735.805257 | AA524: 1748.925577 | AB524: 1762.045898 | AC524: 1773.358164 | AD524: 1784.67043 | AE524: 1795.982695 | AF524: 1807.294961 | AG524: 1818.607227 | AH524: 1828.64956 | AI524: 1838.691892 | AJ524: 1848.734225
D525: 17 | E525: DU | F525: LGV | G525: 266.5496997 | H525: 271.3404826 | I525: 273.16118 | J525: 274.9818774 | K525: 276.8025748 | L525: 278.6232722 | M525: 280.4439696 | N525: 283.1599159 | O525: 285.8758622 | P525: 288.5918085 | Q525: 291.3077548 | R525: 294.0237011 | S525: 298.0441864 | T525: 302.0646717 | U525: 306.085157 | V525: 310.1056423 | W525: 314.1261275 | X525: 318.1783225 | Y525: 322.2305174 | Z525: 326.2827123 | AA525: 330.3349073 | AB525: 334.3871022 | AC525: 337.7938537 | AD525: 341.2006052 | AE525: 344.6073567 | AF525: 348.0141081 | AG525: 351.4208596 | AH525: 354.1248004 | AI525: 356.8287411 | AJ525: 359.5326818
D526: 18 | E526: DU | F526: OGV1 | G526: 44.23375396 | H526: 44.22074747 | I526: 44.20478043 | J526: 44.18881338 | K526: 44.17284633 | L526: 44.15687929 | M526: 44.14091224 | N526: 44.17510331 | O526: 44.20929438 | P526: 44.24348545 | Q526: 44.27767653 | R526: 44.3118676 | S526: 44.4484049 | T526: 44.5849422 | U526: 44.7214795 | V526: 44.8580168 | W526: 44.9945541 | X526: 45.15037907 | Y526: 45.30620404 | Z526: 45.462029 | AA526: 45.61785397 | AB526: 45.77367894 | AC526: 45.92400748 | AD526: 46.07433603 | AE526: 46.22466457 | AF526: 46.37499312 | AG526: 46.52532167 | AH526: 46.66109137 | AI526: 46.79686107 | AJ526: 46.93263078
D527: 19 | E527: DU | F527: OGV2 | G527: 19.87313584 | H527: 19.86729234 | I527: 19.86011874 | J527: 19.85294514 | K527: 19.84577154 | L527: 19.83859794 | M527: 19.83142434 | N527: 19.84678555 | O527: 19.86214675 | P527: 19.87750796 | Q527: 19.89286916 | R527: 19.90823037 | S527: 19.96957322 | T527: 20.03091606 | U527: 20.09225891 | V527: 20.15360175 | W527: 20.2149446 | X527: 20.28495292 | Y527: 20.35496123 | Z527: 20.42496955 | AA527: 20.49497787 | AB527: 20.56498619 | AC527: 20.6325251 | AD527: 20.70006401 | AE527: 20.76760292 | AF527: 20.83514184 | AG527: 20.90268075 | AH527: 20.96367873 | AI527: 21.02467671 | AJ527: 21.0856747
D528: 20 | E528: DU | F528: PSV | G528: 0 | H528: 0 | I528: 0 | J528: 0 | K528: 0 | L528: 0 | M528: 0 | N528: 0 | O528: 0 | P528: 0 | Q528: 0 | R528: 0 | S528: 0 | T528: 0 | U528: 0 | V528: 0 | W528: 0 | X528: 0 | Y528: 0 | Z528: 0 | AA528: 0 | AB528: 0 | AC528: 0 | AD528: 0 | AE528: 0 | AF528: 0 | AG528: 0 | AH528: 0 | AI528: 0 | AJ528: 0
D529: =ROW()-508 -> 21 | E529: SR | F529: Cars | G529: 7175.860204 | H529: 7292.726372 | I529: 7372.134489 | J529: 7451.542607 | K529: 7530.950725 | L529: 7610.358843 | M529: 7689.766961 | N529: 7760.694344 | O529: 7831.621727 | P529: 7902.54911 | Q529: 7973.476493 | R529: 8044.403876 | S529: 8121.488641 | T529: 8198.573406 | U529: 8275.658171 | V529: 8352.742936 | W529: 8429.827701 | X529: 8495.024088 | Y529: 8560.220475 | Z529: 8625.416862 | AA529: 8690.613249 | AB529: 8755.809636 | AC529: 8812.021592 | AD529: 8868.233548 | AE529: 8924.445505 | AF529: 8980.657461 | AG529: 9036.869417 | AH529: 9086.770927 | AI529: 9136.672437 | AJ529: 9186.573947
D530: 22 | E530: SR | F530: LGV | G530: 1553.39275 | H530: 1581.312374 | I530: 1591.922996 | J530: 1602.533618 | K530: 1613.144241 | L530: 1623.754863 | M530: 1634.365485 | N530: 1650.19342 | O530: 1666.021354 | P530: 1681.849289 | Q530: 1697.677224 | R530: 1713.505159 | S530: 1736.935659 | T530: 1760.366159 | U530: 1783.796659 | V530: 1807.227159 | W530: 1830.657659 | X530: 1854.272955 | Y530: 1877.888252 | Z530: 1901.503548 | AA530: 1925.118845 | AB530: 1948.734142 | AC530: 1968.587937 | AD530: 1988.441731 | AE530: 2008.295526 | AF530: 2028.149321 | AG530: 2048.003116 | AH530: 2063.761085 | AI530: 2079.519054 | AJ530: 2095.277023
D531: 23 | E531: SR | F531: OGV1 | G531: 318.9230576 | H531: 318.8292815 | I531: 318.7141599 | J531: 318.5990383 | K531: 318.4839167 | L531: 318.3687951 | M531: 318.2536736 | N531: 318.5001894 | O531: 318.7467053 | P531: 318.9932211 | Q531: 319.2397369 | R531: 319.4862528 | S531: 320.4706796 | T531: 321.4551064 | U531: 322.4395332 | V531: 323.42396 | W531: 324.4083869 | X531: 325.5318767 | Y531: 326.6553666 | Z531: 327.7788565 | AA531: 328.9023464 | AB531: 330.0258363 | AC531: 331.1096972 | AD531: 332.1935582 | AE531: 333.2774192 | AF531: 334.3612801 | AG531: 335.4451411 | AH531: 336.4240336 | AI531: 337.4029261 | AJ531: 338.3818185
D532: 24 | E532: SR | F532: OGV2 | G532: 230.9442831 | H532: 230.8763762 | I532: 230.7930123 | J532: 230.7096484 | K532: 230.6262845 | L532: 230.5429206 | M532: 230.4595567 | N532: 230.6380682 | O532: 230.8165797 | P532: 230.9950911 | Q532: 231.1736026 | R532: 231.3521141 | S532: 232.0649749 | T532: 232.7778357 | U532: 233.4906965 | V532: 234.2035573 | W532: 234.9164181 | X532: 235.7299797 | Y532: 236.5435413 | Z532: 237.357103 | AA532: 238.1706646 | AB532: 238.9842263 | AC532: 239.7690911 | AD532: 240.5539559 | AE532: 241.3388208 | AF532: 242.1236856 | AG532: 242.9085505 | AH532: 243.6174036 | AI532: 244.3262568 | AJ532: 245.03511
D533: 25 | E533: SR | F533: PSV | G533: 41.23620628 | H533: 40.3390876 | I533: 40.3390876 | J533: 40.3390876 | K533: 40.3390876 | L533: 40.3390876 | M533: 40.3390876 | N533: 40.3390876 | O533: 40.3390876 | P533: 40.3390876 | Q533: 40.3390876 | R533: 40.3390876 | S533: 40.3390876 | T533: 40.3390876 | U533: 40.3390876 | V533: 40.3390876 | W533: 40.3390876 | X533: 40.3390876 | Y533: 40.3390876 | Z533: 40.3390876 | AA533: 40.3390876 | AB533: 40.3390876 | AC533: 40.3390876 | AD533: 40.3390876 | AE533: 40.3390876 | AF533: 40.3390876 | AG533: 40.3390876 | AH533: 40.3390876 | AI533: 40.3390876 | AJ533: 40.3390876
D534: =ROW()-508 -> 26 | E534: SU | F534: Cars | G534: 2892.747919 | H534: 2939.859256 | I534: 2971.870424 | J534: 3003.881592 | K534: 3035.89276 | L534: 3067.903928 | M534: 3099.915097 | N534: 3128.507493 | O534: 3157.099889 | P534: 3185.692286 | Q534: 3214.284682 | R534: 3242.877079 | S534: 3273.951652 | T534: 3305.026225 | U534: 3336.100798 | V534: 3367.175372 | W534: 3398.249945 | X534: 3424.53205 | Y534: 3450.814155 | Z534: 3477.096261 | AA534: 3503.378366 | AB534: 3529.660471 | AC534: 3552.320754 | AD534: 3574.981036 | AE534: 3597.641319 | AF534: 3620.301601 | AG534: 3642.961884 | AH534: 3663.078286 | AI534: 3683.194688 | AJ534: 3703.31109
D535: 27 | E535: SU | F535: LGV | G535: 534.0033185 | H535: 543.6011307 | I535: 547.2486998 | J535: 550.8962689 | K535: 554.543838 | L535: 558.1914071 | M535: 561.8389762 | N535: 567.2800791 | O535: 572.721182 | P535: 578.1622849 | Q535: 583.6033877 | R535: 589.0444906 | S535: 597.0990954 | T535: 605.1537002 | U535: 613.208305 | V535: 621.2629098 | W535: 629.3175146 | X535: 637.4356462 | Y535: 645.5537778 | Z535: 653.6719094 | AA535: 661.790041 | AB535: 669.9081726 | AC535: 676.7332284 | AD535: 683.5582843 | AE535: 690.3833402 | AF535: 697.2083961 | AG535: 704.033452 | AH535: 709.450503 | AI535: 714.8675541 | AJ535: 720.2846051
D536: 28 | E536: SU | F536: OGV1 | G536: 92.09052061 | H536: 92.06344231 | I536: 92.03020042 | J536: 91.99695853 | K536: 91.96371664 | L536: 91.93047475 | M536: 91.89723285 | N536: 91.96841545 | O536: 92.03959805 | P536: 92.11078065 | Q536: 92.18196325 | R536: 92.25314585 | S536: 92.53740369 | T536: 92.82166152 | U536: 93.10591936 | V536: 93.39017719 | W536: 93.67443503 | X536: 93.99884797 | Y536: 94.32326091 | Z536: 94.64767386 | AA536: 94.9720868 | AB536: 95.29649974 | AC536: 95.60946965 | AD536: 95.92243957 | AE536: 96.23540948 | AF536: 96.54837939 | AG536: 96.8613493 | AH536: 97.14400907 | AI536: 97.42666884 | AJ536: 97.70932861
D537: 29 | E537: SU | F537: OGV2 | G537: 41.37400201 | H537: 41.3618364 | I537: 41.34690164 | J537: 41.33196688 | K537: 41.31703211 | L537: 41.30209735 | M537: 41.28716259 | N537: 41.31914317 | O537: 41.35112376 | P537: 41.38310435 | Q537: 41.41508494 | R537: 41.44706553 | S537: 41.57477557 | T537: 41.70248561 | U537: 41.83019565 | V537: 41.95790569 | W537: 42.08561574 | X537: 42.23136648 | Y537: 42.37711722 | Z537: 42.52286796 | AA537: 42.66861871 | AB537: 42.81436945 | AC537: 42.95497912 | AD537: 43.09558879 | AE537: 43.23619846 | AF537: 43.37680813 | AG537: 43.5174178 | AH537: 43.64440987 | AI537: 43.77140194 | AJ537: 43.89839401
D538: 30 | E538: SU | F538: PSV | G538: 0 | H538: 0 | I538: 0 | J538: 0 | K538: 0 | L538: 0 | M538: 0 | N538: 0 | O538: 0 | P538: 0 | Q538: 0 | R538: 0 | S538: 0 | T538: 0 | U538: 0 | V538: 0 | W538: 0 | X538: 0 | Y538: 0 | Z538: 0 | AA538: 0 | AB538: 0 | AC538: 0 | AD538: 0 | AE538: 0 | AF538: 0 | AG538: 0 | AH538: 0 | AI538: 0 | AJ538: 0
G559: 100 | H559: 123 | I559: 124 | J559: 124 | K559: 1213 | L559: 12323 | M559: 3231 | N559: 2132 | O559: 12322 | P559: 12121 | Q559: 445 | R559: 5
G560: 100 | H560: 123 | I560: 124 | J560: 124 | K560: 1213 | L560: 12323 | M560: 3231 | N560: 2132 | O560: 12322 | P560: 12121 | Q560: 445 | R560: 5
G561: 100 | H561: 123 | I561: 124 | J561: 124 | K561: 1213 | L561: 12323 | M561: 3231 | N561: 2132 | O561: 12322 | P561: 12121 | Q561: 445 | R561: 5
G562: 100 | H562: 123 | I562: 124 | J562: 124 | K562: 1213 | L562: 12323 | M562: 3231 | N562: 2132 | O562: 12322 | P562: 12121 | Q562: 445 | R562: 5
G563: 100 | H563: 123 | I563: 124 | J563: 124 | K563: 1213 | L563: 12323 | M563: 3231 | N563: 2132 | O563: 12322 | P563: 12121 | Q563: 445 | R563: 5
G564: 100 | H564: 123 | I564: 124 | J564: 124 | K564: 1213 | L564: 12323 | M564: 3231 | N564: 2132 | O564: 12322 | P564: 12121 | Q564: 445 | R564: 5
G565: 100 | H565: 123 | I565: 124 | J565: 124 | K565: 1213 | L565: 12323 | M565: 3231 | N565: 2132 | O565: 12322 | P565: 12121 | Q565: 445 | R565: 5
G566: 100 | H566: 123 | I566: 124 | J566: 124 | K566: 1213 | L566: 12323 | M566: 3231 | N566: 2132 | O566: 12322 | P566: 12121 | Q566: 445 | R566: 5
G567: 100 | H567: 123 | I567: 124 | J567: 124 | K567: 1213 | L567: 12323 | M567: 3231 | N567: 2132 | O567: 12322 | P567: 12121 | Q567: 445 | R567: 5
G568: 100 | H568: 123 | I568: 124 | J568: 124 | K568: 1213 | L568: 12323 | M568: 3231 | N568: 2132 | O568: 12322 | P568: 12121 | Q568: 445 | R568: 5
G569: 100 | H569: 123 | I569: 124 | J569: 124 | K569: 1213 | L569: 12323 | M569: 3231 | N569: 2132 | O569: 12322 | P569: 12121 | Q569: 445 | R569: 5
G570: 100 | H570: 123 | I570: 124 | J570: 124 | K570: 1213 | L570: 12323 | M570: 3231 | N570: 2132 | O570: 12322 | P570: 12121 | Q570: 445 | R570: 5
G571: 100 | H571: 123 | I571: 124 | J571: 124 | K571: 1213 | L571: 12323 | M571: 3231 | N571: 2132 | O571: 12322 | P571: 12121 | Q571: 445 | R571: 5
G572: 100 | H572: 123 | I572: 124 | J572: 124 | K572: 1213 | L572: 12323 | M572: 3231 | N572: 2132 | O572: 12322 | P572: 12121 | Q572: 445 | R572: 5
G573: 100 | H573: 123 | I573: 124 | J573: 124 | K573: 1213 | L573: 12323 | M573: 3231 | N573: 2132 | O573: 12322 | P573: 12121 | Q573: 445 | R573: 5
G574: 100 | H574: 123 | I574: 124 | J574: 124 | K574: 1213 | L574: 12323 | M574: 3231 | N574: 2132 | O574: 12322 | P574: 12121 | Q574: 445 | R574: 5
G575: 100 | H575: 123 | I575: 124 | J575: 124 | K575: 1213 | L575: 12323 | M575: 3231 | N575: 2132 | O575: 12322 | P575: 12121 | Q575: 445 | R575: 5
G576: 100 | H576: 123 | I576: 124 | J576: 124 | K576: 1213 | L576: 12323 | M576: 3231 | N576: 2132 | O576: 12322 | P576: 12121 | Q576: 445 | R576: 5
G577: 100 | H577: 123 | I577: 124 | J577: 124 | K577: 1213 | L577: 12323 | M577: 3231 | N577: 2132 | O577: 12322 | P577: 12121 | Q577: 445 | R577: 5
G578: 100 | H578: 123 | I578: 124 | J578: 124 | K578: 1213 | L578: 12323 | M578: 3231 | N578: 2132 | O578: 12322 | P578: 12121 | Q578: 445 | R578: 5
G579: 100 | H579: 123 | I579: 124 | J579: 124 | K579: 1213 | L579: 12323 | M579: 3231 | N579: 2132 | O579: 12322 | P579: 12121 | Q579: 445 | R579: 5
G580: 100 | H580: 123 | I580: 124 | J580: 124 | K580: 1213 | L580: 12323 | M580: 3231 | N580: 2132 | O580: 12322 | P580: 12121 | Q580: 445 | R580: 5
G581: 100 | H581: 123 | I581: 124 | J581: 124 | K581: 1213 | L581: 12323 | M581: 3231 | N581: 2132 | O581: 12322 | P581: 12121 | Q581: 445 | R581: 5
G582: 100 | H582: 123 | I582: 124 | J582: 124 | K582: 1213 | L582: 12323 | M582: 3231 | N582: 2132 | O582: 12322 | P582: 12121 | Q582: 445 | R582: 5
G583: 100 | H583: 123 | I583: 124 | J583: 124 | K583: 1213 | L583: 12323 | M583: 3231 | N583: 2132 | O583: 12322 | P583: 12121 | Q583: 445 | R583: 5
G584: 100 | H584: 123 | I584: 124 | J584: 124 | K584: 1213 | L584: 12323 | M584: 3231 | N584: 2132 | O584: 12322 | P584: 12121 | Q584: 445 | R584: 5
G585: 100 | H585: 123 | I585: 124 | J585: 124 | K585: 1213 | L585: 12323 | M585: 3231 | N585: 2132 | O585: 12322 | P585: 12121 | Q585: 445 | R585: 5
G586: 100 | H586: 123 | I586: 124 | J586: 124 | K586: 1213 | L586: 12323 | M586: 3231 | N586: 2132 | O586: 12322 | P586: 12121 | Q586: 445 | R586: 5
G587: 100 | H587: 123 | I587: 124 | J587: 124 | K587: 1213 | L587: 12323 | M587: 3231 | N587: 2132 | O587: 12322 | P587: 12121 | Q587: 445 | R587: 5
G588: 100 | H588: 123 | I588: 124 | J588: 124 | K588: 1213 | L588: 12323 | M588: 3231 | N588: 2132 | O588: 12322 | P588: 12121 | Q588: 445 | R588: 5
G589: 100 | H589: 123 | I589: 124 | J589: 124 | K589: 1213 | L589: 12323 | M589: 3231 | N589: 2132 | O589: 12322 | P589: 12121 | Q589: 445 | R589: 5
G590: 100 | H590: 123 | I590: 124 | J590: 124 | K590: 1213 | L590: 12323 | M590: 3231 | N590: 2132 | O590: 12322 | P590: 12121 | Q590: 445 | R590: 5
G591: 100 | H591: 123 | I591: 124 | J591: 124 | K591: 1213 | L591: 12323 | M591: 3231 | N591: 2132 | O591: 12322 | P591: 12121 | Q591: 445 | R591: 5
G592: 100 | H592: 123 | I592: 124 | J592: 124 | K592: 1213 | L592: 12323 | M592: 3231 | N592: 2132 | O592: 12322 | P592: 12121 | Q592: 445 | R592: 5
G593: 100 | H593: 123 | I593: 124 | J593: 124 | K593: 1213 | L593: 12323 | M593: 3231 | N593: 2132 | O593: 12322 | P593: 12121 | Q593: 445 | R593: 5
G594: 100 | H594: 123 | I594: 124 | J594: 124 | K594: 1213 | L594: 12323 | M594: 3231 | N594: 2132 | O594: 12322 | P594: 12121 | Q594: 445 | R594: 5
G595: 100 | H595: 123 | I595: 124 | J595: 124 | K595: 1213 | L595: 12323 | M595: 3231 | N595: 2132 | O595: 12322 | P595: 12121 | Q595: 445 | R595: 5
G596: 100 | H596: 123 | I596: 124 | J596: 124 | K596: 1213 | L596: 12323 | M596: 3231 | N596: 2132 | O596: 12322 | P596: 12121 | Q596: 445 | R596: 5
G597: 100 | H597: 123 | I597: 124 | J597: 124 | K597: 1213 | L597: 12323 | M597: 3231 | N597: 2132 | O597: 12322 | P597: 12121 | Q597: 445 | R597: 5
G598: 100 | H598: 123 | I598: 124 | J598: 124 | K598: 1213 | L598: 12323 | M598: 3231 | N598: 2132 | O598: 12322 | P598: 12121 | Q598: 445 | R598: 5
G599: 100 | H599: 123 | I599: 124 | J599: 124 | K599: 1213 | L599: 12323 | M599: 3231 | N599: 2132 | O599: 12322 | P599: 12121 | Q599: 445 | R599: 5
G600: 100 | H600: 123 | I600: 124 | J600: 124 | K600: 1213 | L600: 12323 | M600: 3231 | N600: 2132 | O600: 12322 | P600: 12121 | Q600: 445 | R600: 5
G601: 100 | H601: 123 | I601: 124 | J601: 124 | K601: 1213 | L601: 12323 | M601: 3231 | N601: 2132 | O601: 12322 | P601: 12121 | Q601: 445 | R601: 5
G602: 100 | H602: 123 | I602: 124 | J602: 124 | K602: 1213 | L602: 12323 | M602: 3231 | N602: 2132 | O602: 12322 | P602: 12121 | Q602: 445 | R602: 5
G603: 100 | H603: 123 | I603: 124 | J603: 124 | K603: 1213 | L603: 12323 | M603: 3231 | N603: 2132 | O603: 12322 | P603: 12121 | Q603: 445 | R603: 5
G604: 100 | H604: 123 | I604: 124 | J604: 124 | K604: 1213 | L604: 12323 | M604: 3231 | N604: 2132 | O604: 12322 | P604: 12121 | Q604: 445 | R604: 5
G605: 100 | H605: 123 | I605: 124 | J605: 124 | K605: 1213 | L605: 12323 | M605: 3231 | N605: 2132 | O605: 12322 | P605: 12121 | Q605: 445 | R605: 5
G606: 100 | H606: 123 | I606: 124 | J606: 124 | K606: 1213 | L606: 12323 | M606: 3231 | N606: 2132 | O606: 12322 | P606: 12121 | Q606: 445 | R606: 5
G607: 100 | H607: 123 | I607: 124 | J607: 124 | K607: 1213 | L607: 12323 | M607: 3231 | N607: 2132 | O607: 12322 | P607: 12121 | Q607: 445 | R607: 5
G608: 100 | H608: 123 | I608: 124 | J608: 124 | K608: 1213 | L608: 12323 | M608: 3231 | N608: 2132 | O608: 12322 | P608: 12121 | Q608: 445 | R608: 5
G609: 100 | H609: 123 | I609: 124 | J609: 124 | K609: 1213 | L609: 12323 | M609: 3231 | N609: 2132 | O609: 12322 | P609: 12121 | Q609: 445 | R609: 5
G610: 100 | H610: 123 | I610: 124 | J610: 124 | K610: 1213 | L610: 12323 | M610: 3231 | N610: 2132 | O610: 12322 | P610: 12121 | Q610: 445 | R610: 5
G611: 100 | H611: 123 | I611: 124 | J611: 124 | K611: 1213 | L611: 12323 | M611: 3231 | N611: 2132 | O611: 12322 | P611: 12121 | Q611: 445 | R611: 5
G612: 100 | H612: 123 | I612: 124 | J612: 124 | K612: 1213 | L612: 12323 | M612: 3231 | N612: 2132 | O612: 12322 | P612: 12121 | Q612: 445 | R612: 5
G613: 100 | H613: 123 | I613: 124 | J613: 124 | K613: 1213 | L613: 12323 | M613: 3231 | N613: 2132 | O613: 12322 | P613: 12121 | Q613: 445 | R613: 5
G614: 100 | H614: 123 | I614: 124 | J614: 124 | K614: 1213 | L614: 12323 | M614: 3231 | N614: 2132 | O614: 12322 | P614: 12121 | Q614: 445 | R614: 5
G615: 100 | H615: 123 | I615: 124 | J615: 124 | K615: 1213 | L615: 12323 | M615: 3231 | N615: 2132 | O615: 12322 | P615: 12121 | Q615: 445 | R615: 5
G616: 100 | H616: 123 | I616: 124 | J616: 124 | K616: 1213 | L616: 12323 | M616: 3231 | N616: 2132 | O616: 12322 | P616: 12121 | Q616: 445 | R616: 5
G617: 100 | H617: 123 | I617: 124 | J617: 124 | K617: 1213 | L617: 12323 | M617: 3231 | N617: 2132 | O617: 12322 | P617: 12121 | Q617: 445 | R617: 5
G618: 100 | H618: 123 | I618: 124 | J618: 124 | K618: 1213 | L618: 12323 | M618: 3231 | N618: 2132 | O618: 12322 | P618: 12121 | Q618: 445 | R618: 5
G619: 100 | H619: 123 | I619: 124 | J619: 124 | K619: 1213 | L619: 12323 | M619: 3231 | N619: 2132 | O619: 12322 | P619: 12121 | Q619: 445 | R619: 5
G620: 100 | H620: 123 | I620: 124 | J620: 124 | K620: 1213 | L620: 12323 | M620: 3231 | N620: 2132 | O620: 12322 | P620: 12121 | Q620: 445 | R620: 5
G621: 100 | H621: 123 | I621: 124 | J621: 124 | K621: 1213 | L621: 12323 | M621: 3231 | N621: 2132 | O621: 12322 | P621: 12121 | Q621: 445 | R621: 5
G622: 100 | H622: 123 | I622: 124 | J622: 124 | K622: 1213 | L622: 12323 | M622: 3231 | N622: 2132 | O622: 12322 | P622: 12121 | Q622: 445 | R622: 5
G623: 100 | H623: 123 | I623: 124 | J623: 124 | K623: 1213 | L623: 12323 | M623: 3231 | N623: 2132 | O623: 12322 | P623: 12121 | Q623: 445 | R623: 5
G624: 100 | H624: 123 | I624: 124 | J624: 124 | K624: 1213 | L624: 12323 | M624: 3231 | N624: 2132 | O624: 12322 | P624: 12121 | Q624: 445 | R624: 5
G625: 100 | H625: 123 | I625: 124 | J625: 124 | K625: 1213 | L625: 12323 | M625: 3231 | N625: 2132 | O625: 12322 | P625: 12121 | Q625: 445 | R625: 5
G626: 100 | H626: 123 | I626: 124 | J626: 124 | K626: 1213 | L626: 12323 | M626: 3231 | N626: 2132 | O626: 12322 | P626: 12121 | Q626: 445 | R626: 5
G627: 100 | H627: 123 | I627: 124 | J627: 124 | K627: 1213 | L627: 12323 | M627: 3231 | N627: 2132 | O627: 12322 | P627: 12121 | Q627: 445 | R627: 5
G628: 100 | H628: 123 | I628: 124 | J628: 124 | K628: 1213 | L628: 12323 | M628: 3231 | N628: 2132 | O628: 12322 | P628: 12121 | Q628: 445 | R628: 5
G629: 100 | H629: 123 | I629: 124 | J629: 124 | K629: 1213 | L629: 12323 | M629: 3231 | N629: 2132 | O629: 12322 | P629: 12121 | Q629: 445 | R629: 5
G630: 100 | H630: 123 | I630: 124 | J630: 124 | K630: 1213 | L630: 12323 | M630: 3231 | N630: 2132 | O630: 12322 | P630: 12121 | Q630: 445 | R630: 5
G631: 100 | H631: 123 | I631: 124 | J631: 124 | K631: 1213 | L631: 12323 | M631: 3231 | N631: 2132 | O631: 12322 | P631: 12121 | Q631: 445 | R631: 5
G632: 100 | H632: 123 | I632: 124 | J632: 124 | K632: 1213 | L632: 12323 | M632: 3231 | N632: 2132 | O632: 12322 | P632: 12121 | Q632: 445 | R632: 5
G633: 100 | H633: 123 | I633: 124 | J633: 124 | K633: 1213 | L633: 12323 | M633: 3231 | N633: 2132 | O633: 12322 | P633: 12121 | Q633: 445 | R633: 5
G634: 100 | H634: 123 | I634: 124 | J634: 124 | K634: 1213 | L634: 12323 | M634: 3231 | N634: 2132 | O634: 12322 | P634: 12121 | Q634: 445 | R634: 5
G635: 100 | H635: 123 | I635: 124 | J635: 124 | K635: 1213 | L635: 12323 | M635: 3231 | N635: 2132 | O635: 12322 | P635: 12121 | Q635: 445 | R635: 5
G636: 100 | H636: 123 | I636: 124 | J636: 124 | K636: 1213 | L636: 12323 | M636: 3231 | N636: 2132 | O636: 12322 | P636: 12121 | Q636: 445 | R636: 5
G637: 100 | H637: 123 | I637: 124 | J637: 124 | K637: 1213 | L637: 12323 | M637: 3231 | N637: 2132 | O637: 12322 | P637: 12121 | Q637: 445 | R637: 5
G638: 100 | H638: 123 | I638: 124 | J638: 124 | K638: 1213 | L638: 12323 | M638: 3231 | N638: 2132 | O638: 12322 | P638: 12121 | Q638: 445 | R638: 5
G639: 100 | H639: 123 | I639: 124 | J639: 124 | K639: 1213 | L639: 12323 | M639: 3231 | N639: 2132 | O639: 12322 | P639: 12121 | Q639: 445 | R639: 5
G640: 100 | H640: 123 | I640: 124 | J640: 124 | K640: 1213 | L640: 12323 | M640: 3231 | N640: 2132 | O640: 12322 | P640: 12121 | Q640: 445 | R640: 5
G641: 100 | H641: 123 | I641: 124 | J641: 124 | K641: 1213 | L641: 12323 | M641: 3231 | N641: 2132 | O641: 12322 | P641: 12121 | Q641: 445 | R641: 5
G642: 100 | H642: 123 | I642: 124 | J642: 124 | K642: 1213 | L642: 12323 | M642: 3231 | N642: 2132 | O642: 12322 | P642: 12121 | Q642: 445 | R642: 5
G643: 100 | H643: 123 | I643: 124 | J643: 124 | K643: 1213 | L643: 12323 | M643: 3231 | N643: 2132 | O643: 12322 | P643: 12121 | Q643: 445 | R643: 5
G644: 100 | H644: 123 | I644: 124 | J644: 124 | K644: 1213 | L644: 12323 | M644: 3231 | N644: 2132 | O644: 12322 | P644: 12121 | Q644: 445 | R644: 5
G645: 100 | H645: 123 | I645: 124 | J645: 124 | K645: 1213 | L645: 12323 | M645: 3231 | N645: 2132 | O645: 12322 | P645: 12121 | Q645: 445 | R645: 5
G646: 100 | H646: 123 | I646: 124 | J646: 124 | K646: 1213 | L646: 12323 | M646: 3231 | N646: 2132 | O646: 12322 | P646: 12121 | Q646: 445 | R646: 5
G647: 100 | H647: 123 | I647: 124 | J647: 124 | K647: 1213 | L647: 12323 | M647: 3231 | N647: 2132 | O647: 12322 | P647: 12121 | Q647: 445 | R647: 5
G648: 100 | H648: 123 | I648: 124 | J648: 124 | K648: 1213 | L648: 12323 | M648: 3231 | N648: 2132 | O648: 12322 | P648: 12121 | Q648: 445 | R648: 5
G649: 100 | H649: 123 | I649: 124 | J649: 124 | K649: 1213 | L649: 12323 | M649: 3231 | N649: 2132 | O649: 12322 | P649: 12121 | Q649: 445 | R649: 5
G650: 100 | H650: 123 | I650: 124 | J650: 124 | K650: 1213 | L650: 12323 | M650: 3231 | N650: 2132 | O650: 12322 | P650: 12121 | Q650: 445 | R650: 5
G651: 100 | H651: 123 | I651: 124 | J651: 124 | K651: 1213 | L651: 12323 | M651: 3231 | N651: 2132 | O651: 12322 | P651: 12121 | Q651: 445 | R651: 5
G652: 100 | H652: 123 | I652: 124 | J652: 124 | K652: 1213 | L652: 12323 | M652: 3231 | N652: 2132 | O652: 12322 | P652: 12121 | Q652: 445 | R652: 5
G653: 100 | H653: 123 | I653: 124 | J653: 124 | K653: 1213 | L653: 12323 | M653: 3231 | N653: 2132 | O653: 12322 | P653: 12121 | Q653: 445 | R653: 5
G654: 100 | H654: 123 | I654: 124 | J654: 124 | K654: 1213 | L654: 12323 | M654: 3231 | N654: 2132 | O654: 12322 | P654: 12121 | Q654: 445 | R654: 5
G655: 100 | H655: 123 | I655: 124 | J655: 124 | K655: 1213 | L655: 12323 | M655: 3231 | N655: 2132 | O655: 12322 | P655: 12121 | Q655: 445 | R655: 5
G656: 100 | H656: 123 | I656: 124 | J656: 124 | K656: 1213 | L656: 12323 | M656: 3231 | N656: 2132 | O656: 12322 | P656: 12121 | Q656: 445 | R656: 5
G657: 100 | H657: 123 | I657: 124 | J657: 124 | K657: 1213 | L657: 12323 | M657: 3231 | N657: 2132 | O657: 12322 | P657: 12121 | Q657: 445 | R657: 5
G658: 100 | H658: 123 | I658: 124 | J658: 124 | K658: 1213 | L658: 12323 | M658: 3231 | N658: 2132 | O658: 12322 | P658: 12121 | Q658: 445 | R658: 5
G659: 100 | H659: 123 | I659: 124 | J659: 124 | K659: 1213 | L659: 12323 | M659: 3231 | N659: 2132 | O659: 12322 | P659: 12121 | Q659: 445 | R659: 5
G660: 100 | H660: 123 | I660: 124 | J660: 124 | K660: 1213 | L660: 12323 | M660: 3231 | N660: 2132 | O660: 12322 | P660: 12121 | Q660: 445 | R660: 5
G661: 100 | H661: 123 | I661: 124 | J661: 124 | K661: 1213 | L661: 12323 | M661: 3231 | N661: 2132 | O661: 12322 | P661: 12121 | Q661: 445 | R661: 5
G662: 100 | H662: 123 | I662: 124 | J662: 124 | K662: 1213 | L662: 12323 | M662: 3231 | N662: 2132 | O662: 12322 | P662: 12121 | Q662: 445 | R662: 5
G663: 100 | H663: 123 | I663: 124 | J663: 124 | K663: 1213 | L663: 12323 | M663: 3231 | N663: 2132 | O663: 12322 | P663: 12121 | Q663: 445 | R663: 5
G664: 100 | H664: 123 | I664: 124 | J664: 124 | K664: 1213 | L664: 12323 | M664: 3231 | N664: 2132 | O664: 12322 | P664: 12121 | Q664: 445 | R664: 5
G665: 100 | H665: 123 | I665: 124 | J665: 124 | K665: 1213 | L665: 12323 | M665: 3231 | N665: 2132 | O665: 12322 | P665: 12121 | Q665: 445 | R665: 5
G666: 100 | H666: 123 | I666: 124 | J666: 124 | K666: 1213 | L666: 12323 | M666: 3231 | N666: 2132 | O666: 12322 | P666: 12121 | Q666: 445 | R666: 5
G667: 100 | H667: 123 | I667: 124 | J667: 124 | K667: 1213 | L667: 12323 | M667: 3231 | N667: 2132 | O667: 12322 | P667: 12121 | Q667: 445 | R667: 5
G668: 100 | H668: 123 | I668: 124 | J668: 124 | K668: 1213 | L668: 12323 | M668: 3231 | N668: 2132 | O668: 12322 | P668: 12121 | Q668: 445 | R668: 5
G669: 100 | H669: 123 | I669: 124 | J669: 124 | K669: 1213 | L669: 12323 | M669: 3231 | N669: 2132 | O669: 12322 | P669: 12121 | Q669: 445 | R669: 5
G670: 100 | H670: 123 | I670: 124 | J670: 124 | K670: 1213 | L670: 12323 | M670: 3231 | N670: 2132 | O670: 12322 | P670: 12121 | Q670: 445 | R670: 5
G671: 100 | H671: 123 | I671: 124 | J671: 124 | K671: 1213 | L671: 12323 | M671: 3231 | N671: 2132 | O671: 12322 | P671: 12121 | Q671: 445 | R671: 5
G672: 100 | H672: 123 | I672: 124 | J672: 124 | K672: 1213 | L672: 12323 | M672: 3231 | N672: 2132 | O672: 12322 | P672: 12121 | Q672: 445 | R672: 5
G673: 100 | H673: 123 | I673: 124 | J673: 124 | K673: 1213 | L673: 12323 | M673: 3231 | N673: 2132 | O673: 12322 | P673: 12121 | Q673: 445 | R673: 5
G674: 100 | H674: 123 | I674: 124 | J674: 124 | K674: 1213 | L674: 12323 | M674: 3231 | N674: 2132 | O674: 12322 | P674: 12121 | Q674: 445 | R674: 5
G675: 100 | H675: 123 | I675: 124 | J675: 124 | K675: 1213 | L675: 12323 | M675: 3231 | N675: 2132 | O675: 12322 | P675: 12121 | Q675: 445 | R675: 5
G676: 100 | H676: 123 | I676: 124 | J676: 124 | K676: 1213 | L676: 12323 | M676: 3231 | N676: 2132 | O676: 12322 | P676: 12121 | Q676: 445 | R676: 5
G677: 100 | H677: 123 | I677: 124 | J677: 124 | K677: 1213 | L677: 12323 | M677: 3231 | N677: 2132 | O677: 12322 | P677: 12121 | Q677: 445 | R677: 5
G678: 100 | H678: 123 | I678: 124 | J678: 124 | K678: 1213 | L678: 12323 | M678: 3231 | N678: 2132 | O678: 12322 | P678: 12121 | Q678: 445 | R678: 5
G679: 100 | H679: 123 | I679: 124 | J679: 124 | K679: 1213 | L679: 12323 | M679: 3231 | N679: 2132 | O679: 12322 | P679: 12121 | Q679: 445 | R679: 5
G680: 100 | H680: 123 | I680: 124 | J680: 124 | K680: 1213 | L680: 12323 | M680: 3231 | N680: 2132 | O680: 12322 | P680: 12121 | Q680: 445 | R680: 5
G681: 100 | H681: 123 | I681: 124 | J681: 124 | K681: 1213 | L681: 12323 | M681: 3231 | N681: 2132 | O681: 12322 | P681: 12121 | Q681: 445 | R681: 5
G682: 100 | H682: 123 | I682: 124 | J682: 124 | K682: 1213 | L682: 12323 | M682: 3231 | N682: 2132 | O682: 12322 | P682: 12121 | Q682: 445 | R682: 5
G683: 100 | H683: 123 | I683: 124 | J683: 124 | K683: 1213 | L683: 12323 | M683: 3231 | N683: 2132 | O683: 12322 | P683: 12121 | Q683: 445 | R683: 5
G684: 100 | H684: 123 | I684: 124 | J684: 124 | K684: 1213 | L684: 12323 | M684: 3231 | N684: 2132 | O684: 12322 | P684: 12121 | Q684: 445 | R684: 5
G685: 100 | H685: 123 | I685: 124 | J685: 124 | K685: 1213 | L685: 12323 | M685: 3231 | N685: 2132 | O685: 12322 | P685: 12121 | Q685: 445 | R685: 5
G686: 100 | H686: 123 | I686: 124 | J686: 124 | K686: 1213 | L686: 12323 | M686: 3231 | N686: 2132 | O686: 12322 | P686: 12121 | Q686: 445 | R686: 5
G687: 100 | H687: 123 | I687: 124 | J687: 124 | K687: 1213 | L687: 12323 | M687: 3231 | N687: 2132 | O687: 12322 | P687: 12121 | Q687: 445 | R687: 5
G688: 100 | H688: 123 | I688: 124 | J688: 124 | K688: 1213 | L688: 12323 | M688: 3231 | N688: 2132 | O688: 12322 | P688: 12121 | Q688: 445 | R688: 5
G689: 100 | H689: 123 | I689: 124 | J689: 124 | K689: 1213 | L689: 12323 | M689: 3231 | N689: 2132 | O689: 12322 | P689: 12121 | Q689: 445 | R689: 5
G690: 100 | H690: 123 | I690: 124 | J690: 124 | K690: 1213 | L690: 12323 | M690: 3231 | N690: 2132 | O690: 12322 | P690: 12121 | Q690: 445 | R690: 5
G691: 100 | H691: 123 | I691: 124 | J691: 124 | K691: 1213 | L691: 12323 | M691: 3231 | N691: 2132 | O691: 12322 | P691: 12121 | Q691: 445 | R691: 5
G692: 100 | H692: 123 | I692: 124 | J692: 124 | K692: 1213 | L692: 12323 | M692: 3231 | N692: 2132 | O692: 12322 | P692: 12121 | Q692: 445 | R692: 5
G693: 100 | H693: 123 | I693: 124 | J693: 124 | K693: 1213 | L693: 12323 | M693: 3231 | N693: 2132 | O693: 12322 | P693: 12121 | Q693: 445 | R693: 5
... 305 more rows

Sheet Scheme Analysis
F2: Scheme Analysis Output
D11: Scheme Analysis - no. schemes
D13: No. | E13: Road Type | F13: Treatment | G13: 2020 | H13: 2021 | I13: 2022 | J13: 2023 | K13: 2024 | L13: 2025 | M13: 2026 | N13: 2027 | O13: 2028 | P13: 2029 | Q13: 2030 | R13: 2031 | S13: 2032 | T13: 2033 | U13: 2034 | V13: 2035 | W13: 2036 | X13: 2037 | Y13: 2038 | Z13: 2039 | AA13: 2040 | AB13: 2041 | AC13: 2042 | AD13: 2043 | AE13: 2044 | AF13: 2045 | AG13: 2046 | AH13: 2047 | AI13: 2048 | AJ13: 2049
D14: 1 | E14: MR | F14: Treatment 1 | G14: 0 | H14: 0 | I14: 0 | J14: 0 | K14: 0 | L14: 0 | M14: 0 | N14: 0 | O14: 0 | P14: 0 | Q14: 0 | R14: 0 | S14: 0 | T14: 0 | U14: 0 | V14: 0 | W14: 0 | X14: 0 | Y14: 0 | Z14: 0 | AA14: 0 | AB14: 0 | AC14: 0 | AD14: 0 | AE14: 0 | AF14: 0 | AG14: 0 | AH14: 0 | AI14: 0 | AJ14: 0
D15: 1 | E15: MR | F15: Treatment 2 | G15: 1.124183704 | H15: 1.429704601 | I15: 1.652059996 | J15: 0.9105968532 | K15: 1.049420818 | L15: 1.135491677 | M15: 1.188855609 | N15: 1.221941247 | O15: 1.242454342 | P15: 1.255172461 | Q15: 1.263057695 | R15: 1.26794654 | S15: 1.270977624 | T15: 1.272856896 | U15: 1.274022045 | V15: 1.274744437 | W15: 1.27519232 | X15: 1.275470008 | Y15: 1.275642174 | Z15: 1.275748917 | AA15: 1.275815098 | AB15: 1.27585613 | AC15: 1.27588157 | AD15: 1.275897342 | AE15: 1.275907122 | AF15: 1.275913185 | AG15: 1.275916944 | AH15: 1.275919274 | AI15: 1.275920719 | AJ15: 1.275921615
D16: 2 | E16: MU | F16: Treatment 1 | G16: 0 | H16: 0 | I16: 0 | J16: 0 | K16: 0 | L16: 0 | M16: 0 | N16: 0 | O16: 0 | P16: 0 | Q16: 0 | R16: 0 | S16: 0 | T16: 0 | U16: 0 | V16: 0 | W16: 0 | X16: 0 | Y16: 0 | Z16: 0 | AA16: 0 | AB16: 0 | AC16: 0 | AD16: 0 | AE16: 0 | AF16: 0 | AG16: 0 | AH16: 0 | AI16: 0 | AJ16: 0
D17: 2 | E17: MU | F17: Treatment 2 | G17: 0.5517727834 | H17: 0.5735326714 | I17: 0.6110139451 | J17: 0.1346600142 | K17: 0.1858754903 | L17: 0.2145561569 | M17: 0.2306173302 | N17: 0.2396115873 | O17: 0.2446483712 | P17: 0.2474689702 | Q17: 0.2490485057 | R17: 0.2499330455 | S17: 0.2504283879 | T17: 0.2507057796 | U17: 0.2508611189 | V17: 0.2509481089 | W17: 0.2509968234 | X17: 0.2510241034 | Y17: 0.2510393803 | Z17: 0.2510479353 | AA17: 0.2510527261 | AB17: 0.251055409 | AC17: 0.2510569114 | AD17: 0.2510577527 | AE17: 0.2510582239 | AF17: 0.2510584877 | AG17: 0.2510586355 | AH17: 0.2510587182 | AI17: 0.2510587646 | AJ17: 0.2510587905
D18: 3 | E18: DR | F18: Treatment 1 | G18: 0 | H18: 0 | I18: 0 | J18: 0 | K18: 0 | L18: 0 | M18: 0 | N18: 0 | O18: 0 | P18: 0 | Q18: 0 | R18: 0 | S18: 0 | T18: 0 | U18: 0 | V18: 0 | W18: 0 | X18: 0 | Y18: 0 | Z18: 0 | AA18: 0 | AB18: 0 | AC18: 0 | AD18: 0 | AE18: 0 | AF18: 0 | AG18: 0 | AH18: 0 | AI18: 0 | AJ18: 0
D19: 3 | E19: DR | F19: Treatment 2 | G19: 13.19237597 | H19: 12.59139998 | I19: 12.42628749 | J19: 5.765061569 | K19: 6.057431404 | L19: 6.244548099 | M19: 6.364302783 | N19: 6.440945781 | O19: 6.4899973 | P19: 6.521390272 | Q19: 6.541481774 | R19: 6.554340335 | S19: 6.562569815 | T19: 6.567836681 | U19: 6.571207476 | V19: 6.573364785 | W19: 6.574745462 | X19: 6.575629096 | Y19: 6.576194621 | Z19: 6.576556558 | AA19: 6.576788197 | AB19: 6.576936446 | AC19: 6.577031325 | AD19: 6.577092048 | AE19: 6.577130911 | AF19: 6.577155783 | AG19: 6.577171701 | AH19: 6.577181889 | AI19: 6.577188409 | AJ19: 6.577192582
D20: 4 | E20: DU | F20: Treatment 1 | G20: 0 | H20: 0 | I20: 0 | J20: 0 | K20: 0 | L20: 0 | M20: 0 | N20: 0 | O20: 0 | P20: 0 | Q20: 0 | R20: 0 | S20: 0 | T20: 0 | U20: 0 | V20: 0 | W20: 0 | X20: 0 | Y20: 0 | Z20: 0 | AA20: 0 | AB20: 0 | AC20: 0 | AD20: 0 | AE20: 0 | AF20: 0 | AG20: 0 | AH20: 0 | AI20: 0 | AJ20: 0
D21: 4 | E21: DU | F21: Treatment 2 | G21: 0.0646599777 | H21: 0.1114153489 | I21: 0.1407278998 | J21: 0.09561249343 | K21: 0.1096869963 | L21: 0.1175687179 | M21: 0.121982482 | N21: 0.1244541899 | O21: 0.1258383464 | P21: 0.126613474 | Q21: 0.1270475454 | R21: 0.1272906254 | S21: 0.1274267502 | T21: 0.1275029801 | U21: 0.1275456689 | V21: 0.1275695746 | W21: 0.1275829618 | X21: 0.1275904586 | Y21: 0.1275946568 | Z21: 0.1275970078 | AA21: 0.1275983244 | AB21: 0.1275990616 | AC21: 0.1275994745 | AD21: 0.1275997057 | AE21: 0.1275998352 | AF21: 0.1275999077 | AG21: 0.1275999483 | AH21: 0.1275999711 | AI21: 0.1275999838 | AJ21: 0.1275999909
D22: 5 | E22: SR | F22: Treatment 1 | G22: 0 | H22: 0 | I22: 0 | J22: 0 | K22: 0 | L22: 0 | M22: 0 | N22: 0 | O22: 0 | P22: 0 | Q22: 0 | R22: 0 | S22: 0 | T22: 0 | U22: 0 | V22: 0 | W22: 0 | X22: 0 | Y22: 0 | Z22: 0 | AA22: 0 | AB22: 0 | AC22: 0 | AD22: 0 | AE22: 0 | AF22: 0 | AG22: 0 | AH22: 0 | AI22: 0 | AJ22: 0
D23: 5 | E23: SR | F23: Treatment 2 | G23: 119.0745202 | H23: 117.7130344 | I23: 118.9244031 | J23: 70.97297682 | K23: 74.65428609 | L23: 76.86307166 | M23: 78.18834299 | N23: 78.9835058 | O23: 79.46060348 | P23: 79.74686209 | Q23: 79.91861725 | R23: 80.02167035 | S23: 80.08350221 | T23: 80.12060133 | U23: 80.1428608 | V23: 80.15621648 | W23: 80.16422989 | X23: 80.16903793 | Y23: 80.17192276 | Z23: 80.17365366 | AA23: 80.17469219 | AB23: 80.17531532 | AC23: 80.17568919 | AD23: 80.17591351 | AE23: 80.17604811 | AF23: 80.17612886 | AG23: 80.17617732 | AH23: 80.17620639 | AI23: 80.17622383 | AJ23: 80.1762343
D24: 6 | E24: SU | F24: Treatment 1 | G24: 0 | H24: 0 | I24: 0 | J24: 0 | K24: 0 | L24: 0 | M24: 0 | N24: 0 | O24: 0 | P24: 0 | Q24: 0 | R24: 0 | S24: 0 | T24: 0 | U24: 0 | V24: 0 | W24: 0 | X24: 0 | Y24: 0 | Z24: 0 | AA24: 0 | AB24: 0 | AC24: 0 | AD24: 0 | AE24: 0 | AF24: 0 | AG24: 0 | AH24: 0 | AI24: 0 | AJ24: 0
D25: 6 | E25: SU | F25: Treatment 2 | G25: 37.0622073 | H25: 36.01953095 | I25: 36.44271255 | J25: 16.87932933 | K25: 18.58308442 | L25: 19.53718728 | M25: 20.07148488 | N25: 20.37069153 | O25: 20.53824726 | P25: 20.63207846 | Q25: 20.68462394 | R25: 20.71404941 | S25: 20.73052767 | T25: 20.73975549 | U25: 20.74492308 | V25: 20.74781692 | W25: 20.74943748 | X25: 20.75034499 | Y25: 20.75085319 | Z25: 20.75113779 | AA25: 20.75129716 | AB25: 20.75138641 | AC25: 20.75143639 | AD25: 20.75146438 | AE25: 20.75148005 | AF25: 20.75148883 | AG25: 20.75149374 | AH25: 20.7514965 | AI25: 20.75149804 | AJ25: 20.7514989

Sheet Road Works Impacts Time
F2: Road Works Impacts - Time
D11: Road Works - Time (£k)
D13: No. | E13: Road Type | F13: Treatment | G13: 2020 | H13: 2021 | I13: 2022 | J13: 2023 | K13: 2024 | L13: 2025 | M13: 2026 | N13: 2027 | O13: 2028 | P13: 2029 | Q13: 2030 | R13: 2031 | S13: 2032 | T13: 2033 | U13: 2034 | V13: 2035 | W13: 2036 | X13: 2037 | Y13: 2038 | Z13: 2039 | AA13: 2040 | AB13: 2041 | AC13: 2042 | AD13: 2043 | AE13: 2044 | AF13: 2045 | AG13: 2046 | AH13: 2047 | AI13: 2048 | AJ13: 2049
D14: 1 | E14: MR | F14: Treatment 1 | G14: 0 | H14: 0 | I14: 0 | J14: 0 | K14: 0 | L14: 0 | M14: 0 | N14: 0 | O14: 0 | P14: 0 | Q14: 0 | R14: 0 | S14: 0 | T14: 0 | U14: 0 | V14: 0 | W14: 0 | X14: 0 | Y14: 0 | Z14: 0 | AA14: 0 | AB14: 0 | AC14: 0 | AD14: 0 | AE14: 0 | AF14: 0 | AG14: 0 | AH14: 0 | AI14: 0 | AJ14: 0
D15: 1 | E15: MR | F15: Treatment 2 | G15: 21.12591484 | H15: 32.03584233 | I15: 37.36899535 | J15: 20.79070711 | K15: 24.18314285 | L15: 26.40767112 | M15: 27.90115243 | N15: 28.92832611 | O15: 29.66885265 | P15: 30.23005878 | Q15: 30.67909474 | R15: 31.05797048 | S15: 31.43675985 | T15: 31.78823653 | U15: 32.12260822 | V15: 32.44626874 | W15: 32.76322256 | X15: 33.04107777 | Y15: 33.31629494 | Z15: 33.58986264 | AA15: 33.86239905 | AB15: 34.13429072 | AC15: 34.36757929 | AD15: 34.60061498 | AE15: 34.83349279 | AF15: 35.06627203 | AG15: 35.29898975 | AH15: 35.50032019 | AI15: 35.70162659 | AJ15: 35.902918
D16: 2 | E16: MU | F16: Treatment 1 | G16: 0 | H16: 0 | I16: 0 | J16: 0 | K16: 0 | L16: 0 | M16: 0 | N16: 0 | O16: 0 | P16: 0 | Q16: 0 | R16: 0 | S16: 0 | T16: 0 | U16: 0 | V16: 0 | W16: 0 | X16: 0 | Y16: 0 | Z16: 0 | AA16: 0 | AB16: 0 | AC16: 0 | AD16: 0 | AE16: 0 | AF16: 0 | AG16: 0 | AH16: 0 | AI16: 0 | AJ16: 0
D17: 2 | E17: MU | F17: Treatment 2 | G17: 5.450063537 | H17: 6.574592178 | I17: 7.068763701 | J17: 1.57208676 | K17: 2.189626153 | L17: 2.550139442 | M17: 2.765385735 | N17: 2.8977381 | O17: 2.983665507 | P17: 3.043368334 | Q17: 3.088258497 | R17: 3.124782507 | S17: 3.161008956 | T17: 3.194577016 | U17: 3.226641741 | V17: 3.257856402 | W17: 3.288590436 | X17: 3.315658215 | Y17: 3.342571977 | Z17: 3.369398775 | AA17: 3.396176473 | AB17: 3.422926449 | AC17: 3.445917265 | AD17: 3.468899221 | AE17: 3.491876183 | AF17: 3.514850329 | AG17: 3.537822887 | AH17: 3.557710497 | AI17: 3.577597602 | AJ17: 3.597484423
D18: 3 | E18: DR | F18: Treatment 1 | G18: 0 | H18: 0 | I18: 0 | J18: 0 | K18: 0 | L18: 0 | M18: 0 | N18: 0 | O18: 0 | P18: 0 | Q18: 0 | R18: 0 | S18: 0 | T18: 0 | U18: 0 | V18: 0 | W18: 0 | X18: 0 | Y18: 0 | Z18: 0 | AA18: 0 | AB18: 0 | AC18: 0 | AD18: 0 | AE18: 0 | AF18: 0 | AG18: 0 | AH18: 0 | AI18: 0 | AJ18: 0
D19: 3 | E19: DR | F19: Treatment 2 | G19: 8.774240174 | H19: 8.504536544 | I19: 8.473996326 | J19: 3.96900278 | K19: 4.209762751 | L19: 4.380499193 | M19: 4.505981585 | N19: 4.601007002 | O19: 4.677118257 | P19: 4.741012696 | Q19: 4.797016852 | R19: 4.847925453 | S19: 4.902573073 | T19: 4.955107339 | U19: 5.006275028 | V19: 5.056559129 | W19: 5.106271986 | X19: 5.150142267 | Y19: 5.193772918 | Z19: 5.237248868 | AA19: 5.280624954 | AB19: 5.32393658 | AC19: 5.361047861 | AD19: 5.398132176 | AE19: 5.43519911 | AF19: 5.472254842 | AG19: 5.509303354 | AH19: 5.541258242 | AI19: 5.573210121 | AJ19: 5.605160063
D20: 4 | E20: DU | F20: Treatment 1 | G20: 0 | H20: 0 | I20: 0 | J20: 0 | K20: 0 | L20: 0 | M20: 0 | N20: 0 | O20: 0 | P20: 0 | Q20: 0 | R20: 0 | S20: 0 | T20: 0 | U20: 0 | V20: 0 | W20: 0 | X20: 0 | Y20: 0 | Z20: 0 | AA20: 0 | AB20: 0 | AC20: 0 | AD20: 0 | AE20: 0 | AF20: 0 | AG20: 0 | AH20: 0 | AI20: 0 | AJ20: 0
D21: 4 | E21: DU | F21: Treatment 2 | G21: 0.01199074492 | H21: 0.02098911111 | I21: 0.02677031483 | J21: 0.0183641772 | K21: 0.0212694185 | L21: 0.02301424519 | M21: 0.02410285409 | N21: 0.0248118339 | O21: 0.0253108281 | P21: 0.02569115089 | Q21: 0.02600441319 | R21: 0.0262797831 | S21: 0.02657045892 | T21: 0.02684908329 | U21: 0.02712088974 | V21: 0.02738883944 | W21: 0.02765460769 | X21: 0.0278885963 | Y21: 0.0281218852 | Z21: 0.0283547789 | AA21: 0.02858744941 | AB21: 0.02881999387 | AC21: 0.02901957789 | AD21: 0.02921912161 | AE21: 0.0294186426 | AF21: 0.02961815076 | AG21: 0.0298176517 | AH21: 0.02999032382 | AI21: 0.03016299363 | AJ21: 0.03033566214
D22: 5 | E22: SR | F22: Treatment 1 | G22: 0 | H22: 0 | I22: 0 | J22: 0 | K22: 0 | L22: 0 | M22: 0 | N22: 0 | O22: 0 | P22: 0 | Q22: 0 | R22: 0 | S22: 0 | T22: 0 | U22: 0 | V22: 0 | W22: 0 | X22: 0 | Y22: 0 | Z22: 0 | AA22: 0 | AB22: 0 | AC22: 0 | AD22: 0 | AE22: 0 | AF22: 0 | AG22: 0 | AH22: 0 | AI22: 0 | AJ22: 0
D23: 5 | E23: SR | F23: Treatment 2 | G23: 311.2657335 | H23: 312.1559295 | I23: 318.2656931 | J23: 191.6671502 | K23: 203.4276023 | L23: 211.3190355 | M23: 216.8675318 | N23: 220.9504904 | O23: 224.1739274 | P23: 226.8771151 | Q23: 229.2654314 | R23: 231.4631918 | S23: 233.8836574 | T23: 236.2346602 | U23: 238.54357 | V23: 240.8269748 | W23: 243.0949271 | X23: 245.1070431 | Y23: 247.1134709 | Z23: 249.1164568 | AA23: 251.1173605 | AB23: 253.1170045 | AC23: 254.8334729 | AD23: 256.5494788 | AE23: 258.2652053 | AF23: 259.9807629 | AG23: 261.6962186 | AH23: 263.1764954 | AI23: 264.6567348 | AJ23: 266.1369518
D24: 6 | E24: SU | F24: Treatment 1 | G24: 0 | H24: 0 | I24: 0 | J24: 0 | K24: 0 | L24: 0 | M24: 0 | N24: 0 | O24: 0 | P24: 0 | Q24: 0 | R24: 0 | S24: 0 | T24: 0 | U24: 0 | V24: 0 | W24: 0 | X24: 0 | Y24: 0 | Z24: 0 | AA24: 0 | AB24: 0 | AC24: 0 | AD24: 0 | AE24: 0 | AF24: 0 | AG24: 0 | AH24: 0 | AI24: 0 | AJ24: 0
D25: 6 | E25: SU | F25: Treatment 2 | G25: 23.8786326 | H25: 23.57495577 | I25: 24.0848729 | J25: 11.26338821 | K25: 12.51906854 | L25: 13.28671158 | M25: 13.77837034 | N25: 14.10914171 | O25: 14.35160186 | P25: 14.54415398 | Q25: 14.70850349 | R25: 14.85691724 | S25: 15.01711173 | T25: 15.17223801 | U25: 15.32449705 | V25: 15.47513415 | W25: 15.62485386 | X25: 15.75682049 | Y25: 15.88849287 | Z25: 16.01999906 | AA25: 16.15141138 | AB25: 16.28277069 | AC25: 16.39551928 | AD25: 16.50825091 | AE25: 16.62097299 | AF25: 16.73368967 | AG25: 16.84640331 | AH25: 16.94395357 | AI25: 17.04150286 | AJ25: 17.1390516

Sheet Road Works Impacts Carbon
F2: Road Works Impacts - CO2
D11: Road Works - Carbon (£k)
D13: No. | E13: Road Type | F13: Treatment | G13: 2020 | H13: 2021 | I13: 2022 | J13: 2023 | K13: 2024 | L13: 2025 | M13: 2026 | N13: 2027 | O13: 2028 | P13: 2029 | Q13: 2030 | R13: 2031 | S13: 2032 | T13: 2033 | U13: 2034 | V13: 2035 | W13: 2036 | X13: 2037 | Y13: 2038 | Z13: 2039 | AA13: 2040 | AB13: 2041 | AC13: 2042 | AD13: 2043 | AE13: 2044 | AF13: 2045 | AG13: 2046 | AH13: 2047 | AI13: 2048 | AJ13: 2049
D14: 1 | E14: MR | F14: Treatment 1 | G14: 0 | H14: 0 | I14: 0 | J14: 0 | K14: 0 | L14: 0 | M14: 0 | N14: 0 | O14: 0 | P14: 0 | Q14: 0 | R14: 0 | S14: 0 | T14: 0 | U14: 0 | V14: 0 | W14: 0 | X14: 0 | Y14: 0 | Z14: 0 | AA14: 0 | AB14: 0 | AC14: 0 | AD14: 0 | AE14: 0 | AF14: 0 | AG14: 0 | AH14: 0 | AI14: 0 | AJ14: 0
D15: 1 | E15: MR | F15: Treatment 2 | G15: -0.450150205 | H15: -0.5313075641 | I15: -0.6196564212 | J15: -0.3446987991 | K15: -0.4008810157 | L15: -0.4376896907 | M15: -0.4623735861 | N15: -0.4793359808 | O15: -0.4915460968 | P15: -0.5007836796 | Q15: -0.5081620973 | R15: -0.514377792 | S15: -0.520605122 | T15: -0.5263799666 | U15: -0.5318714623 | V15: -0.5371855406 | W15: -0.5423885407 | X15: -0.5469567161 | Y15: -0.5514812105 | Z15: -0.5559783945 | AA15: -0.5604585046 | AB15: -0.564927941 | AC15: -0.5687680543 | AD15: -0.5726039817 | AE15: -0.576437296 | AF15: -0.580268979 | AG15: -0.5840996436 | AH15: -0.587416736 | AI15: -0.5907334304 | AJ15: -0.5940498766
D16: 2 | E16: MU | F16: Treatment 1 | G16: 0 | H16: 0 | I16: 0 | J16: 0 | K16: 0 | L16: 0 | M16: 0 | N16: 0 | O16: 0 | P16: 0 | Q16: 0 | R16: 0 | S16: 0 | T16: 0 | U16: 0 | V16: 0 | W16: 0 | X16: 0 | Y16: 0 | Z16: 0 | AA16: 0 | AB16: 0 | AC16: 0 | AD16: 0 | AE16: 0 | AF16: 0 | AG16: 0 | AH16: 0 | AI16: 0 | AJ16: 0
D17: 2 | E17: MU | F17: Treatment 2 | G17: -0.02476371651 | H17: -0.0206849184 | I17: -0.02224192051 | J17: -0.004947073472 | K17: -0.006891028981 | L17: -0.008026376596 | M17: -0.008704665519 | N17: -0.009122078289 | O17: -0.009393392011 | P17: -0.009582169541 | Q17: -0.009724323198 | R17: -0.009840141466 | S17: -0.009955211728 | T17: -0.01006191275 | U17: -0.01016388041 | V17: -0.01026317132 | W17: -0.01036094863 | X17: -0.0104470727 | Y17: -0.01053271163 | Z17: -0.01061807661 | AA17: -0.01070328689 | AB17: -0.01078840984 | AC17: -0.01086159292 | AD17: -0.01093474808 | AE17: -0.0110078875 | AF17: -0.01108101805 | AG17: -0.01115414359 | AH17: -0.01121747122 | AI17: -0.01128079726 | AJ17: -0.0113441224
D18: 3 | E18: DR | F18: Treatment 1 | G18: 0 | H18: 0 | I18: 0 | J18: 0 | K18: 0 | L18: 0 | M18: 0 | N18: 0 | O18: 0 | P18: 0 | Q18: 0 | R18: 0 | S18: 0 | T18: 0 | U18: 0 | V18: 0 | W18: 0 | X18: 0 | Y18: 0 | Z18: 0 | AA18: 0 | AB18: 0 | AC18: 0 | AD18: 0 | AE18: 0 | AF18: 0 | AG18: 0 | AH18: 0 | AI18: 0 | AJ18: 0
D19: 3 | E19: DR | F19: Treatment 2 | G19: -0.1378184151 | H19: -0.1335685713 | I19: -0.1330681003 | J19: -0.06231612234 | K19: -0.06608626571 | L19: -0.06875637551 | M19: -0.0707156821 | N19: -0.07219667509 | O19: -0.07338067719 | P19: -0.07437287959 | Q19: -0.07524122582 | R19: -0.07602959732 | S19: -0.07687690485 | T19: -0.07769105322 | U19: -0.0784837625 | V19: -0.07926261174 | W19: -0.08003250158 | X19: -0.08071210774 | Y19: -0.08138795671 | Z19: -0.08206138037 | AA19: -0.08273323858 | AB19: -0.08340408641 | AC19: -0.08397981654 | AD19: -0.08455512412 | AE19: -0.08513015936 | AF19: -0.08570501909 | AG19: -0.0862797657 | AH19: -0.08677638941 | AI19: -0.08727296599 | AJ19: -0.08776951224
D20: 4 | E20: DU | F20: Treatment 1 | G20: 0 | H20: 0 | I20: 0 | J20: 0 | K20: 0 | L20: 0 | M20: 0 | N20: 0 | O20: 0 | P20: 0 | Q20: 0 | R20: 0 | S20: 0 | T20: 0 | U20: 0 | V20: 0 | W20: 0 | X20: 0 | Y20: 0 | Z20: 0 | AA20: 0 | AB20: 0 | AC20: 0 | AD20: 0 | AE20: 0 | AF20: 0 | AG20: 0 | AH20: 0 | AI20: 0 | AJ20: 0
D21: 4 | E21: DU | F21: Treatment 2 | G21: 6.654799781e-05 | H21: 0.0001164964672 | I21: 0.0001485966741 | J21: 0.000101944377 | K21: 0.0001180817875 | L21: 0.0001277788184 | M21: 0.0001338334834 | N21: 0.0001377750844 | O21: 0.000140550829 | P21: 0.0001426676761 | Q21: 0.0001444121705 | R21: 0.0001459462602 | S21: 0.0001475603952 | T21: 0.0001491076017 | U21: 0.0001506169444 | V21: 0.0001521048684 | W21: 0.0001535806777 | X21: 0.0001548770289 | Y21: 0.0001561694942 | Z21: 0.0001574597646 | AA21: 0.0001587487955 | AB21: 0.0001600371263 | AC21: 0.0001611429221 | AD21: 0.0001622484941 | AE21: 0.0001633539398 | AF21: 0.0001644593144 | AG21: 0.0001655646488 | AH21: 0.0001665224224 | AI21: 0.0001674801832 | AJ21: 0.0001684379368
D22: 5 | E22: SR | F22: Treatment 1 | G22: 0 | H22: 0 | I22: 0 | J22: 0 | K22: 0 | L22: 0 | M22: 0 | N22: 0 | O22: 0 | P22: 0 | Q22: 0 | R22: 0 | S22: 0 | T22: 0 | U22: 0 | V22: 0 | W22: 0 | X22: 0 | Y22: 0 | Z22: 0 | AA22: 0 | AB22: 0 | AC22: 0 | AD22: 0 | AE22: 0 | AF22: 0 | AG22: 0 | AH22: 0 | AI22: 0 | AJ22: 0
D23: 5 | E23: SR | F23: Treatment 2 | G23: 2.909307647 | H23: 2.920393692 | I23: 2.978448711 | J23: 1.794221587 | K23: 1.904864282 | L23: 1.979321214 | M23: 2.031858659 | N23: 2.070573 | O23: 2.101239942 | P23: 2.127034829 | Q23: 2.149880316 | R23: 2.170940461 | S23: 2.194075741 | T23: 2.216559918 | U23: 2.238649456 | V23: 2.260499826 | W23: 2.282205263 | X23: 2.301413674 | Y23: 2.320568705 | Z23: 2.339691433 | AA23: 2.358794616 | AB23: 2.377885972 | AC23: 2.394276937 | AD23: 2.410663558 | AE23: 2.427047554 | AF23: 2.443429964 | AG23: 2.459811417 | AH23: 2.473967101 | AI23: 2.488122434 | AJ23: 2.502277556
D24: 6 | E24: SU | F24: Treatment 1 | G24: 0 | H24: 0 | I24: 0 | J24: 0 | K24: 0 | L24: 0 | M24: 0 | N24: 0 | O24: 0 | P24: 0 | Q24: 0 | R24: 0 | S24: 0 | T24: 0 | U24: 0 | V24: 0 | W24: 0 | X24: 0 | Y24: 0 | Z24: 0 | AA24: 0 | AB24: 0 | AC24: 0 | AD24: 0 | AE24: 0 | AF24: 0 | AG24: 0 | AH24: 0 | AI24: 0 | AJ24: 0
D25: 6 | E25: SU | F25: Treatment 2 | G25: 0.2296847297 | H25: 0.2267761389 | I25: 0.2316994456 | J25: 0.1083635433 | K25: 0.1204533911 | L25: 0.127848834 | M25: 0.1325893875 | N25: 0.1357763669 | O25: 0.1381135917 | P25: 0.1399705732 | Q25: 0.1415561652 | R25: 0.1429884052 | S25: 0.1445290232 | T25: 0.146020862 | U25: 0.1474851049 | V25: 0.1489337377 | W25: 0.1503735411 | X25: 0.1516396429 | Y25: 0.1529029126 | Z25: 0.1541645827 | AA25: 0.1554253495 | AB25: 0.1566856062 | AC25: 0.1577674394 | AD25: 0.1588491094 | AE25: 0.1599306875 | AF25: 0.1610122137 | AG25: 0.1620937107 | AH25: 0.1630308537 | AI25: 0.1639679874 | AJ25: 0.1649051158

Sheet Road Works Impacts Accidents
F2: Road Works Impacts - Accidents
D11: Road Works - Accidents (£k)
D13: No. | E13: Road Type | F13: Treatment | G13: 2020 | H13: 2021 | I13: 2022 | J13: 2023 | K13: 2024 | L13: 2025 | M13: 2026 | N13: 2027 | O13: 2028 | P13: 2029 | Q13: 2030 | R13: 2031 | S13: 2032 | T13: 2033 | U13: 2034 | V13: 2035 | W13: 2036 | X13: 2037 | Y13: 2038 | Z13: 2039 | AA13: 2040 | AB13: 2041 | AC13: 2042 | AD13: 2043 | AE13: 2044 | AF13: 2045 | AG13: 2046 | AH13: 2047 | AI13: 2048 | AJ13: 2049
D14: 1 | E14: MR | F14: Treatment 1 | G14: 0 | H14: 0 | I14: 0 | J14: 0 | K14: 0 | L14: 0 | M14: 0 | N14: 0 | O14: 0 | P14: 0 | Q14: 0 | R14: 0 | S14: 0 | T14: 0 | U14: 0 | V14: 0 | W14: 0 | X14: 0 | Y14: 0 | Z14: 0 | AA14: 0 | AB14: 0 | AC14: 0 | AD14: 0 | AE14: 0 | AF14: 0 | AG14: 0 | AH14: 0 | AI14: 0 | AJ14: 0
D15: 1 | E15: MR | F15: Treatment 2 | G15: -2.173582419 | H15: -2.805968073 | I15: -3.272560475 | J15: -1.820440533 | K15: -2.117152864 | L15: -2.311548679 | M15: -2.441910501 | N15: -2.531493149 | O15: -2.595977824 | P15: -2.644763808 | Q15: -2.683731077 | R15: -2.716557714 | S15: -2.7494458 | T15: -2.779944199 | U15: -2.80894616 | V15: -2.837011136 | W15: -2.864489481 | X15: -2.888615157 | Y15: -2.912510143 | Z15: -2.936260896 | AA15: -2.959921477 | AB15: -2.983525688 | AC15: -3.003806287 | AD15: -3.024064779 | AE15: -3.04430947 | AF15: -3.064545545 | AG15: -3.084776243 | AH15: -3.102294637 | AI15: -3.119810929 | AJ15: -3.137325911
